Workbook

Sheet Annex B.2
A4: Annex B.2: | B4: Output of the tier II cumulative assessment of the chronic dietary exposure of pesticides causing hypertrophy, hyperplasia and neoplasia of C-cells (TCF)
A6: Content : | B6: B.2.01 | C6: Stock plots Margin of Exposure all surveys at the 99th percentiles (95% CI) + Interactive Box plots survey Exposure at the 50 to 99.99 percentiles (95% CI)
B7: B.2.02 | C7: Interactive pie charts per Survey presenting Risk Drivers, Foods as Eaten and Active Substances exceeding the 99th percentile (95% CI)
B8: B.2.03 | C8: Drill Down 9 individuals 99.9th percentile all Surveys
A16: Annex to :
A18: Available online :

Sheet B.2.01
A1: =MATCH(J6,SurveyBoxExp,FALSE) -> 1 | B1: ="Box_Exp_upper_tail_CI!"&ADDRESS($A$1,1) -> Box_Exp_upper_tail_CI!$A$1
A2: Row 1 tm 2 on hide | D2: Rest of the sheet, excluding cell K4 protected | G2: Macro's on Protect | I2: sheet Box_Exp_upper_tail_CI on hide
I3: ='Annex B.2'!C6 -> Stock plots Margin of Exposure all surveys at the 99th percentiles (95% CI) + Interactive Box plots survey Exposure at the 50 to 99.99 percentiles (95% CI)
H4: (CAG-TCF)
J6: Adults (Belgium)
A8: =MID(I3,1,FIND("+",I3)-2) -> Stock plots Margin of Exposure all surveys at the 99th percentiles (95% CI) | J8: =MID(I3,FIND("+",I3)+2,LEN(I3)-FIND("+",I3)+2) -> Interactive Box plots survey Exposure at the 50 to 99.99 percentiles (95% CI)
A10: white | B10: P99.9

Sheet B.2.02
A1: =MATCH(A5,SurveyRD,FALSE) -> 1 | B1: ="pie_Risk_Drivers!"&ADDRESS($A$1,1) -> pie_Risk_Drivers!$A$1 | C1: =VLOOKUP(A5,pie_Risk_Drivers!B1:C10,2,FALSE) -> SnapTable_utRD_BE | D1: -> | E1: =MATCH(A5,SurveyFaE,FALSE) -> 1 | F1: ="pie_Food_as_Eaten!"&ADDRESS($E$1,1) -> pie_Food_as_Eaten!$A$1 | G1: =VLOOKUP(A5,pie_Food_as_Eaten!B1:C10,2,FALSE) -> SnapTable_utFaE_BE | I1: -> | J1: =MATCH(A5,SurveyAS,FALSE) -> 1 | K1: ="pie_Active_Substance!"&ADDRESS($J1,1) -> pie_Active_Substance!$A$1 | L1: =VLOOKUP(A5,pie_Active_Substance!B1:C10,2,FALSE) -> SnapTable_utAS_BE
A2: Row 1 tm 2 on hide | C2: Rest of the sheet, excluding cell A7 protected | G2: Macro's on Protect | J2: sheet Box_Exp_upper_tail_CI on hide
F3: ='Annex B.2'!C7 -> Interactive pie charts per Survey presenting Risk Drivers, Foods as Eaten and Active Substances exceeding the 99th percentile (95% CI)
F4: (CAG-TCF)
A5: Adults (Belgium)
A8: Risk Drivers | E8: Foods as Eaten | J8: Active Substances
J36: Arial 11

Sheet B.2.03
I5: ='Annex B.2'!C8 -> Drill Down 9 individuals 99.9th percentile all Surveys
A7: Drill | B7: Body Weight (kg) | C7: Survey | D7: Day | E7: Food as eaten | F7: Amount (g) | G7: Food as measured | H7: Conversion factor | I7: Portion amount (g) | J7: Substance | K7: Concentration (mg/kg) | L7: Processing factor | M7: Processing correction factor | N7: Exposure (µg/kg bw/day) | O7: RPF | P7: Ioxynil equivalents exposure (µg/kg bw/day) | Q7: Fraction of OIM | R7: day correction | S7: Fraction of OIM corrected for number of consumption days
A8: 1 | B8: 72 | C8: Adults (Belgium) | D8: 2 | E8: Wine grapes-Winemaking, Red | F8: 1630 | G8: Wine grapes | H8: 1.43 | I8: 2320 | J8: Propineb | K8: 0.0253 | L8: 1 | M8: 1 | N8: 0.8153 | O8: 0.676 | P8: 0.5509 | Q8: 0.2647 | R8: 2 | S8: =Q8/R8 -> 0.13235
A9: 1 | B9: 72 | C9: Adults (Belgium) | D9: 1 | E9: Wine grapes-Winemaking, Red | F9: 1130 | G9: Wine grapes | H9: 1.43 | I9: 1610 | J9: Propineb | K9: 0.0253 | L9: 1 | M9: 1 | N9: 0.5645 | O9: 0.676 | P9: 0.3814 | Q9: 0.1833 | R9: 2 | S9: =Q9/R9 -> 0.09165
A10: 1 | B10: 72 | C10: Adults (Belgium) | D10: 1 | E10: Spinaches-Unspecified | F10: 243 | G10: Spinaches | H10: 1 | I10: 243 | J10: Bromide ion | K10: 2.28 | L10: 1 | M10: 1 | N10: 7.711 | O10: 0.0417 | P10: 0.3213 | Q10: 0.1544 | R10: 2 | S10: 0.0772
A11: 1 | B11: 72 | C11: Adults (Belgium) | D11: 2 | E11: Wheat-Grain milling, Semolina or coarse ground powder (as part-nature) | F11: 231 | G11: Wheat | H11: 1.43 | I11: 330 | J11: Bromide ion | K11: 1.58 | L11: 1 | M11: 1 | N11: 7.254 | O11: 0.0417 | P11: 0.3022 | Q11: 0.1452 | R11: 2 | S11: 0.0726
A12: 1 | B12: 72 | C12: Adults (Belgium) | D12: 2 | E12: Wine grapes-Winemaking, Red | F12: 1630 | G12: Wine grapes | H12: 1.43 | I12: 2320 | J12: Ziram | K12: 0.0103 | L12: 1 | M12: 1 | N12: 0.3339 | O12: 0.893 | P12: 0.2981 | Q12: 0.1433 | R12: 2 | S12: 0.07165
A13: 1 | B13: 72 | C13: Adults (Belgium) | D13: 2 | E13: Wine grapes-Winemaking, Red | F13: 1630 | G13: Wine grapes | H13: 1.43 | I13: 2320 | J13: Cyprodinil | K13: 0.0406 | L13: 1 | M13: 1 | N13: 1.311 | O13: 0.159 | P13: 0.2087 | Q13: 0.1003 | R13: 2 | S13: 0.05015
A14: 1 | B14: 72 | C14: Adults (Belgium) | D14: 1 | E14: Wine grapes-Winemaking, Red | F14: 1130 | G14: Wine grapes | H14: 1.43 | I14: 1610 | J14: Ziram | K14: 0.0103 | L14: 1 | M14: 1 | N14: 0.2312 | O14: 0.893 | P14: 0.2064 | Q14: 0.0992 | R14: 2 | S14: 0.0496
A15: 1 | B15: 72 | C15: Adults (Belgium) | D15: 2 | E15: Wine grapes-Winemaking, Red | F15: 1630 | G15: Wine grapes | H15: 1.43 | I15: 2320 | J15: Metiram | K15: 0.0293 | L15: 1 | M15: 1 | N15: 0.9465 | O15: 0.192 | P15: 0.182 | Q15: 0.0875 | R15: 2 | S15: 0.04375
A16: 1 | B16: 72 | C16: Adults (Belgium) | D16: 1 | E16: Wheat-Grain milling, Semolina or coarse ground powder (as part-nature) | F16: 115 | G16: Wheat | H16: 1.43 | I16: 165 | J16: Bromide ion | K16: 1.58 | L16: 1 | M16: 1 | N16: 3.62 | O16: 0.0417 | P16: 0.1508 | Q16: 0.0725 | R16: 2 | S16: 0.03625
A17: 1 | B17: 72 | C17: Adults (Belgium) | D17: 1 | E17: Wine grapes-Winemaking, Red | F17: 1130 | G17: Wine grapes | H17: 1.43 | I17: 1610 | J17: Cyprodinil | K17: 0.0406 | L17: 1 | M17: 1 | N17: 0.9074 | O17: 0.159 | P17: 0.1445 | Q17: 0.0694 | R17: 2 | S17: 0.0347
A18: 1 | B18: 72 | C18: Adults (Belgium) | D18: 1 | E18: Wine grapes-Winemaking, Red | F18: 1130 | G18: Wine grapes | H18: 1.43 | I18: 1610 | J18: Metiram | K18: 0.0293 | L18: 1 | M18: 1 | N18: 0.6553 | O18: 0.192 | P18: 0.126 | Q18: 0.0606 | R18: 2 | S18: 0.0303
A19: 1 | B19: 72 | C19: Adults (Belgium) | D19: 1 | E19: Tomatoes-Canning / jarring | F19: 169 | G19: Tomatoes | H19: 1.25 | I19: 212 | J19: Bromide ion | K19: 0.854 | L19: 1 | M19: 1 | N19: 2.508 | O19: 0.0417 | P19: 0.1045 | Q19: 0.0502 | R19: 2 | S19: 0.0251
A20: 1 | B20: 72 | C20: Adults (Belgium) | D20: 2 | E20: Tomatoes-Unspecified | F20: 206 | G20: Tomatoes | H20: 1 | I20: 206 | J20: Bromide ion | K20: 0.854 | L20: 1 | M20: 1 | N20: 2.443 | O20: 0.0417 | P20: 0.1018 | Q20: 0.0489 | R20: 2 | S20: 0.02445
A21: 1 | B21: 72 | C21: Adults (Belgium) | D21: 2 | E21: Wine grapes-Winemaking, Red | F21: 1630 | G21: Wine grapes | H21: 1.43 | I21: 2320 | J21: Pyrimethanil | K21: 0.0686 | L21: 1 | M21: 1 | N21: 2.214 | O21: 0.0294 | P21: 0.06511 | Q21: 0.0313 | R21: 2 | S21: 0.01565
A22: 1 | B22: 72 | C22: Adults (Belgium) | D22: 2 | E22: Wine grapes-Winemaking, Red | F22: 1630 | G22: Wine grapes | H22: 1.43 | I22: 2320 | J22: Mancozeb | K22: 0.0191 | L22: 1 | M22: 1 | N22: 0.6173 | O22: 0.104 | P22: 0.0643 | Q22: 0.0309 | R22: 2 | S22: 0.01545
A23: 1 | B23: 72 | C23: Adults (Belgium) | D23: 2 | E23: Wheat-Grain milling, Flour/meal or finely ground powder (as part-nature), White/refined | F23: 42.8 | G23: Wheat | H23: 1.43 | I23: 61.2 | J23: Bromide ion | K23: 1.58 | L23: 1 | M23: 1 | N23: 1.345 | O23: 0.0417 | P23: 0.05602 | Q23: 0.0269 | R23: 2 | S23: 0.01345
A24: 1 | B24: 72 | C24: Adults (Belgium) | D24: 2 | E24: Wine grapes-Winemaking, Red | F24: 1630 | G24: Wine grapes | H24: 1.43 | I24: 2320 | J24: Maneb | K24: 0.015 | L24: 1 | M24: 1 | N24: 0.4838 | O24: 0.1 | P24: 0.04838 | Q24: 0.0232 | R24: 2 | S24: 0.0116
A25: 1 | B25: 72 | C25: Adults (Belgium) | D25: 2 | E25: Lettuces-Unspecified | F25: 100 | G25: Lettuces | H25: 1 | I25: 100 | J25: Bromide ion | K25: 0.835 | L25: 1 | M25: 1 | N25: 1.16 | O25: 0.0417 | P25: 0.04833 | Q25: 0.0232 | R25: 2 | S25: 0.0116
A26: 1 | B26: 72 | C26: Adults (Belgium) | D26: 1 | E26: Wine grapes-Winemaking, Red | F26: 1130 | G26: Wine grapes | H26: 1.43 | I26: 1610 | J26: Pyrimethanil | K26: 0.0686 | L26: 1 | M26: 1 | N26: 1.533 | O26: 0.0294 | P26: 0.04508 | Q26: 0.0217 | R26: 2 | S26: 0.01085
A27: 1 | B27: 72 | C27: Adults (Belgium) | D27: 1 | E27: Tomatoes-Canning / jarring | F27: 169 | G27: Tomatoes | H27: 1.25 | I27: 212 | J27: Propineb | K27: 0.0228 | L27: 1 | M27: 1 | N27: 0.06695 | O27: 0.676 | P27: 0.04524 | Q27: 0.0217 | R27: 2 | S27: 0.01085
A28: 1 | B28: 72 | C28: Adults (Belgium) | D28: 1 | E28: Wine grapes-Winemaking, Red | F28: 1130 | G28: Wine grapes | H28: 1.43 | I28: 1610 | J28: Mancozeb | K28: 0.0191 | L28: 1 | M28: 1 | N28: 0.4274 | O28: 0.104 | P28: 0.04452 | Q28: 0.0214 | R28: 2 | S28: 0.0107
A29: 1 | B29: 72 | C29: Adults (Belgium) | D29: 2 | E29: Tomatoes-Unspecified | F29: 206 | G29: Tomatoes | H29: 1 | I29: 206 | J29: Propineb | K29: 0.0228 | L29: 1 | M29: 1 | N29: 0.06521 | O29: 0.676 | P29: 0.04406 | Q29: 0.0212 | R29: 2 | S29: 0.0106
A30: 1 | B30: 72 | C30: Adults (Belgium) | D30: 2 | E30: Tomatoes-Canning / jarring | F30: 69.5 | G30: Tomatoes | H30: 1.25 | I30: 86.9 | J30: Bromide ion | K30: 0.854 | L30: 1 | M30: 1 | N30: 1.03 | O30: 0.0417 | P30: 0.04292 | Q30: 0.0206 | R30: 2 | S30: 0.0103
A31: 1 | B31: 72 | C31: Adults (Belgium) | D31: 2 | E31: Wine grapes-Winemaking, Red | F31: 1630 | G31: Wine grapes | H31: 1.43 | I31: 2320 | J31: Proquinazid | K31: 0.00278 | L31: 1 | M31: 1 | N31: 0.08966 | O31: 0.417 | P31: 0.03736 | Q31: 0.018 | R31: 2 | S31: 0.009
A32: 1 | B32: 72 | C32: Adults (Belgium) | D32: 1 | E32: Wine grapes-Winemaking, Red | F32: 1130 | G32: Wine grapes | H32: 1.43 | I32: 1610 | J32: Maneb | K32: 0.015 | L32: 1 | M32: 1 | N32: 0.3349 | O32: 0.1 | P32: 0.03349 | Q32: 0.0161 | R32: 2 | S32: 0.00805
A33: 1 | B33: 72 | C33: Adults (Belgium) | D33: 1 | E33: Tomatoes-Pulping / mashing, Concentration / evaporation | F33: 14.8 | G33: Tomatoes | H33: 4 | I33: 59.2 | J33: Bromide ion | K33: 0.854 | L33: 1 | M33: 1 | N33: 0.702 | O33: 0.0417 | P33: 0.02925 | Q33: 0.0141 | R33: 2 | S33: 0.00705
A34: 1 | B34: 72 | C34: Adults (Belgium) | D34: 1 | E34: Wine grapes-Winemaking, Red | F34: 1130 | G34: Wine grapes | H34: 1.43 | I34: 1610 | J34: Proquinazid | K34: 0.00278 | L34: 1 | M34: 1 | N34: 0.06207 | O34: 0.417 | P34: 0.02586 | Q34: 0.0124 | R34: 2 | S34: 0.0062
A35: 1 | B35: 72 | C35: Adults (Belgium) | D35: 2 | E35: Wine grapes-Bacteria fermentation | F35: 93.5 | G35: Wine grapes | H35: 1 | I35: 93.5 | J35: Propineb | K35: 0.0253 | L35: 1 | M35: 1 | N35: 0.0328 | O35: 0.676 | P35: 0.02216 | Q35: 0.0106 | R35: 2 | S35: 0.0053
A36: 1 | B36: 72 | C36: Adults (Belgium) | D36: 1 | E36: Potatoes-Frying | F36: 88.9 | G36: Potatoes | H36: 1.52 | I36: 135 | J36: Bromide ion | K36: 0.238 | L36: 1 | M36: 1 | N36: 0.4474 | O36: 0.0417 | P36: 0.01864 | Q36: 0.009 | R36: 2 | S36: 0.0045
A37: 1 | B37: 72 | C37: Adults (Belgium) | D37: 2 | E37: Tomatoes-Canning / jarring | F37: 69.5 | G37: Tomatoes | H37: 1.25 | I37: 86.9 | J37: Propineb | K37: 0.0228 | L37: 1 | M37: 1 | N37: 0.0275 | O37: 0.676 | P37: 0.01858 | Q37: 0.0089 | R37: 2 | S37: 0.00445
A38: 1 | B38: 72 | C38: Adults (Belgium) | D38: 1 | E38: Spinaches-Unspecified | F38: 243 | G38: Spinaches | H38: 1 | I38: 243 | J38: Spinosad | K38: 0.0288 | L38: 1 | M38: 1 | N38: 0.09722 | O38: 0.185 | P38: 0.018 | Q38: 0.0087 | R38: 2 | S38: 0.00435
A39: 1 | B39: 72 | C39: Adults (Belgium) | D39: 2 | E39: Wine grapes-Winemaking, Red | F39: 1630 | G39: Wine grapes | H39: 1.43 | I39: 2320 | J39: Fluopyram | K39: 0.0104 | L39: 0.18 | M39: 1.43 | N39: 0.04209 | O39: 0.417 | P39: 0.01754 | Q39: 0.0084 | R39: 2 | S39: 0.0042
A40: 1 | B40: 72 | C40: Adults (Belgium) | D40: 2 | E40: Wine grapes-Winemaking, Red | F40: 1630 | G40: Wine grapes | H40: 1.43 | I40: 2320 | J40: Folpet | K40: 0.0728 | L40: 1 | M40: 1 | N40: 2.349 | O40: 0.00731 | P40: 0.01717 | Q40: 0.0083 | R40: 2 | S40: 0.00415
A41: 1 | B41: 72 | C41: Adults (Belgium) | D41: 1 | E41: Potatoes-Frying | F41: 88.9 | G41: Potatoes | H41: 1.52 | I41: 135 | J41: Maleic hydrazide | K41: 1.49 | L41: 1.07 | M41: 1.52 | N41: 1.966 | O41: 0.00794 | P41: 0.0156 | Q41: 0.0075 | R41: 2 | S41: 0.00375
A42: 1 | B42: 72 | C42: Adults (Belgium) | D42: 1 | E42: Tomatoes-Pulping / mashing, Concentration / evaporation | F42: 14.8 | G42: Tomatoes | H42: 4 | I42: 59.2 | J42: Propineb | K42: 0.0228 | L42: 1 | M42: 1 | N42: 0.01874 | O42: 0.676 | P42: 0.01266 | Q42: 0.0061 | R42: 2 | S42: 0.00305
A43: 1 | B43: 72 | C43: Adults (Belgium) | D43: 1 | E43: Wine grapes-Winemaking, Red | F43: 1130 | G43: Wine grapes | H43: 1.43 | I43: 1610 | J43: Fluopyram | K43: 0.0104 | L43: 0.18 | M43: 1.43 | N43: 0.02914 | O43: 0.417 | P43: 0.01214 | Q43: 0.0058 | R43: 2 | S43: 0.0029
A44: 1 | B44: 72 | C44: Adults (Belgium) | D44: 2 | E44: Wine grapes-Bacteria fermentation | F44: 93.5 | G44: Wine grapes | H44: 1 | I44: 93.5 | J44: Ziram | K44: 0.0103 | L44: 1 | M44: 1 | N44: 0.01343 | O44: 0.893 | P44: 0.01199 | Q44: 0.0058 | R44: 2 | S44: 0.0029
A45: 1 | B45: 72 | C45: Adults (Belgium) | D45: 2 | E45: Wine grapes-Winemaking, Red | F45: 1630 | G45: Wine grapes | H45: 1.43 | I45: 2320 | J45: MCPA | K45: 0.000559 | L45: 1 | M45: 1 | N45: 0.01803 | O45: 0.667 | P45: 0.01202 | Q45: 0.0058 | R45: 2 | S45: 0.0029
A46: 1 | B46: 72 | C46: Adults (Belgium) | D46: 1 | E46: Wine grapes-Winemaking, Red | F46: 1130 | G46: Wine grapes | H46: 1.43 | I46: 1610 | J46: Folpet | K46: 0.0728 | L46: 1 | M46: 1 | N46: 1.626 | O46: 0.00731 | P46: 0.01189 | Q46: 0.0057 | R46: 2 | S46: 0.00285
A47: 1 | B47: 72 | C47: Adults (Belgium) | D47: 2 | E47: Lettuces-Unspecified | F47: 100 | G47: Lettuces | H47: 1 | I47: 100 | J47: Metiram | K47: 0.0448 | L47: 1 | M47: 1 | N47: 0.06219 | O47: 0.192 | P47: 0.01196 | Q47: 0.0057 | R47: 2 | S47: 0.00285
A48: 1 | B48: 72 | C48: Adults (Belgium) | D48: 2 | E48: Wine grapes-Winemaking, Red | F48: 1630 | G48: Wine grapes | H48: 1.43 | I48: 2320 | J48: Fenpyrazamine | K48: 0.00269 | L48: 1 | M48: 1 | N48: 0.08676 | O48: 0.118 | P48: 0.01021 | Q48: 0.0049 | R48: 2 | S48: 0.00245
A49: 1 | B49: 72 | C49: Adults (Belgium) | D49: 2 | E49: Lettuces-Unspecified | F49: 100 | G49: Lettuces | H49: 1 | I49: 100 | J49: Cyprodinil | K49: 0.046 | L49: 1 | M49: 1 | N49: 0.06393 | O49: 0.159 | P49: 0.01018 | Q49: 0.0049 | R49: 2 | S49: 0.00245
A50: 1 | B50: 72 | C50: Adults (Belgium) | D50: 1 | E50: Spinaches-Unspecified | F50: 243 | G50: Spinaches | H50: 1 | I50: 243 | J50: Ziram | K50: 0.00286 | L50: 1 | M50: 1 | N50: 0.009662 | O50: 0.893 | P50: 0.008626 | Q50: 0.0041 | R50: 2 | S50: 0.00205
A51: 1 | B51: 72 | C51: Adults (Belgium) | D51: 2 | E51: Wheat-Grain milling, Semolina or coarse ground powder (as part-nature) | F51: 231 | G51: Wheat | H51: 1.43 | I51: 330 | J51: Maneb | K51: 0.0184 | L51: 1 | M51: 1 | N51: 0.08446 | O51: 0.1 | P51: 0.008446 | Q51: 0.0041 | R51: 2 | S51: 0.00205
A52: 1 | B52: 72 | C52: Adults (Belgium) | D52: 1 | E52: Wine grapes-Winemaking, Red | F52: 1130 | G52: Wine grapes | H52: 1.43 | I52: 1610 | J52: MCPA | K52: 0.000559 | L52: 1 | M52: 1 | N52: 0.01248 | O52: 0.667 | P52: 0.008322 | Q52: 0.004 | R52: 2 | S52: 0.002
A53: 1 | B53: 72 | C53: Adults (Belgium) | D53: 2 | E53: Wine grapes-Bacteria fermentation | F53: 93.5 | G53: Wine grapes | H53: 1 | I53: 93.5 | J53: Cyprodinil | K53: 0.0406 | L53: 1 | M53: 1 | N53: 0.05273 | O53: 0.159 | P53: 0.008396 | Q53: 0.004 | R53: 2 | S53: 0.002
A54: 1 | B54: 72 | C54: Adults (Belgium) | D54: 2 | E54: Lettuces-Unspecified | F54: 100 | G54: Lettuces | H54: 1 | I54: 100 | J54: Mancozeb | K54: 0.0565 | L54: 1 | M54: 1 | N54: 0.07841 | O54: 0.104 | P54: 0.008167 | Q54: 0.0039 | R54: 2 | S54: 0.00195
A55: 1 | B55: 72 | C55: Adults (Belgium) | D55: 2 | E55: Wine grapes-Bacteria fermentation | F55: 93.5 | G55: Wine grapes | H55: 1 | I55: 93.5 | J55: Metiram | K55: 0.0293 | L55: 1 | M55: 1 | N55: 0.03808 | O55: 0.192 | P55: 0.007322 | Q55: 0.0035 | R55: 2 | S55: 0.00175
A56: 1 | B56: 72 | C56: Adults (Belgium) | D56: 1 | E56: Wine grapes-Winemaking, Red | F56: 1130 | G56: Wine grapes | H56: 1.43 | I56: 1610 | J56: Fenpyrazamine | K56: 0.00269 | L56: 1 | M56: 1 | N56: 0.06007 | O56: 0.118 | P56: 0.007067 | Q56: 0.0034 | R56: 2 | S56: 0.0017
A57: 1 | B57: 72 | C57: Adults (Belgium) | D57: 1 | E57: Spinaches-Unspecified | F57: 243 | G57: Spinaches | H57: 1 | I57: 243 | J57: Boscalid | K57: 0.0899 | L57: 1 | M57: 1 | N57: 0.3033 | O57: 0.0227 | P57: 0.006892 | Q57: 0.0033 | R57: 2 | S57: 0.00165
A58: 2 | B58: 76 | C58: Adults (Belgium) | D58: 1 | E58: Oranges-Juicing | F58: 1500 | G58: Oranges | H58: 1.82 | I58: 2730 | J58: Thiabendazole | K58: 0.272 | L58: 1 | M58: 1 | N58: 9.769 | O58: 0.05 | P58: 0.4885 | Q58: 0.3562 | R58: 2 | S58: 0.1781
A59: 2 | B59: 76 | C59: Adults (Belgium) | D59: 1 | E59: Apples-Juicing | F59: 2000 | G59: Apples | H59: 1.54 | I59: 3080 | J59: Ziram | K59: 0.00842 | L59: 1 | M59: 1 | N59: 0.3412 | O59: 0.893 | P59: 0.3047 | Q59: 0.2222 | R59: 2 | S59: 0.1111
A60: 2 | B60: 76 | C60: Adults (Belgium) | D60: 1 | E60: Oranges-Juicing | F60: 1500 | G60: Oranges | H60: 1.82 | I60: 2730 | J60: Pyrimethanil | K60: 0.169 | L60: 1 | M60: 1 | N60: 6.066 | O60: 0.0294 | P60: 0.1784 | Q60: 0.1301 | R60: 2 | S60: 0.06505
A61: 2 | B61: 76 | C61: Adults (Belgium) | D61: 1 | E61: Oranges-Juicing | F61: 1500 | G61: Oranges | H61: 1.82 | I61: 2730 | J61: Mancozeb | K61: 0.0445 | L61: 1 | M61: 1 | N61: 1.599 | O61: 0.104 | P61: 0.1665 | Q61: 0.1214 | R61: 2 | S61: 0.0607
A62: 2 | B62: 76 | C62: Adults (Belgium) | D62: 1 | E62: Apples-Juicing | F62: 2000 | G62: Apples | H62: 1.54 | I62: 3080 | J62: Propineb | K62: 0.00588 | L62: 1 | M62: 1 | N62: 0.2383 | O62: 0.676 | P62: 0.161 | Q62: 0.1174 | R62: 2 | S62: 0.0587
A63: 2 | B63: 76 | C63: Adults (Belgium) | D63: 2 | E63: Apples-Juicing | F63: 1000 | G63: Apples | H63: 1.54 | I63: 1540 | J63: Ziram | K63: 0.00842 | L63: 1 | M63: 1 | N63: 0.1706 | O63: 0.893 | P63: 0.1523 | Q63: 0.1111 | R63: 2 | S63: 0.05555
A64: 2 | B64: 76 | C64: Adults (Belgium) | D64: 2 | E64: Wheat-Grain milling, Flour/meal or finely ground powder (as part-nature), Semi-refined | F64: 98.1 | G64: Wheat | H64: 1.27 | I64: 125 | J64: Bromide ion | K64: 1.58 | L64: 1 | M64: 1 | N64: 2.593 | O64: 0.0417 | P64: 0.108 | Q64: 0.0788 | R64: 2 | S64: 0.0394
A65: 2 | B65: 76 | C65: Adults (Belgium) | D65: 1 | E65: Wheat-Grain milling, Flour/meal or finely ground powder (as part-nature), White/refined | F65: 65.6 | G65: Wheat | H65: 1.43 | I65: 93.8 | J65: Bromide ion | K65: 1.58 | L65: 1 | M65: 1 | N65: 1.952 | O65: 0.0417 | P65: 0.08133 | Q65: 0.0593 | R65: 2 | S65: 0.02965
A66: 2 | B66: 76 | C66: Adults (Belgium) | D66: 2 | E66: Apples-Juicing | F66: 1000 | G66: Apples | H66: 1.54 | I66: 1540 | J66: Propineb | K66: 0.00588 | L66: 1 | M66: 1 | N66: 0.1191 | O66: 0.676 | P66: 0.08051 | Q66: 0.0587 | R66: 2 | S66: 0.02935
A67: 2 | B67: 76 | C67: Adults (Belgium) | D67: 1 | E67: Wheat-Grain milling, Semolina or coarse ground powder (as part-nature) | F67: 60.4 | G67: Wheat | H67: 1.43 | I67: 86.4 | J67: Bromide ion | K67: 1.58 | L67: 1 | M67: 1 | N67: 1.799 | O67: 0.0417 | P67: 0.07496 | Q67: 0.0547 | R67: 2 | S67: 0.02735
A68: 2 | B68: 76 | C68: Adults (Belgium) | D68: 1 | E68: Oranges-Juicing | F68: 1500 | G68: Oranges | H68: 1.82 | I68: 2730 | J68: 2,4-D | K68: 0.0196 | L68: 1 | M68: 1 | N68: 0.7041 | O68: 0.1 | P68: 0.07041 | Q68: 0.0513 | R68: 2 | S68: 0.02565
A69: 2 | B69: 76 | C69: Adults (Belgium) | D69: 1 | E69: Apples-Juicing | F69: 2000 | G69: Apples | H69: 1.54 | I69: 3080 | J69: Metiram | K69: 0.00887 | L69: 1 | M69: 1 | N69: 0.3596 | O69: 0.192 | P69: 0.06916 | Q69: 0.0504 | R69: 2 | S69: 0.0252
A70: 2 | B70: 76 | C70: Adults (Belgium) | D70: 2 | E70: Wheat-Grain milling, Semolina or coarse ground powder (as part-nature) | F70: 55 | G70: Wheat | H70: 1.43 | I70: 78.6 | J70: Bromide ion | K70: 1.58 | L70: 1 | M70: 1 | N70: 1.636 | O70: 0.0417 | P70: 0.06817 | Q70: 0.0497 | R70: 2 | S70: 0.02485
A71: 2 | B71: 76 | C71: Adults (Belgium) | D71: 1 | E71: Apples-Juicing | F71: 2000 | G71: Apples | H71: 1.54 | I71: 3080 | J71: Dithianon | K71: 0.0233 | L71: 1 | M71: 1 | N71: 0.9463 | O71: 0.0633 | P71: 0.05989 | Q71: 0.0437 | R71: 2 | S71: 0.02185
A72: 2 | B72: 76 | C72: Adults (Belgium) | D72: 1 | E72: Tomatoes-Pulping / mashing | F72: 26.4 | G72: Tomatoes | H72: 3.33 | I72: 87.9 | J72: Bromide ion | K72: 0.854 | L72: 1 | M72: 1 | N72: 0.9875 | O72: 0.0417 | P72: 0.04115 | Q72: 0.03 | R72: 2 | S72: 0.015
A73: 2 | B73: 76 | C73: Adults (Belgium) | D73: 1 | E73: Apples-Juicing | F73: 2000 | G73: Apples | H73: 1.54 | I73: 3080 | J73: Maneb | K73: 0.00995 | L73: 1 | M73: 1 | N73: 0.4034 | O73: 0.1 | P73: 0.04034 | Q73: 0.0294 | R73: 2 | S73: =Q73/R73 -> 0.0147
A74: 2 | B74: 76 | C74: Adults (Belgium) | D74: 2 | E74: Sweet peppers/bell peppers-Unspecified | F74: 106 | G74: Sweet peppers/bell peppers | H74: 1 | I74: 106 | J74: Bromide ion | K74: 0.606 | L74: 1 | M74: 1 | N74: 0.8463 | O74: 0.0417 | P74: 0.03526 | Q74: 0.0257 | R74: 2 | S74: 0.01285
A75: 2 | B75: 76 | C75: Adults (Belgium) | D75: 2 | E75: Apples-Juicing | F75: 1000 | G75: Apples | H75: 1.54 | I75: 1540 | J75: Metiram | K75: 0.00887 | L75: 1 | M75: 1 | N75: 0.1798 | O75: 0.192 | P75: 0.03458 | Q75: 0.0252 | R75: 2 | S75: 0.0126
A76: 2 | B76: 76 | C76: Adults (Belgium) | D76: 1 | E76: Apples-Juicing | F76: 2000 | G76: Apples | H76: 1.54 | I76: 3080 | J76: Mancozeb | K76: 0.0081 | L76: 1 | M76: 1 | N76: 0.3283 | O76: 0.104 | P76: 0.0342 | Q76: 0.0249 | R76: 2 | S76: 0.01245
A77: 2 | B77: 76 | C77: Adults (Belgium) | D77: 1 | E77: Apples-Juicing | F77: 2000 | G77: Apples | H77: 1.54 | I77: 3080 | J77: Thiacloprid | K77: 0.00189 | L77: 1 | M77: 1 | N77: 0.07659 | O77: 0.417 | P77: 0.03191 | Q77: 0.0233 | R77: 2 | S77: 0.01165
A78: 2 | B78: 76 | C78: Adults (Belgium) | D78: 2 | E78: Aubergines/eggplants-Unspecified | F78: 41.1 | G78: Aubergines/eggplants | H78: 1 | I78: 41.1 | J78: Bromide ion | K78: 1.35 | L78: 1 | M78: 1 | N78: 0.7327 | O78: 0.0417 | P78: 0.03053 | Q78: 0.0223 | R78: 2 | S78: 0.01115
A79: 2 | B79: 76 | C79: Adults (Belgium) | D79: 1 | E79: Apples-Juicing | F79: 2000 | G79: Apples | H79: 1.54 | I79: 3080 | J79: Cyprodinil | K79: 0.00468 | L79: 1 | M79: 1 | N79: 0.1897 | O79: 0.159 | P79: 0.03021 | Q79: 0.022 | R79: 2 | S79: 0.011
A80: 2 | B80: 76 | C80: Adults (Belgium) | D80: 2 | E80: Apples-Juicing | F80: 1000 | G80: Apples | H80: 1.54 | I80: 1540 | J80: Dithianon | K80: 0.0233 | L80: 1 | M80: 1 | N80: 0.4731 | O80: 0.0633 | P80: 0.02995 | Q80: 0.0218 | R80: 2 | S80: 0.0109
A81: 2 | B81: 76 | C81: Adults (Belgium) | D81: 2 | E81: Courgettes-Unspecified | F81: 49.6 | G81: Courgettes | H81: 1 | I81: 49.6 | J81: Bromide ion | K81: 1.06 | L81: 1 | M81: 1 | N81: 0.6942 | O81: 0.0417 | P81: 0.02893 | Q81: 0.0211 | R81: 2 | S81: 0.01055
A82: 2 | B82: 76 | C82: Adults (Belgium) | D82: 1 | E82: Apples-Unspecified | F82: 264 | G82: Apples | H82: 1 | I82: 264 | J82: Ziram | K82: 0.00842 | L82: 1 | M82: 1 | N82: 0.02921 | O82: 0.893 | P82: 0.02608 | Q82: 0.019 | R82: 2 | S82: 0.0095
A83: 2 | B83: 76 | C83: Adults (Belgium) | D83: 2 | E83: Wheat-Grain milling, Flour/meal or finely ground powder (as part-nature), Integral /not refined | F83: 25.4 | G83: Wheat | H83: 1.11 | I83: 28.2 | J83: Bromide ion | K83: 1.58 | L83: 1 | M83: 1 | N83: 0.5862 | O83: 0.0417 | P83: 0.02443 | Q83: 0.0178 | R83: 2 | S83: 0.0089
A84: 2 | B84: 76 | C84: Adults (Belgium) | D84: 2 | E84: Apples-Juicing | F84: 1000 | G84: Apples | H84: 1.54 | I84: 1540 | J84: Maneb | K84: 0.00995 | L84: 1 | M84: 1 | N84: 0.2017 | O84: 0.1 | P84: 0.02017 | Q84: 0.0147 | R84: 2 | S84: 0.00735
A85: 2 | B85: 76 | C85: Adults (Belgium) | D85: 1 | E85: Tomatoes-Pulping / mashing | F85: 26.4 | G85: Tomatoes | H85: 3.33 | I85: 87.9 | J85: Propineb | K85: 0.0228 | L85: 1 | M85: 1 | N85: 0.02637 | O85: 0.676 | P85: 0.01781 | Q85: 0.013 | R85: 2 | S85: 0.0065
A86: 2 | B86: 76 | C86: Adults (Belgium) | D86: 1 | E86: Apples-Juicing | F86: 2000 | G86: Apples | H86: 1.54 | I86: 3080 | J86: Fluopyram | K86: 0.00103 | L86: 1 | M86: 1 | N86: 0.04169 | O86: 0.417 | P86: 0.01737 | Q86: 0.0127 | R86: 2 | S86: 0.00635
A87: 2 | B87: 76 | C87: Adults (Belgium) | D87: 2 | E87: Apples-Juicing | F87: 1000 | G87: Apples | H87: 1.54 | I87: 1540 | J87: Mancozeb | K87: 0.0081 | L87: 1 | M87: 1 | N87: 0.1642 | O87: 0.104 | P87: 0.0171 | Q87: 0.0125 | R87: 2 | S87: 0.00625
A88: 2 | B88: 76 | C88: Adults (Belgium) | D88: 2 | E88: Apples-Juicing | F88: 1000 | G88: Apples | H88: 1.54 | I88: 1540 | J88: Thiacloprid | K88: 0.00189 | L88: 1 | M88: 1 | N88: 0.03829 | O88: 0.417 | P88: 0.01596 | Q88: 0.0116 | R88: 2 | S88: 0.0058
A89: 2 | B89: 76 | C89: Adults (Belgium) | D89: 1 | E89: Apples-Juicing | F89: 2000 | G89: Apples | H89: 1.54 | I89: 3080 | J89: Thiabendazole | K89: 0.00781 | L89: 1 | M89: 1 | N89: 0.3166 | O89: 0.05 | P89: 0.01583 | Q89: 0.0115 | R89: 2 | S89: 0.00575
A90: 2 | B90: 76 | C90: Adults (Belgium) | D90: 2 | E90: Apples-Juicing | F90: 1000 | G90: Apples | H90: 1.54 | I90: 1540 | J90: Cyprodinil | K90: 0.00468 | L90: 1 | M90: 1 | N90: 0.09485 | O90: 0.159 | P90: 0.0151 | Q90: 0.011 | R90: 2 | S90: 0.0055
A91: 2 | B91: 76 | C91: Adults (Belgium) | D91: 1 | E91: Apples-Juicing | F91: 2000 | G91: Apples | H91: 1.54 | I91: 3080 | J91: Pyrimethanil | K91: 0.0341 | L91: 0.55 | M91: 1.54 | N91: 0.4929 | O91: 0.0294 | P91: 0.0145 | Q91: 0.0106 | R91: 2 | S91: 0.0053
A92: 2 | B92: 76 | C92: Adults (Belgium) | D92: 1 | E92: Apples-Unspecified | F92: 264 | G92: Apples | H92: 1 | I92: 264 | J92: Propineb | K92: 0.00588 | L92: 1 | M92: 1 | N92: 0.02039 | O92: 0.676 | P92: 0.01378 | Q92: 0.01 | R92: 2 | S92: 0.005
A93: 2 | B93: 76 | C93: Adults (Belgium) | D93: 2 | E93: Apples-Juicing | F93: 1000 | G93: Apples | H93: 1.54 | I93: 1540 | J93: Fluopyram | K93: 0.00103 | L93: 1 | M93: 1 | N93: 0.02084 | O93: 0.417 | P93: 0.008685 | Q93: 0.0063 | R93: 2 | S93: 0.00315
A94: 2 | B94: 76 | C94: Adults (Belgium) | D94: 2 | E94: Apples-Juicing | F94: 1000 | G94: Apples | H94: 1.54 | I94: 1540 | J94: Thiabendazole | K94: 0.00781 | L94: 1 | M94: 1 | N94: 0.1583 | O94: 0.05 | P94: 0.007915 | Q94: 0.0058 | R94: 2 | S94: 0.0029
A95: 2 | B95: 76 | C95: Adults (Belgium) | D95: 2 | E95: Apples-Juicing | F95: 1000 | G95: Apples | H95: 1.54 | I95: 1540 | J95: Pyrimethanil | K95: 0.0341 | L95: 0.55 | M95: 1.54 | N95: 0.2464 | O95: 0.0294 | P95: 0.007248 | Q95: 0.0053 | R95: 2 | S95: 0.00265
A96: 2 | B96: 76 | C96: Adults (Belgium) | D96: 1 | E96: Oranges-Juicing | F96: 1500 | G96: Oranges | H96: 1.82 | I96: 2730 | J96: Buprofezin | K96: 0.000357 | L96: 1 | M96: 1 | N96: 0.01283 | O96: 0.556 | P96: 0.00713 | Q96: 0.0052 | R96: 2 | S96: 0.0026
A97: 2 | B97: 76 | C97: Adults (Belgium) | D97: 1 | E97: Apples-Unspecified | F97: 264 | G97: Apples | H97: 1 | I97: 264 | J97: Metiram | K97: 0.00887 | L97: 1 | M97: 1 | N97: 0.03078 | O97: 0.192 | P97: 0.005919 | Q97: 0.0043 | R97: 2 | S97: 0.00215
A98: 2 | B98: 76 | C98: Adults (Belgium) | D98: 1 | E98: Apples-Unspecified | F98: 264 | G98: Apples | H98: 1 | I98: 264 | J98: Dithianon | K98: 0.0233 | L98: 1 | M98: 1 | N98: 0.08099 | O98: 0.0633 | P98: 0.005126 | Q98: 0.0037 | R98: 2 | S98: 0.00185
A99: 2 | B99: 76 | C99: Adults (Belgium) | D99: 2 | E99: Drinking water-Unspecified | F99: 892 | G99: Drinking water-Unspecified | H99: 1 | I99: 892 | J99: Fipronil | K99: 5e-05 | L99: 1 | M99: 1 | N99: 0.0005868 | O99: 8.33 | P99: 0.00489 | Q99: 0.0036 | R99: 2 | S99: 0.0018
A100: 2 | B100: 76 | C100: Adults (Belgium) | D100: 2 | E100: Sweet peppers/bell peppers-Unspecified | F100: 106 | G100: Sweet peppers/bell peppers | H100: 1 | I100: 106 | J100: Propineb | K100: 0.00371 | L100: 1 | M100: 1 | N100: 0.005188 | O100: 0.676 | P100: 0.003505 | Q100: 0.0026 | R100: 2 | S100: 0.0013
A101: 2 | B101: 76 | C101: Adults (Belgium) | D101: 1 | E101: Apples-Unspecified | F101: 264 | G101: Apples | H101: 1 | I101: 264 | J101: Maneb | K101: 0.00995 | L101: 1 | M101: 1 | N101: 0.03452 | O101: 0.1 | P101: 0.003452 | Q101: 0.0025 | R101: 2 | S101: 0.00125
A102: 2 | B102: 76 | C102: Adults (Belgium) | D102: 1 | E102: Apples-Unspecified | F102: 264 | G102: Apples | H102: 1 | I102: 264 | J102: Pyrimethanil | K102: 0.0341 | L102: 1 | M102: 1 | N102: 0.1181 | O102: 0.0294 | P102: 0.003474 | Q102: 0.0025 | R102: 2 | S102: 0.00125
A103: 2 | B103: 76 | C103: Adults (Belgium) | D103: 2 | E103: Wheat-Grain milling, Flour/meal or finely ground powder (as part-nature), Semi-refined | F103: 98.1 | G103: Wheat | H103: 1.27 | I103: 125 | J103: Maneb | K103: 0.0184 | L103: 1 | M103: 1 | N103: 0.03019 | O103: 0.1 | P103: 0.003019 | Q103: 0.0022 | R103: 2 | S103: 0.0011
A104: 2 | B104: 76 | C104: Adults (Belgium) | D104: 1 | E104: Apples-Unspecified | F104: 264 | G104: Apples | H104: 1 | I104: 264 | J104: Mancozeb | K104: 0.0081 | L104: 1 | M104: 1 | N104: 0.0281 | O104: 0.104 | P104: 0.002927 | Q104: 0.0021 | R104: 2 | S104: 0.00105
A105: 2 | B105: 76 | C105: Adults (Belgium) | D105: 1 | E105: Apples-Juicing | F105: 2000 | G105: Apples | H105: 1.54 | I105: 3080 | J105: Buprofezin | K105: 0.000124 | L105: 1 | M105: 1 | N105: 0.005028 | O105: 0.556 | P105: 0.002794 | Q105: 0.002 | R105: 2 | S105: 0.001
A106: 2 | B106: 76 | C106: Adults (Belgium) | D106: 1 | E106: Apples-Unspecified | F106: 264 | G106: Apples | H106: 1 | I106: 264 | J106: Thiacloprid | K106: 0.00189 | L106: 1 | M106: 1 | N106: 0.006555 | O106: 0.417 | P106: 0.002731 | Q106: 0.002 | R106: 2 | S106: 0.001
A107: 2 | B107: 76 | C107: Adults (Belgium) | D107: 1 | E107: Apples-Unspecified | F107: 264 | G107: Apples | H107: 1 | I107: 264 | J107: Cyprodinil | K107: 0.00468 | L107: 1 | M107: 1 | N107: 0.01624 | O107: 0.159 | P107: 0.002585 | Q107: 0.0019 | R107: 2 | S107: 0.00095
A108: 3 | B108: 53 | C108: Adults (Belgium) | D108: 1 | E108: Wine grapes-Winemaking, White | F108: 602 | G108: Wine grapes | H108: 1.43 | I108: 860 | J108: Propineb | K108: 0.0253 | L108: 1 | M108: 1 | N108: 0.41 | O108: 0.676 | P108: 0.277 | Q108: 0.2025 | R108: 2 | S108: 0.10125
A109: 3 | B109: 53 | C109: Adults (Belgium) | D109: 1 | E109: Wheat-Grain milling, Semolina or coarse ground powder (as part-nature) | F109: 154 | G109: Wheat | H109: 1.43 | I109: 220 | J109: Bromide ion | K109: 1.58 | L109: 1 | M109: 1 | N109: 6.557 | O109: 0.0417 | P109: 0.2732 | Q109: 0.1997 | R109: 2 | S109: 0.09985
A110: 3 | B110: 53 | C110: Adults (Belgium) | D110: 2 | E110: Wine grapes-Winemaking, Red | F110: 500 | G110: Wine grapes | H110: 1.43 | I110: 715 | J110: Propineb | K110: 0.0253 | L110: 1 | M110: 1 | N110: 0.3408 | O110: 0.676 | P110: 0.2303 | Q110: 0.1683 | R110: 2 | S110: 0.08415
A111: 3 | B111: 53 | C111: Adults (Belgium) | D111: 2 | E111: Wheat-Grain milling, Flour/meal or finely ground powder (as part-nature), White/refined | F111: 122 | G111: Wheat | H111: 1.43 | I111: 174 | J111: Bromide ion | K111: 1.58 | L111: 1 | M111: 1 | N111: 5.201 | O111: 0.0417 | P111: 0.2167 | Q111: 0.1584 | R111: 2 | S111: 0.0792
A112: 3 | B112: 53 | C112: Adults (Belgium) | D112: 1 | E112: Wine grapes-Winemaking, White | F112: 602 | G112: Wine grapes | H112: 1.43 | I112: 860 | J112: Ziram | K112: 0.0103 | L112: 1 | M112: 1 | N112: 0.1679 | O112: 0.893 | P112: 0.1499 | Q112: 0.1096 | R112: 2 | S112: 0.0548
A113: 3 | B113: 53 | C113: Adults (Belgium) | D113: 2 | E113: Wine grapes-Winemaking, Red | F113: 500 | G113: Wine grapes | H113: 1.43 | I113: 715 | J113: Ziram | K113: 0.0103 | L113: 1 | M113: 1 | N113: 0.1396 | O113: 0.893 | P113: 0.1246 | Q113: 0.0911 | R113: 2 | S113: 0.04555
A114: 3 | B114: 53 | C114: Adults (Belgium) | D114: 2 | E114: Wine grapes-Winemaking, White | F114: 250 | G114: Wine grapes | H114: 1.43 | I114: 358 | J114: Propineb | K114: 0.0253 | L114: 1 | M114: 1 | N114: 0.1704 | O114: 0.676 | P114: 0.1151 | Q114: 0.0842 | R114: 2 | S114: 0.0421
A115: 3 | B115: 53 | C115: Adults (Belgium) | D115: 1 | E115: Wine grapes-Winemaking, White | F115: 602 | G115: Wine grapes | H115: 1.43 | I115: 860 | J115: Cyprodinil | K115: 0.0406 | L115: 1 | M115: 1 | N115: 0.6591 | O115: 0.159 | P115: 0.1049 | Q115: 0.0767 | R115: 2 | S115: 0.03835
A116: 3 | B116: 53 | C116: Adults (Belgium) | D116: 1 | E116: Wine grapes-Winemaking, White | F116: 602 | G116: Wine grapes | H116: 1.43 | I116: 860 | J116: Metiram | K116: 0.0293 | L116: 1 | M116: 1 | N116: 0.4759 | O116: 0.192 | P116: 0.09153 | Q116: 0.0669 | R116: 2 | S116: 0.03345
A117: 3 | B117: 53 | C117: Adults (Belgium) | D117: 2 | E117: Wine grapes-Winemaking, Red | F117: 500 | G117: Wine grapes | H117: 1.43 | I117: 715 | J117: Cyprodinil | K117: 0.0406 | L117: 1 | M117: 1 | N117: 0.5478 | O117: 0.159 | P117: 0.08724 | Q117: 0.0638 | R117: 2 | S117: 0.0319
A118: 3 | B118: 53 | C118: Adults (Belgium) | D118: 2 | E118: Wine grapes-Winemaking, Red | F118: 500 | G118: Wine grapes | H118: 1.43 | I118: 715 | J118: Metiram | K118: 0.0293 | L118: 1 | M118: 1 | N118: 0.3956 | O118: 0.192 | P118: 0.07608 | Q118: 0.0556 | R118: 2 | S118: 0.0278
A119: 3 | B119: 53 | C119: Adults (Belgium) | D119: 2 | E119: Wine grapes-Winemaking, White | F119: 250 | G119: Wine grapes | H119: 1.43 | I119: 358 | J119: Ziram | K119: 0.0103 | L119: 1 | M119: 1 | N119: 0.06978 | O119: 0.893 | P119: 0.0623 | Q119: 0.0455 | R119: 2 | S119: 0.02275
A120: 3 | B120: 53 | C120: Adults (Belgium) | D120: 1 | E120: Wheat-Grain milling, Flour/meal or finely ground powder (as part-nature), White/refined | F120: 26.7 | G120: Wheat | H120: 1.43 | I120: 38.2 | J120: Bromide ion | K120: 1.58 | L120: 1 | M120: 1 | N120: 1.142 | O120: 0.0417 | P120: 0.04757 | Q120: 0.0348 | R120: 2 | S120: 0.0174
A121: 3 | B121: 53 | C121: Adults (Belgium) | D121: 2 | E121: Wine grapes-Winemaking, White | F121: 250 | G121: Wine grapes | H121: 1.43 | I121: 358 | J121: Cyprodinil | K121: 0.0406 | L121: 1 | M121: 1 | N121: 0.2739 | O121: 0.159 | P121: 0.04362 | Q121: 0.0319 | R121: 2 | S121: 0.01595
A122: 3 | B122: 53 | C122: Adults (Belgium) | D122: 2 | E122: Lettuces-Unspecified | F122: 60 | G122: Lettuces | H122: 1 | I122: 60 | J122: Bromide ion | K122: 0.835 | L122: 1 | M122: 1 | N122: 0.9454 | O122: 0.0417 | P122: 0.03939 | Q122: 0.0288 | R122: 2 | S122: 0.0144
A123: 3 | B123: 53 | C123: Adults (Belgium) | D123: 2 | E123: Wine grapes-Winemaking, White | F123: 250 | G123: Wine grapes | H123: 1.43 | I123: 358 | J123: Metiram | K123: 0.0293 | L123: 1 | M123: 1 | N123: 0.1978 | O123: 0.192 | P123: 0.03804 | Q123: 0.0278 | R123: 2 | S123: 0.0139
A124: 3 | B124: 53 | C124: Adults (Belgium) | D124: 1 | E124: Wine grapes-Winemaking, White | F124: 602 | G124: Wine grapes | H124: 1.43 | I124: 860 | J124: Fluopyram | K124: 0.0104 | L124: 0.745 | M124: 1.43 | N124: 0.0876 | O124: 0.417 | P124: 0.0365 | Q124: 0.0267 | R124: 2 | S124: 0.01335
A125: 3 | B125: 53 | C125: Adults (Belgium) | D125: 1 | E125: Wine grapes-Winemaking, White | F125: 602 | G125: Wine grapes | H125: 1.43 | I125: 860 | J125: Pyrimethanil | K125: 0.0686 | L125: 1 | M125: 1 | N125: 1.113 | O125: 0.0294 | P125: 0.03274 | Q125: 0.0239 | R125: 2 | S125: 0.01195
A126: 3 | B126: 53 | C126: Adults (Belgium) | D126: 1 | E126: Wine grapes-Winemaking, White | F126: 602 | G126: Wine grapes | H126: 1.43 | I126: 860 | J126: Mancozeb | K126: 0.0191 | L126: 1 | M126: 1 | N126: 0.3104 | O126: 0.104 | P126: 0.03233 | Q126: 0.0236 | R126: 2 | S126: 0.0118
A127: 3 | B127: 53 | C127: Adults (Belgium) | D127: 2 | E127: Wine grapes-Winemaking, Red | F127: 500 | G127: Wine grapes | H127: 1.43 | I127: 715 | J127: Pyrimethanil | K127: 0.0686 | L127: 1 | M127: 1 | N127: 0.9254 | O127: 0.0294 | P127: 0.02722 | Q127: 0.0199 | R127: 2 | S127: 0.00995
A128: 3 | B128: 53 | C128: Adults (Belgium) | D128: 2 | E128: Wine grapes-Winemaking, Red | F128: 500 | G128: Wine grapes | H128: 1.43 | I128: 715 | J128: Mancozeb | K128: 0.0191 | L128: 1 | M128: 1 | N128: 0.258 | O128: 0.104 | P128: 0.02688 | Q128: 0.0196 | R128: 2 | S128: 0.0098
A129: 3 | B129: 53 | C129: Adults (Belgium) | D129: 2 | E129: Potatoes-Deep frying, Slicing | F129: 52.4 | G129: Potatoes | H129: 1.92 | I129: 101 | J129: Chlorpropham | K129: 0.288 | L129: 0.91 | M129: 1.92 | N129: 0.2591 | O129: 0.1 | P129: 0.02591 | Q129: 0.0189 | R129: 2 | S129: 0.00945
A130: 3 | B130: 53 | C130: Adults (Belgium) | D130: 1 | E130: Potatoes-Frying | F130: 88.9 | G130: Potatoes | H130: 1.52 | I130: 135 | J130: Bromide ion | K130: 0.238 | L130: 1 | M130: 1 | N130: 0.6077 | O130: 0.0417 | P130: 0.02532 | Q130: 0.0185 | R130: 2 | S130: 0.00925
A131: 3 | B131: 53 | C131: Adults (Belgium) | D131: 2 | E131: Potatoes-Frying | F131: 88.9 | G131: Potatoes | H131: 1.52 | I131: 135 | J131: Bromide ion | K131: 0.238 | L131: 1 | M131: 1 | N131: 0.6077 | O131: 0.0417 | P131: 0.02532 | Q131: 0.0185 | R131: 2 | S131: 0.00925
A132: 3 | B132: 53 | C132: Adults (Belgium) | D132: 1 | E132: Wine grapes-Winemaking, White | F132: 602 | G132: Wine grapes | H132: 1.43 | I132: 860 | J132: Maneb | K132: 0.015 | L132: 1 | M132: 1 | N132: 0.2433 | O132: 0.1 | P132: 0.02433 | Q132: 0.0178 | R132: 2 | S132: 0.0089
A133: 3 | B133: 53 | C133: Adults (Belgium) | D133: 2 | E133: Potatoes-Deep frying, Slicing | F133: 52.4 | G133: Potatoes | H133: 1.92 | I133: 101 | J133: Maleic hydrazide | K133: 1.49 | L133: 1 | M133: 1 | N133: 2.825 | O133: 0.00794 | P133: 0.02242 | Q133: 0.0164 | R133: 2 | S133: 0.0082
A134: 3 | B134: 53 | C134: Adults (Belgium) | D134: 1 | E134: Potatoes-Frying | F134: 88.9 | G134: Potatoes | H134: 1.52 | I134: 135 | J134: Maleic hydrazide | K134: 1.49 | L134: 1.07 | M134: 1.52 | N134: 2.671 | O134: 0.00794 | P134: 0.0212 | Q134: 0.0155 | R134: 2 | S134: 0.00775
A135: 3 | B135: 53 | C135: Adults (Belgium) | D135: 2 | E135: Potatoes-Frying | F135: 88.9 | G135: Potatoes | H135: 1.52 | I135: 135 | J135: Maleic hydrazide | K135: 1.49 | L135: 1.07 | M135: 1.52 | N135: 2.671 | O135: 0.00794 | P135: 0.0212 | Q135: 0.0155 | R135: 2 | S135: 0.00775
A136: 3 | B136: 53 | C136: Adults (Belgium) | D136: 2 | E136: Wine grapes-Winemaking, Red | F136: 500 | G136: Wine grapes | H136: 1.43 | I136: 715 | J136: Maneb | K136: 0.015 | L136: 1 | M136: 1 | N136: 0.2022 | O136: 0.1 | P136: 0.02022 | Q136: 0.0148 | R136: 2 | S136: 0.0074
A137: 3 | B137: 53 | C137: Adults (Belgium) | D137: 2 | E137: Potatoes-Deep frying, Slicing | F137: 52.4 | G137: Potatoes | H137: 1.92 | I137: 101 | J137: Bromide ion | K137: 0.238 | L137: 1 | M137: 1 | N137: 0.4525 | O137: 0.0417 | P137: 0.01885 | Q137: 0.0138 | R137: 2 | S137: =Q137/R137 -> 0.0069
A138: 3 | B138: 53 | C138: Adults (Belgium) | D138: 1 | E138: Wine grapes-Winemaking, White | F138: 602 | G138: Wine grapes | H138: 1.43 | I138: 860 | J138: Proquinazid | K138: 0.00278 | L138: 1 | M138: 1 | N138: 0.04509 | O138: 0.417 | P138: 0.01879 | Q138: 0.0137 | R138: 2 | S138: 0.00685
A139: 3 | B139: 53 | C139: Adults (Belgium) | D139: 2 | E139: Wine grapes-Winemaking, Red | F139: 500 | G139: Wine grapes | H139: 1.43 | I139: 715 | J139: Proquinazid | K139: 0.00278 | L139: 1 | M139: 1 | N139: 0.03748 | O139: 0.417 | P139: 0.01562 | Q139: 0.0114 | R139: 2 | S139: 0.0057
A140: 3 | B140: 53 | C140: Adults (Belgium) | D140: 2 | E140: Wine grapes-Winemaking, White | F140: 250 | G140: Wine grapes | H140: 1.43 | I140: 358 | J140: Fluopyram | K140: 0.0104 | L140: 0.745 | M140: 1.43 | N140: 0.03641 | O140: 0.417 | P140: 0.01517 | Q140: 0.0111 | R140: 2 | S140: 0.00555
A141: 3 | B141: 53 | C141: Adults (Belgium) | D141: 2 | E141: Wine grapes-Winemaking, White | F141: 250 | G141: Wine grapes | H141: 1.43 | I141: 358 | J141: Pyrimethanil | K141: 0.0686 | L141: 1 | M141: 1 | N141: 0.4627 | O141: 0.0294 | P141: 0.01361 | Q141: 0.0099 | R141: 2 | S141: 0.00495
A142: 3 | B142: 53 | C142: Adults (Belgium) | D142: 2 | E142: Wine grapes-Winemaking, White | F142: 250 | G142: Wine grapes | H142: 1.43 | I142: 358 | J142: Mancozeb | K142: 0.0191 | L142: 1 | M142: 1 | N142: 0.129 | O142: 0.104 | P142: 0.01344 | Q142: 0.0098 | R142: 2 | S142: 0.0049
A143: 3 | B143: 53 | C143: Adults (Belgium) | D143: 1 | E143: Potatoes-Deep frying, Slicing | F143: 26.2 | G143: Potatoes | H143: 1.92 | I143: 50.3 | J143: Chlorpropham | K143: 0.288 | L143: 0.91 | M143: 1.92 | N143: 0.1295 | O143: 0.1 | P143: 0.01295 | Q143: 0.0095 | R143: 2 | S143: 0.00475
A144: 3 | B144: 53 | C144: Adults (Belgium) | D144: 1 | E144: Potatoes-Deep frying, Slicing | F144: 26.2 | G144: Potatoes | H144: 1.92 | I144: 50.3 | J144: Maleic hydrazide | K144: 1.49 | L144: 1 | M144: 1 | N144: 1.412 | O144: 0.00794 | P144: 0.01121 | Q144: 0.0082 | R144: 2 | S144: 0.0041
A145: 3 | B145: 53 | C145: Adults (Belgium) | D145: 2 | E145: Potatoes-Starch production | F145: 3.93 | G145: Potatoes | H145: 5.26 | I145: 20.7 | J145: Chlorpropham | K145: 0.288 | L145: 1 | M145: 1 | N145: 0.1122 | O145: 0.1 | P145: 0.01122 | Q145: 0.0082 | R145: 2 | S145: 0.0041
A146: 3 | B146: 53 | C146: Adults (Belgium) | D146: 2 | E146: Wine grapes-Winemaking, White | F146: 250 | G146: Wine grapes | H146: 1.43 | I146: 358 | J146: Maneb | K146: 0.015 | L146: 1 | M146: 1 | N146: 0.1011 | O146: 0.1 | P146: 0.01011 | Q146: 0.0074 | R146: 2 | S146: 0.0037
A147: 3 | B147: 53 | C147: Adults (Belgium) | D147: 2 | E147: Lettuces-Unspecified | F147: 60 | G147: Lettuces | H147: 1 | I147: 60 | J147: Metiram | K147: 0.0448 | L147: 1 | M147: 1 | N147: 0.05069 | O147: 0.192 | P147: 0.009748 | Q147: 0.0071 | R147: 2 | S147: 0.00355
A148: 3 | B148: 53 | C148: Adults (Belgium) | D148: 1 | E148: Potatoes-Deep frying, Slicing | F148: 26.2 | G148: Potatoes | H148: 1.92 | I148: 50.3 | J148: Bromide ion | K148: 0.238 | L148: 1 | M148: 1 | N148: 0.2262 | O148: 0.0417 | P148: 0.009427 | Q148: 0.0069 | R148: 2 | S148: 0.00345
A149: 3 | B149: 53 | C149: Adults (Belgium) | D149: 2 | E149: Drinking water-Unspecified | F149: 1200 | G149: Drinking water-Unspecified | H149: 1 | I149: 1200 | J149: Fipronil | K149: 5e-05 | L149: 1 | M149: 1 | N149: 0.001131 | O149: 8.33 | P149: 0.009425 | Q149: 0.0069 | R149: 2 | S149: 0.00345
A150: 3 | B150: 53 | C150: Adults (Belgium) | D150: 1 | E150: Drinking water-Unspecified | F150: 1180 | G150: Drinking water-Unspecified | H150: 1 | I150: 1180 | J150: Fipronil | K150: 5e-05 | L150: 1 | M150: 1 | N150: 0.001111 | O150: 8.33 | P150: 0.00926 | Q150: 0.0068 | R150: 2 | S150: 0.0034
A151: 3 | B151: 53 | C151: Adults (Belgium) | D151: 1 | E151: Wine grapes-Winemaking, White | F151: 602 | G151: Wine grapes | H151: 1.43 | I151: 860 | J151: Folpet | K151: 0.0728 | L151: 1 | M151: 1 | N151: 1.181 | O151: 0.00731 | P151: 0.008634 | Q151: 0.0063 | R151: 2 | S151: 0.00315
A152: 3 | B152: 53 | C152: Adults (Belgium) | D152: 2 | E152: Lettuces-Unspecified | F152: 60 | G152: Lettuces | H152: 1 | I152: 60 | J152: Cyprodinil | K152: 0.046 | L152: 1 | M152: 1 | N152: 0.05211 | O152: 0.159 | P152: 0.008297 | Q152: 0.0061 | R152: 2 | S152: 0.00305
A153: 3 | B153: 53 | C153: Adults (Belgium) | D153: 2 | E153: Wine grapes-Winemaking, White | F153: 250 | G153: Wine grapes | H153: 1.43 | I153: 358 | J153: Proquinazid | K153: 0.00278 | L153: 1 | M153: 1 | N153: 0.01874 | O153: 0.417 | P153: 0.007808 | Q153: 0.0057 | R153: 2 | S153: 0.00285
A154: 3 | B154: 53 | C154: Adults (Belgium) | D154: 1 | E154: Wheat-Grain milling, Semolina or coarse ground powder (as part-nature) | F154: 154 | G154: Wheat | H154: 1.43 | I154: 220 | J154: Maneb | K154: 0.0184 | L154: 1 | M154: 1 | N154: 0.07634 | O154: 0.1 | P154: 0.007634 | Q154: 0.0056 | R154: 2 | S154: 0.0028
A155: 3 | B155: 53 | C155: Adults (Belgium) | D155: 2 | E155: Wine grapes-Winemaking, Red | F155: 500 | G155: Wine grapes | H155: 1.43 | I155: 715 | J155: Fluopyram | K155: 0.0104 | L155: 0.18 | M155: 1.43 | N155: 0.01759 | O155: 0.417 | P155: 0.00733 | Q155: 0.0054 | R155: 2 | S155: 0.0027
A156: 3 | B156: 53 | C156: Adults (Belgium) | D156: 2 | E156: Wine grapes-Winemaking, Red | F156: 500 | G156: Wine grapes | H156: 1.43 | I156: 715 | J156: Folpet | K156: 0.0728 | L156: 1 | M156: 1 | N156: 0.9818 | O156: 0.00731 | P156: 0.007177 | Q156: 0.0052 | R156: 2 | S156: 0.0026
A157: 3 | B157: 53 | C157: Adults (Belgium) | D157: 2 | E157: Lettuces-Unspecified | F157: 60 | G157: Lettuces | H157: 1 | I157: 60 | J157: Mancozeb | K157: 0.0565 | L157: 1 | M157: 1 | N157: 0.06391 | O157: 0.104 | P157: 0.006657 | Q157: 0.0049 | R157: 2 | S157: 0.00245
A158: 4 | B158: 60 | C158: Adults (Belgium) | D158: 1 | E158: Wine grapes-Winemaking, Red | F158: 750 | G158: Wine grapes | H158: 1.43 | I158: 1070 | J158: Propineb | K158: 0.0253 | L158: 1 | M158: 1 | N158: 0.4516 | O158: 0.676 | P158: 0.3051 | Q158: 0.231 | R158: 2 | S158: 0.1155
A159: 4 | B159: 60 | C159: Adults (Belgium) | D159: 2 | E159: Wine grapes-Winemaking, Red | F159: 750 | G159: Wine grapes | H159: 1.43 | I159: 1070 | J159: Propineb | K159: 0.0253 | L159: 1 | M159: 1 | N159: 0.4516 | O159: 0.676 | P159: 0.3051 | Q159: 0.231 | R159: 2 | S159: 0.1155
A160: 4 | B160: 60 | C160: Adults (Belgium) | D160: 1 | E160: Wine grapes-Winemaking, Red | F160: 750 | G160: Wine grapes | H160: 1.43 | I160: 1070 | J160: Ziram | K160: 0.0103 | L160: 1 | M160: 1 | N160: 0.1849 | O160: 0.893 | P160: 0.1651 | Q160: 0.125 | R160: 2 | S160: 0.0625
A161: 4 | B161: 60 | C161: Adults (Belgium) | D161: 2 | E161: Wine grapes-Winemaking, Red | F161: 750 | G161: Wine grapes | H161: 1.43 | I161: 1070 | J161: Ziram | K161: 0.0103 | L161: 1 | M161: 1 | N161: 0.1849 | O161: 0.893 | P161: 0.1651 | Q161: 0.125 | R161: 2 | S161: 0.0625
A162: 4 | B162: 60 | C162: Adults (Belgium) | D162: 1 | E162: Potatoes-Cooking in water | F162: 304 | G162: Potatoes | H162: 1 | I162: 304 | J162: Chlorpropham | K162: 0.288 | L162: 1 | M162: 1 | N162: 1.459 | O162: 0.1 | P162: 0.1459 | Q162: 0.1104 | R162: 2 | S162: 0.0552
A163: 4 | B163: 60 | C163: Adults (Belgium) | D163: 2 | E163: Potatoes-Cooking in water | F163: 304 | G163: Potatoes | H163: 1 | I163: 304 | J163: Chlorpropham | K163: 0.288 | L163: 1 | M163: 1 | N163: 1.459 | O163: 0.1 | P163: 0.1459 | Q163: 0.1104 | R163: 2 | S163: 0.0552
A164: 4 | B164: 60 | C164: Adults (Belgium) | D164: 1 | E164: Wheat-Grain milling, Flour/meal or finely ground powder (as part-nature), White/refined | F164: 80.2 | G164: Wheat | H164: 1.43 | I164: 115 | J164: Bromide ion | K164: 1.58 | L164: 1 | M164: 1 | N164: 3.025 | O164: 0.0417 | P164: 0.1261 | Q164: 0.0954 | R164: 2 | S164: 0.0477
A165: 4 | B165: 60 | C165: Adults (Belgium) | D165: 2 | E165: Wheat-Grain milling, Flour/meal or finely ground powder (as part-nature), White/refined | F165: 78.7 | G165: Wheat | H165: 1.43 | I165: 113 | J165: Bromide ion | K165: 1.58 | L165: 1 | M165: 1 | N165: 2.967 | O165: 0.0417 | P165: 0.1236 | Q165: 0.0936 | R165: 2 | S165: 0.0468
A166: 4 | B166: 60 | C166: Adults (Belgium) | D166: 1 | E166: Wine grapes-Winemaking, Red | F166: 750 | G166: Wine grapes | H166: 1.43 | I166: 1070 | J166: Cyprodinil | K166: 0.0406 | L166: 1 | M166: 1 | N166: 0.7259 | O166: 0.159 | P166: 0.1156 | Q166: 0.0875 | R166: 2 | S166: 0.04375
A167: 4 | B167: 60 | C167: Adults (Belgium) | D167: 2 | E167: Wine grapes-Winemaking, Red | F167: 750 | G167: Wine grapes | H167: 1.43 | I167: 1070 | J167: Cyprodinil | K167: 0.0406 | L167: 1 | M167: 1 | N167: 0.7259 | O167: 0.159 | P167: 0.1156 | Q167: 0.0875 | R167: 2 | S167: 0.04375
A168: 4 | B168: 60 | C168: Adults (Belgium) | D168: 1 | E168: Wine grapes-Winemaking, Red | F168: 750 | G168: Wine grapes | H168: 1.43 | I168: 1070 | J168: Metiram | K168: 0.0293 | L168: 1 | M168: 1 | N168: 0.5242 | O168: 0.192 | P168: 0.1008 | Q168: 0.0763 | R168: 2 | S168: 0.03815
A169: 4 | B169: 60 | C169: Adults (Belgium) | D169: 2 | E169: Wine grapes-Winemaking, Red | F169: 750 | G169: Wine grapes | H169: 1.43 | I169: 1070 | J169: Metiram | K169: 0.0293 | L169: 1 | M169: 1 | N169: 0.5242 | O169: 0.192 | P169: 0.1008 | Q169: 0.0763 | R169: 2 | S169: 0.03815
A170: 4 | B170: 60 | C170: Adults (Belgium) | D170: 1 | E170: Carrots-Cooking in water | F170: 140 | G170: Carrots | H170: 1.06 | I170: 148 | J170: Bromide ion | K170: 0.604 | L170: 1 | M170: 1 | N170: 1.493 | O170: 0.0417 | P170: 0.06222 | Q170: 0.0471 | R170: 2 | S170: 0.02355
A171: 4 | B171: 60 | C171: Adults (Belgium) | D171: 1 | E171: Potatoes-Cooking in water | F171: 304 | G171: Potatoes | H171: 1 | I171: 304 | J171: Maleic hydrazide | K171: 1.49 | L171: 1 | M171: 1 | N171: 7.54 | O171: 0.00794 | P171: 0.05984 | Q171: 0.0453 | R171: 2 | S171: 0.02265
A172: 4 | B172: 60 | C172: Adults (Belgium) | D172: 2 | E172: Potatoes-Cooking in water | F172: 304 | G172: Potatoes | H172: 1 | I172: 304 | J172: Maleic hydrazide | K172: 1.49 | L172: 1 | M172: 1 | N172: 7.54 | O172: 0.00794 | P172: 0.05984 | Q172: 0.0453 | R172: 2 | S172: 0.02265
A173: 4 | B173: 60 | C173: Adults (Belgium) | D173: 1 | E173: Potatoes-Cooking in water | F173: 304 | G173: Potatoes | H173: 1 | I173: 304 | J173: Bromide ion | K173: 0.238 | L173: 1 | M173: 1 | N173: 1.208 | O173: 0.0417 | P173: 0.05032 | Q173: 0.0381 | R173: 2 | S173: 0.01905
A174: 4 | B174: 60 | C174: Adults (Belgium) | D174: 2 | E174: Potatoes-Cooking in water | F174: 304 | G174: Potatoes | H174: 1 | I174: 304 | J174: Bromide ion | K174: 0.238 | L174: 1 | M174: 1 | N174: 1.208 | O174: 0.0417 | P174: 0.05032 | Q174: 0.0381 | R174: 2 | S174: 0.01905
A175: 4 | B175: 60 | C175: Adults (Belgium) | D175: 1 | E175: Wine grapes-Winemaking, Red | F175: 750 | G175: Wine grapes | H175: 1.43 | I175: 1070 | J175: Pyrimethanil | K175: 0.0686 | L175: 1 | M175: 1 | N175: 1.226 | O175: 0.0294 | P175: 0.03606 | Q175: 0.0273 | R175: 2 | S175: 0.01365
A176: 4 | B176: 60 | C176: Adults (Belgium) | D176: 2 | E176: Wine grapes-Winemaking, Red | F176: 750 | G176: Wine grapes | H176: 1.43 | I176: 1070 | J176: Pyrimethanil | K176: 0.0686 | L176: 1 | M176: 1 | N176: 1.226 | O176: 0.0294 | P176: 0.03606 | Q176: 0.0273 | R176: 2 | S176: 0.01365
A177: 4 | B177: 60 | C177: Adults (Belgium) | D177: 1 | E177: Wine grapes-Winemaking, Red | F177: 750 | G177: Wine grapes | H177: 1.43 | I177: 1070 | J177: Mancozeb | K177: 0.0191 | L177: 1 | M177: 1 | N177: 0.3419 | O177: 0.104 | P177: 0.03561 | Q177: 0.027 | R177: 2 | S177: 0.0135
A178: 4 | B178: 60 | C178: Adults (Belgium) | D178: 2 | E178: Wine grapes-Winemaking, Red | F178: 750 | G178: Wine grapes | H178: 1.43 | I178: 1070 | J178: Mancozeb | K178: 0.0191 | L178: 1 | M178: 1 | N178: 0.3419 | O178: 0.104 | P178: 0.03561 | Q178: 0.027 | R178: 2 | S178: 0.0135
A179: 4 | B179: 60 | C179: Adults (Belgium) | D179: 1 | E179: Wine grapes-Winemaking, Red | F179: 750 | G179: Wine grapes | H179: 1.43 | I179: 1070 | J179: Maneb | K179: 0.015 | L179: 1 | M179: 1 | N179: 0.268 | O179: 0.1 | P179: 0.0268 | Q179: 0.0203 | R179: 2 | S179: 0.01015
A180: 4 | B180: 60 | C180: Adults (Belgium) | D180: 2 | E180: Wine grapes-Winemaking, Red | F180: 750 | G180: Wine grapes | H180: 1.43 | I180: 1070 | J180: Maneb | K180: 0.015 | L180: 1 | M180: 1 | N180: 0.268 | O180: 0.1 | P180: 0.0268 | Q180: 0.0203 | R180: 2 | S180: 0.01015
A181: 4 | B181: 60 | C181: Adults (Belgium) | D181: 1 | E181: Wine grapes-Winemaking, Red | F181: 750 | G181: Wine grapes | H181: 1.43 | I181: 1070 | J181: Proquinazid | K181: 0.00278 | L181: 1 | M181: 1 | N181: 0.04966 | O181: 0.417 | P181: 0.02069 | Q181: 0.0157 | R181: 2 | S181: 0.00785
A182: 4 | B182: 60 | C182: Adults (Belgium) | D182: 2 | E182: Wine grapes-Winemaking, Red | F182: 750 | G182: Wine grapes | H182: 1.43 | I182: 1070 | J182: Proquinazid | K182: 0.00278 | L182: 1 | M182: 1 | N182: 0.04966 | O182: 0.417 | P182: 0.02069 | Q182: 0.0157 | R182: 2 | S182: 0.00785
A183: 4 | B183: 60 | C183: Adults (Belgium) | D183: 1 | E183: Peas (without pods)-Cooking in water | F183: 140 | G183: Peas (without pods) | H183: 1.1 | I183: 154 | J183: Bromide ion | K183: 0.126 | L183: 1 | M183: 1 | N183: 0.3236 | O183: 0.0417 | P183: 0.01348 | Q183: 0.0102 | R183: 2 | S183: 0.0051
A184: 4 | B184: 60 | C184: Adults (Belgium) | D184: 1 | E184: Wine grapes-Winemaking, Red | F184: 750 | G184: Wine grapes | H184: 1.43 | I184: 1070 | J184: Fluopyram | K184: 0.0104 | L184: 0.18 | M184: 1.43 | N184: 0.02331 | O184: 0.417 | P184: 0.009713 | Q184: 0.0074 | R184: 2 | S184: 0.0037
A185: 4 | B185: 60 | C185: Adults (Belgium) | D185: 2 | E185: Wine grapes-Winemaking, Red | F185: 750 | G185: Wine grapes | H185: 1.43 | I185: 1070 | J185: Fluopyram | K185: 0.0104 | L185: 0.18 | M185: 1.43 | N185: 0.02331 | O185: 0.417 | P185: 0.009713 | Q185: 0.0074 | R185: 2 | S185: 0.0037
A186: 4 | B186: 60 | C186: Adults (Belgium) | D186: 1 | E186: Wine grapes-Winemaking, Red | F186: 750 | G186: Wine grapes | H186: 1.43 | I186: 1070 | J186: Folpet | K186: 0.0728 | L186: 1 | M186: 1 | N186: 1.301 | O186: 0.00731 | P186: 0.009509 | Q186: 0.0072 | R186: 2 | S186: 0.0036
A187: 4 | B187: 60 | C187: Adults (Belgium) | D187: 2 | E187: Wine grapes-Winemaking, Red | F187: 750 | G187: Wine grapes | H187: 1.43 | I187: 1070 | J187: Folpet | K187: 0.0728 | L187: 1 | M187: 1 | N187: 1.301 | O187: 0.00731 | P187: 0.009509 | Q187: 0.0072 | R187: 2 | S187: 0.0036
A188: 4 | B188: 60 | C188: Adults (Belgium) | D188: 1 | E188: Drinking water-Unspecified | F188: 1340 | G188: Drinking water-Unspecified | H188: 1 | I188: 1340 | J188: Fipronil | K188: 5e-05 | L188: 1 | M188: 1 | N188: 0.001115 | O188: 8.33 | P188: 0.009292 | Q188: 0.007 | R188: 2 | S188: 0.0035
A189: 4 | B189: 60 | C189: Adults (Belgium) | D189: 2 | E189: Drinking water-Unspecified | F189: 1250 | G189: Drinking water-Unspecified | H189: 1 | I189: 1250 | J189: Fipronil | K189: 5e-05 | L189: 1 | M189: 1 | N189: 0.001042 | O189: 8.33 | P189: 0.008681 | Q189: 0.0066 | R189: 2 | S189: 0.0033
A190: 4 | B190: 60 | C190: Adults (Belgium) | D190: 2 | E190: Drinking water-Unspecified | F190: 1030 | G190: Drinking water-Unspecified | H190: 1 | I190: 1030 | J190: Fipronil | K190: 5e-05 | L190: 1 | M190: 1 | N190: 0.000862 | O190: 8.33 | P190: 0.007184 | Q190: 0.0054 | R190: 2 | S190: 0.0027
A191: 4 | B191: 60 | C191: Adults (Belgium) | D191: 1 | E191: Wine grapes-Winemaking, Red | F191: 750 | G191: Wine grapes | H191: 1.43 | I191: 1070 | J191: MCPA | K191: 0.000559 | L191: 1 | M191: 1 | N191: 0.009986 | O191: 0.667 | P191: 0.006657 | Q191: 0.005 | R191: 2 | S191: 0.0025
A192: 4 | B192: 60 | C192: Adults (Belgium) | D192: 2 | E192: Wine grapes-Winemaking, Red | F192: 750 | G192: Wine grapes | H192: 1.43 | I192: 1070 | J192: MCPA | K192: 0.000559 | L192: 1 | M192: 1 | N192: 0.009986 | O192: 0.667 | P192: 0.006657 | Q192: 0.005 | R192: 2 | S192: 0.0025
A193: 4 | B193: 60 | C193: Adults (Belgium) | D193: 1 | E193: Wine grapes-Winemaking, Red | F193: 750 | G193: Wine grapes | H193: 1.43 | I193: 1070 | J193: Fenpyrazamine | K193: 0.00269 | L193: 1 | M193: 1 | N193: 0.04805 | O193: 0.118 | P193: 0.005653 | Q193: 0.0043 | R193: 2 | S193: 0.00215
A194: 4 | B194: 60 | C194: Adults (Belgium) | D194: 2 | E194: Wine grapes-Winemaking, Red | F194: 750 | G194: Wine grapes | H194: 1.43 | I194: 1070 | J194: Fenpyrazamine | K194: 0.00269 | L194: 1 | M194: 1 | N194: 0.04805 | O194: 0.118 | P194: 0.005653 | Q194: 0.0043 | R194: 2 | S194: 0.00215
A195: 4 | B195: 60 | C195: Adults (Belgium) | D195: 2 | E195: Spinaches-Cooking in water | F195: 2.84 | G195: Spinaches | H195: 1.05 | I195: 2.98 | J195: Bromide ion | K195: 2.28 | L195: 1 | M195: 1 | N195: 0.1133 | O195: 0.0417 | P195: 0.004723 | Q195: 0.0036 | R195: 2 | S195: 0.0018
A196: 4 | B196: 60 | C196: Adults (Belgium) | D196: 2 | E196: Carrots-Cooking in water | F196: 10.5 | G196: Carrots | H196: 1.06 | I196: 11.1 | J196: Bromide ion | K196: 0.604 | L196: 1 | M196: 1 | N196: 0.112 | O196: 0.0417 | P196: 0.004667 | Q196: 0.0035 | R196: 2 | S196: 0.00175
A197: 4 | B197: 60 | C197: Adults (Belgium) | D197: 1 | E197: Potatoes-Cooking in water | F197: 304 | G197: Potatoes | H197: 1 | I197: 304 | J197: Propineb | K197: 0.00106 | L197: 1 | M197: 1 | N197: 0.005369 | O197: 0.676 | P197: 0.003628 | Q197: 0.0027 | R197: 2 | S197: 0.00135
A198: 4 | B198: 60 | C198: Adults (Belgium) | D198: 1 | E198: Wheat-Grain milling, Flour/meal or finely ground powder (as part-nature), White/refined | F198: 80.2 | G198: Wheat | H198: 1.43 | I198: 115 | J198: Maneb | K198: 0.0184 | L198: 1 | M198: 1 | N198: 0.03523 | O198: 0.1 | P198: 0.003523 | Q198: 0.0027 | R198: 2 | S198: 0.00135
A199: 4 | B199: 60 | C199: Adults (Belgium) | D199: 2 | E199: Potatoes-Cooking in water | F199: 304 | G199: Potatoes | H199: 1 | I199: 304 | J199: Propineb | K199: 0.00106 | L199: 1 | M199: 1 | N199: 0.005369 | O199: 0.676 | P199: 0.003628 | Q199: 0.0027 | R199: 2 | S199: 0.00135
A200: 4 | B200: 60 | C200: Adults (Belgium) | D200: 2 | E200: Wheat-Grain milling, Flour/meal or finely ground powder (as part-nature), White/refined | F200: 78.7 | G200: Wheat | H200: 1.43 | I200: 113 | J200: Maneb | K200: 0.0184 | L200: 1 | M200: 1 | N200: 0.03454 | O200: 0.1 | P200: 0.003454 | Q200: 0.0026 | R200: 2 | S200: 0.0013
A201: 4 | B201: 60 | C201: Adults (Belgium) | D201: 1 | E201: Wine grapes-Winemaking, Red | F201: 750 | G201: Wine grapes | H201: 1.43 | I201: 1070 | J201: Spinosad | K201: 0.000896 | L201: 1 | M201: 1 | N201: 0.01601 | O201: 0.185 | P201: 0.002966 | Q201: 0.0022 | R201: 2 | S201: =Q201/R201 -> 0.0011
A202: 4 | B202: 60 | C202: Adults (Belgium) | D202: 1 | E202: Potatoes-Cooking in water | F202: 304 | G202: Potatoes | H202: 1 | I202: 304 | J202: Lufenuron | K202: 0.000469 | L202: 1 | M202: 1 | N202: 0.002377 | O202: 1.25 | P202: 0.002971 | Q202: 0.0022 | R202: 2 | S202: 0.0011
A203: 4 | B203: 60 | C203: Adults (Belgium) | D203: 2 | E203: Wine grapes-Winemaking, Red | F203: 750 | G203: Wine grapes | H203: 1.43 | I203: 1070 | J203: Spinosad | K203: 0.000896 | L203: 1 | M203: 1 | N203: 0.01601 | O203: 0.185 | P203: 0.002966 | Q203: 0.0022 | R203: 2 | S203: 0.0011
A204: 4 | B204: 60 | C204: Adults (Belgium) | D204: 2 | E204: Potatoes-Cooking in water | F204: 304 | G204: Potatoes | H204: 1 | I204: 304 | J204: Lufenuron | K204: 0.000469 | L204: 1 | M204: 1 | N204: 0.002377 | O204: 1.25 | P204: 0.002971 | Q204: 0.0022 | R204: 2 | S204: 0.0011
A205: 4 | B205: 60 | C205: Adults (Belgium) | D205: 1 | E205: Wine grapes-Winemaking, Red | F205: 750 | G205: Wine grapes | H205: 1.43 | I205: 1070 | J205: Fluopicolide | K205: 0.01 | L205: 1 | M205: 1 | N205: 0.1793 | O205: 0.0156 | P205: 0.002801 | Q205: 0.0021 | R205: 2 | S205: 0.00105
... 3701 more rows

Sheet Box_Exp_upper_tail_CI (hidden)
B1: Adults (Belgium)
B2: Adults (Czech Republic)
B3: Adults (Germany)
B4: Adults (Italy)
B5: Other children (Bulgaria)
B6: Other children (France)
B7: Other children (Netherlands)
B8: Toddlers (Denmark)
B9: Toddlers (Netherlands)
B10: Toddlers (United Kingdom)

Sheet pie_Risk_Drivers (hidden)
B1: Adults (Belgium) | C1: SnapTable_utRD_BE
B2: Adults (Czech Republic) | C2: SnapTable_utRD_CZ
B3: Adults (Germany) | C3: SnapTable_utRD_DE
B4: Adults (Italy) | C4: SnapTable_utRD_IT
B5: Other children (Bulgaria) | C5: SnapTable_utRD_BU
B6: Other children (France) | C6: SnapTable_utRD_FR
B7: Other children (Netherlands) | C7: SnapTable_utRD_NL3_6
B8: Toddlers (Denmark) | C8: SnapTable_utRD_DK
B9: Toddlers (Netherlands) | C9: SnapTable_utRD_NL2
B10: Toddlers (United Kingdom) | C10: SnapTable_utRD_UK

Sheet pie_Food_as_Eaten (hidden)
B1: Adults (Belgium) | C1: SnapTable_utFaE_BE
B2: Adults (Czech Republic) | C2: SnapTable_utFaE_CZ
B3: Adults (Germany) | C3: SnapTable_utFaE_DE
B4: Adults (Italy) | C4: SnapTable_utFaE_IT
B5: Other children (Bulgaria) | C5: SnapTable_utFaE_BU
B6: Other children (France) | C6: SnapTable_utFaE_FR
B7: Other children (Netherlands) | C7: SnapTable_utFaE_NL3_6
B8: Toddlers (Denmark) | C8: SnapTable_utFaE_DK
B9: Toddlers (Netherlands) | C9: SnapTable_utFaE_NL2
B10: Toddlers (United Kingdom) | C10: SnapTable_utFaE_UK

Sheet pie_Active_Substance (hidden)
B1: Adults (Belgium) | C1: SnapTable_utAS_BE
B2: Adults (Czech Republic) | C2: SnapTable_utAS_CZ
B3: Adults (Germany) | C3: SnapTable_utAS_DE
B4: Adults (Italy) | C4: SnapTable_utAS_IT
B5: Other children (Bulgaria) | C5: SnapTable_utAS_BU
B6: Other children (France) | C6: SnapTable_utAS_FR
B7: Other children (Netherlands) | C7: SnapTable_utAS_NL3_6
B8: Toddlers (Denmark) | C8: SnapTable_utAS_DK
B9: Toddlers (Netherlands) | C9: SnapTable_utAS_NL2
B10: Toddlers (United Kingdom) | C10: SnapTable_utAS_UK

Sheet Admin (hidden)
A2: csv datafeed information
A3: files | B3: Output Sheet Name (Label of sheet) | C3: Output Row
A4: R:\Projecten\E133513 EFSA Partnership Agreement 2\03 Uitvoering\Action2-Phase3\TCF\CSVzip\UpperRD_BE.csv | B4: utRD_BE | C4: 1
A5: R:\Projecten\E133513 EFSA Partnership Agreement 2\03 Uitvoering\Action2-Phase3\TCF\CSVzip\UpperRD_BU.csv | B5: utRD_BU | C5: 1
A6: R:\Projecten\E133513 EFSA Partnership Agreement 2\03 Uitvoering\Action2-Phase3\TCF\CSVzip\UpperRD_CZ.csv | B6: utRD_CZ | C6: 1
A7: R:\Projecten\E133513 EFSA Partnership Agreement 2\03 Uitvoering\Action2-Phase3\TCF\CSVzip\UpperRD_DE.csv | B7: utRD_DE | C7: 1
A8: R:\Projecten\E133513 EFSA Partnership Agreement 2\03 Uitvoering\Action2-Phase3\TCF\CSVzip\UpperRD_DK.csv | B8: utRD_DK | C8: 1
A9: R:\Projecten\E133513 EFSA Partnership Agreement 2\03 Uitvoering\Action2-Phase3\TCF\CSVzip\UpperRD_FR.csv | B9: utRD_FR | C9: 1
A10: R:\Projecten\E133513 EFSA Partnership Agreement 2\03 Uitvoering\Action2-Phase3\TCF\CSVzip\UpperRD_IT.csv | B10: utRD_IT | C10: 1
A11: R:\Projecten\E133513 EFSA Partnership Agreement 2\03 Uitvoering\Action2-Phase3\TCF\CSVzip\UpperRD_NL2.csv | B11: utRD_NL2 | C11: 1
A12: R:\Projecten\E133513 EFSA Partnership Agreement 2\03 Uitvoering\Action2-Phase3\TCF\CSVzip\UpperRD_NL3_6.csv | B12: utRD_NL3_6 | C12: 1
A13: R:\Projecten\E133513 EFSA Partnership Agreement 2\03 Uitvoering\Action2-Phase3\TCF\CSVzip\UpperRD_UK.csv | B13: utRD_UK | C13: 1
A14: R:\Projecten\E133513 EFSA Partnership Agreement 2\03 Uitvoering\Action2-Phase3\TCF\CSVzip\UpperFaE_BE.csv | B14: utFaE_BE | C14: 1
A15: R:\Projecten\E133513 EFSA Partnership Agreement 2\03 Uitvoering\Action2-Phase3\TCF\CSVzip\UpperFaE_BU.csv | B15: utFaE_BU | C15: 1
A16: R:\Projecten\E133513 EFSA Partnership Agreement 2\03 Uitvoering\Action2-Phase3\TCF\CSVzip\UpperFaE_CZ.csv | B16: utFaE_CZ | C16: 1
A17: R:\Projecten\E133513 EFSA Partnership Agreement 2\03 Uitvoering\Action2-Phase3\TCF\CSVzip\UpperFaE_DE.csv | B17: utFaE_DE | C17: 1
A18: R:\Projecten\E133513 EFSA Partnership Agreement 2\03 Uitvoering\Action2-Phase3\TCF\CSVzip\UpperFaE_DK.csv | B18: utFaE_DK | C18: 1
A19: R:\Projecten\E133513 EFSA Partnership Agreement 2\03 Uitvoering\Action2-Phase3\TCF\CSVzip\UpperFaE_FR.csv | B19: utFaE_FR | C19: 1
A20: R:\Projecten\E133513 EFSA Partnership Agreement 2\03 Uitvoering\Action2-Phase3\TCF\CSVzip\UpperFaE_IT.csv | B20: utFaE_IT | C20: 1
A21: R:\Projecten\E133513 EFSA Partnership Agreement 2\03 Uitvoering\Action2-Phase3\TCF\CSVzip\UpperFaE_NL2.csv | B21: utFaE_NL2 | C21: 1
A22: R:\Projecten\E133513 EFSA Partnership Agreement 2\03 Uitvoering\Action2-Phase3\TCF\CSVzip\UpperFaE_NL3_6.csv | B22: utFaE_NL3_6 | C22: 1
A23: R:\Projecten\E133513 EFSA Partnership Agreement 2\03 Uitvoering\Action2-Phase3\TCF\CSVzip\UpperFaE_UK.csv | B23: utFaE_UK | C23: 1
A24: R:\Projecten\E133513 EFSA Partnership Agreement 2\03 Uitvoering\Action2-Phase3\TCF\CSVzip\UpperAS_BE.csv | B24: utAS_BE | C24: 1
A25: R:\Projecten\E133513 EFSA Partnership Agreement 2\03 Uitvoering\Action2-Phase3\TCF\CSVzip\UpperAS_BU.csv | B25: utAS_BU | C25: 1
A26: R:\Projecten\E133513 EFSA Partnership Agreement 2\03 Uitvoering\Action2-Phase3\TCF\CSVzip\UpperAS_CZ.csv | B26: utAS_CZ | C26: 1
A27: R:\Projecten\E133513 EFSA Partnership Agreement 2\03 Uitvoering\Action2-Phase3\TCF\CSVzip\UpperAS_DE.csv | B27: utAS_DE | C27: 1
A28: R:\Projecten\E133513 EFSA Partnership Agreement 2\03 Uitvoering\Action2-Phase3\TCF\CSVzip\UpperAS_DK.csv | B28: utAS_DK | C28: 1
A29: R:\Projecten\E133513 EFSA Partnership Agreement 2\03 Uitvoering\Action2-Phase3\TCF\CSVzip\UpperAS_FR.csv | B29: utAS_FR | C29: 1
A30: R:\Projecten\E133513 EFSA Partnership Agreement 2\03 Uitvoering\Action2-Phase3\TCF\CSVzip\UpperAS_IT.csv | B30: utAS_IT | C30: 1
A31: R:\Projecten\E133513 EFSA Partnership Agreement 2\03 Uitvoering\Action2-Phase3\TCF\CSVzip\UpperAS_NL2.csv | B31: utAS_NL2 | C31: 1
A32: R:\Projecten\E133513 EFSA Partnership Agreement 2\03 Uitvoering\Action2-Phase3\TCF\CSVzip\UpperAS_NL3_6.csv | B32: utAS_NL3_6 | C32: 1
A33: R:\Projecten\E133513 EFSA Partnership Agreement 2\03 Uitvoering\Action2-Phase3\TCF\CSVzip\UpperAS_UK.csv | B33: utAS_UK | C33: 1

Sheet utAS_BE (hidden)
A1: Substance name | B1: Mean contribution | C1: Lower bound (%) (p2,5) | D1: Upper bound (%) (p97,5) | E1: Active Substances | F1: % contribution (95% CI)
A2: Bromide ion | B2: 29.58509562 | C2: 17.11285358 | D2: 44.35078881 | E2: =IF(B2>1,A2,"") -> Bromide ion | F2: =IF(B2>1,CONCATENATE(ROUND(B2,1)," ","(",ROUND(C2,1)," ","-"," ",ROUND(D2,1),")"),"") -> 29.6 (17.1 - 44.4)
A3: Ziram | B3: 19.66763966 | C3: 8.411109613 | D3: 36.99401897 | E3: =IF(B3>1,A3,"") -> Ziram | F3: =IF(B3>1,CONCATENATE(ROUND(B3,1)," ","(",ROUND(C3,1)," ","-"," ",ROUND(D3,1),")"),"") -> 19.7 (8.4 - 37)
A4: Propineb | B4: 16.71723378 | C4: 7.893279813 | D4: 30.04576434 | E4: Propineb | F4: 16.7 (7.9 - 30)
A5: Cyprodinil | B5: 5.908248806 | C5: 3.824490519 | D5: 8.105295465 | E5: Cyprodinil | F5: 5.9 (3.8 - 8.1)
A6: Metiram | B6: 4.081924255 | C6: 2.018684117 | D6: 8.05534637 | E6: Metiram | F6: 4.1 (2 - 8.1)
A7: Mancozeb | B7: 4.079692493 | C7: 2.540010917 | D7: 6.389555304 | E7: Mancozeb | F7: 4.1 (2.5 - 6.4)
A8: Chlorpropham | B8: 3.343647441 | C8: 1.648199711 | D8: 5.625784776 | E8: Chlorpropham | F8: 3.3 (1.6 - 5.6)
A9: Pyrimethanil | B9: 2.76190191 | C9: 1.746238538 | D9: 3.565807381 | E9: Pyrimethanil | F9: 2.8 (1.7 - 3.6)
A10: Thiabendazole | B10: 2.470263015 | C10: 0.07690727739 | D10: 5.58428017 | E10: Thiabendazole | F10: 2.5 (0.1 - 5.6)
A11: Maneb | B11: 2.309686802 | C11: 1.125125619 | D11: 3.970222095 | E11: Maneb | F11: 2.3 (1.1 - 4)
A12: Maleic hydrazide | B12: 1.71875478 | C12: 0.9303049118 | D12: 2.706203909 | E12: Maleic hydrazide | F12: 1.7 (0.9 - 2.7)
A13: Fluopyram | B13: 1.36634781 | C13: 0.847349655 | D13: 2.064665338 | E13: Fluopyram | F13: 1.4 (0.8 - 2.1)
A14: Proquinazid | B14: 0.9509786635 | C14: 0.4625167398 | D14: 1.548392222
A15: Fipronil | B15: 0.7228771447 | C15: 0.4578225653 | D15: 1.025798274
A16: Dithianon | B16: 0.5057227609 | C16: 0.09804398391 | D16: 1.129245387
A17: Folpet | B17: 0.4307325119 | C17: 0.2151568323 | D17: 0.6838807501
A18: 2,4-D | B18: 0.3692648778 | C18: 0.03564891137 | D18: 0.779879541
A19: Fenpyrazamine | B19: 0.3076648932 | C19: 0.08790000482 | D19: 0.6826308261
A20: Thiacloprid | B20: 0.3026461027 | C20: 0.04557641562 | D20: 0.7055207799
A21: Boscalid | B21: 0.2851697479 | C21: 0.1993119847 | D21: 0.4008692167
A22: Lufenuron | B22: 0.2583583311 | C22: 0.1143449312 | D22: 0.4431874241
A23: MCPA | B23: 0.2572128921 | C23: 0.02127178783 | D23: 0.7459353673
A24: Spinosad | B24: 0.2466459509 | C24: 0.1088069242 | D24: 0.4698733267
A25: Buprofezin | B25: 0.1723270596 | C25: 0.0514808732 | D25: 0.4120658022
A26: Tetraconazole | B26: 0.1499188076 | C26: 0.09249800791 | D26: 0.209906932
A27: Fluopicolide | B27: 0.136106664 | C27: 0.07500102663 | D27: 0.1973284347
A28: Amitrole | B28: 0.125494737 | C28: 0.0800080413 | D28: 0.1771358107
A29: Oxyfluorfen | B29: 0.1246746488 | C29: 0.05816162058 | D29: 0.239220453
A30: Topramezone | B30: 0.09412105274 | C30: 0.06000603097 | D30: 0.132851858
A31: Fluquinconazole | B31: 0.09281077074 | C31: 0.05573454141 | D31: 0.124057503
A32: Cyflufenamid | B32: 0.05858629766 | C32: 0.03600513915 | D32: 0.1003516885
A33: Meptyldinocap | B33: 0.0585586968 | C33: 0.008754180666 | D33: 0.1468156032
A34: Thiophanate-methyl | B34: 0.05801995282 | C34: 0.02988707403 | D34: 0.09065441568
A35: Fenamidone | B35: 0.03157936033 | C35: 0.01638398395 | D35: 0.0585046645
A36: Etofenprox | B36: 0.02348808448 | C36: 0.005189016202 | D36: 0.0444635169
A37: Fenbuconazole | B37: 0.02179969806 | C37: 0.01332933407 | D37: 0.03276496177
A38: Clofentezine | B38: 0.02064408768 | C38: 0.003642220141 | D38: 0.06253835317
A39: Spiromesifen | B39: 0.02036362709 | C39: 0.007158696049 | D39: 0.05684776889
A40: Myclobutanil | B40: 0.01988502145 | C40: 0.01045785078 | D40: 0.03745833695
A41: Pyrethrins | B41: 0.01714418695 | C41: 0.007245349866 | D41: 0.02782314998
A42: Benthiavalicarb | B42: 0.01693916556 | C42: 0.003999685745 | D42: 0.03665813204
A43: Dinocap | B43: 0.01416236533 | C43: 0.002986474276 | D43: 0.04017854303
A44: Flubendiamide | B44: 0.0139428899 | C44: 0.003053706516 | D44: 0.03271375221
A45: Zoxamide | B45: 0.01168899205 | C45: 0.005577363722 | D45: 0.01810256214
A46: Pymetrozine | B46: 0.01166379279 | C46: 0.005149971587 | D46: 0.02276341602
A47: Bixafen | B47: 0.00588051063 | C47: 0.002105220921 | D47: 0.01068900797
A48: Fluxapyroxad | B48: 0.004713789043 | C48: 0.001521990029 | D48: 0.009044153025
A49: Bupirimate | B49: 0.003916714452 | C49: 0.001080897791 | D49: 0.007237911361
A50: Triadimefon | B50: 0.003858185256 | C50: 0.001838336838 | D50: 0.006796165639
A51: Fenoxycarb | B51: 0.003651558678 | C51: 0.0002548935912 | D51: 0.008449654937
A52: Metribuzin | B52: 0.003566614946 | C52: 0.001627331394 | D52: 0.006857428013
A53: Spirodiclofen | B53: 0.003545914212 | C53: 0.0006334181069 | D53: 0.007262771548
A54: Flufenacet | B54: 0.002981151525 | C54: 0.001845806204 | D54: 0.004299736009
A55: Aclonifen | B55: 0.002662662354 | C55: 0.0008488615339 | D55: 0.005919227674
A56: Benalaxyl-M | B56: 0.002197545335 | C56: 0.0002801863764 | D56: 0.006466022919
A57: Fluoxastrobin | B57: 0.001921486933 | C57: 0.0009320754399 | D57: 0.003539198603
A58: Propyzamide | B58: 0.00191771567 | C58: 0.000845747428 | D58: 0.003191849111
A59: Quizalofop-P-tefuryl | B59: 0.00142485024 | C59: 0.0006166302492 | D59: 0.003066495807
A60: Carbaryl | B60: 0.001286750487 | C60: 0.0001798378398 | D60: 0.003611946262
A61: Pendimethalin | B61: 0.001160632256 | C61: 0.0005845800833 | D61: 0.002019740861
A62: Terbuthylazine | B62: 0.001095275592 | C62: 0.0001554339198 | D62: 0.002439892482
A63: Trifluralin | B63: 0.001085552481 | C63: 0.0002343601763 | D63: 0.00353406836
A64: Haloxyfop-P | B64: 0.0009846879163 | C64: 5.469008025e-07 | D64: 0.007191700373
A65: Amisulbrom | B65: 0.0009741355298 | C65: 7.323558289e-05 | D65: 0.003399283942
A66: Fuberidazole | B66: 0.0009648535013 | C66: 0.0003684996314 | D66: 0.001612630243
A67: Carbosulfan | B67: 0.0009468604032 | C67: 6.051675187e-05 | D67: 0.003730457866 | E67: =IF(B67>1,A67,"") ->  | F67: =IF(B67>1,CONCATENATE(ROUND(B67,1)," ","(",ROUND(C67,1)," ","-"," ",ROUND(D67,1),")"),"") -> 
A68: Pyridalyl | B68: 0.0009451983366 | C68: 0.0003712633677 | D68: 0.002341839955
A69: Thiamethoxam | B69: 0.0008364162037 | C69: 0.000634095764 | D69: 0.00112908421
A70: Benalaxyl | B70: 0.0008212153591 | C70: 0.0001978464511 | D70: 0.002443430873
A71: Azadirachtin | B71: 0.0007841439506 | C71: 0.0001811382082 | D71: 0.002729945562
A72: Flutolanil | B72: 0.0006862082559 | C72: 0.0003970222251 | D72: 0.001008011012
A73: Bromopropylate | B73: 0.0006347159503 | C73: 0.0001041654689 | D73: 0.002132102716
A74: Quintozene | B74: 0.0005803607679 | C74: 0.0001910194 | D74: 0.001570914454
A75: Oxadiazon | B75: 0.00040848158 | C75: 7.168651593e-06 | D75: 0.001417730726
A76: Cyproconazole | B76: 0.0003374302265 | C76: 0.0001160103353 | D76: 0.0006158707244
A77: Tepraloxydim | B77: 0.000277424088 | C77: 2.985224667e-05 | D77: 0.000904638304
A78: Penthiopyrad | B78: 0.0002415897049 | C78: 4.041806351e-05 | D78: 0.0008939096216
A79: Etridiazole | B79: 0.000197607745 | C79: 3.746682962e-05 | D79: 0.0005664912202
A80: Vinclozolin | B80: 0.000158278338 | C80: 2.687231589e-05 | D80: 0.000383438435
A81: Anthraquinone | B81: 0.0001266492758 | C81: 4.514398502e-05 | D81: 0.0002557301117
A82: Bitertanol | B82: 9.842357141e-05 | C82: 1.897124846e-05 | D82: 0.0003430559536
A83: Fenarimol | B83: 9.589641253e-05 | C83: 2.577285294e-05 | D83: 0.0002713209022
A84: Tolylfluanid | B84: 8.899516495e-05 | C84: 3.639993338e-06 | D84: 0.000361498078
A85: Diethofencarb | B85: 5.789607996e-05 | C85: 2.095602042e-05 | D85: 0.0001498956806
A86: Cyantraniliprole | B86: 4.730887468e-05 | C86: 0 | D86: 0.0002954806838
A87: Valifenalate | B87: 3.951769429e-05 | C87: 2.271507151e-06 | D87: 0.0001539365474
A88: Desmedipham | B88: 3.623520634e-05 | C88: 5.894076841e-07 | D88: 0.0001472554316
A89: Dicloran | B89: 3.219471468e-05 | C89: 3.546999008e-06 | D89: 7.148202992e-05
A90: Bromuconazole | B90: 3.029507744e-05 | C90: 8.571153697e-07 | D90: 0.0001007850244
A91: Clethodim | B91: 2.286776659e-05 | C91: 9.929617389e-06 | D91: 5.217322036e-05
A92: Bromoxynil | B92: 1.062429266e-05 | C92: 0 | D92: 7.699691256e-05
A93: Heptachlor | B93: 1.006425348e-05 | C93: 0 | D93: 5.067963794e-05
A94: Quinmerac | B94: 8.768321492e-06 | C94: 1.119662365e-06 | D94: 2.414320756e-05
A95: Benfluralin | B95: 8.189449669e-06 | C95: 2.468088589e-06 | D95: 2.430855903e-05
A96: Phoxim | B96: 5.441033147e-06 | C96: 0 | D96: 2.68504258e-05
A97: Carbetamide | B97: 3.912134137e-06 | C97: 1.068106329e-06 | D97: 1.058474628e-05

Sheet utAS_BU (hidden)
A1: Substance name | B1: Mean contribution | C1: Lower bound (%) (p2,5) | D1: Upper bound (%) (p97,5) | E1: Active Substances | F1: % contribution (95% CI)
A2: Bromide ion | B2: 37.45104773 | C2: 24.96133963 | D2: 49.42091473 | E2: =IF(B2>1,A2,"") -> Bromide ion | F2: =IF(B2>1,CONCATENATE(ROUND(B2,1)," ","(",ROUND(C2,1)," ","-"," ",ROUND(D2,1),")"),"") -> 37.5 (25 - 49.4)
A3: Thiabendazole | B3: 18.54394937 | C3: 10.81169968 | D3: 26.8266114 | E3: =IF(B3>1,A3,"") -> Thiabendazole | F3: =IF(B3>1,CONCATENATE(ROUND(B3,1)," ","(",ROUND(C3,1)," ","-"," ",ROUND(D3,1),")"),"") -> 18.5 (10.8 - 26.8)
A4: Mancozeb | B4: 7.714271395 | C4: 4.75238315 | D4: 10.44346883 | E4: Mancozeb | F4: 7.7 (4.8 - 10.4)
A5: Pyrimethanil | B5: 7.143392096 | C5: 4.023013286 | D5: 10.15313001 | E5: Pyrimethanil | F5: 7.1 (4 - 10.2)
A6: Propineb | B6: 5.597349784 | C6: 3.336846951 | D6: 7.687438377 | E6: Propineb | F6: 5.6 (3.3 - 7.7)
A7: Chlorpropham | B7: 5.1664342 | C7: 1.886235458 | D7: 9.449404246 | E7: Chlorpropham | F7: 5.2 (1.9 - 9.4)
A8: Ziram | B8: 5.039611171 | C8: 2.150435631 | D8: 9.316991097 | E8: Ziram | F8: 5 (2.2 - 9.3)
A9: 2,4-D | B9: 2.666713667 | C9: 1.505256086 | D9: 3.985609321 | E9: 2,4-D | F9: 2.7 (1.5 - 4)
A10: Maleic hydrazide | B10: 2.083789969 | C10: 0.7615433335 | D10: 3.872435651 | E10: Maleic hydrazide | F10: 2.1 (0.8 - 3.9)
A11: Cyprodinil | B11: 1.745650415 | C11: 0.5243997307 | D11: 3.368852457 | E11: Cyprodinil | F11: 1.7 (0.5 - 3.4)
A12: Metiram | B12: 1.161839049 | C12: 0.5337668065 | D12: 2.089903667 | E12: Metiram | F12: 1.2 (0.5 - 2.1)
A13: Fluopyram | B13: 0.8052156147 | C13: 0.4976253554 | D13: 1.280983184
A14: Maneb | B14: 0.7655815218 | C14: 0.2889539704 | D14: 1.469360434
A15: Buprofezin | B15: 0.727548353 | C15: 0.3905995239 | D15: 1.164864022
A16: Fipronil | B16: 0.561676522 | C16: 0.2527294347 | D16: 0.9225525008
A17: Thiacloprid | B17: 0.5502995714 | C17: 0.2062193144 | D17: 0.9510113515
A18: Dithianon | B18: 0.5175716224 | C18: 0.07137530755 | D18: 1.194370973
A19: Spinosad | B19: 0.2541613932 | C19: 0.07643142464 | D19: 0.5645384917
A20: Boscalid | B20: 0.2373662782 | C20: 0.1138445274 | D20: 0.417357884
A21: Lufenuron | B21: 0.2039343067 | C21: 0.0813924785 | D21: 0.4597359112
A22: Tetraconazole | B22: 0.1381779664 | C22: 0.02765871476 | D22: 0.3341135251
A23: Etofenprox | B23: 0.1083660268 | C23: 0.06542562748 | D23: 0.1563345949
A24: Fenpyrazamine | B24: 0.09237279041 | C24: 0.01084419021 | D24: 0.2449297917
A25: Amitrole | B25: 0.08053473377 | C25: 0.0187578193 | D25: 0.1547173516
A26: Clofentezine | B26: 0.07758226167 | C26: 0.01310461687 | D26: 0.2220858587
A27: Fluquinconazole | B27: 0.06445022744 | C27: 0.01865791821 | D27: 0.1248847806
A28: Topramezone | B28: 0.06040105032 | C28: 0.01406836447 | D28: 0.1160380137
A29: Myclobutanil | B29: 0.04171146846 | C29: 0.01148668882 | D29: 0.104973715
A30: MCPA | B30: 0.03830656205 | C30: 0.02199055592 | D30: 0.06997259919
A31: Spiromesifen | B31: 0.03683904861 | C31: 0.02707442803 | D31: 0.04934556127
A32: Oxyfluorfen | B32: 0.03568391111 | C32: 0.003912035348 | D32: 0.09783144149
A33: Pymetrozine | B33: 0.03202926708 | C33: 0.01227942334 | D33: 0.05907520495
A34: Thiophanate-methyl | B34: 0.02998322132 | C34: 0.02064363156 | D34: 0.03975534038
A35: Pyrethrins | B35: 0.02411068537 | C35: 0.01678758313 | D35: 0.03406823104
A36: Flubendiamide | B36: 0.02160503125 | C36: 0.01225653531 | D36: 0.03445361224
A37: Meptyldinocap | B37: 0.02093392585 | C37: 0.0001176118127 | D37: 0.07653580762
A38: Fluopicolide | B38: 0.02084197722 | C38: 0.003981384561 | D38: 0.04790820927
A39: Fenamidone | B39: 0.01795703613 | C39: 0.004881181568 | D39: 0.03818856551
A40: Proquinazid | B40: 0.01783911714 | C40: 0.005218123677 | D40: 0.03404085624
A41: Fenbuconazole | B41: 0.01543196454 | C41: 0.003931402677 | D41: 0.02896194071
A42: Bupirimate | B42: 0.01096912606 | C42: 0.003701813783 | D42: 0.02843966237
A43: Triadimefon | B43: 0.007653710554 | C43: 0.003091350165 | D43: 0.01473629164
A44: Bixafen | B44: 0.005662066689 | C44: 0.003121508331 | D44: 0.01076988063
A45: Carbosulfan | B45: 0.004999490641 | C45: 0.0003188234845 | D45: 0.01620303254
A46: Spirodiclofen | B46: 0.004963786539 | C46: 0.002192013332 | D46: 0.009552143996
A47: Fenoxycarb | B47: 0.00466826685 | C47: 0.001511255048 | D47: 0.00948724167
A48: Fluxapyroxad | B48: 0.004664954963 | C48: 0.00284967694 | D48: 0.008031029399
A49: Folpet | B49: 0.004645355563 | C49: 0.001204337828 | D49: 0.01015654219
A50: Metribuzin | B50: 0.003857491842 | C50: 0.001651125057 | D50: 0.007589849532
A51: Terbuthylazine | B51: 0.003672989949 | C51: 0.0006172844679 | D51: 0.0104270186
A52: Flufenacet | B52: 0.003400076747 | C52: 0.00137263365 | D52: 0.006308088674
A53: Cyflufenamid | B53: 0.003130121477 | C53: 0.0006174038871 | D53: 0.007742409294
A54: Fluoxastrobin | B54: 0.002211109056 | C54: 0.0007633353068 | D54: 0.004414123079
A55: Etridiazole | B55: 0.00177017238 | C55: 7.565022691e-05 | D55: 0.004327953343
A56: Carbaryl | B56: 0.001759336105 | C56: 6.686291193e-05 | D56: 0.007729710513
A57: Propyzamide | B57: 0.001737845469 | C57: 0.0003391817382 | D57: 0.005563030364
A58: Aclonifen | B58: 0.001735623334 | C58: 0.0007567312875 | D58: 0.002791849004
A59: Quizalofop-P-tefuryl | B59: 0.001694347435 | C59: 0.00047907493 | D59: 0.004388742802
A60: Pyridalyl | B60: 0.001577618769 | C60: 0.0009350455231 | D60: 0.00270102543
A61: Cyproconazole | B61: 0.001382944475 | C61: 0.0004895363781 | D61: 0.002595759426
A62: Azadirachtin | B62: 0.001381535347 | C62: 0.0003881085322 | D62: 0.004280204902
A63: Thiamethoxam | B63: 0.00112089463 | C63: 0.0005463075955 | D63: 0.001744265048
A64: Bromopropylate | B64: 0.001105088184 | C64: 0.0003069439827 | D64: 0.002582896515
A65: Pendimethalin | B65: 0.001024984869 | C65: 0.0006761129851 | D65: 0.001518279461
A66: Fuberidazole | B66: 0.0009330197052 | C66: 0.0005090730999 | D66: 0.001762794952
A67: Flutolanil | B67: 0.0007837454177 | C67: 0.0003047090188 | D67: 0.001350681975 | E67: =IF(B67>1,A67,"") ->  | F67: =IF(B67>1,CONCATENATE(ROUND(B67,1)," ","(",ROUND(C67,1)," ","-"," ",ROUND(D67,1),")"),"") -> 
A68: Zoxamide | B68: 0.0007108092666 | C68: 7.172886259e-05 | D68: 0.001999601995
A69: Trifluralin | B69: 0.0006496024049 | C69: 0.0001927547904 | D69: 0.001644350235
A70: Oxadiazon | B70: 0.0005004761168 | C70: 5.870300013e-06 | D70: 0.001849505515
A71: Penthiopyrad | B71: 0.0004875605683 | C71: 0.0001395947603 | D71: 0.001281160062
A72: Quintozene | B72: 0.0004051166059 | C72: 0.000146886998 | D72: 0.0009522162317
A73: Fenarimol | B73: 0.0003687950465 | C73: 0.0001138145126 | D73: 0.00097927985
A74: Bitertanol | B74: 0.000337764148 | C74: 3.537820384e-05 | D74: 0.001131882868
A75: Vinclozolin | B75: 0.0001559746109 | C75: 1.905244814e-05 | D75: 0.0003995023306
A76: Tolylfluanid | B76: 0.0001529035668 | C76: 1.924988127e-05 | D76: 0.0004442868185
A77: Tepraloxydim | B77: 0.0001471605443 | C77: 2.392884574e-05 | D77: 0.0004377658033
A78: Haloxyfop-P | B78: 0.0001384744678 | C78: 0 | D78: 0.0007034910049
A79: Anthraquinone | B79: 0.0001314005406 | C79: 6.534708038e-05 | D79: 0.0002556920356
A80: Cyantraniliprole | B80: 0.0001138441474 | C80: 0 | D80: 0.0004280728662
A81: Bromuconazole | B81: 8.915434841e-05 | C81: 1.707493691e-05 | D81: 0.000212968812
A82: Diethofencarb | B82: 8.80315537e-05 | C82: 4.479122093e-05 | D82: 0.000135986071
A83: Benthiavalicarb | B83: 7.093020193e-05 | C83: 0 | D83: 0.0001679776919
A84: Dicloran | B84: 6.770785837e-05 | C84: 6.973752139e-06 | D84: 0.000227917229
A85: Benalaxyl-M | B85: 6.699465324e-05 | C85: 2.923712933e-05 | D85: 0.000118884532
A86: Valifenalate | B86: 6.35652558e-05 | C86: 2.379553632e-06 | D86: 0.0002685355012
A87: Desmedipham | B87: 4.766426135e-05 | C87: 0 | D87: 0.0003140602207
A88: Dinocap | B88: 4.07828804e-05 | C88: 0 | D88: 0.0001283887412
A89: Benalaxyl | B89: 3.113861038e-05 | C89: 2.075469306e-05 | D89: 4.797944868e-05
A90: Clethodim | B90: 2.580217868e-05 | C90: 1.09729706e-05 | D90: 6.840097601e-05
A91: Phoxim | B91: 1.328839825e-05 | C91: 0 | D91: 8.438499149e-05
A92: Amisulbrom | B92: 9.806195934e-06 | C92: 0 | D92: 3.448252798e-05
A93: Quinmerac | B93: 9.130085338e-06 | C93: 8.064118013e-07 | D93: 2.313245533e-05
A94: Benfluralin | B94: 5.357817162e-06 | C94: 0 | D94: 2.675513661e-05
A95: Carbetamide | B95: 2.408887898e-06 | C95: 0 | D95: 9.486206467e-06

Sheet utAS_CZ (hidden)
A1: Substance name | B1: Mean contribution | C1: Lower bound (%) (p2,5) | D1: Upper bound (%) (p97,5) | E1: Active Substances | F1: % contribution (95% CI)
A2: Bromide ion | B2: 34.56515745 | C2: 22.01538749 | D2: 49.12252526 | E2: =IF(B2>1,A2,"") -> Bromide ion | F2: =IF(B2>1,CONCATENATE(ROUND(B2,1)," ","(",ROUND(C2,1)," ","-"," ",ROUND(D2,1),")"),"") -> 34.6 (22 - 49.1)
A3: Ziram | B3: 17.35863728 | C3: 6.745863358 | D3: 31.61209766 | E3: =IF(B3>1,A3,"") -> Ziram | F3: =IF(B3>1,CONCATENATE(ROUND(B3,1)," ","(",ROUND(C3,1)," ","-"," ",ROUND(D3,1),")"),"") -> 17.4 (6.7 - 31.6)
A4: Propineb | B4: 14.82646088 | C4: 7.09626874 | D4: 25.73100101 | E4: Propineb | F4: 14.8 (7.1 - 25.7)
A5: Cyprodinil | B5: 5.586740346 | C5: 3.765673676 | D5: 7.447500304 | E5: Cyprodinil | F5: 5.6 (3.8 - 7.4)
A6: Chlorpropham | B6: 4.536356375 | C6: 1.990579454 | D6: 7.466622131 | E6: Chlorpropham | F6: 4.5 (2 - 7.5)
A7: Mancozeb | B7: 4.029460611 | C7: 2.347090055 | D7: 6.210104776 | E7: Mancozeb | F7: 4 (2.3 - 6.2)
A8: Metiram | B8: 3.753054027 | C8: 1.93101704 | D8: 6.982446141 | E8: Metiram | F8: 3.8 (1.9 - 7)
A9: Maleic hydrazide | B9: 2.214672194 | C9: 1.205135491 | D9: 3.392097069 | E9: Maleic hydrazide | F9: 2.2 (1.2 - 3.4)
A10: Maneb | B10: 2.079243945 | C10: 0.9341989502 | D10: 3.648397385 | E10: Maneb | F10: 2.1 (0.9 - 3.6)
A11: Fluopyram | B11: 2.014792594 | C11: 1.301895977 | D11: 2.856996517 | E11: Fluopyram | F11: 2 (1.3 - 2.9)
A12: Pyrimethanil | B12: 2.009128112 | C12: 1.437709932 | D12: 2.705090729 | E12: Pyrimethanil | F12: 2 (1.4 - 2.7)
A13: Fipronil | B13: 1.093380995 | C13: 0.8219631334 | D13: 1.338949175 | E13: Fipronil | F13: 1.1 (0.8 - 1.3)
A14: Proquinazid | B14: 0.9039511739 | C14: 0.5354000242 | D14: 1.441767633
A15: Thiabendazole | B15: 0.7939426889 | C15: 0.1987007518 | D15: 1.681193692
A16: Folpet | B16: 0.4115729295 | C16: 0.2486232025 | D16: 0.5953261474
A17: Dithianon | B17: 0.3320816769 | C17: 0.1531116209 | D17: 0.5010137228
A18: Boscalid | B18: 0.3320708633 | C18: 0.2228545574 | D18: 0.4497260261
A19: Lufenuron | B19: 0.3232427077 | C19: 0.1841407767 | D19: 0.5260062521
A20: Fenpyrazamine | B20: 0.2835649872 | C20: 0.09817033601 | D20: 0.5845820312
A21: Buprofezin | B21: 0.2683886129 | C21: 0.1437637311 | D21: 0.4190525164
A22: MCPA | B22: 0.2464350166 | C22: 0.02155104341 | D22: 0.7424973035
A23: Thiacloprid | B23: 0.2405701412 | C23: 0.1392028227 | D23: 0.361005991
A24: Oxyfluorfen | B24: 0.2339172932 | C24: 0.1382383398 | D24: 0.351524822
A25: Spinosad | B25: 0.2078792244 | C25: 0.09191216886 | D25: 0.3386181311
A26: Amitrole | B26: 0.1899647404 | C26: 0.1322653664 | D26: 0.2363434566
A27: Topramezone | B27: 0.1424735553 | C27: 0.09919902481 | D27: 0.1772575924
A28: Tetraconazole | B28: 0.1379472695 | C28: 0.08838324574 | D28: 0.2023727994
A29: Fluquinconazole | B29: 0.1337909362 | C29: 0.09341027436 | D29: 0.1652868595
A30: Fluopicolide | B30: 0.1273189423 | C30: 0.08659193818 | D30: 0.1742199342
A31: 2,4-D | B31: 0.1106632334 | C31: 0.01100017833 | D31: 0.2399632016
A32: Thiophanate-methyl | B32: 0.07500906354 | C32: 0.03774180195 | D32: 0.1246993931
A33: Cyflufenamid | B33: 0.05657912432 | C33: 0.03454815394 | D33: 0.08539723312
A34: Meptyldinocap | B34: 0.0545455025 | C34: 0.006362108717 | D34: 0.1191052043
A35: Fenbuconazole | B35: 0.03574579992 | C35: 0.01789508068 | D35: 0.05485466243
A36: Spiromesifen | B36: 0.03232247858 | C36: 0.01845916891 | D36: 0.05902012842
A37: Fenamidone | B37: 0.02951149681 | C37: 0.01434455576 | D37: 0.05171787658
A38: Pymetrozine | B38: 0.02684724158 | C38: 0.01447720456 | D38: 0.03932014227
A39: Myclobutanil | B39: 0.0266882722 | C39: 0.0164846998 | D39: 0.03930035317
A40: Pyrethrins | B40: 0.02498345537 | C40: 0.01265463025 | D40: 0.04374750051
A41: Etofenprox | B41: 0.01926202776 | C41: 0.007686005664 | D41: 0.03159204048
A42: Flubendiamide | B42: 0.01649427895 | C42: 0.01015990548 | D42: 0.02497421183
A43: Benthiavalicarb | B43: 0.01584474208 | C43: 0.003678819545 | D43: 0.03381229296
A44: Clofentezine | B44: 0.01525480595 | C44: 0.003210351189 | D44: 0.0397058089
A45: Dinocap | B45: 0.01355407301 | C45: 0.003062005503 | D45: 0.03468909481
A46: Zoxamide | B46: 0.01111194934 | C46: 0.006605971668 | D46: 0.01691360794
A47: Bixafen | B47: 0.00754036149 | C47: 0.003471110527 | D47: 0.0142710437
A48: Fluxapyroxad | B48: 0.006114484917 | C48: 0.002878899752 | D48: 0.009998030088
A49: Triadimefon | B49: 0.005110919441 | C49: 0.003325161512 | D49: 0.007615516826
A50: Bupirimate | B50: 0.003880033815 | C50: 0.002308483093 | D50: 0.006598292671
A51: Spirodiclofen | B51: 0.003694011025 | C51: 0.001959886203 | D51: 0.006841171841
A52: Flufenacet | B52: 0.003656347844 | C52: 0.002029103698 | D52: 0.005683033152
A53: Metribuzin | B53: 0.003421429822 | C53: 0.00151222203 | D53: 0.006258565136
A54: Amisulbrom | B54: 0.002793696104 | C54: 0.0002190627792 | D54: 0.008154796509
A55: Fluoxastrobin | B55: 0.002372958958 | C55: 0.0008992267452 | D55: 0.004186023899
A56: Propyzamide | B56: 0.002145337261 | C56: 0.0001796449277 | D56: 0.004934453887
A57: Benalaxyl-M | B57: 0.002057531608 | C57: 0.0003029593182 | D57: 0.005937459552
A58: Fenoxycarb | B58: 0.002033105712 | C58: 0.0006513939435 | D58: 0.003407752631
A59: Quizalofop-P-tefuryl | B59: 0.001408395859 | C59: 0.000673696416 | D59: 0.002221852273
A60: Etridiazole | B60: 0.001311271197 | C60: 0.0005436519356 | D60: 0.002198903663
A61: Pyridalyl | B61: 0.001182160715 | C61: 0.0005889279066 | D61: 0.002442627543
A62: Carbaryl | B62: 0.001139817053 | C62: 0.000154893893 | D62: 0.003315713397
A63: Thiamethoxam | B63: 0.0009711596299 | C63: 0.0006476455337 | D63: 0.001385918546
A64: Fuberidazole | B64: 0.0009220257419 | C64: 0.0004395742121 | D64: 0.001651630252
A65: Flutolanil | B65: 0.0008130064352 | C65: 0.0004387847949 | D65: 0.001188435076
A66: Benalaxyl | B66: 0.0007651582847 | C66: 0.00021710517 | D66: 0.002266537845
A67: Azadirachtin | B67: 0.0006513709793 | C67: 0.000321484775 | D67: 0.001113045783 | E67: =IF(B67>1,A67,"") ->  | F67: =IF(B67>1,CONCATENATE(ROUND(B67,1)," ","(",ROUND(C67,1)," ","-"," ",ROUND(D67,1),")"),"") -> 
A68: Pendimethalin | B68: 0.0006148522136 | C68: 0.0004702875324 | D68: 0.0008057435522
A69: Cyproconazole | B69: 0.0005222469596 | C69: 0.0002294409705 | D69: 0.0008702075713
A70: Oxadiazon | B70: 0.0005221474517 | C70: 7.418769011e-06 | D70: 0.002024180159
A71: Aclonifen | B71: 0.0005048280106 | C71: 0.0001725438545 | D71: 0.001132252167
A72: Carbosulfan | B72: 0.0004817769553 | C72: 0.0001834859215 | D72: 0.001297348331
A73: Bromopropylate | B73: 0.0004061091559 | C73: 9.399814491e-05 | D73: 0.0009464851788
A74: Terbuthylazine | B74: 0.0003958621488 | C74: 7.390577065e-05 | D74: 0.0010490206
A75: Quintozene | B75: 0.0003341936533 | C75: 0.0001265817997 | D75: 0.000829793369
A76: Penthiopyrad | B76: 0.0003292093514 | C76: 7.13452543e-05 | D76: 0.0009146021251
A77: Bitertanol | B77: 0.0002469203181 | C77: 8.852104323e-05 | D77: 0.0004685451191
A78: Trifluralin | B78: 0.0002071452233 | C78: 7.188284291e-05 | D78: 0.0004853125546
A79: Vinclozolin | B79: 0.0001685498248 | C79: 3.426464005e-05 | D79: 0.0004374138548
A80: Valifenalate | B80: 0.0001383779556 | C80: 1.450580617e-05 | D80: 0.0004429769479
A81: Anthraquinone | B81: 0.0001162676464 | C81: 5.515808761e-05 | D81: 0.0002645550976
A82: Tolylfluanid | B82: 0.0001110839582 | C82: 7.488332453e-06 | D82: 0.0003990549591
A83: Bromuconazole | B83: 9.049873136e-05 | C83: 2.089816004e-05 | D83: 0.0002288287056
A84: Diethofencarb | B84: 5.010424107e-05 | C84: 1.840222878e-05 | D84: 9.389622737e-05
A85: Fenarimol | B85: 4.76199054e-05 | C85: 2.100336098e-05 | D85: 0.0001019852357
A86: Clethodim | B86: 3.22141131e-05 | C86: 1.487495716e-05 | D86: 7.492013366e-05
A87: Tepraloxydim | B87: 2.425222498e-05 | C87: 4.512407896e-06 | D87: 6.348283422e-05
A88: Heptachlor | B88: 1.369503772e-05 | C88: 0 | D88: 5.82519374e-05
A89: Haloxyfop-P | B89: 1.352820415e-05 | C89: 0 | D89: 9.360004376e-05
A90: Benfluralin | B90: 8.970307607e-06 | C90: 6.829406075e-07 | D90: 2.776946001e-05
A91: Dicloran | B91: 8.93861443e-06 | C91: 1.093250128e-06 | D91: 2.363786522e-05
A92: Quinmerac | B92: 5.876710057e-06 | C92: 2.361629607e-06 | D92: 1.041804528e-05
A93: Carbetamide | B93: 4.47440792e-06 | C93: 2.06252134e-07 | D93: 1.272529865e-05

Sheet utAS_DE (hidden)
A1: Substance name | B1: Mean contribution | C1: Lower bound (%) (p2,5) | D1: Upper bound (%) (p97,5) | E1: Active Substances | F1: % contribution (95% CI)
A2: Bromide ion | B2: 35.38566656 | C2: 24.59677384 | D2: 46.33935814 | E2: =IF(B2>1,A2,"") -> Bromide ion | F2: =IF(B2>1,CONCATENATE(ROUND(B2,1)," ","(",ROUND(C2,1)," ","-"," ",ROUND(D2,1),")"),"") -> 35.4 (24.6 - 46.3)
A3: Ziram | B3: 15.94620754 | C3: 9.261134752 | D3: 28.31888291 | E3: =IF(B3>1,A3,"") -> Ziram | F3: =IF(B3>1,CONCATENATE(ROUND(B3,1)," ","(",ROUND(C3,1)," ","-"," ",ROUND(D3,1),")"),"") -> 15.9 (9.3 - 28.3)
A4: Propineb | B4: 14.47044295 | C4: 8.504448044 | D4: 24.7982535 | E4: Propineb | F4: 14.5 (8.5 - 24.8)
A5: Mancozeb | B5: 4.936238859 | C5: 3.499240869 | D5: 6.498840945 | E5: Mancozeb | F5: 4.9 (3.5 - 6.5)
A6: Thiabendazole | B6: 4.797823403 | C6: 2.263306939 | D6: 7.855655028 | E6: Thiabendazole | F6: 4.8 (2.3 - 7.9)
A7: Cyprodinil | B7: 4.637636402 | C7: 3.353159587 | D7: 5.657228668 | E7: Cyprodinil | F7: 4.6 (3.4 - 5.7)
A8: Metiram | B8: 3.691934587 | C8: 2.382106798 | D8: 5.387703094 | E8: Metiram | F8: 3.7 (2.4 - 5.4)
A9: Pyrimethanil | B9: 3.043551369 | C9: 2.237506845 | D9: 4.306475677 | E9: Pyrimethanil | F9: 3 (2.2 - 4.3)
A10: Fluopyram | B10: 1.857180339 | C10: 1.438213904 | D10: 2.280643865 | E10: Fluopyram | F10: 1.9 (1.4 - 2.3)
A11: Maneb | B11: 1.855351893 | C11: 1.130511173 | D11: 2.922949998 | E11: Maneb | F11: 1.9 (1.1 - 2.9)
A12: Chlorpropham | B12: 1.667581481 | C12: 1.151067047 | D12: 2.15492632 | E12: Chlorpropham | F12: 1.7 (1.2 - 2.2)
A13: Maleic hydrazide | B13: 0.889219604 | C13: 0.5351471679 | D13: 1.239282271
A14: Fipronil | B14: 0.8606065852 | C14: 0.7191700262 | D14: 0.996944184
A15: Dithianon | B15: 0.8560269552 | C15: 0.4845105371 | D15: 1.328614059
A16: 2,4-D | B16: 0.6672349285 | C16: 0.3059869616 | D16: 1.047634107
A17: Thiacloprid | B17: 0.6086319957 | C17: 0.371663035 | D17: 0.8271133047
A18: Proquinazid | B18: 0.5525871995 | C18: 0.2944103594 | D18: 0.9049150197
A19: Boscalid | B19: 0.443482792 | C19: 0.3477640326 | D19: 0.5580234449
A20: Buprofezin | B20: 0.4110640429 | C20: 0.2521241068 | D20: 0.5776621182
A21: Spinosad | B21: 0.2592678659 | C21: 0.168905066 | D21: 0.3649561231
A22: Folpet | B22: 0.2479068315 | C22: 0.1178516776 | D22: 0.3692823207
A23: Lufenuron | B23: 0.2359292316 | C23: 0.164333475 | D23: 0.3292269608
A24: Fenpyrazamine | B24: 0.2214730927 | C24: 0.0835819151 | D24: 0.4838428207
A25: Tetraconazole | B25: 0.2013670185 | C25: 0.1378091694 | D25: 0.272276778
A26: MCPA | B26: 0.1618874011 | C26: 0.01949585334 | D26: 0.5100764231
A27: Amitrole | B27: 0.1557535323 | C27: 0.1330258847 | D27: 0.1813070351
A28: Fluquinconazole | B28: 0.1203785717 | C28: 0.1005567357 | D28: 0.1392379158
A29: Topramezone | B29: 0.1168151493 | C29: 0.09976941351 | D29: 0.1359802763
A30: Fluopicolide | B30: 0.08904512834 | C30: 0.05775798413 | D30: 0.1235440771
A31: Oxyfluorfen | B31: 0.06576502742 | C31: 0.03873864893 | D31: 0.1085983109
A32: Thiophanate-methyl | B32: 0.06459194324 | C32: 0.04020016439 | D32: 0.08733093309
A33: Clofentezine | B33: 0.04678423662 | C33: 0.01756234249 | D33: 0.09436492204
A34: Spiromesifen | B34: 0.04252423057 | C34: 0.0266424245 | D34: 0.06142612025
A35: Etofenprox | B35: 0.04226574672 | C35: 0.02360931961 | D35: 0.06166523723
A36: Myclobutanil | B36: 0.0420626429 | C36: 0.03067611346 | D36: 0.05564954858
A37: Meptyldinocap | B37: 0.03980517023 | C37: 0.01136059578 | D37: 0.08997414669
A38: Fenamidone | B38: 0.03566522326 | C38: 0.0243690083 | D38: 0.05358501025
A39: Cyflufenamid | B39: 0.03487856874 | C39: 0.02120807983 | D39: 0.05021895891
A40: Flubendiamide | B40: 0.02799753371 | C40: 0.01525217713 | D40: 0.04427915017
A41: Pymetrozine | B41: 0.02316870519 | C41: 0.01372068702 | D41: 0.0340942533
A42: Pyrethrins | B42: 0.02307252586 | C42: 0.01369348847 | D42: 0.03563271034
A43: Fenbuconazole | B43: 0.02039820386 | C43: 0.01317814153 | D43: 0.02907873453
A44: Benthiavalicarb | B44: 0.01029077371 | C44: 0.00253968376 | D44: 0.02223797101
A45: Bupirimate | B45: 0.008258826152 | C45: 0.00505501533 | D45: 0.01105528621
A46: Spirodiclofen | B46: 0.008147651827 | C46: 0.004512028976 | D46: 0.01189704217
A47: Dinocap | B47: 0.008022243739 | C47: 0.001624719204 | D47: 0.02116145123
A48: Zoxamide | B48: 0.007123581837 | C48: 0.003484340519 | D48: 0.01180265365
A49: Bixafen | B49: 0.007110981702 | C49: 0.003943428775 | D49: 0.01279494108
A50: Triadimefon | B50: 0.007102699977 | C50: 0.004832012194 | D50: 0.01044297554
A51: Fenoxycarb | B51: 0.0069696496 | C51: 0.003377983112 | D51: 0.01051497591
A52: Fluxapyroxad | B52: 0.006498593245 | C52: 0.003794157727 | D52: 0.009447395777
A53: Propyzamide | B53: 0.005451700843 | C53: 0.00324692515 | D53: 0.008419232721
A54: Metribuzin | B54: 0.002954525358 | C54: 0.001336319746 | D54: 0.005291499599
A55: Flufenacet | B55: 0.001715697672 | C55: 0.001181232254 | D55: 0.00227595355
A56: Thiamethoxam | B56: 0.00158807229 | C56: 0.001210010584 | D56: 0.002027381193
A57: Aclonifen | B57: 0.00155980304 | C57: 0.0007576123419 | D57: 0.002611131533
A58: Carbosulfan | B58: 0.001450684415 | C58: 0.0001694287669 | D58: 0.004097743065
A59: Pyridalyl | B59: 0.001411857335 | C59: 0.000749278136 | D59: 0.002340929001
A60: Terbuthylazine | B60: 0.001326837785 | C60: 0.0003540872801 | D60: 0.003258426747
A61: Benalaxyl-M | B61: 0.001272527399 | C61: 0.0002236357086 | D61: 0.003273770658
A62: Bromopropylate | B62: 0.001258320768 | C62: 0.0003864224496 | D62: 0.002917502563
A63: Pendimethalin | B63: 0.00104276145 | C63: 0.0006990884189 | D63: 0.001373907824
A64: Amisulbrom | B64: 0.001039490432 | C64: 0.0001074517581 | D64: 0.002866602702
A65: Fluoxastrobin | B65: 0.001008998615 | C65: 0.0005810549477 | D65: 0.001674135569
A66: Carbaryl | B66: 0.0009682088324 | C66: 0.0001306163841 | D66: 0.002365637685
A67: Fuberidazole | B67: 0.0009231792101 | C67: 0.0005197849246 | D67: 0.001589286978 | E67: =IF(B67>1,A67,"") ->  | F67: =IF(B67>1,CONCATENATE(ROUND(B67,1)," ","(",ROUND(C67,1)," ","-"," ",ROUND(D67,1),")"),"") -> 
A68: Azadirachtin | B68: 0.0008997538655 | C68: 0.000462901593 | D68: 0.001857154735
A69: Quizalofop-P-tefuryl | B69: 0.000891035938 | C69: 0.0004093150922 | D69: 0.001706683664
A70: Cyproconazole | B70: 0.0008019922825 | C70: 0.0004828750199 | D70: 0.001324273037
A71: Trifluralin | B71: 0.0006895431241 | C71: 0.0001958435563 | D71: 0.001982862495
A72: Penthiopyrad | B72: 0.0006279210403 | C72: 0.0001424057839 | D72: 0.001565490771
A73: Etridiazole | B73: 0.0005341704931 | C73: 0.00025296547 | D73: 0.0009515578269
A74: Quintozene | B74: 0.0005285874099 | C74: 0.0002760649511 | D74: 0.0009380626016
A75: Benalaxyl | B75: 0.0004999612785 | C75: 0.0001426143429 | D75: 0.001360102423
A76: Vinclozolin | B76: 0.0004194969821 | C76: 8.791684065e-05 | D76: 0.0009845441532
A77: Flutolanil | B77: 0.0004052836049 | C77: 0.0002620805384 | D77: 0.0005365018367
A78: Bitertanol | B78: 0.0003230002907 | C78: 0.0001741200519 | D78: 0.0005650715269
A79: Tolylfluanid | B79: 0.0002402712675 | C79: 1.958093125e-05 | D79: 0.0006705160698
A80: Oxadiazon | B80: 0.0002122851516 | C80: 4.322683634e-06 | D80: 0.0007090255526
A81: Fenarimol | B81: 0.000204167163 | C81: 9.548191327e-05 | D81: 0.0004481260303
A82: Tepraloxydim | B82: 0.0001493160091 | C82: 3.538451367e-05 | D82: 0.0004003663261
A83: Anthraquinone | B83: 0.0001423408965 | C83: 7.608060307e-05 | D83: 0.0002787746165
A84: Cyantraniliprole | B84: 0.0001182924616 | C84: 2.812532122e-05 | D84: 0.0003178548745
A85: Haloxyfop-P | B85: 0.0001153630641 | C85: 3.250692919e-05 | D85: 0.0002751469887
A86: Diethofencarb | B86: 0.0001105948077 | C86: 5.767583877e-05 | D86: 0.000198272883
A87: Dicloran | B87: 7.289187452e-05 | C87: 2.078225777e-05 | D87: 0.0001968289801
A88: Valifenalate | B88: 5.582869719e-05 | C88: 4.136458594e-06 | D88: 0.0002069410537
A89: Phoxim | B89: 3.806127097e-05 | C89: 4.957494042e-07 | D89: 0.0001346971222
A90: Bromuconazole | B90: 2.862929914e-05 | C90: 1.263553064e-05 | D90: 5.515736234e-05
A91: Heptachlor | B91: 2.579760963e-05 | C91: 5.278520466e-06 | D91: 8.249861856e-05
A92: Benfluralin | B92: 2.415981991e-05 | C92: 8.040614426e-06 | D92: 6.672813684e-05
A93: Desmedipham | B93: 2.363687938e-05 | C93: 1.850439329e-06 | D93: 0.000120359687
A94: Quinmerac | B94: 1.770087304e-05 | C94: 7.890465839e-06 | D94: 3.224295045e-05
A95: Clethodim | B95: 1.729164234e-05 | C95: 8.156076773e-06 | D95: 3.44490296e-05
A96: Carbetamide | B96: 1.116313592e-05 | C96: 5.297677118e-06 | D96: 2.317087063e-05
A97: Bromoxynil | B97: 7.315986659e-07 | C97: 7.219444353e-08 | D97: 2.093973789e-06

Sheet utAS_DK (hidden)
A1: Substance name | B1: Mean contribution | C1: Lower bound (%) (p2,5) | D1: Upper bound (%) (p97,5) | E1: Active Substances | F1: % contribution (95% CI)
A2: Bromide ion | B2: 41.29730345 | C2: 30.79916325 | D2: 55.00500835 | E2: =IF(B2>1,A2,"") -> Bromide ion | F2: =IF(B2>1,CONCATENATE(ROUND(B2,1)," ","(",ROUND(C2,1)," ","-"," ",ROUND(D2,1),")"),"") -> 41.3 (30.8 - 55)
A3: Thiabendazole | B3: 12.22979294 | C3: 7.139090247 | D3: 17.04002705 | E3: =IF(B3>1,A3,"") -> Thiabendazole | F3: =IF(B3>1,CONCATENATE(ROUND(B3,1)," ","(",ROUND(C3,1)," ","-"," ",ROUND(D3,1),")"),"") -> 12.2 (7.1 - 17)
A4: Ziram | B4: 9.449199632 | C4: 6.494200558 | D4: 13.06210203 | E4: Ziram | F4: 9.4 (6.5 - 13.1)
A5: Propineb | B5: 8.446370862 | C5: 6.153972899 | D5: 10.90034675 | E5: Propineb | F5: 8.4 (6.2 - 10.9)
A6: Mancozeb | B6: 5.771860195 | C6: 3.832304231 | D6: 7.596752668 | E6: Mancozeb | F6: 5.8 (3.8 - 7.6)
A7: Pyrimethanil | B7: 4.806526817 | C7: 2.889790771 | D7: 6.889808034 | E7: Pyrimethanil | F7: 4.8 (2.9 - 6.9)
A8: Chlorpropham | B8: 3.057317585 | C8: 1.273924542 | D8: 5.110089858 | E8: Chlorpropham | F8: 3.1 (1.3 - 5.1)
A9: Metiram | B9: 2.197167662 | C9: 1.667317458 | D9: 2.842664588 | E9: Metiram | F9: 2.2 (1.7 - 2.8)
A10: 2,4-D | B10: 1.68979921 | C10: 0.8875957107 | D10: 2.444383958 | E10: 2,4-D | F10: 1.7 (0.9 - 2.4)
A11: Fluopyram | B11: 1.611492236 | C11: 1.131749078 | D11: 2.210174784 | E11: Fluopyram | F11: 1.6 (1.1 - 2.2)
A12: Cyprodinil | B12: 1.592003653 | C12: 1.257992004 | D12: 1.896901186 | E12: Cyprodinil | F12: 1.6 (1.3 - 1.9)
A13: Maleic hydrazide | B13: 1.301953004 | C13: 0.5402698146 | D13: 2.140037573 | E13: Maleic hydrazide | F13: 1.3 (0.5 - 2.1)
A14: Maneb | B14: 1.279516187 | C14: 0.8253826036 | D14: 1.981882462 | E14: Maneb | F14: 1.3 (0.8 - 2)
A15: Dithianon | B15: 1.15504531 | C15: 0.6561781416 | D15: 1.646531182 | E15: Dithianon | F15: 1.2 (0.7 - 1.6)
A16: Thiacloprid | B16: 0.8942552898 | C16: 0.6881349263 | D16: 1.097630983
A17: Buprofezin | B17: 0.8060803169 | C17: 0.5781413298 | D17: 1.155206363
A18: Fipronil | B18: 0.6902178485 | C18: 0.4473153769 | D18: 0.9570735976
A19: Boscalid | B19: 0.3014979168 | C19: 0.1902341404 | D19: 0.4134750837
A20: Lufenuron | B20: 0.1826282079 | C20: 0.1044139248 | D20: 0.3185826797
A21: Tetraconazole | B21: 0.173178311 | C21: 0.1040710154 | D21: 0.2781161021
A22: Spinosad | B22: 0.1286086493 | C22: 0.08089673267 | D22: 0.1910605079
A23: Amitrole | B23: 0.1131117725 | C23: 0.06713099834 | D23: 0.1680187537
A24: Fluquinconazole | B24: 0.1019911087 | C24: 0.07365106147 | D24: 0.1375395844
A25: Topramezone | B25: 0.08483382936 | C25: 0.05034824876 | D25: 0.1260140653
A26: Etofenprox | B26: 0.07995612383 | C26: 0.05324837201 | D26: 0.1109737861
A27: Myclobutanil | B27: 0.0664486082 | C27: 0.04146703887 | D27: 0.105872938
A28: Fenpyrazamine | B28: 0.05048076222 | C28: 0.02272187326 | D28: 0.103910642
A29: Clofentezine | B29: 0.04914760107 | C29: 0.01525495238 | D29: 0.1157441783
A30: Thiophanate-methyl | B30: 0.04125009684 | C30: 0.0281260876 | D30: 0.05999613194
A31: Pymetrozine | B31: 0.03624235228 | C31: 0.02068806755 | D31: 0.05908160739
A32: Flubendiamide | B32: 0.03160714335 | C32: 0.01786719728 | D32: 0.04951557389
A33: Proquinazid | B33: 0.03018669216 | C33: 0.01639864944 | D33: 0.05056487311
A34: Pyrethrins | B34: 0.0294700774 | C34: 0.0166486693 | D34: 0.04725343985
A35: MCPA | B35: 0.02847468853 | C35: 0.01746024299 | D35: 0.04554580371
A36: Oxyfluorfen | B36: 0.02782563593 | C36: 0.01522463676 | D36: 0.04538104719
A37: Spiromesifen | B37: 0.02510682055 | C37: 0.01393312736 | D37: 0.04071428157
A38: Fenbuconazole | B38: 0.01919343833 | C38: 0.009195342135 | D38: 0.03048649861
A39: Fluopicolide | B39: 0.01328841014 | C39: 0.008233445244 | D39: 0.02046025926
A40: Fenoxycarb | B40: 0.01245829443 | C40: 0.008496965647 | D40: 0.01616371938
A41: Spirodiclofen | B41: 0.01109340845 | C41: 0.008724444276 | D41: 0.01326639798
A42: Fenamidone | B42: 0.01061214286 | C42: 0.005792187788 | D42: 0.01725053143
A43: Fluxapyroxad | B43: 0.008612896198 | C43: 0.005425017837 | D43: 0.01189735471
A44: Bixafen | B44: 0.008497807482 | C44: 0.005099152103 | D44: 0.01275973011
A45: Bupirimate | B45: 0.008467006166 | C45: 0.006069620777 | D45: 0.01097443324
A46: Triadimefon | B46: 0.006764970541 | C46: 0.004475903423 | D46: 0.009671462763
A47: Meptyldinocap | B47: 0.006604728829 | C47: 0.00267278546 | D47: 0.01361698453
A48: Carbosulfan | B48: 0.003817769793 | C48: 0.0002886313418 | D48: 0.01141557581
A49: Etridiazole | B49: 0.002690521216 | C49: 0.001144326954 | D49: 0.005004411361
A50: Cyflufenamid | B50: 0.002642800906 | C50: 0.001648452507 | D50: 0.003804160991
A51: Metribuzin | B51: 0.002402552612 | C51: 0.0007510888259 | D51: 0.00522701736
A52: Terbuthylazine | B52: 0.002380537149 | C52: 0.000393585077 | D52: 0.008922895785
A53: Flufenacet | B53: 0.002118944717 | C53: 0.0009206747777 | D53: 0.003509597849
A54: Folpet | B54: 0.002051082426 | C54: 0.00108408993 | D54: 0.003180903646
A55: Aclonifen | B55: 0.001776648068 | C55: 0.0007199850137 | D55: 0.003021398502
A56: Bromopropylate | B56: 0.001484129777 | C56: 0.0003781619953 | D56: 0.003267834116
A57: Fluoxastrobin | B57: 0.001378671561 | C57: 0.0004342996391 | D57: 0.002594238189
A58: Pendimethalin | B58: 0.00123873524 | C58: 0.001020729042 | D58: 0.001477882475
A59: Thiamethoxam | B59: 0.001176714804 | C59: 0.0008696309778 | D59: 0.001607668257
A60: Cyproconazole | B60: 0.001085366653 | C60: 0.0007369549552 | D60: 0.001431844473
A61: Pyridalyl | B61: 0.0009812136534 | C61: 0.0004536776029 | D61: 0.001821456839
A62: Quizalofop-P-tefuryl | B62: 0.000897134647 | C62: 0.0003092346476 | D62: 0.001539947665
A63: Fuberidazole | B63: 0.0008303153105 | C63: 0.000484959353 | D63: 0.00132730188
A64: Trifluralin | B64: 0.0007813197591 | C64: 0.0002193575961 | D64: 0.001735971218
A65: Bitertanol | B65: 0.0006918178753 | C65: 0.0002702427835 | D65: 0.001351119629
A66: Cyantraniliprole | B66: 0.0006621186526 | C66: 0.0001362261784 | D66: 0.001920558281
A67: Azadirachtin | B67: 0.0006053919599 | C67: 0.0003460204018 | D67: 0.0009182741585 | E67: =IF(B67>1,A67,"") ->  | F67: =IF(B67>1,CONCATENATE(ROUND(B67,1)," ","(",ROUND(C67,1)," ","-"," ",ROUND(D67,1),")"),"") -> 
A68: Flutolanil | B68: 0.0005461678065 | C68: 0.0002775701179 | D68: 0.0009315099693
A69: Propyzamide | B69: 0.0005112235664 | C69: 0.000346253692 | D69: 0.0007083778103
A70: Zoxamide | B70: 0.0004967862867 | C70: 0.0002390319232 | D70: 0.0008979234567
A71: Fenarimol | B71: 0.0004935322777 | C71: 0.0001559940653 | D71: 0.000932930566
A72: Quintozene | B72: 0.0004850165939 | C72: 0.0002086166181 | D72: 0.0009924911989
A73: Penthiopyrad | B73: 0.0003891583211 | C73: 9.166355839e-05 | D73: 0.0008754621226
A74: Oxadiazon | B74: 0.0002883326777 | C74: 4.638500912e-06 | D74: 0.0008857175513
A75: Tolylfluanid | B75: 0.0002685355359 | C75: 2.208080449e-05 | D75: 0.000696165439
A76: Carbaryl | B76: 0.0002432739812 | C76: 7.374116352e-05 | D76: 0.0006405474516
A77: Tepraloxydim | B77: 0.000187231741 | C77: 4.604082362e-05 | D77: 0.0004507284635
A78: Anthraquinone | B78: 0.0001440487327 | C78: 7.722529943e-05 | D78: 0.0002541239388
A79: Haloxyfop-P | B79: 0.0001437504235 | C79: 1.922744933e-05 | D79: 0.0003952934396
A80: Diethofencarb | B80: 0.0001052046142 | C80: 4.59468201e-05 | D80: 0.0002127794041
A81: Vinclozolin | B81: 6.366743709e-05 | C81: 1.470104459e-05 | D81: 0.0001695086498
A82: Dicloran | B82: 5.971091939e-05 | C82: 2.515132223e-05 | D82: 0.0001163488374
A83: Benalaxyl-M | B83: 5.890401599e-05 | C83: 2.830050127e-05 | D83: 0.0001199625717
A84: Benthiavalicarb | B84: 4.890788334e-05 | C84: 1.302330639e-05 | D84: 0.0001054864778
A85: Valifenalate | B85: 4.635395486e-05 | C85: 4.02187059e-06 | D85: 0.0001547601359
A86: Bromuconazole | B86: 4.281511937e-05 | C86: 1.191045656e-05 | D86: 0.0001112232743
A87: Benalaxyl | B87: 2.840654854e-05 | C87: 1.667901646e-05 | D87: 4.510891245e-05
A88: Dinocap | B88: 2.583232855e-05 | C88: 4.921227648e-06 | D88: 7.745023988e-05
A89: Phoxim | B89: 2.185102337e-05 | C89: 1.745224821e-07 | D89: 8.099502138e-05
A90: Quinmerac | B90: 1.898862791e-05 | C90: 7.95681854e-06 | D90: 3.324247674e-05
A91: Clethodim | B91: 1.630843502e-05 | C91: 5.856656169e-06 | D91: 4.013022187e-05
A92: Chlordane | B92: 1.280463929e-05 | C92: 0 | D92: 7.270696324e-05
A93: Heptachlor | B93: 8.189415166e-06 | C93: 6.721084013e-07 | D93: 3.01147727e-05
A94: Amisulbrom | B94: 6.772576052e-06 | C94: 5.47998862e-07 | D94: 1.876559393e-05
A95: Bromoxynil | B95: 1.32850444e-06 | C95: 0 | D95: 5.102652612e-06
A96: Desmedipham | B96: 6.611079717e-07 | C96: 0 | D96: 3.389464598e-06
A97: Benfluralin | B97: 5.111826102e-07 | C97: 3.830759497e-08 | D97: 1.907778078e-06
A98: Carbetamide | B98: 2.402467885e-07 | C98: 1.716367137e-08 | D98: 7.57773137e-07

Sheet utAS_FR (hidden)
A1: Substance name | B1: Mean contribution | C1: Lower bound (%) (p2,5) | D1: Upper bound (%) (p97,5) | E1: Active Substances | F1: % contribution (95% CI)
A2: Bromide ion | B2: 41.69049626 | C2: 26.85140966 | D2: 53.7995688 | E2: =IF(B2>1,A2,"") -> Bromide ion | F2: =IF(B2>1,CONCATENATE(ROUND(B2,1)," ","(",ROUND(C2,1)," ","-"," ",ROUND(D2,1),")"),"") -> 41.7 (26.9 - 53.8)
A3: Thiabendazole | B3: 15.88529667 | C3: 5.616965016 | D3: 28.19710706 | E3: =IF(B3>1,A3,"") -> Thiabendazole | F3: =IF(B3>1,CONCATENATE(ROUND(B3,1)," ","(",ROUND(C3,1)," ","-"," ",ROUND(D3,1),")"),"") -> 15.9 (5.6 - 28.2)
A4: Mancozeb | B4: 8.185432478 | C4: 4.817866292 | D4: 11.40375205 | E4: Mancozeb | F4: 8.2 (4.8 - 11.4)
A5: Pyrimethanil | B5: 6.074967769 | C5: 2.382352817 | D5: 10.32360759 | E5: Pyrimethanil | F5: 6.1 (2.4 - 10.3)
A6: Propineb | B6: 5.944522763 | C6: 3.865085407 | D6: 8.531393271 | E6: Propineb | F6: 5.9 (3.9 - 8.5)
A7: Chlorpropham | B7: 4.69868648 | C7: 1.860984034 | D7: 8.256583776 | E7: Chlorpropham | F7: 4.7 (1.9 - 8.3)
A8: Ziram | B8: 4.189678285 | C8: 2.141920776 | D8: 6.167463024 | E8: Ziram | F8: 4.2 (2.1 - 6.2)
A9: Maleic hydrazide | B9: 2.748805174 | C9: 1.602921297 | D9: 4.675590899 | E9: Maleic hydrazide | F9: 2.7 (1.6 - 4.7)
A10: 2,4-D | B10: 2.286423388 | C10: 0.7556892924 | D10: 4.065731773 | E10: 2,4-D | F10: 2.3 (0.8 - 4.1)
A11: Cyprodinil | B11: 1.274514765 | C11: 0.911066325 | D11: 2.12332243 | E11: Cyprodinil | F11: 1.3 (0.9 - 2.1)
A12: Metiram | B12: 1.143980389 | C12: 0.6248394764 | D12: 1.898003095 | E12: Metiram | F12: 1.1 (0.6 - 1.9)
A13: Fluopyram | B13: 1.119017764 | C13: 0.6424731303 | D13: 1.852100055 | E13: Fluopyram | F13: 1.1 (0.6 - 1.9)
A14: Maneb | B14: 0.7847845217 | C14: 0.3283174514 | D14: 1.731951057
A15: Fipronil | B15: 0.6594671587 | C15: 0.4705352305 | D15: 0.9017183445
A16: Buprofezin | B16: 0.5827582718 | C16: 0.3934834836 | D16: 0.8407772533
A17: Thiacloprid | B17: 0.4601897166 | C17: 0.222747316 | D17: 0.7504386518
A18: Dithianon | B18: 0.3229654041 | C18: 0.1423477688 | D18: 0.5931397656
A19: Boscalid | B19: 0.2956267353 | C19: 0.1854868009 | D19: 0.5021488292
A20: Spinosad | B20: 0.2506099659 | C20: 0.105366064 | D20: 0.8446571577
A21: Lufenuron | B21: 0.2392005827 | C21: 0.1043797869 | D21: 0.4675348786
A22: Oxyfluorfen | B22: 0.1857399833 | C22: 0.02627469718 | D22: 0.3860176844
A23: Tetraconazole | B23: 0.1291851845 | C23: 0.06203201209 | D23: 0.2470355704
A24: Etofenprox | B24: 0.0864240292 | C24: 0.04999330438 | D24: 0.1386155045
A25: Amitrole | B25: 0.08630105861 | C25: 0.05152944795 | D25: 0.1241427172
A26: Fluquinconazole | B26: 0.06801316355 | C26: 0.04246793059 | D26: 0.08950969163
A27: Fenpyrazamine | B27: 0.06529998402 | C27: 0.02714036159 | D27: 0.1421758808
A28: Topramezone | B28: 0.06472579395 | C28: 0.03864708596 | D28: 0.0931070379
A29: Spiromesifen | B29: 0.05398950157 | C29: 0.03502864582 | D29: 0.08151342602
A30: Thiophanate-methyl | B30: 0.04889251549 | C30: 0.03184337497 | D30: 0.0665231763
A31: Clofentezine | B31: 0.04651067583 | C31: 0.02070077649 | D31: 0.09219939549
A32: Myclobutanil | B32: 0.04169360233 | C32: 0.02947603951 | D32: 0.06063461345
A33: MCPA | B33: 0.03692020027 | C33: 0.02081410277 | D33: 0.05744156006
A34: Flubendiamide | B34: 0.02882301085 | C34: 0.01894775517 | D34: 0.04164979992
A35: Proquinazid | B35: 0.02739143391 | C35: 0.01462075281 | D35: 0.0578388649
A36: Pyrethrins | B36: 0.02445111433 | C36: 0.01753328029 | D36: 0.03602712864
A37: Pymetrozine | B37: 0.02336839335 | C37: 0.01486537275 | D37: 0.03366046874
A38: Fluopicolide | B38: 0.01806564039 | C38: 0.006780882794 | D38: 0.04444036277
A39: Fenamidone | B39: 0.01493472493 | C39: 0.009436693652 | D39: 0.02448074888
A40: Meptyldinocap | B40: 0.01064360446 | C40: 0.002222523074 | D40: 0.03440865723
A41: Fenbuconazole | B41: 0.01010252209 | C41: 0.003599020876 | D41: 0.02689543866
A42: Bupirimate | B42: 0.00755484254 | C42: 0.003523732879 | D42: 0.01434403259
A43: Triadimefon | B43: 0.006823009306 | C43: 0.005058497845 | D43: 0.009832017458
A44: Bixafen | B44: 0.006532899039 | C44: 0.003692317073 | D44: 0.01121513236
A45: Spirodiclofen | B45: 0.006364286446 | C45: 0.003621744084 | D45: 0.01247528599
A46: Folpet | B46: 0.005932579766 | C46: 0.002173368928 | D46: 0.0115541637
A47: Fluxapyroxad | B47: 0.004987581021 | C47: 0.002753500898 | D47: 0.008093479364
A48: Fenoxycarb | B48: 0.004790338385 | C48: 0.001229479465 | D48: 0.00791391865
A49: Metribuzin | B49: 0.00478871054 | C49: 0.001887422205 | D49: 0.008464266454
A50: Carbosulfan | B50: 0.004766892713 | C50: 0.0003155944755 | D50: 0.0164625769
A51: Flufenacet | B51: 0.00453122265 | C51: 0.002817723994 | D51: 0.007177405567
A52: Terbuthylazine | B52: 0.00352962375 | C52: 0.0006573969045 | D52: 0.009689977604
A53: Fluoxastrobin | B53: 0.002968718608 | C53: 0.001427107262 | D53: 0.005938489242
A54: Cyflufenamid | B54: 0.002747358445 | C54: 0.001534305224 | D54: 0.005132428373
A55: Aclonifen | B55: 0.002591941143 | C55: 0.0005728232944 | D55: 0.005103944721
A56: Quizalofop-P-tefuryl | B56: 0.002237574084 | C56: 0.000910485052 | D56: 0.005116635209
A57: Azadirachtin | B57: 0.001612649817 | C57: 0.0004239120826 | D57: 0.008713363367
A58: Pyridalyl | B58: 0.001184988118 | C58: 0.00071478761 | D58: 0.002071461319
A59: Pendimethalin | B59: 0.001121785921 | C59: 0.0006427752464 | D59: 0.001735343046
A60: Fuberidazole | B60: 0.00107686117 | C60: 0.0006519495984 | D60: 0.001749636414
A61: Cyproconazole | B61: 0.001062405752 | C61: 0.0006556649227 | D61: 0.001753706784
A62: Flutolanil | B62: 0.001033435115 | C62: 0.0006037468372 | D62: 0.001745876746
A63: Propyzamide | B63: 0.001025496052 | C63: 0.0004864747537 | D63: 0.001963736274
A64: Trifluralin | B64: 0.001022609214 | C64: 0.0001587526668 | D64: 0.002668753272
A65: Thiamethoxam | B65: 0.001002740509 | C65: 0.0007349924823 | D65: 0.001577917098
A66: Etridiazole | B66: 0.0009684963613 | C66: 3.582820394e-05 | D66: 0.0018143205
A67: Quintozene | B67: 0.000951102931 | C67: 7.264392375e-05 | D67: 0.002231058523 | E67: =IF(B67>1,A67,"") ->  | F67: =IF(B67>1,CONCATENATE(ROUND(B67,1)," ","(",ROUND(C67,1)," ","-"," ",ROUND(D67,1),")"),"") -> 
A68: Haloxyfop-P | B68: 0.0008204751436 | C68: 0.0001115445403 | D68: 0.002009164768
A69: Penthiopyrad | B69: 0.0008073897886 | C69: 0.000191234958 | D69: 0.001756676129
A70: Bromopropylate | B70: 0.0007323630842 | C70: 0.0003514518415 | D70: 0.001412578334
A71: Oxadiazon | B71: 0.0006355849436 | C71: 9.370874074e-06 | D71: 0.00201407977
A72: Carbaryl | B72: 0.0005840022624 | C72: 7.346176916e-05 | D72: 0.001820382908
A73: Zoxamide | B73: 0.0005801704144 | C73: 0.0002666987253 | D73: 0.001058197461
A74: Fenarimol | B74: 0.0005716737928 | C74: 0.0002148550996 | D74: 0.001275266472
A75: Phoxim | B75: 0.0005168544285 | C75: 7.253406829e-06 | D75: 0.002132573102
A76: Cyantraniliprole | B76: 0.0004461731141 | C76: 0 | D76: 0.001521139551
A77: Dicloran | B77: 0.0002796755028 | C77: 2.493204157e-05 | D77: 0.0009693751773
A78: Bitertanol | B78: 0.0002767308 | C78: 8.095592882e-05 | D78: 0.0006562175272
A79: Tepraloxydim | B79: 0.000223902456 | C79: 3.733455719e-05 | D79: 0.0006290306296
A80: Benthiavalicarb | B80: 0.0002099087149 | C80: 2.417393382e-05 | D80: 0.0005766508256
A81: Tolylfluanid | B81: 0.0001971363583 | C81: 2.227559937e-05 | D81: 0.0005781531106
A82: Diethofencarb | B82: 0.0001524494388 | C82: 6.786925645e-05 | D82: 0.0002614172046
A83: Vinclozolin | B83: 0.0001495705367 | C83: 3.171691872e-05 | D83: 0.0004137451581
A84: Anthraquinone | B84: 0.0001471376386 | C84: 8.49499966e-05 | D84: 0.0002765031841
A85: Dinocap | B85: 0.0001207055293 | C85: 9.73764167e-06 | D85: 0.0004448526542
A86: Benalaxyl-M | B86: 0.0001172588624 | C86: 6.47088741e-05 | D86: 0.0002008042529
A87: Heptachlor | B87: 7.081048966e-05 | C87: 0 | D87: 0.0002747168941
A88: Benalaxyl | B88: 5.697334478e-05 | C88: 3.756770532e-05 | D88: 8.407721643e-05
A89: Bromuconazole | B89: 4.288129235e-05 | C89: 3.707810657e-06 | D89: 0.0001025223398
A90: Clethodim | B90: 3.060980551e-05 | C90: 1.307883731e-05 | D90: 8.009628148e-05
A91: Amisulbrom | B91: 2.31095305e-05 | C91: 5.766934738e-07 | D91: 7.900468115e-05
A92: Valifenalate | B92: 2.066236046e-05 | C92: 3.941404403e-07 | D92: 8.55984316e-05
A93: Bromoxynil | B93: 8.081525488e-06 | C93: 0 | D93: 3.534207123e-05
A94: Quinmerac | B94: 5.450190862e-06 | C94: 1.899012696e-06 | D94: 1.201412737e-05
A95: Benfluralin | B95: 2.539108686e-06 | C95: 1.011589896e-07 | D95: 8.398406378e-06
A96: Carbetamide | B96: 1.132945217e-06 | C96: 7.965977832e-08 | D96: 3.794281442e-06

Sheet utAS_IT (hidden)
A1: Substance name | B1: Mean contribution | C1: Lower bound (%) (p2,5) | D1: Upper bound (%) (p97,5) | E1: Active Substances | F1: % contribution (95% CI)
A2: Bromide ion | B2: 56.92255917 | C2: 43.83741641 | D2: 68.08684376 | E2: =IF(B2>1,A2,"") -> Bromide ion | F2: =IF(B2>1,CONCATENATE(ROUND(B2,1)," ","(",ROUND(C2,1)," ","-"," ",ROUND(D2,1),")"),"") -> 56.9 (43.8 - 68.1)
A3: Propineb | B3: 9.791129092 | C3: 4.839165571 | D3: 17.82040548 | E3: =IF(B3>1,A3,"") -> Propineb | F3: =IF(B3>1,CONCATENATE(ROUND(B3,1)," ","(",ROUND(C3,1)," ","-"," ",ROUND(D3,1),")"),"") -> 9.8 (4.8 - 17.8)
A4: Ziram | B4: 8.700123311 | C4: 3.220404882 | D4: 20.76167509 | E4: Ziram | F4: 8.7 (3.2 - 20.8)
A5: Mancozeb | B5: 3.541327064 | C5: 2.270177704 | D5: 5.107802033 | E5: Mancozeb | F5: 3.5 (2.3 - 5.1)
A6: Chlorpropham | B6: 2.930560931 | C6: 1.79374808 | D6: 4.421593165 | E6: Chlorpropham | F6: 2.9 (1.8 - 4.4)
A7: Cyprodinil | B7: 2.790711221 | C7: 1.527275646 | D7: 3.880165397 | E7: Cyprodinil | F7: 2.8 (1.5 - 3.9)
A8: Thiabendazole | B8: 2.464757518 | C8: 0.6213392349 | D8: 4.910517483 | E8: Thiabendazole | F8: 2.5 (0.6 - 4.9)
A9: Metiram | B9: 2.436954838 | C9: 1.505228499 | D9: 4.102579802 | E9: Metiram | F9: 2.4 (1.5 - 4.1)
A10: Pyrimethanil | B10: 1.894007931 | C10: 1.225783649 | D10: 2.585603648 | E10: Pyrimethanil | F10: 1.9 (1.2 - 2.6)
A11: Maneb | B11: 1.309105768 | C11: 0.5129169065 | D11: 2.728600729 | E11: Maneb | F11: 1.3 (0.5 - 2.7)
A12: Maleic hydrazide | B12: 1.180196883 | C12: 0.7000199051 | D12: 1.691023056 | E12: Maleic hydrazide | F12: 1.2 (0.7 - 1.7)
A13: Fluopyram | B13: 0.9467202393 | C13: 0.7617661347 | D13: 1.129703895
A14: Oxyfluorfen | B14: 0.7178726056 | C14: 0.4397550969 | D14: 1.072566179
A15: Fipronil | B15: 0.577212149 | C15: 0.3959357882 | D15: 0.7671982418
A16: 2,4-D | B16: 0.4272949904 | C16: 0.1350231193 | D16: 0.8347547149
A17: Proquinazid | B17: 0.3873733621 | C17: 0.1589622068 | D17: 0.7437127663
A18: Spinosad | B18: 0.3634745365 | C18: 0.1855059305 | D18: 0.6218788844
A19: Boscalid | B19: 0.3512542049 | C19: 0.262871385 | D19: 0.4777737897
A20: Thiacloprid | B20: 0.2924845814 | C20: 0.2040329508 | D20: 0.3654661974
A21: Buprofezin | B21: 0.2921467321 | C21: 0.1796273443 | D21: 0.4036139119
A22: Dithianon | B22: 0.2302746884 | C22: 0.1395344134 | D22: 0.3432255633
A23: Lufenuron | B23: 0.1841938425 | C23: 0.1019710435 | D23: 0.2698481556
A24: Folpet | B24: 0.1775541981 | C24: 0.06445896802 | D24: 0.3202293237
A25: Fenpyrazamine | B25: 0.1374691275 | C25: 0.04279784789 | D25: 0.3117761918
A26: MCPA | B26: 0.1262617644 | C26: 0.01828976846 | D26: 0.4623722979
A27: Amitrole | B27: 0.09971853451 | C27: 0.0645285992 | D27: 0.1284857041
A28: Tetraconazole | B28: 0.08074383896 | C28: 0.05309179854 | D28: 0.1150455644
A29: Topramezone | B29: 0.07478890088 | C29: 0.0483964494 | D29: 0.09636427807
A30: Fluquinconazole | B30: 0.07260327146 | C30: 0.04817589569 | D30: 0.09234788941
A31: Fluopicolide | B31: 0.07158814975 | C31: 0.04337553574 | D31: 0.1136026258
A32: Thiophanate-methyl | B32: 0.06313675081 | C32: 0.0440144836 | D32: 0.07900725582
A33: Spiromesifen | B33: 0.04212752923 | C33: 0.02897786313 | D33: 0.0606145706
A34: Pyrethrins | B34: 0.02932996239 | C34: 0.01804496642 | D34: 0.04343004193
A35: Etofenprox | B35: 0.02838333632 | C35: 0.01285923927 | D35: 0.04961458879
A36: Fenamidone | B36: 0.02599955422 | C36: 0.01553510915 | D36: 0.03868425915
A37: Meptyldinocap | B37: 0.02448370876 | C37: 0.003658589421 | D37: 0.0575975281
A38: Pymetrozine | B38: 0.02444888404 | C38: 0.01407202459 | D38: 0.03602909189
A39: Cyflufenamid | B39: 0.02393522543 | C39: 0.01176670594 | D39: 0.03676176761
A40: Myclobutanil | B40: 0.02044315746 | C40: 0.01439711424 | D40: 0.02799463024
A41: Clofentezine | B41: 0.02042940723 | C41: 0.01057834447 | D41: 0.03567770011
A42: Flubendiamide | B42: 0.01738273692 | C42: 0.01201576577 | D42: 0.02408432951
A43: Fenbuconazole | B43: 0.01626569975 | C43: 0.007423832071 | D43: 0.02987616311
A44: Bixafen | B44: 0.009589774365 | C44: 0.005959437237 | D44: 0.01589154573
A45: Benthiavalicarb | B45: 0.006936134678 | C45: 0.001441906803 | D45: 0.01774466994
A46: Fluxapyroxad | B46: 0.006932564626 | C46: 0.004295974069 | D46: 0.01102689191
A47: Dinocap | B47: 0.005501449717 | C47: 0.0009372502654 | D47: 0.01570038
A48: Metribuzin | B48: 0.005331230148 | C48: 0.002464356087 | D48: 0.00906757564
A49: Triadimefon | B49: 0.005232513617 | C49: 0.003650685187 | D49: 0.007134218331
A50: Zoxamide | B50: 0.004810124484 | C50: 0.001757438032 | D50: 0.008947209717
A51: Bupirimate | B51: 0.004796660542 | C51: 0.002778007445 | D51: 0.006554977467
A52: Spirodiclofen | B52: 0.004554783427 | C52: 0.002564545945 | D52: 0.008026865906
A53: Propyzamide | B53: 0.004347348219 | C53: 0.001949196199 | D53: 0.007957396507
A54: Quintozene | B54: 0.003244734736 | C54: 0.001232138571 | D54: 0.006234177424
A55: Aclonifen | B55: 0.00242425849 | C55: 0.00110156617 | D55: 0.004786209133
A56: Azadirachtin | B56: 0.002404702987 | C56: 0.0005368285199 | D56: 0.006641829837
A57: Fenoxycarb | B57: 0.00227336314 | C57: 0.001197827129 | D57: 0.003306899285
A58: Terbuthylazine | B58: 0.00223214118 | C58: 0.0007219845777 | D58: 0.00450478896
A59: Pyridalyl | B59: 0.002130435644 | C59: 0.001301258869 | D59: 0.003429243351
A60: Flufenacet | B60: 0.002055686599 | C60: 0.001328841592 | D60: 0.00275391297
A61: Carbosulfan | B61: 0.001614708368 | C61: 0.0002574021102 | D61: 0.00385545439
A62: Fuberidazole | B62: 0.001582198409 | C62: 0.001014269779 | D62: 0.002299373509
A63: Quizalofop-P-tefuryl | B63: 0.001574478385 | C63: 0.0004400619495 | D63: 0.004918663478
A64: Thiamethoxam | B64: 0.001280595172 | C64: 0.000907480353 | D64: 0.001687136426
A65: Fluoxastrobin | B65: 0.001256529025 | C65: 0.0006215002865 | D65: 0.002546943242
A66: Benalaxyl-M | B66: 0.0009019045344 | C66: 0.0001646780825 | D66: 0.0023431173
A67: Pendimethalin | B67: 0.0008569264928 | C67: 0.0006129482733 | D67: 0.001274306985 | E67: =IF(B67>1,A67,"") ->  | F67: =IF(B67>1,CONCATENATE(ROUND(B67,1)," ","(",ROUND(C67,1)," ","-"," ",ROUND(D67,1),")"),"") -> 
A68: Trifluralin | B68: 0.0008144570441 | C68: 0.0001881363733 | D68: 0.002640516842
A69: Penthiopyrad | B69: 0.0005458927927 | C69: 0.0001260321623 | D69: 0.001181819187
A70: Carbaryl | B70: 0.0005316667415 | C70: 9.183412331e-05 | D70: 0.001425027604
A71: Cyproconazole | B71: 0.0004969499088 | C71: 0.0002709586876 | D71: 0.0007178393452
A72: Flutolanil | B72: 0.000451613106 | C72: 0.0002802335386 | D72: 0.0006480600697
A73: Bromopropylate | B73: 0.000422204873 | C73: 0.0001165143781 | D73: 0.001014525825
A74: Heptachlor | B74: 0.0004204438595 | C74: 7.114532889e-05 | D74: 0.001223447525
A75: Amisulbrom | B75: 0.0003981636792 | C75: 3.413027846e-05 | D75: 0.001281495129
A76: Benalaxyl | B76: 0.0003721790954 | C76: 0.0001057901296 | D76: 0.001145916279
A77: Vinclozolin | B77: 0.0003582035683 | C77: 8.804392656e-05 | D77: 0.0008602193829
A78: Dicloran | B78: 0.000329704283 | C78: 7.341629357e-05 | D78: 0.0006961166056
A79: Fenarimol | B79: 0.0002814475774 | C79: 0.0001218485832 | D79: 0.0004577790351
A80: Oxadiazon | B80: 0.0002606732141 | C80: 4.393414937e-06 | D80: 0.0008153408613
A81: Phoxim | B81: 0.0001984226513 | C81: 2.781652354e-06 | D81: 0.0008377774222
A82: Anthraquinone | B82: 0.000193855158 | C82: 0.0001188330234 | D82: 0.0003707691762
A83: Tepraloxydim | B83: 0.000185329032 | C83: 2.769517834e-05 | D83: 0.0006912824883
A84: Bitertanol | B84: 0.0001641284543 | C84: 5.802320017e-05 | D84: 0.0003201346999
A85: Bromuconazole | B85: 0.0001464349447 | C85: 6.157218735e-05 | D85: 0.0002707758499
A86: Tolylfluanid | B86: 0.0001424557709 | C86: 8.785640869e-06 | D86: 0.0004067784357
A87: Diethofencarb | B87: 0.0001321310274 | C87: 7.358171106e-05 | D87: 0.0002001877778
A88: Cyantraniliprole | B88: 0.0001314426232 | C88: 1.720763083e-05 | D88: 0.0003930554003
A89: Desmedipham | B89: 0.000131126057 | C89: 1.702596971e-05 | D89: 0.0004269237833
A90: Etridiazole | B90: 6.617745379e-05 | C90: 1.658614596e-05 | D90: 0.0001356905479
A91: Haloxyfop-P | B91: 6.124494343e-05 | C91: 1.723957062e-05 | D91: 0.0001679491031
A92: Benfluralin | B92: 1.916309892e-05 | C92: 6.33990966e-06 | D92: 5.259200984e-05
A93: Valifenalate | B93: 1.730339087e-05 | C93: 1.091928523e-06 | D93: 7.440190473e-05
A94: Clethodim | B94: 1.703359505e-05 | C94: 7.629490016e-06 | D94: 3.995977894e-05
A95: Carbetamide | B95: 9.158212617e-06 | C95: 3.091627255e-06 | D95: 2.333876779e-05
A96: Quinmerac | B96: 6.344520389e-06 | C96: 2.924076153e-06 | D96: 1.360028756e-05

Sheet utAS_NL2 (hidden)
A1: Substance name | B1: Mean contribution | C1: Lower bound (%) (p2,5) | D1: Upper bound (%) (p97,5) | E1: Active Substances | F1: % contribution (95% CI)
A2: Bromide ion | B2: 31.55483737 | C2: 15.85132685 | D2: 46.14716725 | E2: =IF(B2>1,A2,"") -> Bromide ion | F2: =IF(B2>1,CONCATENATE(ROUND(B2,1)," ","(",ROUND(C2,1)," ","-"," ",ROUND(D2,1),")"),"") -> 31.6 (15.9 - 46.1)
A3: Thiabendazole | B3: 20.96092522 | C3: 7.725085071 | D3: 38.42845581 | E3: =IF(B3>1,A3,"") -> Thiabendazole | F3: =IF(B3>1,CONCATENATE(ROUND(B3,1)," ","(",ROUND(C3,1)," ","-"," ",ROUND(D3,1),")"),"") -> 21 (7.7 - 38.4)
A4: Mancozeb | B4: 8.191934899 | C4: 4.265213042 | D4: 14.11904117 | E4: Mancozeb | F4: 8.2 (4.3 - 14.1)
A5: Pyrimethanil | B5: 7.990980434 | C5: 3.44369792 | D5: 14.008046 | E5: Pyrimethanil | F5: 8 (3.4 - 14)
A6: Ziram | B6: 7.757671453 | C6: 2.39929845 | D6: 12.82722804 | E6: Ziram | F6: 7.8 (2.4 - 12.8)
A7: Propineb | B7: 6.029442289 | C7: 1.589113501 | D7: 9.930238028 | E7: Propineb | F7: 6 (1.6 - 9.9)
A8: Chlorpropham | B8: 3.050123125 | C8: 0.9586777757 | D8: 6.689948287 | E8: Chlorpropham | F8: 3.1 (1 - 6.7)
A9: 2,4-D | B9: 2.987842423 | C9: 0.9683017031 | D9: 5.668572499 | E9: 2,4-D | F9: 3 (1 - 5.7)
A10: Metiram | B10: 1.660125947 | C10: 0.485251727 | D10: 2.716661116 | E10: Metiram | F10: 1.7 (0.5 - 2.7)
A11: Maleic hydrazide | B11: 1.59082962 | C11: 0.5978721245 | D11: 2.876473607 | E11: Maleic hydrazide | F11: 1.6 (0.6 - 2.9)
A12: Buprofezin | B12: 1.254476373 | C12: 0.366246076 | D12: 2.291765211 | E12: Buprofezin | F12: 1.3 (0.4 - 2.3)
A13: Cyprodinil | B13: 1.095581745 | C13: 0.2937139438 | D13: 1.915022397 | E13: Cyprodinil | F13: 1.1 (0.3 - 1.9)
A14: Maneb | B14: 1.054441796 | C14: 0.3765634904 | D14: 2.397539418 | E14: Maneb | F14: 1.1 (0.4 - 2.4)
A15: Fluopyram | B15: 0.9365770406 | C15: 0.185461361 | D15: 1.766236958
A16: Dithianon | B16: 0.8460525577 | C16: 0.2296988724 | D16: 1.827987536
A17: Thiacloprid | B17: 0.6757390939 | C17: 0.2230034777 | D17: 1.181915286
A18: Fipronil | B18: 0.6321504593 | C18: 0.2180460631 | D18: 1.134393554
A19: Boscalid | B19: 0.35433162 | C19: 0.1047725913 | D19: 0.6058018453
A20: Spinosad | B20: 0.2006690536 | C20: 0.05467765263 | D20: 0.5845433771
A21: Lufenuron | B21: 0.170178848 | C21: 0.04933738742 | D21: 0.3562665052
A22: Etofenprox | B22: 0.1164310409 | C22: 0.0725421711 | D22: 0.1821830174
A23: Oxyfluorfen | B23: 0.1007816755 | C23: 0.03147485828 | D23: 0.1960566759
A24: Amitrole | B24: 0.09553796891 | C24: 0.01526614182 | D24: 0.2012108707
A25: Tetraconazole | B25: 0.09497399038 | C25: 0.01049413277 | D25: 0.2032305145
A26: Fluquinconazole | B26: 0.08679071031 | C26: 0.02109719071 | D26: 0.1566178727
A27: Myclobutanil | B27: 0.08370639745 | C27: 0.01533899971 | D27: 0.1815051683
A28: Topramezone | B28: 0.07165347668 | C28: 0.01144960636 | D28: 0.150908153
A29: Clofentezine | B29: 0.04366704664 | C29: 0.01049503435 | D29: 0.1123678706
A30: MCPA | B30: 0.03755822555 | C30: 0.02046859851 | D30: 0.06342593734
A31: Thiophanate-methyl | B31: 0.0374958036 | C31: 0.01258740345 | D31: 0.06318048537
A32: Fenpyrazamine | B32: 0.02853447489 | C32: 0.000235247689 | D32: 0.06926814842
A33: Pyrethrins | B33: 0.02499215619 | C33: 0.01610470164 | D33: 0.04052821602
A34: Flubendiamide | B34: 0.02429632573 | C34: 0.009818465578 | D34: 0.04607680121
A35: Proquinazid | B35: 0.02299332077 | C35: 0.003067598722 | D35: 0.05111427254
A36: Fluopicolide | B36: 0.01418267487 | C36: 0.003813601718 | D36: 0.04005532881
A37: Fenbuconazole | B37: 0.01219200397 | C37: 0.00717457468 | D37: 0.01874524417
A38: Spirodiclofen | B38: 0.01181955615 | C38: 0.0034703219 | D38: 0.02085508455
A39: Fenoxycarb | B39: 0.01097095673 | C39: 0.002882661921 | D39: 0.01973851358
A40: Spiromesifen | B40: 0.01016224109 | C40: 0.002127916116 | D40: 0.02252411979
A41: Fenamidone | B41: 0.006966660683 | C41: 0.002209906615 | D41: 0.01300685863
A42: Carbosulfan | B42: 0.006225232599 | C42: 0.0001939868845 | D42: 0.02254504476
A43: Bupirimate | B43: 0.005611938371 | C43: 0.001523812491 | D43: 0.01167212613
A44: Pymetrozine | B44: 0.005586754246 | C44: 0.00111191131 | D44: 0.01297935939
A45: Bixafen | B45: 0.005505271276 | C45: 0.00296725773 | D45: 0.009583893417
A46: Meptyldinocap | B46: 0.005383380264 | C46: 8.057705799e-07 | D46: 0.0164265117
A47: Fluxapyroxad | B47: 0.005221725576 | C47: 0.002708453515 | D47: 0.008984664644
A48: Terbuthylazine | B48: 0.004233184566 | C48: 0.00074538548 | D48: 0.01249353552
A49: Metribuzin | B49: 0.003482229757 | C49: 0.0008017722397 | D49: 0.007558839884
A50: Triadimefon | B50: 0.003191803191 | C50: 0.0007846495982 | D50: 0.006141447316
A51: Folpet | B51: 0.002702631024 | C51: 0.0002133187545 | D51: 0.00658372586
A52: Flufenacet | B52: 0.002561741277 | C52: 0.001103627597 | D52: 0.004346360139
A53: Fluoxastrobin | B53: 0.001720890722 | C53: 0.0005499302891 | D53: 0.003688453106
A54: Cyflufenamid | B54: 0.001570615004 | C54: 0.0001884890266 | D54: 0.003265069642
A55: Azadirachtin | B55: 0.001399803523 | C55: 0.0001557366684 | D55: 0.005648457192
A56: Quizalofop-P-tefuryl | B56: 0.001382788249 | C56: 0.0003527199647 | D56: 0.006202219091
A57: Bromopropylate | B57: 0.001067077787 | C57: 0.0002068178248 | D57: 0.003283813014
A58: Cyproconazole | B58: 0.00105050376 | C58: 0.0005036986909 | D58: 0.001641147257
A59: Carbaryl | B59: 0.0009920089607 | C59: 7.504852436e-05 | D59: 0.004382876306
A60: Aclonifen | B60: 0.000908735948 | C60: 0.0001363376961 | D60: 0.002635642768
A61: Bitertanol | B61: 0.0008836235531 | C61: 8.671969009e-05 | D61: 0.002601442041
A62: Cyantraniliprole | B62: 0.0008564605999 | C62: 0 | D62: 0.002689185904
A63: Pendimethalin | B63: 0.0008206010315 | C63: 0.0003957820514 | D63: 0.001532715292
A64: Fuberidazole | B64: 0.0007764621832 | C64: 0.0004194931799 | D64: 0.001268049793
A65: Thiamethoxam | B65: 0.0006906821043 | C65: 0.000305715701 | D65: 0.001011896323
A66: Propyzamide | B66: 0.0006327366399 | C66: 0.0003231168566 | D66: 0.001085979028
A67: Flutolanil | B67: 0.0006230515354 | C67: 0.0002680644267 | D67: 0.001088110621 | E67: =IF(B67>1,A67,"") ->  | F67: =IF(B67>1,CONCATENATE(ROUND(B67,1)," ","(",ROUND(C67,1)," ","-"," ",ROUND(D67,1),")"),"") -> 
A68: Fenarimol | B68: 0.0005482403229 | C68: 0.0001069555338 | D68: 0.001485604749
A69: Oxadiazon | B69: 0.0003564888906 | C69: 4.626224179e-06 | D69: 0.001288350537
A70: Tolylfluanid | B70: 0.0003314733458 | C70: 2.096154589e-05 | D70: 0.0008822137227
A71: Haloxyfop-P | B71: 0.0003018123736 | C71: 2.278348806e-05 | D71: 0.001018838854
A72: Quintozene | B72: 0.0002989816442 | C72: 7.431484611e-05 | D72: 0.0006254417798
A73: Zoxamide | B73: 0.0002977562085 | C73: 3.37109445e-06 | D73: 0.0007500357771
A74: Phoxim | B74: 0.0002898393807 | C74: 4.726630054e-08 | D74: 0.001198480674
A75: Pyridalyl | B75: 0.0002556620903 | C75: 2.198710267e-05 | D75: 0.0006232548879
A76: Penthiopyrad | B76: 0.0002428384248 | C76: 7.376522088e-06 | D76: 0.0006053322031
A77: Etridiazole | B77: 0.0002135271767 | C77: 1.841101083e-06 | D77: 0.000829999671
A78: Trifluralin | B78: 0.0001843404799 | C78: 2.962653687e-05 | D78: 0.0007115632742
A79: Dicloran | B79: 0.0001822474728 | C79: 8.543806896e-06 | D79: 0.0008013751315
A80: Bromuconazole | B80: 0.0001313886405 | C80: 1.690797185e-05 | D80: 0.0003528359484
A81: Anthraquinone | B81: 0.0001208438304 | C81: 5.535265286e-05 | D81: 0.0002349638397
A82: Benthiavalicarb | B82: 9.760993908e-05 | C82: 0 | D82: 0.0004333284511
A83: Desmedipham | B83: 8.313893224e-05 | C83: 0 | D83: 0.0004096400732
A84: Diethofencarb | B84: 6.880201235e-05 | C84: 3.632643251e-06 | D84: 0.0001484793931
A85: Dinocap | B85: 5.650381965e-05 | C85: 0 | D85: 0.0002631110363
A86: Chlordane | B86: 5.161197236e-05 | C86: 0 | D86: 0.0003371330898
A87: Benalaxyl-M | B87: 3.511552414e-05 | C87: 3.365877671e-06 | D87: 8.166213366e-05
A88: Tepraloxydim | B88: 3.386871478e-05 | C88: 3.928160432e-07 | D88: 0.0001714536368
A89: Heptachlor | B89: 2.427185387e-05 | C89: 0 | D89: 0.0001167385648
A90: Clethodim | B90: 1.838188986e-05 | C90: 5.2810159e-06 | D90: 5.578917155e-05
A91: Vinclozolin | B91: 1.81948948e-05 | C91: 6.053906428e-07 | D91: 6.066110601e-05
A92: Amisulbrom | B92: 1.547414564e-05 | C92: 0 | D92: 5.817294405e-05
A93: Benalaxyl | B93: 1.403343375e-05 | C93: 9.375850187e-07 | D93: 3.352879826e-05
A94: Quinmerac | B94: 1.356628527e-05 | C94: 2.380045028e-06 | D94: 3.550264886e-05
A95: Valifenalate | B95: 1.195722877e-05 | C95: 3.450589978e-07 | D95: 5.220329252e-05
A96: Bromoxynil | B96: 2.026810597e-06 | C96: 0 | D96: 9.517166017e-06

Sheet utAS_NL3_6 (hidden)
A1: Substance name | B1: Mean contribution | C1: Lower bound (%) (p2,5) | D1: Upper bound (%) (p97,5) | E1: Active Substances | F1: % contribution (95% CI)
A2: Bromide ion | B2: 33.92907322 | C2: 28.49778895 | D2: 40.03420063 | E2: =IF(B2>1,A2,"") -> Bromide ion | F2: =IF(B2>1,CONCATENATE(ROUND(B2,1)," ","(",ROUND(C2,1)," ","-"," ",ROUND(D2,1),")"),"") -> 33.9 (28.5 - 40)
A3: Ziram | B3: 12.40490725 | C3: 8.722322488 | D3: 17.65982741 | E3: =IF(B3>1,A3,"") -> Ziram | F3: =IF(B3>1,CONCATENATE(ROUND(B3,1)," ","(",ROUND(C3,1)," ","-"," ",ROUND(D3,1),")"),"") -> 12.4 (8.7 - 17.7)
A4: Thiabendazole | B4: 10.74876277 | C4: 6.871991627 | D4: 14.92955038 | E4: Thiabendazole | F4: 10.7 (6.9 - 14.9)
A5: Propineb | B5: 9.976711979 | C5: 6.62717354 | D5: 14.72176055 | E5: Propineb | F5: 10 (6.6 - 14.7)
A6: Mancozeb | B6: 5.680033568 | C6: 4.299843525 | D6: 7.193273799 | E6: Mancozeb | F6: 5.7 (4.3 - 7.2)
A7: Pyrimethanil | B7: 4.45195877 | C7: 3.084929003 | D7: 6.044214754 | E7: Pyrimethanil | F7: 4.5 (3.1 - 6)
A8: Chlorpropham | B8: 4.183608541 | C8: 2.440006385 | D8: 6.321595026 | E8: Chlorpropham | F8: 4.2 (2.4 - 6.3)
A9: Metiram | B9: 2.911006732 | C9: 2.023426702 | D9: 4.33146393 | E9: Metiram | F9: 2.9 (2 - 4.3)
A10: Maleic hydrazide | B10: 2.029703038 | C10: 1.216003623 | D10: 2.967989294 | E10: Maleic hydrazide | F10: 2 (1.2 - 3)
A11: Cyprodinil | B11: 1.972222299 | C11: 1.302987377 | D11: 2.794019735 | E11: Cyprodinil | F11: 2 (1.3 - 2.8)
A12: Dithianon | B12: 1.713020226 | C12: 1.145281047 | D12: 2.366857136 | E12: Dithianon | F12: 1.7 (1.1 - 2.4)
A13: Fluopyram | B13: 1.572982797 | C13: 0.8349455008 | D13: 2.481557616 | E13: Fluopyram | F13: 1.6 (0.8 - 2.5)
A14: Maneb | B14: 1.517201159 | C14: 0.9835630324 | D14: 2.515811411 | E14: Maneb | F14: 1.5 (1 - 2.5)
A15: 2,4-D | B15: 1.445148326 | C15: 0.9243443719 | D15: 2.015734331 | E15: 2,4-D | F15: 1.4 (0.9 - 2)
A16: Buprofezin | B16: 1.12089955 | C16: 0.6871380105 | D16: 1.698119241 | E16: Buprofezin | F16: 1.1 (0.7 - 1.7)
A17: Thiacloprid | B17: 1.114404493 | C17: 0.9080845704 | D17: 1.335420625 | E17: Thiacloprid | F17: 1.1 (0.9 - 1.3)
A18: Fipronil | B18: 0.8251356996 | C18: 0.5847957771 | D18: 1.039189751
A19: Boscalid | B19: 0.5111791617 | C19: 0.3092614184 | D19: 0.754753363
A20: Spinosad | B20: 0.4068662888 | C20: 0.2067740239 | D20: 0.7161883284
A21: Lufenuron | B21: 0.2344824026 | C21: 0.1378896621 | D21: 0.4349911741
A22: Tetraconazole | B22: 0.141485985 | C22: 0.05841388331 | D22: 0.252117621
A23: Amitrole | B23: 0.1390514924 | C23: 0.09494269479 | D23: 0.1787553742
A24: Fluquinconazole | B24: 0.1280277576 | C24: 0.09766261716 | D24: 0.1606912616
A25: Topramezone | B25: 0.1042886193 | C25: 0.07120702109 | D25: 0.1340665306
A26: Etofenprox | B26: 0.09442139427 | C26: 0.07238974379 | D26: 0.1157508239
A27: Myclobutanil | B27: 0.08386201951 | C27: 0.05090101819 | D27: 0.1291201451
A28: Oxyfluorfen | B28: 0.06824095936 | C28: 0.03265661197 | D28: 0.113899189
A29: Clofentezine | B29: 0.06470773092 | C29: 0.01136609475 | D29: 0.1444107411
A30: Thiophanate-methyl | B30: 0.04520780372 | C30: 0.02834886522 | D30: 0.06211164987
A31: Fenpyrazamine | B31: 0.04148708955 | C31: 0.01580501546 | D31: 0.09517354123
A32: Flubendiamide | B32: 0.03940225559 | C32: 0.0193657147 | D32: 0.06761489325
A33: Fluopicolide | B33: 0.03208244552 | C33: 0.01659467722 | D33: 0.05139218972
A34: MCPA | B34: 0.02861529104 | C34: 0.01769532161 | D34: 0.04460093355
A35: Proquinazid | B35: 0.02612658389 | C35: 0.009362613371 | D35: 0.04833881622
A36: Spiromesifen | B36: 0.02183509135 | C36: 0.008311021034 | D36: 0.04106939509
A37: Fenamidone | B37: 0.02013643897 | C37: 0.006460250247 | D37: 0.03739740432
A38: Pyrethrins | B38: 0.01923158692 | C38: 0.01329181244 | D38: 0.02944011453
A39: Pymetrozine | B39: 0.01813372959 | C39: 0.004002860385 | D39: 0.03771685126
A40: Spirodiclofen | B40: 0.01673550921 | C40: 0.0129787065 | D40: 0.02164529013
A41: Fenbuconazole | B41: 0.01644322528 | C41: 0.007934944546 | D41: 0.02914912534
A42: Fenoxycarb | B42: 0.01624072441 | C42: 0.01235422639 | D42: 0.02128734209
A43: Bupirimate | B43: 0.009828650124 | C43: 0.007320456506 | D43: 0.01289480759
A44: Meptyldinocap | B44: 0.006040599746 | C44: 0.001587137499 | D44: 0.01547763077
A45: Fluxapyroxad | B45: 0.005908086814 | C45: 0.003987963487 | D45: 0.00876727312
A46: Metribuzin | B46: 0.00550754654 | C46: 0.002904753869 | D46: 0.009129572588
A47: Folpet | B47: 0.00524574845 | C47: 0.001767561392 | D47: 0.01024679095
A48: Triadimefon | B48: 0.005020863051 | C48: 0.002718544399 | D48: 0.008228349867
A49: Bixafen | B49: 0.004812069626 | C49: 0.002810491254 | D49: 0.00794300273
A50: Propyzamide | B50: 0.004733938762 | C50: 0.0004763311464 | D50: 0.01221656614
A51: Terbuthylazine | B51: 0.003589636497 | C51: 0.001547369128 | D51: 0.006334548707
A52: Flufenacet | B52: 0.003435240188 | C52: 0.002292030696 | D52: 0.005040365717
A53: Azadirachtin | B53: 0.002636640324 | C53: 0.0002168164951 | D53: 0.007992800406
A54: Quizalofop-P-tefuryl | B54: 0.002610201758 | C54: 0.0007483602904 | D54: 0.009245066542
A55: Carbosulfan | B55: 0.002313401259 | C55: 0.0001865583661 | D55: 0.00761054492
A56: Aclonifen | B56: 0.002285455303 | C56: 0.0007394138737 | D56: 0.005301970864
A57: Bromopropylate | B57: 0.002186836599 | C57: 0.0004623341172 | D57: 0.005070673139
A58: Fluoxastrobin | B58: 0.002161194803 | C58: 0.001037754072 | D58: 0.004354995383
A59: Cyflufenamid | B59: 0.002091969749 | C59: 0.001066570987 | D59: 0.003377017494
A60: Pendimethalin | B60: 0.001587352177 | C60: 0.001095386883 | D60: 0.00235912397
A61: Carbaryl | B61: 0.001508723237 | C61: 8.687664256e-05 | D61: 0.005289571616
A62: Thiamethoxam | B62: 0.001434410917 | C62: 0.000739619658 | D62: 0.002387291405
A63: Cyproconazole | B63: 0.0009371519204 | C63: 0.0005693525155 | D63: 0.001297622486
A64: Bitertanol | B64: 0.0009063794287 | C64: 0.0002428039271 | D64: 0.002073377972
A65: Flutolanil | B65: 0.0008484598027 | C65: 0.0005574204768 | D65: 0.001344677865
A66: Fuberidazole | B66: 0.0007460165124 | C66: 0.0004611171805 | D66: 0.0011654719
A67: Trifluralin | B67: 0.0006215483402 | C67: 7.686057932e-05 | D67: 0.001812386139 | E67: =IF(B67>1,A67,"") ->  | F67: =IF(B67>1,CONCATENATE(ROUND(B67,1)," ","(",ROUND(C67,1)," ","-"," ",ROUND(D67,1),")"),"") -> 
A68: Pyridalyl | B68: 0.0005866355904 | C68: 0.0001457374687 | D68: 0.001317943232
A69: Cyantraniliprole | B69: 0.0005757871401 | C69: 0.000131908644 | D69: 0.00172151802
A70: Etridiazole | B70: 0.0004989790476 | C70: 1.434785898e-05 | D70: 0.001342398413
A71: Oxadiazon | B71: 0.0004560116189 | C71: 7.085690788e-06 | D71: 0.001383416667
A72: Tolylfluanid | B72: 0.0004393103567 | C72: 3.304047162e-05 | D72: 0.001176465927
A73: Quintozene | B73: 0.0004233839473 | C73: 0.0001252551852 | D73: 0.001436720336
A74: Zoxamide | B74: 0.0004055957553 | C74: 0.000151959919 | D74: 0.0008430826706
A75: Penthiopyrad | B75: 0.0003530722861 | C75: 9.710339659e-05 | D75: 0.00105905194
A76: Vinclozolin | B76: 0.000310002225 | C76: 1.523111476e-05 | D76: 0.001071126331
A77: Phoxim | B77: 0.000281480585 | C77: 0 | D77: 0.00198473947
A78: Fenarimol | B78: 0.0002723641176 | C78: 7.11105393e-05 | D78: 0.0006667801439
A79: Haloxyfop-P | B79: 0.0001903490342 | C79: 5.283006765e-06 | D79: 0.000445377599
A80: Desmedipham | B80: 0.0001863400276 | C80: 2.91020494e-05 | D80: 0.0006182438907
A81: Dicloran | B81: 0.0001629302421 | C81: 1.778892918e-05 | D81: 0.0006517314462
A82: Anthraquinone | B82: 0.0001499123604 | C82: 7.985553102e-05 | D82: 0.0002495116913
A83: Tepraloxydim | B83: 0.0001189207174 | C83: 3.331070315e-06 | D83: 0.0004571390955
A84: Bromuconazole | B84: 9.962197903e-05 | C84: 1.134478082e-05 | D84: 0.0002280059041
A85: Diethofencarb | B85: 8.30090871e-05 | C85: 3.325379579e-05 | D85: 0.0001864471468
A86: Benthiavalicarb | B86: 7.521343439e-05 | C86: 7.673244942e-06 | D86: 0.0002292548963
A87: Benalaxyl-M | B87: 5.869044951e-05 | C87: 1.986203164e-05 | D87: 0.0001176273624
A88: Dinocap | B88: 3.809226825e-05 | C88: 3.801732846e-06 | D88: 0.0001658008634
A89: Quinmerac | B89: 3.152963624e-05 | C89: 1.52346925e-05 | D89: 4.948797572e-05
A90: Clethodim | B90: 2.651657019e-05 | C90: 1.194861377e-05 | D90: 6.738662677e-05
A91: Benalaxyl | B91: 2.151047471e-05 | C91: 8.492224006e-06 | D91: 4.853998975e-05
A92: Valifenalate | B92: 2.00809975e-05 | C92: 3.917245129e-07 | D92: 8.757410617e-05
A93: Benfluralin | B93: 1.948442814e-05 | C93: 0 | D93: 5.55758243e-05
A94: Amisulbrom | B94: 1.04490052e-05 | C94: 3.78052994e-07 | D94: 4.117095779e-05
A95: Carbetamide | B95: 9.242072489e-06 | C95: 0 | D95: 2.805505925e-05
A96: Bromoxynil | B96: 1.215303571e-06 | C96: 0 | D96: 3.711463767e-06

Sheet utAS_UK (hidden)
A1: Substance name | B1: Mean contribution | C1: Lower bound (%) (p2,5) | D1: Upper bound (%) (p97,5) | E1: Active Substances | F1: % contribution (95% CI)
A2: Bromide ion | B2: 56.44133227 | C2: 45.550986 | D2: 69.06874303 | E2: =IF(B2>1,A2,"") -> Bromide ion | F2: =IF(B2>1,CONCATENATE(ROUND(B2,1)," ","(",ROUND(C2,1)," ","-"," ",ROUND(D2,1),")"),"") -> 56.4 (45.6 - 69.1)
A3: Thiabendazole | B3: 6.135226422 | C3: 1.248201212 | D3: 12.96966257 | E3: =IF(B3>1,A3,"") -> Thiabendazole | F3: =IF(B3>1,CONCATENATE(ROUND(B3,1)," ","(",ROUND(C3,1)," ","-"," ",ROUND(D3,1),")"),"") -> 6.1 (1.2 - 13)
A4: Chlorpropham | B4: 6.073126329 | C4: 3.968022137 | D4: 9.192685278 | E4: Chlorpropham | F4: 6.1 (4 - 9.2)
A5: Propineb | B5: 5.83260207 | C5: 3.788753053 | D5: 8.669075951 | E5: Propineb | F5: 5.8 (3.8 - 8.7)
A6: Mancozeb | B6: 4.710100361 | C6: 2.569511963 | D6: 7.220449868 | E6: Mancozeb | F6: 4.7 (2.6 - 7.2)
A7: Ziram | B7: 4.205150822 | C7: 2.441333966 | D7: 6.660622333 | E7: Ziram | F7: 4.2 (2.4 - 6.7)
A8: Maleic hydrazide | B8: 3.179464956 | C8: 1.734328822 | D8: 5.25319571 | E8: Maleic hydrazide | F8: 3.2 (1.7 - 5.3)
A9: Pyrimethanil | B9: 2.532633341 | C9: 0.7422330336 | D9: 4.97636253 | E9: Pyrimethanil | F9: 2.5 (0.7 - 5)
A10: Fluopyram | B10: 1.914211781 | C10: 1.068985357 | D10: 2.854264097 | E10: Fluopyram | F10: 1.9 (1.1 - 2.9)
A11: Cyprodinil | B11: 1.681939455 | C11: 0.9890463198 | D11: 2.490893706 | E11: Cyprodinil | F11: 1.7 (1 - 2.5)
A12: Buprofezin | B12: 1.086557931 | C12: 0.5489482844 | D12: 1.637129844 | E12: Buprofezin | F12: 1.1 (0.5 - 1.6)
A13: Fipronil | B13: 0.9055059542 | C13: 0.7402335129 | D13: 1.150307297
A14: Metiram | B14: 0.902957615 | C14: 0.5453169044 | D14: 1.419042803
A15: 2,4-D | B15: 0.8605563057 | C15: 0.1525323709 | D15: 1.919024359
A16: Maneb | B16: 0.7524214669 | C16: 0.3718757745 | D16: 1.821022473
A17: Thiacloprid | B17: 0.4084412891 | C17: 0.3162807709 | D17: 0.5566774577
A18: Lufenuron | B18: 0.2998763598 | C18: 0.1460355247 | D18: 0.6194572479
A19: Boscalid | B19: 0.2812847896 | C19: 0.1891794147 | D19: 0.4008920995
A20: Tetraconazole | B20: 0.2620582787 | C20: 0.1190526672 | D20: 0.4263497108
A21: Dithianon | B21: 0.2530303368 | C21: 0.1555520281 | D21: 0.3390079229
A22: Spinosad | B22: 0.1816512366 | C22: 0.1177459727 | D22: 0.2473641389
A23: Amitrole | B23: 0.141357798 | C23: 0.1188063047 | D23: 0.1701040257
A24: Oxyfluorfen | B24: 0.1072142688 | C24: 0.05880467605 | D24: 0.1558859946
A25: Topramezone | B25: 0.1060183485 | C25: 0.08910472852 | D25: 0.1275780193
A26: Fluquinconazole | B26: 0.1031511407 | C26: 0.08716959264 | D26: 0.1212261808
A27: Myclobutanil | B27: 0.09824479424 | C27: 0.04861171053 | D27: 0.1410478465
A28: Fenpyrazamine | B28: 0.09638669494 | C28: 0.04423823681 | D28: 0.1745963071
A29: Clofentezine | B29: 0.05730185589 | C29: 0.03533358799 | D29: 0.08937979876
A30: Proquinazid | B30: 0.04769950632 | C30: 0.02258082292 | D30: 0.0837008507
A31: Etofenprox | B31: 0.04629481641 | C31: 0.01629144775 | D31: 0.09035582097
A32: Thiophanate-methyl | B32: 0.03997223663 | C32: 0.02813569859 | D32: 0.05396605697
A33: Spiromesifen | B33: 0.03078592289 | C33: 0.01869962299 | D33: 0.04288516619
A34: MCPA | B34: 0.02929934133 | C34: 0.01351132255 | D34: 0.04825986776
A35: Pyrethrins | B35: 0.02479923273 | C35: 0.01443841753 | D35: 0.04121778729
A36: Fenamidone | B36: 0.01696719173 | C36: 0.008707744935 | D36: 0.02770354021
A37: Meptyldinocap | B37: 0.01674427868 | C37: 0.005095804674 | D37: 0.03166458891
A38: Flubendiamide | B38: 0.01654436188 | C38: 0.01040543682 | D38: 0.0237615236
A39: Fluopicolide | B39: 0.01521897901 | C39: 0.007656947378 | D39: 0.02237964899
A40: Pymetrozine | B40: 0.01273389195 | C40: 0.007800822414 | D40: 0.01826031575
A41: Fenbuconazole | B41: 0.01052119351 | C41: 0.004328868734 | D41: 0.01932438818
A42: Bupirimate | B42: 0.00917459764 | C42: 0.006340251216 | D42: 0.01355555871
A43: Triadimefon | B43: 0.00772662932 | C43: 0.00438924398 | D43: 0.01161972888
A44: Bixafen | B44: 0.006590538329 | C44: 0.004065517844 | D44: 0.01252344159
A45: Flufenacet | B45: 0.005231694721 | C45: 0.003260898473 | D45: 0.008379231385
A46: Fluxapyroxad | B46: 0.004954751158 | C46: 0.003103330409 | D46: 0.008449859392
A47: Metribuzin | B47: 0.00452681799 | C47: 0.001895958259 | D47: 0.00844019982
A48: Folpet | B48: 0.004053674908 | C48: 0.002004881323 | D48: 0.006221692687
A49: Spirodiclofen | B49: 0.003726568156 | C49: 0.002771702012 | D49: 0.004930073383
A50: Fenoxycarb | B50: 0.003648821635 | C50: 0.002063062107 | D50: 0.005599090694
A51: Fluoxastrobin | B51: 0.003493089714 | C51: 0.001639723912 | D51: 0.008050431177
A52: Aclonifen | B52: 0.003394418844 | C52: 0.00206348679 | D52: 0.004783216957
A53: Cyflufenamid | B53: 0.003338210497 | C53: 0.00166887995 | D53: 0.006070706827
A54: Quizalofop-P-tefuryl | B54: 0.00234902708 | C54: 0.001321595206 | D54: 0.003699734477
A55: Trifluralin | B55: 0.001458474818 | C55: 0.0004755703547 | D55: 0.00309227478
A56: Cyproconazole | B56: 0.001357430464 | C56: 0.0009053393183 | D56: 0.00189410653
A57: Pyridalyl | B57: 0.001293944958 | C57: 0.000654734809 | D57: 0.002104130823
A58: Terbuthylazine | B58: 0.001256703056 | C58: 0.0002992039567 | D58: 0.00289675508
A59: Carbosulfan | B59: 0.001198507522 | C59: 7.412180028e-05 | D59: 0.004758346985
A60: Flutolanil | B60: 0.001190363569 | C60: 0.0007647187336 | D60: 0.001866673621
A61: Carbaryl | B61: 0.001157338916 | C61: 4.803088116e-05 | D61: 0.004177837872
A62: Quintozene | B62: 0.001092109668 | C62: 0.0004212336894 | D62: 0.002117846882
A63: Fuberidazole | B63: 0.001085962325 | C63: 0.0007088580939 | D63: 0.001705755488
A64: Pendimethalin | B64: 0.001018517154 | C64: 0.0007998411607 | D64: 0.001252603273
A65: Thiamethoxam | B65: 0.0009061161531 | C65: 0.0005653037951 | D65: 0.001321970745
A66: Bromopropylate | B66: 0.0008889434436 | C66: 0.0004119607785 | D66: 0.001578362792
A67: Zoxamide | B67: 0.0008005718915 | C67: 0.0003568562455 | D67: 0.00133960829 | E67: =IF(B67>1,A67,"") ->  | F67: =IF(B67>1,CONCATENATE(ROUND(B67,1)," ","(",ROUND(C67,1)," ","-"," ",ROUND(D67,1),")"),"") -> 
A68: Bitertanol | B68: 0.0007867673254 | C68: 0.0001363193398 | D68: 0.002100239007
A69: Azadirachtin | B69: 0.000751139832 | C69: 0.0004071429518 | D69: 0.001193845456
A70: Oxadiazon | B70: 0.0007499882874 | C70: 1.163100364e-05 | D70: 0.003022738798
A71: Penthiopyrad | B71: 0.0005213620007 | C71: 0.0001602746808 | D71: 0.001053202232
A72: Propyzamide | B72: 0.0003838834751 | C72: 0.0001071238569 | D72: 0.0007280085424
A73: Tepraloxydim | B73: 0.000336009598 | C73: 0.0001047323081 | D73: 0.0006952410089
A74: Cyantraniliprole | B74: 0.0003097266257 | C74: 5.132070623e-05 | D74: 0.001047026175
A75: Fenarimol | B75: 0.0002392629821 | C75: 9.674881377e-05 | D75: 0.0004389926871
A76: Bromuconazole | B76: 0.0002073990274 | C76: 6.910165475e-05 | D76: 0.0004911623974
A77: Etridiazole | B77: 0.0001912749253 | C77: 1.58638736e-05 | D77: 0.0005705357113
A78: Anthraquinone | B78: 0.000144049903 | C78: 8.388537541e-05 | D78: 0.0002802706565
A79: Diethofencarb | B79: 0.0001421466949 | C79: 6.355153194e-05 | D79: 0.0002287562636
A80: Vinclozolin | B80: 0.0001354101181 | C80: 3.075186827e-05 | D80: 0.0003601482817
A81: Haloxyfop-P | B81: 0.0001227663628 | C81: 2.464602581e-05 | D81: 0.0003453337031
A82: Tolylfluanid | B82: 0.0001073114582 | C82: 2.807129002e-05 | D82: 0.0002975378048
A83: Benalaxyl-M | B83: 9.330130081e-05 | C83: 3.571897124e-05 | D83: 0.000182846133
A84: Dicloran | B84: 9.145344448e-05 | C84: 2.571869789e-05 | D84: 0.0002305933698
A85: Heptachlor | B85: 7.790941875e-05 | C85: 1.096743839e-05 | D85: 0.0002794546066
A86: Benthiavalicarb | B86: 5.658376994e-05 | C86: 5.753557573e-06 | D86: 0.0001552280894
A87: Dinocap | B87: 4.802182684e-05 | C87: 3.392830786e-06 | D87: 0.0001907686145
A88: Benalaxyl | B88: 4.704145711e-05 | C88: 2.635286856e-05 | D88: 7.679729241e-05
A89: Chlordane | B89: 4.533323638e-05 | C89: 0 | D89: 0.0002089575185
A90: Phoxim | B90: 4.19107212e-05 | C90: 3.618330673e-07 | D90: 0.0001789933921
A91: Clethodim | B91: 3.513901811e-05 | C91: 1.311515306e-05 | D91: 9.799839102e-05
A92: Valifenalate | B92: 1.538317355e-05 | C92: 7.068538581e-07 | D92: 6.950384025e-05
A93: Amisulbrom | B93: 1.258931089e-05 | C93: 5.988383114e-07 | D93: 4.110895335e-05
A94: Quinmerac | B94: 3.930730202e-06 | C94: 1.569811506e-06 | D94: 7.267329569e-06
A95: Desmedipham | B95: 3.239418593e-06 | C95: 4.368416319e-07 | D95: 1.013920602e-05
A96: Benfluralin | B96: 4.186422819e-07 | C96: 0 | D96: 1.514471818e-06
A97: Carbetamide | B97: 1.96019751e-07 | C97: 0 | D97: 7.946055892e-07

Sheet utFaE_Be (hidden)
A1: Food name | B1: Mean contribution | C1: Lower bound (%) (p2,5) | D1: Upper bound (%) (p97,5) | E1: Food As Eaten | F1: % contribution (95% CI)
A2: Wine grapes-Winemaking, Red | B2: 35.52770427 | C2: 15.21367211 | D2: 57.1563736 | E2: =IF(B2>1,A2,"") -> Wine grapes-Winemaking, Red | F2: =IF(B2>1,CONCATENATE(ROUND(B2,1)," ","(",ROUND(C2,1)," ","-"," ",ROUND(D2,1),")"),"") -> 35.5 (15.2 - 57.2)
A3: Wine grapes-Winemaking, White | B3: 10.94549357 | C3: 1.794248457 | D3: 22.49318123 | E3: =IF(B3>1,A3,"") -> Wine grapes-Winemaking, White | F3: =IF(B3>1,CONCATENATE(ROUND(B3,1)," ","(",ROUND(C3,1)," ","-"," ",ROUND(D3,1),")"),"") -> 10.9 (1.8 - 22.5)
A4: Wheat-Grain milling, Flour/meal or finely ground powder (as part-nature), White/refined | B4: 8.440976723 | C4: 4.209247072 | D4: 14.20705411 | E4: Wheat-Grain milling, Flour/meal or finely ground powder (as part-nature), White/refined | F4: 8.4 (4.2 - 14.2)
A5: Wheat-Grain milling, Semolina or coarse ground powder (as part-nature) | B5: 7.417827186 | C5: 1.81732098 | D5: 13.03245968 | E5: Wheat-Grain milling, Semolina or coarse ground powder (as part-nature) | F5: 7.4 (1.8 - 13)
A6: Apples-Juicing | B6: 5.661918137 | C6: 0 | D6: 15.81134478 | E6: Apples-Juicing | F6: 5.7 (0 - 15.8)
A7: Potatoes-Cooking in water | B7: 4.747592787 | C7: 1.806330731 | D7: 9.892401556 | E7: Potatoes-Cooking in water | F7: 4.7 (1.8 - 9.9)
A8: Oranges-Juicing | B8: 3.888984097 | C8: 0.02473772896 | D8: 9.24964516 | E8: Oranges-Juicing | F8: 3.9 (0 - 9.2)
A9: Wheat-Grain milling, Flour/meal or finely ground powder (as part-nature), Semi-refined | B9: 3.776416179 | C9: 0.6373688259 | D9: 12.57385895 | E9: Wheat-Grain milling, Flour/meal or finely ground powder (as part-nature), Semi-refined | F9: 3.8 (0.6 - 12.6)
A10: Tomatoes-Canning / jarring | B10: 1.675653578 | C10: 0.3378401296 | D10: 3.575700826 | E10: Tomatoes-Canning / jarring | F10: 1.7 (0.3 - 3.6)
A11: Tomatoes-Unspecified | B11: 1.631477623 | C11: 0.5669137367 | D11: 4.673618377 | E11: Tomatoes-Unspecified | F11: 1.6 (0.6 - 4.7)
A12: Lettuces-Unspecified | B12: 1.082353952 | C12: 0.4726565164 | D12: 1.725759227 | E12: Lettuces-Unspecified | F12: 1.1 (0.5 - 1.7)
A13: Drinking water-Unspecified | B13: 1.026775121 | C13: 0.654611247 | D13: 1.449292997 | E13: Drinking water-Unspecified | F13: 1 (0.7 - 1.4)
A14: Spinaches-Unspecified | B14: 1.000797992 | C14: 0.00161525441 | D14: 2.897853972 | E14: Spinaches-Unspecified | F14: 1 (0 - 2.9)
A15: Potatoes-Deep frying, Slicing | B15: 0.9562521504 | C15: 0 | D15: 2.432603825
A16: Carrots-Unspecified | B16: 0.91799727 | C16: 0.106658343 | D16: 2.376410338
A17: Table grapes-Unspecified | B17: 0.8626079168 | C17: 0 | D17: 2.709435573
A18: Tomatoes-Pulping / mashing, Concentration / evaporation | B18: 0.8136368612 | C18: 0.06205214744 | D18: 3.970324318
A19: Rice-Polishing, Cooking in water | B19: 0.7812386951 | C19: 0 | D19: 2.290495672
A20: Leeks-Unspecified | B20: 0.6797827369 | C20: 0 | D20: 4.267596833
A21: Potatoes-Frying | B21: 0.5969284686 | C21: 0.06218738369 | D21: 1.340529768
A22: Apples-Unspecified | B22: 0.4975242832 | C22: 0 | D22: 1.350044079
A23: Tomatoes-Pulping / mashing | B23: 0.4728137336 | C23: 0.0637303415 | D23: 0.9619487193
A24: Potatoes-Cooking in water, Pulping / mashing | B24: 0.4495064373 | C24: 0 | D24: 1.724137596
A25: Wine grapes-Bacteria fermentation | B25: 0.4176560848 | C25: 0.1128129994 | D25: 0.8429988593
A26: Apples-Cooking and similar thermal preparation processes | B26: 0.3460813878 | C26: 0 | D26: 1.108440346
A27: Cauliflowers-Unspecified | B27: 0.3326296015 | C27: 0 | D27: 1.090809435
A28: Wheat-Puffing / expanding | B28: 0.3237831701 | C28: 0 | D28: 1.133662706
A29: Sweet peppers/bell peppers-Unspecified | B29: 0.3156987315 | C29: 0.0814720654 | D29: 0.7020549631
A30: Mandarins-Juicing | B30: 0.2946576716 | C30: 0 | D30: 1.261689808
A31: Rice-Puffing / expanding | B31: 0.2677047954 | C31: 0 | D31: 1.406467734
A32: Pears-Unspecified | B32: 0.2561506289 | C32: 0 | D32: 2.653055859
A33: Carrots-Cooking in water | B33: 0.2161303826 | C33: 0.01160672239 | D33: 0.6168015055
A34: Oranges-Unspecified | B34: 0.1723355616 | C34: 0 | D34: 0.6863720025
A35: Cucumbers-Unspecified | B35: 0.1599481459 | C35: 0.009173227282 | D35: 0.5966781198
A36: Mandarins-Unspecified | B36: 0.1581717258 | C36: 0 | D36: 0.3811132019
A37: Bananas-Unspecified | B37: 0.1399425402 | C37: 0 | D37: 0.7754948692
A38: Wheat-Grain milling, Bran (as part-nature) | B38: 0.1243005549 | C38: 0 | D38: 0.7829707154
A39: Olives for oil production-Oil production, Vegetable fats and oils (as part-nature) | B39: 0.1240798845 | C39: 0.05793883135 | D39: 0.2385355712
A40: Tomatoes-Cooking and similar thermal preparation processes | B40: 0.1184340717 | C40: 0 | D40: 0.4132487809
A41: Courgettes-Unspecified | B41: 0.1022142342 | C41: 0 | D41: 0.3601027603
A42: Wine grapes-Distillation | B42: 0.1018398151 | C42: 0 | D42: 1.5401851
A43: Table grapes-Drying (dehydration) | B43: 0.08487502074 | C43: 0 | D43: 0.3398283162
A44: Wheat-Grain milling, Flour/meal or finely ground powder (as part-nature), Integral /not refined | B44: 0.07719252318 | C44: 0 | D44: 0.3295887111
A45: Aubergines/eggplants-Unspecified | B45: 0.07638664275 | C45: 0 | D45: 0.2273321771
A46: Spinaches-Cooking in water | B46: 0.06818179911 | C46: 0 | D46: 0.1463690447
A47: Strawberries-Cooking and similar thermal preparation processes | B47: 0.05281278187 | C47: 0 | D47: 0.1691328737
A48: Peas (without pods)-Cooking in water | B48: 0.05139570916 | C48: 0.001707388703 | D48: 0.1469214769
A49: Potatoes-Starch production | B49: 0.04735445185 | C49: 0 | D49: 0.1480074603
A50: Sweet peppers/bell peppers-Drying (dehydration), Grinding / milling / crushing | B50: 0.03765517744 | C50: 0.008296594212 | D50: 0.07690657463
A51: Cauliflowers-Cooking and similar thermal preparation processes | B51: 0.02619403012 | C51: 0 | D51: 0.09139035162
A52: Sweet peppers/bell peppers-Frying | B52: 0.01584703222 | C52: 0 | D52: 0.06821242536
A53: Strawberries-Juicing | B53: 0.01560932022 | C53: 0 | D53: 0.1169041736
A54: Carrots-Cooking and similar thermal preparation processes | B54: 0.01247556008 | C54: 0 | D54: 0.04509868955
A55: Beans (with pods)-Cooking and similar thermal preparation processes | B55: 0.01244046769 | C55: 0 | D55: 0.04069930469
A56: Strawberries-Unspecified | B56: 0.01136547956 | C56: 0 | D56: 0.04664326885
A57: Rice-Starch production | B57: 0.004319199098 | C57: 0 | D57: 0.01520619381
A58: Sweet peppers/bell peppers-Cooking and similar thermal preparation processes | B58: 0.0009320863007 | C58: 0 | D58: 0.006033461318
A59: Oranges-Unspecified, Only peel | B59: 0.0004237742881 | C59: 0 | D59: 0.001131413738
E67: =IF(B67>1,A67,"") ->  | F67: =IF(B67>1,CONCATENATE(ROUND(B67,1)," ","(",ROUND(C67,1)," ","-"," ",ROUND(D67,1),")"),"") -> 

Sheet utFaE_BU (hidden)
A1: Food name | B1: Mean contribution | C1: Lower bound (%) (p2,5) | D1: Upper bound (%) (p97,5) | E1: Food As Eaten | F1: % contribution (95% CI)
A2: Oranges-Juicing | B2: 28.13081018 | C2: 12.65160326 | D2: 42.41693424 | E2: =IF(B2>1,A2,"") -> Oranges-Juicing | F2: =IF(B2>1,CONCATENATE(ROUND(B2,1)," ","(",ROUND(C2,1)," ","-"," ",ROUND(D2,1),")"),"") -> 28.1 (12.7 - 42.4)
A3: Wheat-Grain milling, Flour/meal or finely ground powder (as part-nature), White/refined | B3: 17.06452596 | C3: 9.830032189 | D3: 26.31226112 | E3: =IF(B3>1,A3,"") -> Wheat-Grain milling, Flour/meal or finely ground powder (as part-nature), White/refined | F3: =IF(B3>1,CONCATENATE(ROUND(B3,1)," ","(",ROUND(C3,1)," ","-"," ",ROUND(D3,1),")"),"") -> 17.1 (9.8 - 26.3)
A4: Potatoes-Unspecified | B4: 9.50811428 | C4: 3.454509557 | D4: 18.19473299 | E4: Potatoes-Unspecified | F4: 9.5 (3.5 - 18.2)
A5: Apples-Juicing | B5: 6.56739068 | C5: 0 | D5: 15.69342107 | E5: Apples-Juicing | F5: 6.6 (0 - 15.7)
A6: Mandarins-Juicing | B6: 6.1163467 | C6: 0 | D6: 15.8167652 | E6: Mandarins-Juicing | F6: 6.1 (0 - 15.8)
A7: Table grapes-Juicing | B7: 4.848318529 | C7: 0 | D7: 14.99189438 | E7: Table grapes-Juicing | F7: 4.8 (0 - 15)
A8: Tomatoes-Unspecified | B8: 4.660857098 | C8: 3.393256729 | D8: 6.942030331 | E8: Tomatoes-Unspecified | F8: 4.7 (3.4 - 6.9)
A9: Rice-Polishing | B9: 3.875481679 | C9: 0.8283133063 | D9: 7.337104764 | E9: Rice-Polishing | F9: 3.9 (0.8 - 7.3)
A10: Oat-Grain milling, Bran (as part-nature) | B10: 2.855488884 | C10: 0 | D10: 10.73569211 | E10: Oat-Grain milling, Bran (as part-nature) | F10: 2.9 (0 - 10.7)
A11: Tomatoes-Canning / jarring | B11: 2.07203609 | C11: 0.831411358 | D11: 3.270804518 | E11: Tomatoes-Canning / jarring | F11: 2.1 (0.8 - 3.3)
A12: Cucumbers-Unspecified | B12: 2.049850893 | C12: 0 | D12: 4.358588793 | E12: Cucumbers-Unspecified | F12: 2 (0 - 4.4)
A13: Head cabbages-Unspecified | B13: 1.434474235 | C13: 0.08985038071 | D13: 4.922042762 | E13: Head cabbages-Unspecified | F13: 1.4 (0.1 - 4.9)
A14: Spinaches-Unspecified | B14: 1.302197195 | C14: 0 | D14: 5.48291836 | E14: Spinaches-Unspecified | F14: 1.3 (0 - 5.5)
A15: Apples-Unspecified | B15: 1.131872045 | C15: 0 | D15: 3.112898989 | E15: Apples-Unspecified | F15: 1.1 (0 - 3.1)
A16: Strawberries-Cooking and similar thermal preparation processes | B16: 0.9056273798 | C16: 0 | D16: 3.38850359
A17: Pears-Unspecified | B17: 0.8481502043 | C17: 0 | D17: 2.464515216
A18: Wheat-Grain milling, Flour/meal or finely ground powder (as part-nature), Integral /not refined | B18: 0.7993307377 | C18: 0 | D18: 3.395011069
A19: Wheat-Starch production | B19: 0.7154470295 | C19: 0 | D19: 2.011210066
A20: Lettuces-Unspecified | B20: 0.6938154016 | C20: 0 | D20: 2.832143089
A21: Bananas-Unspecified | B21: 0.6847209763 | C21: 0 | D21: 1.875462208
A22: Drinking water-Unspecified | B22: 0.658920549 | C22: 0.153473067 | D22: 1.26586924
A23: Carrots-Unspecified | B23: 0.6491292181 | C23: 0.1534213285 | D23: 1.23272039
A24: Wheat-Grain milling, Flour/meal or finely ground powder (as part-nature), Semi-refined | B24: 0.6451181365 | C24: 0 | D24: 2.110660164
A25: Sweet peppers/bell peppers-Unspecified | B25: 0.4865920528 | C25: 0.08597837358 | D25: 0.9849067337
A26: Wheat-Grain milling, Semolina or coarse ground powder (as part-nature) | B26: 0.2269479401 | C26: 0 | D26: 0.7225723375
A27: Tomatoes-Pulping / mashing | B27: 0.1917216434 | C27: 0 | D27: 0.4899633678
A28: Peaches-Unspecified | B28: 0.1715222064 | C28: 0 | D28: 0.4662195661
A29: Wine grapes-Bacteria fermentation | B29: 0.1386921668 | C29: 0 | D29: 0.3710542823
A30: Processed cereal-based foods for infants and young children-Processed | B30: 0.1140579843 | C30: 0 | D30: 0.552802841
A31: Sweet peppers/bell peppers-Drying (dehydration), Grinding / milling / crushing | B31: 0.1032830199 | C31: 0 | D31: 0.221047768
A32: Cauliflowers-Unspecified | B32: 0.07267142113 | C32: 0 | D32: 0.2380432306
A33: Olives for oil production-Oil production, Vegetable fats and oils (as part-nature) | B33: 0.03227509247 | C33: 0.001176171017 | D33: 0.09471600145
A34: Beans (with pods)-Unspecified | B34: 0.02614683091 | C34: 0 | D34: 0.07877306132
A35: Peas (without pods)-Unspecified | B35: 0.007195870639 | C35: 0 | D35: 0.02605861034
E67: =IF(B67>1,A67,"") ->  | F67: =IF(B67>1,CONCATENATE(ROUND(B67,1)," ","(",ROUND(C67,1)," ","-"," ",ROUND(D67,1),")"),"") -> 

Sheet utFaE_CZ (hidden)
A1: Food name | B1: Mean contribution | C1: Lower bound (%) (p2,5) | D1: Upper bound (%) (p97,5) | E1: Food As Eaten | F1: % contribution (95% CI)
A2: Wine grapes-Winemaking, White | B2: 32.68399208 | C2: 16.24602215 | D2: 56.71212231 | E2: =IF(B2>1,A2,"") -> Wine grapes-Winemaking, White | F2: =IF(B2>1,CONCATENATE(ROUND(B2,1)," ","(",ROUND(C2,1)," ","-"," ",ROUND(D2,1),")"),"") -> 32.7 (16.2 - 56.7)
A3: Wheat-Grain milling, Flour/meal or finely ground powder (as part-nature), White/refined | B3: 18.05005452 | C3: 9.272399364 | D3: 29.65191293 | E3: =IF(B3>1,A3,"") -> Wheat-Grain milling, Flour/meal or finely ground powder (as part-nature), White/refined | F3: =IF(B3>1,CONCATENATE(ROUND(B3,1)," ","(",ROUND(C3,1)," ","-"," ",ROUND(D3,1),")"),"") -> 18.1 (9.3 - 29.7)
A4: Wine grapes-Winemaking, Red | B4: 11.48927043 | C4: 3.920057522 | D4: 25.45250451 | E4: Wine grapes-Winemaking, Red | F4: 11.5 (3.9 - 25.5)
A5: Potatoes-Unspecified | B5: 4.87156868 | C5: 2.875599396 | D5: 7.813564713 | E5: Potatoes-Unspecified | F5: 4.9 (2.9 - 7.8)
A6: Rye-Grain milling, Flour/meal or finely ground powder (as part-nature), White/refined | B6: 3.688181481 | C6: 1.712305142 | D6: 6.708029261 | E6: Rye-Grain milling, Flour/meal or finely ground powder (as part-nature), White/refined | F6: 3.7 (1.7 - 6.7)
A7: Rice-Polishing | B7: 3.566550123 | C7: 1.042066307 | D7: 7.254699 | E7: Rice-Polishing | F7: 3.6 (1 - 7.3)
A8: Tomatoes-Unspecified | B8: 3.541621781 | C8: 1.442904044 | D8: 6.74520898 | E8: Tomatoes-Unspecified | F8: 3.5 (1.4 - 6.7)
A9: Potatoes-Distillation | B9: 2.50003057 | C9: 0 | D9: 7.98151704 | E9: Potatoes-Distillation | F9: 2.5 (0 - 8)
A10: Apples-Juicing | B10: 2.255995533 | C10: 0.1676089125 | D10: 4.912505771 | E10: Apples-Juicing | F10: 2.3 (0.2 - 4.9)
A11: Apples-Unspecified | B11: 1.661440525 | C11: 0.6033962294 | D11: 4.092632777 | E11: Apples-Unspecified | F11: 1.7 (0.6 - 4.1)
A12: Drinking water-Unspecified | B12: 1.554256967 | C12: 1.08217118 | D12: 1.93371919 | E12: Drinking water-Unspecified | F12: 1.6 (1.1 - 1.9)
A13: Cucumbers-Unspecified | B13: 1.315196173 | C13: 0.4741930144 | D13: 2.361137933 | E13: Cucumbers-Unspecified | F13: 1.3 (0.5 - 2.4)
A14: Lettuces-Unspecified | B14: 1.29048485 | C14: 0.0805159274 | D14: 2.822357933 | E14: Lettuces-Unspecified | F14: 1.3 (0.1 - 2.8)
A15: Wheat-Grain milling, Semolina or coarse ground powder (as part-nature) | B15: 0.9383402732 | C15: 0.2680696089 | D15: 2.189841009
A16: Oranges-Juicing | B16: 0.9286115678 | C16: 0 | D16: 2.322940767
A17: Potatoes-Deep frying, Slicing | B17: 0.9056855579 | C17: 0.1532009838 | D17: 1.798634543
A18: Sweet peppers/bell peppers-Unspecified | B18: 0.8804155243 | C18: 0.3608618774 | D18: 1.464791627
A19: Potatoes-Frying, Dicing and stripe-cutting | B19: 0.6948436902 | C19: 0.1213096441 | D19: 1.649623543
A20: Head cabbages-Fermentation | B20: 0.6912745149 | C20: 0 | D20: 1.72889129
A21: Tomatoes-Pulping / mashing | B21: 0.5480516648 | C21: 0.04321078091 | D21: 1.614476047
A22: Table grapes-Drying (dehydration) | B22: 0.4748293484 | C22: 0.005545423254 | D22: 1.436933183
A23: Sweet peppers/bell peppers-Drying (dehydration), Grinding / milling / crushing | B23: 0.4502203149 | C23: 0.1880673079 | D23: 0.8875131373
A24: Bananas-Unspecified | B24: 0.4195352213 | C24: 0.1182953056 | D24: 0.8255644984
A25: Cauliflowers-Unspecified | B25: 0.4139960737 | C25: 0 | D25: 1.048941457
A26: Rye-Grain milling, Flour/meal or finely ground powder (as part-nature), Integral /not refined | B26: 0.3725915789 | C26: 0 | D26: 1.049370513
A27: Broccoli-Unspecified | B27: 0.3139960726 | C27: 0 | D27: 1.05662367
A28: Rice-Polishing, Parboiling / pre-gelatinising | B28: 0.2965024271 | C28: 0 | D28: 0.9626710523
A29: Wine grapes-Bacteria fermentation | B29: 0.2937245556 | C29: 0.1737633856 | D29: 0.4810447021
A30: Peaches-Unspecified | B30: 0.287523682 | C30: 0 | D30: 0.633558908
A31: Head cabbages-Unspecified | B31: 0.2874177916 | C31: 0 | D31: 0.921649509
A32: Tomatoes-Pulping / mashing, Concentration / evaporation | B32: 0.2771945274 | C32: 0.03205620077 | D32: 0.9269843614
A33: Wheat-Grain milling, Flour/meal or finely ground powder (as part-nature), Integral /not refined | B33: 0.2719434552 | C33: 0 | D33: 0.7700445184
A34: Olives for oil production-Oil production, Vegetable fats and oils (as part-nature) | B34: 0.2332394491 | C34: 0.137994171 | D34: 0.3510971353
A35: Oranges-Unspecified | B35: 0.1546613167 | C35: 0.01653580413 | D35: 0.4634512614
A36: Courgettes-Unspecified | B36: 0.1387053312 | C36: 0 | D36: 0.5275088428
A37: Mandarins-Unspecified | B37: 0.1127722956 | C37: 0 | D37: 0.3365057416
A38: Carrots-Unspecified | B38: 0.09529393121 | C38: 0.02695657805 | D38: 0.2291133898
A39: Strawberries-Unspecified | B39: 0.07897039771 | C39: 0 | D39: 0.4862648208
A40: Peaches-Cooking and similar thermal preparation processes | B40: 0.05804850938 | C40: 0 | D40: 0.1860990054
A41: Rice-Puffing / expanding | B41: 0.03604269969 | C41: 0 | D41: 0.144740834
A42: Carrots-Cooking in water | B42: 0.01342791741 | C42: 0.0001833256905 | D42: 0.03540528707
A43: Peas (without pods)-Cooking in water | B43: 0.003482089931 | C43: 0 | D43: 0.01092244881
A44: Apples-Bacteria fermentation | B44: 0.001571342228 | C44: 0 | D44: 0.004041638194
A45: Peas (without pods)-Unspecified | B45: 0.0013940771 | C45: 0 | D45: 0.004980192808
A46: Wheat-Distillation | B46: 0.000147192451 | C46: 0 | D46: 0.0005530984843
A47: Rye-Distillation | B47: 0.0001255691931 | C47: 0 | D47: 0.0004588371416
E67: =IF(B67>1,A67,"") ->  | F67: =IF(B67>1,CONCATENATE(ROUND(B67,1)," ","(",ROUND(C67,1)," ","-"," ",ROUND(D67,1),")"),"") -> 

Sheet utFaE_DE (hidden)
A1: Food name | B1: Mean contribution | C1: Lower bound (%) (p2,5) | D1: Upper bound (%) (p97,5) | E1: Food As Eaten | F1: % contribution (95% CI)
A2: Wine grapes-Winemaking, Red | B2: 14.64079147 | C2: 5.493006146 | D2: 27.95836673 | E2: =IF(B2>1,A2,"") -> Wine grapes-Winemaking, Red | F2: =IF(B2>1,CONCATENATE(ROUND(B2,1)," ","(",ROUND(C2,1)," ","-"," ",ROUND(D2,1),")"),"") -> 14.6 (5.5 - 28)
A3: Wheat-Grain milling, Flour/meal or finely ground powder (as part-nature), White/refined | B3: 9.609137574 | C3: 6.903657608 | D3: 12.55540829 | E3: =IF(B3>1,A3,"") -> Wheat-Grain milling, Flour/meal or finely ground powder (as part-nature), White/refined | F3: =IF(B3>1,CONCATENATE(ROUND(B3,1)," ","(",ROUND(C3,1)," ","-"," ",ROUND(D3,1),")"),"") -> 9.6 (6.9 - 12.6)
A4: Apples-Juicing | B4: 9.219849573 | C4: 4.177923411 | D4: 17.73229182 | E4: Apples-Juicing | F4: 9.2 (4.2 - 17.7)
A5: Wine grapes-Winemaking, White | B5: 9.168088386 | C5: 2.967554118 | D5: 17.28426462 | E5: Wine grapes-Winemaking, White | F5: 9.2 (3 - 17.3)
A6: Wheat-Grain milling, Germ (as part-nature) | B6: 7.749008582 | C6: 1.127184457 | D6: 20.25438829 | E6: Wheat-Grain milling, Germ (as part-nature) | F6: 7.7 (1.1 - 20.3)
A7: Oranges-Juicing | B7: 6.006700356 | C7: 2.30929463 | D7: 10.55127528 | E7: Oranges-Juicing | F7: 6 (2.3 - 10.6)
A8: Tomatoes-Pulping / mashing | B8: 3.467262092 | C8: 1.752621506 | D8: 5.569261419 | E8: Tomatoes-Pulping / mashing | F8: 3.5 (1.8 - 5.6)
A9: Lettuces-Unspecified | B9: 3.196525458 | C9: 2.039686302 | D9: 4.673094601 | E9: Lettuces-Unspecified | F9: 3.2 (2 - 4.7)
A10: Tomatoes-Drying (dehydration) | B10: 2.703088171 | C10: 0.4627516962 | D10: 5.703888951 | E10: Tomatoes-Drying (dehydration) | F10: 2.7 (0.5 - 5.7)
A11: Wine grapes-Distillation | B11: 2.490126653 | C11: 0.607712513 | D11: 5.85932405 | E11: Wine grapes-Distillation | F11: 2.5 (0.6 - 5.9)
A12: Apples-Unspecified | B12: 2.439446914 | C12: 1.042686897 | D12: 3.849978685 | E12: Apples-Unspecified | F12: 2.4 (1 - 3.8)
A13: Tomatoes-Unspecified | B13: 2.08959749 | C13: 1.25912029 | D13: 3.160999808 | E13: Tomatoes-Unspecified | F13: 2.1 (1.3 - 3.2)
A14: Potatoes-Cooking in water | B14: 2.086253378 | C14: 1.33441396 | D14: 2.754321029 | E14: Potatoes-Cooking in water | F14: 2.1 (1.3 - 2.8)
A15: Table grapes-Juicing | B15: 1.931075334 | C15: 0.05596314592 | D15: 4.95237559 | E15: Table grapes-Juicing | F15: 1.9 (0.1 - 5)
A16: Rye-Grain milling, Flour/meal or finely ground powder (as part-nature), White/refined | B16: 1.647553168 | C16: 0.918273873 | D16: 2.257534168 | E16: Rye-Grain milling, Flour/meal or finely ground powder (as part-nature), White/refined | F16: 1.6 (0.9 - 2.3)
A17: Table grapes-Drying (dehydration) | B17: 1.588736783 | C17: 0.3789842462 | D17: 3.4456291 | E17: Table grapes-Drying (dehydration) | F17: 1.6 (0.4 - 3.4)
A18: Drinking water-Unspecified | B18: 1.274347083 | C18: 1.088393602 | D18: 1.483421197 | E18: Drinking water-Unspecified | F18: 1.3 (1.1 - 1.5)
A19: Rye-Grain milling, Flour/meal or finely ground powder (as part-nature), Integral /not refined | B19: 1.268258903 | C19: 0.4804319654 | D19: 2.542970152 | E19: Rye-Grain milling, Flour/meal or finely ground powder (as part-nature), Integral /not refined | F19: 1.3 (0.5 - 2.5)
A20: Oranges-Juicing, Concentration / evaporation | B20: 1.185639807 | C20: 0.05646845754 | D20: 2.895973528 | E20: Oranges-Juicing, Concentration / evaporation | F20: 1.2 (0.1 - 2.9)
A21: Mandarins-Juicing | B21: 0.9946021415 | C21: 0.0755144077 | D21: 2.332908226
A22: Wine grapes-Unspecified | B22: 0.9818231363 | C22: 0.3019983355 | D22: 1.788849718
A23: Wheat-Grain milling, Semolina or coarse ground powder (as part-nature) | B23: 0.858092365 | C23: 0.5801888233 | D23: 1.32861895
A24: Melons-Unspecified | B24: 0.6621705393 | C24: 0.09621230517 | D24: 1.560588663
A25: Rice-Polishing, Cooking in water | B25: 0.6562715613 | C25: 0.3715839092 | D25: 1.044985362
A26: Spinaches-Freezing | B26: 0.594777373 | C26: 0 | D26: 2.16627183
A27: Pears-Unspecified | B27: 0.587929775 | C27: 0.2581172193 | D27: 1.122562452
A28: Cucumbers-Unspecified | B28: 0.5403260707 | C28: 0.2355366726 | D28: 0.9361248352
A29: Wheat-Grain milling, Oil production, Germ (as part-nature) | B29: 0.5105989788 | C29: 0 | D29: 1.702304359
A30: Bananas-Unspecified | B30: 0.4691337807 | C30: 0.2702233149 | D30: 0.6842526662
A31: Sweet peppers/bell peppers-Unspecified | B31: 0.4457575224 | C31: 0.1969494185 | D31: 0.8680777585
A32: Potatoes-Frying | B32: 0.3885390092 | C32: 0.1797843637 | D32: 0.7011779586
A33: Oat-Flattening / rolling | B33: 0.3622938054 | C33: 0.1782723473 | D33: 0.6013071985
A34: Potatoes-Roasting | B34: 0.3522160372 | C34: 0.03443447698 | D34: 0.7641615876
A35: Apples-Cooking and similar thermal preparation processes | B35: 0.3447984438 | C35: 0.118115816 | D35: 0.6069391094
A36: Wine grapes-Bacteria fermentation | B36: 0.3413290567 | C36: 0.217959396 | D36: 0.5019189377
A37: Potatoes-Cooking in water, Pulping / mashing | B37: 0.3373030719 | C37: 0.1115828829 | D37: 0.6246724239
A38: Tomatoes-Juicing | B38: 0.3342153528 | C38: 0 | D38: 2.225267424
A39: Head cabbages-Unspecified | B39: 0.3304091044 | C39: 0.1473080713 | D39: 0.6052157879
A40: Rice-Grain milling, Flour/meal or finely ground powder (as part-nature) | B40: 0.3145237147 | C40: 0.1783721774 | D40: 0.4589713271
A41: Tomatoes-Pulping / mashing, Concentration / evaporation | B41: 0.3074995567 | C41: 0.0850444564 | D41: 1.140118602
A42: Carrots-Unspecified | B42: 0.2892580442 | C42: 0.0805566043 | D42: 0.6793219831
A43: Head cabbages-Fermentation | B43: 0.284479309 | C43: 0.07162327238 | D43: 0.5162317764
A44: Apples-Drying (dehydration) | B44: 0.2830165055 | C44: 0.005408566964 | D44: 0.801286448
A45: Cauliflowers-Unspecified | B45: 0.2773756225 | C45: 0.07719942486 | D45: 0.5404012387
A46: Wheat-Grain milling, Flour/meal or finely ground powder (as part-nature), Semi-refined | B46: 0.2771058378 | C46: 0.1277210858 | D46: 0.4792335468
A47: Tomatoes-Canning / jarring | B47: 0.2584619866 | C47: 0.1034706293 | D47: 0.502795221
A48: Courgettes-Unspecified | B48: 0.2429906014 | C48: 0.1047693227 | D48: 0.4556742713
A49: Pears-Cooking and similar thermal preparation processes | B49: 0.2364231835 | C49: 0 | D49: 0.6806474356
A50: Carrots-Juicing | B50: 0.2134621495 | C50: 0.01105516493 | D50: 0.6821307019
A51: Broccoli-Unspecified | B51: 0.1913249138 | C51: 0.0677114634 | D51: 0.3682439111
A52: Strawberries-Unspecified | B52: 0.187882184 | C52: 0.03653088951 | D52: 0.3779099399
A53: Oat-Grain milling, Bran (as part-nature) | B53: 0.1868840846 | C53: 0.01065865011 | D53: 0.5027532454
A54: Rye-Grain milling, Flour/meal or finely ground powder (as part-nature), Semi-refined | B54: 0.173821409 | C54: 0.09852512438 | D54: 0.2465440947
A55: Apples-Winemaking | B55: 0.1500984711 | C55: 0.02702158435 | D55: 0.384713358
A56: Potatoes-Deep frying, Slicing | B56: 0.1489952652 | C56: 0.05261604633 | D56: 0.2916025081
A57: Oranges-Unspecified | B57: 0.1454275218 | C57: 0.0577891818 | D57: 0.2290862392
A58: Strawberries-Cooking and similar thermal preparation processes | B58: 0.1408454506 | C58: 0.08436948906 | D58: 0.2371609826
A59: Rice-Puffing / expanding | B59: 0.1141681821 | C59: 0.01247891705 | D59: 0.3439270762
A60: Potatoes-Frying, Dicing and stripe-cutting | B60: 0.1136494694 | C60: 0.01453193657 | D60: 0.2816366264
A61: Wheat-Grain milling, Flour/meal or finely ground powder (as part-nature), Integral /not refined | B61: 0.1132151627 | C61: 0.03884462595 | D61: 0.2321652181
A62: Carrots-Cooking in water | B62: 0.1098391631 | C62: 0.05098179748 | D62: 0.1848521437
A63: Aubergines/eggplants-Unspecified | B63: 0.09803556739 | C63: 0 | D63: 0.6569636751
A64: Spinaches-Unspecified | B64: 0.09086761079 | C64: 0 | D64: 0.3048928205
A65: Wheat-Flattening / rolling | B65: 0.0889055003 | C65: 0.03531297454 | D65: 0.1645473663
A66: Beans (with pods)-Unspecified | B66: 0.08105130095 | C66: 0.029865812 | D66: 0.1990172209
A67: Mandarins-Unspecified | B67: 0.07757914415 | C67: 0.0264048668 | D67: 0.1486783905 | E67: =IF(B67>1,A67,"") ->  | F67: =IF(B67>1,CONCATENATE(ROUND(B67,1)," ","(",ROUND(C67,1)," ","-"," ",ROUND(D67,1),")"),"") -> 
A68: Potatoes-Drying (dehydration), Grinding / milling / crushing | B68: 0.06955048666 | C68: 0 | D68: 0.2089781713
A69: Rice-Cooking in water | B69: 0.06882561801 | C69: 0 | D69: 0.1732504483
A70: Table grapes-Unspecified | B70: 0.06673196861 | C70: 0.01821834212 | D70: 0.1247402195
A71: Olives for oil production-Oil production, Vegetable fats and oils (as part-nature) | B71: 0.06476452316 | C71: 0.03760970861 | D71: 0.1074947716
A72: Peaches-Unspecified | B72: 0.06243459748 | C72: 0.01339342034 | D72: 0.1285253074
A73: Potatoes-Flaking | B73: 0.05900126126 | C73: 0.004069575911 | D73: 0.1452008265
A74: Sweet peppers/bell peppers-Drying (dehydration), Grinding / milling / crushing | B74: 0.05626636259 | C74: 0.02856227802 | D74: 0.09259893499
A75: Oat-Grain milling, Semolina or coarse ground powder (as part-nature) | B75: 0.05612553107 | C75: 0 | D75: 0.3340875708
A76: Carrots-Stewing | B76: 0.04647747747 | C76: 0.02011214975 | D76: 0.08940266034
A77: Leeks-Unspecified | B77: 0.03285289748 | C77: 0.001467238326 | D77: 0.1116169362
A78: Potatoes-Starch production | B78: 0.02858049592 | C78: 0.004657708226 | D78: 0.0765293346
A79: Wheat-Flaking | B79: 0.02783028538 | C79: 0.007328468399 | D79: 0.06599942567
A80: Cauliflowers-Cooking and similar thermal preparation processes | B80: 0.02742311496 | C80: 0.002056898391 | D80: 0.065471172
A81: Peas (without pods)-Cooking in water | B81: 0.02692644153 | C81: 0.01009434409 | D81: 0.04878237995
A82: Spinaches-Cooking in water | B82: 0.02466814769 | C82: 0.004388665314 | D82: 0.04695472102
A83: Bananas-Drying (dehydration) | B83: 0.02355195334 | C83: 0.0007670636009 | D83: 0.06685298218
A84: Wheat-Distillation | B84: 0.01803231248 | C84: 0 | D84: 0.05832101908
A85: Peas (without pods)-Unspecified | B85: 0.0179094613 | C85: 0.006857454902 | D85: 0.03367867081
A86: Beans (with pods)-Cooking and similar thermal preparation processes | B86: 0.0178413467 | C86: 0.003552527612 | D86: 0.03361351364
A87: Rye-Toasting / coffee roasting, Grinding / milling / crushing | B87: 0.01615110753 | C87: 0 | D87: 0.03673508466
A88: Leeks-Cooking and similar thermal preparation processes | B88: 0.01562743293 | C88: 0 | D88: 0.05108144186
A89: Carrots-Cooking and similar thermal preparation processes | B89: 0.0131678735 | C89: 0.000923266157 | D89: 0.02969256858
A90: Broccoli-Stewing | B90: 0.01178351958 | C90: 0 | D90: 0.02743494458
A91: Wheat-Grain milling, Bran (as part-nature) | B91: 0.01158856395 | C91: 0 | D91: 0.04890139836
A92: Tomatoes-Drying (dehydration), Grinding / milling / crushing | B92: 0.008055767113 | C92: 0 | D92: 0.03593455445
A93: Spinaches-Drying (dehydration), Grinding / milling / crushing | B93: 0.007843702337 | C93: 0 | D93: 0.03303627088
A94: Tomatoes-Cooking and similar thermal preparation processes | B94: 0.005575503333 | C94: 0 | D94: 0.0178333846
A95: Wheat-Puffing / expanding | B95: 0.00555013034 | C95: 0 | D95: 0.0268460691
A96: Sweet peppers/bell peppers-Frying | B96: 0.003418752872 | C96: 0 | D96: 0.01324685318
A97: Pears-Juicing, Concentration / evaporation | B97: 0.00290140304 | C97: 0 | D97: 0.01185862209
A98: Apples-Juicing, Concentration / evaporation | B98: 0.001487187862 | C98: 0 | D98: 0.006301794664
A99: Rye-Flaking | B99: 0.00148083703 | C99: 0 | D99: 0.006750807089
A100: Strawberries-Juicing | B100: 0.001442496369 | C100: 0 | D100: 0.006252448729
A101: Head cabbages-Cooking and similar thermal preparation processes | B101: 0.001362110191 | C101: 0 | D101: 0.003272725522
A102: Sweet peppers/bell peppers-Cooking and similar thermal preparation processes | B102: 0.0009173220204 | C102: 0.0001401882543 | D102: 0.003582302437
A103: Mandarins-Juicing, Concentration / evaporation | B103: 0.0004944980272 | C103: 0 | D103: 0.002341980465
A104: Strawberries-Drying (dehydration) | B104: 0.0002903369309 | C104: 0 | D104: 0.001164146052
A105: Oranges-Unspecified, Only peel | B105: 4.744809805e-05 | C105: 0 | D105: 0.0001233208225
A106: Peaches-Juicing, Concentration / evaporation | B106: 2.858331568e-05 | C106: 0 | D106: 0.0001233734913
A107: Bananas-Pulping / mashing | B107: 8.683191726e-06 | C107: 0 | D107: 4.386170212e-05

Sheet utFaE_DK (hidden)
A1: Food name | B1: Mean contribution | C1: Lower bound (%) (p2,5) | D1: Upper bound (%) (p97,5) | E1: Food As Eaten | F1: % contribution (95% CI)
A2: Oranges-Juicing | B2: 18.31198296 | C2: 7.087202278 | D2: 29.90729748 | E2: =IF(B2>1,A2,"") -> Oranges-Juicing | F2: =IF(B2>1,CONCATENATE(ROUND(B2,1)," ","(",ROUND(C2,1)," ","-"," ",ROUND(D2,1),")"),"") -> 18.3 (7.1 - 29.9)
A3: Wheat-Grain milling, Flour/meal or finely ground powder (as part-nature), White/refined | B3: 14.3047011 | C3: 10.06713495 | D3: 18.78917133 | E3: =IF(B3>1,A3,"") -> Wheat-Grain milling, Flour/meal or finely ground powder (as part-nature), White/refined | F3: =IF(B3>1,CONCATENATE(ROUND(B3,1)," ","(",ROUND(C3,1)," ","-"," ",ROUND(D3,1),")"),"") -> 14.3 (10.1 - 18.8)
A4: Apples-Juicing | B4: 13.69954585 | C4: 5.06176406 | D4: 23.13738137 | E4: Apples-Juicing | F4: 13.7 (5.1 - 23.1)
A5: Potatoes-Unspecified | B5: 5.411688759 | C5: 2.158921745 | D5: 9.841896057 | E5: Potatoes-Unspecified | F5: 5.4 (2.2 - 9.8)
A6: Oat-Flattening / rolling | B6: 4.264364031 | C6: 2.146251841 | D6: 6.842486016 | E6: Oat-Flattening / rolling | F6: 4.3 (2.1 - 6.8)
A7: Rye-Grain milling, Flour/meal or finely ground powder (as part-nature), Integral /not refined | B7: 3.779444613 | C7: 2.494735527 | D7: 5.71098423 | E7: Rye-Grain milling, Flour/meal or finely ground powder (as part-nature), Integral /not refined | F7: 3.8 (2.5 - 5.7)
A8: Rye-Grain milling, Flour/meal or finely ground powder (as part-nature), White/refined | B8: 3.646273476 | C8: 2.33785987 | D8: 5.543669862 | E8: Rye-Grain milling, Flour/meal or finely ground powder (as part-nature), White/refined | F8: 3.6 (2.3 - 5.5)
A9: Cucumbers-Unspecified | B9: 3.193101514 | C9: 1.483741306 | D9: 5.126075226 | E9: Cucumbers-Unspecified | F9: 3.2 (1.5 - 5.1)
A10: Melons-Unspecified | B10: 2.991903331 | C10: 0.1925379643 | D10: 9.015595891 | E10: Melons-Unspecified | F10: 3 (0.2 - 9)
A11: Pears-Unspecified | B11: 2.801872643 | C11: 1.327787823 | D11: 4.33692727 | E11: Pears-Unspecified | F11: 2.8 (1.3 - 4.3)
A12: Tomatoes-Unspecified | B12: 2.736941919 | C12: 0.9883775368 | D12: 4.985972303 | E12: Tomatoes-Unspecified | F12: 2.7 (1 - 5)
A13: Table grapes-Drying (dehydration) | B13: 2.427634057 | C13: 1.060187558 | D13: 4.034886749 | E13: Table grapes-Drying (dehydration) | F13: 2.4 (1.1 - 4)
A14: Apples-Unspecified | B14: 2.201012037 | C14: 1.157066183 | D14: 3.371506893 | E14: Apples-Unspecified | F14: 2.2 (1.2 - 3.4)
A15: Oranges-Juicing, Concentration / evaporation | B15: 2.17890069 | C15: 0.3461044659 | D15: 4.960225134 | E15: Oranges-Juicing, Concentration / evaporation | F15: 2.2 (0.3 - 5)
A16: Pears-Juicing, Concentration / evaporation | B16: 1.945231559 | C16: 0.2943101794 | D16: 4.381010809 | E16: Pears-Juicing, Concentration / evaporation | F16: 1.9 (0.3 - 4.4)
A17: Table grapes-Unspecified | B17: 1.73009614 | C17: 0.4715711281 | D17: 3.984492008 | E17: Table grapes-Unspecified | F17: 1.7 (0.5 - 4)
A18: Bananas-Unspecified | B18: 1.32769908 | C18: 0.6410465828 | D18: 2.29336832 | E18: Bananas-Unspecified | F18: 1.3 (0.6 - 2.3)
A19: Tomatoes-Canning / jarring | B19: 1.232520302 | C19: 0.4346499701 | D19: 2.83536612 | E19: Tomatoes-Canning / jarring | F19: 1.2 (0.4 - 2.8)
A20: Rice-Polishing | B20: 1.136953404 | C20: 0.3236958952 | D20: 2.254007744 | E20: Rice-Polishing | F20: 1.1 (0.3 - 2.3)
A21: Wheat-Grain milling, Semolina or coarse ground powder (as part-nature) | B21: 1.103292453 | C21: 0.3865124248 | D21: 2.542512736 | E21: Wheat-Grain milling, Semolina or coarse ground powder (as part-nature) | F21: 1.1 (0.4 - 2.5)
A22: Wheat-Grain milling, Flour/meal or finely ground powder (as part-nature), Semi-refined | B22: 1.053085329 | C22: 0.3613208118 | D22: 2.046504659 | E22: Wheat-Grain milling, Flour/meal or finely ground powder (as part-nature), Semi-refined | F22: 1.1 (0.4 - 2)
A23: Tomatoes-Pulping / mashing | B23: 1.046544511 | C23: 0.4027074607 | D23: 1.758301707 | E23: Tomatoes-Pulping / mashing | F23: 1 (0.4 - 1.8)
A24: Apples-Juicing, Concentration / evaporation | B24: 1.028173348 | C24: 0.1524924893 | D24: 2.380536907 | E24: Apples-Juicing, Concentration / evaporation | F24: 1 (0.2 - 2.4)
A25: Drinking water-Unspecified | B25: 0.9189027658 | C25: 0.5372448669 | D25: 1.374698894
A26: Carrots-Unspecified | B26: 0.8293951182 | C26: 0.3561868724 | D26: 1.401023608
A27: Wheat-Grain milling, Flour/meal or finely ground powder (as part-nature), Integral /not refined | B27: 0.7422622932 | C27: 0.4232309032 | D27: 1.162178791
A28: Rice-Polishing, Parboiling / pre-gelatinising | B28: 0.6425282957 | C28: 0.196053646 | D28: 1.464984501
A29: Oranges-Unspecified | B29: 0.4104753686 | C29: 0.1037408115 | D29: 0.9419779728
A30: Sweet peppers/bell peppers-Unspecified | B30: 0.3826419704 | C30: 0.179380762 | D30: 0.6040342956
A31: Mandarins-Juicing, Concentration / evaporation | B31: 0.3279308099 | C31: 0.04998660407 | D31: 0.7059776679
A32: Mandarins-Juicing | B32: 0.2440569567 | C32: 0.06863148841 | D32: 0.5654546359
A33: Strawberries-Unspecified | B33: 0.2311736005 | C33: 0.05415585667 | D33: 0.4974088696
A34: Head cabbages-Unspecified | B34: 0.1812491531 | C34: 0.02841691342 | D34: 0.4117315286
A35: Peaches-Unspecified | B35: 0.1501270585 | C35: 0 | D35: 0.4003748959
A36: Oranges-Cooking and similar thermal preparation processes, With peel | B36: 0.1152241975 | C36: 0.04382310717 | D36: 0.268892597
A37: Potatoes-Frying, Dicing and stripe-cutting | B37: 0.1106218562 | C37: 0 | D37: 0.3182058436
A38: Potatoes-Deep frying, Slicing | B38: 0.1030257961 | C38: 0 | D38: 0.2724324332
A39: Potatoes-Drying (dehydration), Grinding / milling / crushing | B39: 0.09548121686 | C39: 0.005590541014 | D39: 0.2429871485
A40: Wine grapes-Bacteria fermentation | B40: 0.08849481486 | C40: 0.04508272837 | D40: 0.1423714904
A41: Leeks-Unspecified | B41: 0.0831825141 | C41: 0 | D41: 0.2842700136
A42: Courgettes-Unspecified | B42: 0.0782891317 | C42: 0.01304079234 | D42: 0.1875510412
A43: Lettuces-Unspecified | B43: 0.06786759059 | C43: 0.007551889114 | D43: 0.1854889167
A44: Beans (with pods)-Unspecified | B44: 0.06074234298 | C44: 0.01253329598 | D44: 0.1164294662
A45: Peas (without pods)-Unspecified | B45: 0.05274617634 | C45: 0.02147824677 | D45: 0.102092104
A46: Broccoli-Unspecified | B46: 0.05111530403 | C46: 0 | D46: 0.152110344
A47: Sweet peppers/bell peppers-Drying (dehydration), Grinding / milling / crushing | B47: 0.04479547834 | C47: 0.01916782701 | D47: 0.07435737911
A48: Cauliflowers-Unspecified | B48: 0.0424864169 | C48: 0 | D48: 0.1099754626
A49: Potatoes-Frying | B49: 0.04181380135 | C49: 0.002481338656 | D49: 0.1192197689
A50: Rice-Puffing / expanding | B50: 0.03915757362 | C50: 0 | D50: 0.1880228203
A51: Strawberries-Juicing | B51: 0.03739167319 | C51: 0.006869778678 | D51: 0.07612583427
A52: Aubergines/eggplants-Unspecified | B52: 0.02669230126 | C52: 0.004984234048 | D52: 0.0685084719
A53: Olives for oil production-Oil production, Vegetable fats and oils (as part-nature) | B53: 0.02549484596 | C53: 0.01203867044 | D53: 0.04369980012
A54: Table grapes-Juicing | B54: 0.02427366532 | C54: 0 | D54: 0.05851355303
A55: Peaches-Juicing, Concentration / evaporation | B55: 0.01921405362 | C55: 0.003015627118 | D55: 0.04296381456
A56: Spinaches-Unspecified | B56: 0.01758180927 | C56: 0 | D56: 0.07612105339
A57: Wheat-Flaking | B57: 0.01476421043 | C57: 0 | D57: 0.08678165886
A58: Apples-Drying (dehydration) | B58: 0.008115013928 | C58: 0 | D58: 0.03880478253
A59: Pears-Canning / jarring | B59: 0.007718089292 | C59: 0 | D59: 0.0325043127
A60: Potatoes-Starch production | B60: 0.007492315295 | C60: 0.002803346693 | D60: 0.01293314034
A61: Bananas-Pulping / mashing | B61: 0.0056526244 | C61: 0.0008655147039 | D61: 0.01254978459
A62: Sweet peppers/bell peppers-Cooking and similar thermal preparation processes | B62: 0.004572063633 | C62: 0.002102401125 | D62: 0.007534461337
A63: Bananas-Drying (dehydration) | B63: 0.002502322928 | C63: 0 | D63: 0.01202052442
A64: Tomatoes-Pulping / mashing, Concentration / evaporation | B64: 0.002427510928 | C64: 0 | D64: 0.01061865917
A65: Carrots-Cooking in water | B65: 0.002029526746 | C65: 0.001064954663 | D65: 0.003184871247
A66: Peaches-Canning / jarring | B66: 0.00160952548 | C66: 0 | D66: 0.006555779479
A67: Baby foods other than processed cereal-based foods-Processed | B67: 0.0004034061822 | C67: 0 | D67: 0.002173725226 | E67: =IF(B67>1,A67,"") ->  | F67: =IF(B67>1,CONCATENATE(ROUND(B67,1)," ","(",ROUND(C67,1)," ","-"," ",ROUND(D67,1),")"),"") -> 

Sheet utFaE_FR (hidden)
A1: Food name | B1: Mean contribution | C1: Lower bound (%) (p2,5) | D1: Upper bound (%) (p97,5) | E1: Food As Eaten | F1: % contribution (95% CI)
A2: Oranges-Juicing | B2: 27.2682962 | C2: 10.45577336 | D2: 43.47254375 | E2: =IF(B2>1,A2,"") -> Oranges-Juicing | F2: =IF(B2>1,CONCATENATE(ROUND(B2,1)," ","(",ROUND(C2,1)," ","-"," ",ROUND(D2,1),")"),"") -> 27.3 (10.5 - 43.5)
A3: Wheat-Grain milling, Flour/meal or finely ground powder (as part-nature), White/refined | B3: 14.5773237 | C3: 9.424115171 | D3: 18.43422255 | E3: =IF(B3>1,A3,"") -> Wheat-Grain milling, Flour/meal or finely ground powder (as part-nature), White/refined | F3: =IF(B3>1,CONCATENATE(ROUND(B3,1)," ","(",ROUND(C3,1)," ","-"," ",ROUND(D3,1),")"),"") -> 14.6 (9.4 - 18.4)
A4: Potatoes-Cooking in water | B4: 4.822732329 | C4: 0.3687010797 | D4: 9.781216036 | E4: Potatoes-Cooking in water | F4: 4.8 (0.4 - 9.8)
A5: Wheat-Grain milling, Semolina or coarse ground powder (as part-nature) | B5: 4.34100153 | C5: 2.033374467 | D5: 9.714560341 | E5: Wheat-Grain milling, Semolina or coarse ground powder (as part-nature) | F5: 4.3 (2 - 9.7)
A6: Tomatoes-Unspecified | B6: 3.870415431 | C6: 1.702462136 | D6: 5.756807092 | E6: Tomatoes-Unspecified | F6: 3.9 (1.7 - 5.8)
A7: Melons-Unspecified | B7: 3.344482758 | C7: 1.07783842 | D7: 10.27902745 | E7: Melons-Unspecified | F7: 3.3 (1.1 - 10.3)
A8: Tomatoes-Pulping / mashing | B8: 3.076559743 | C8: 0 | D8: 9.222079413 | E8: Tomatoes-Pulping / mashing | F8: 3.1 (0 - 9.2)
A9: Tomatoes-Pulping / mashing, Concentration / evaporation | B9: 2.921903681 | C9: 0.06555424859 | D9: 9.272815093 | E9: Tomatoes-Pulping / mashing, Concentration / evaporation | F9: 2.9 (0.1 - 9.3)
A10: Mandarins-Juicing | B10: 2.726019005 | C10: 0 | D10: 6.606326759 | E10: Mandarins-Juicing | F10: 2.7 (0 - 6.6)
A11: Pears-Unspecified | B11: 2.700980788 | C11: 0 | D11: 6.060540063 | E11: Pears-Unspecified | F11: 2.7 (0 - 6.1)
A12: Table grapes-Juicing | B12: 2.431025873 | C12: 0 | D12: 7.232745342 | E12: Table grapes-Juicing | F12: 2.4 (0 - 7.2)
A13: Potatoes-Drying (dehydration), Grinding / milling / crushing | B13: 2.191997668 | C13: 0.2800383901 | D13: 3.737995334 | E13: Potatoes-Drying (dehydration), Grinding / milling / crushing | F13: 2.2 (0.3 - 3.7)
A14: Wheat-Flaking | B14: 1.877144124 | C14: 0.4120306215 | D14: 4.921260466 | E14: Wheat-Flaking | F14: 1.9 (0.4 - 4.9)
A15: Apples-Cooking and similar thermal preparation processes | B15: 1.679905285 | C15: 0.2467668559 | D15: 6.266597257 | E15: Apples-Cooking and similar thermal preparation processes | F15: 1.7 (0.2 - 6.3)
A16: Potatoes-Frying, Dicing and stripe-cutting | B16: 1.581981592 | C16: 0.1918835667 | D16: 3.532094691 | E16: Potatoes-Frying, Dicing and stripe-cutting | F16: 1.6 (0.2 - 3.5)
A17: Rice-Polishing, Cooking in water | B17: 1.388513136 | C17: 0 | D17: 2.931232253 | E17: Rice-Polishing, Cooking in water | F17: 1.4 (0 - 2.9)
A18: Wheat-Grain milling, Bran (as part-nature) | B18: 1.385256863 | C18: 0.1698102965 | D18: 3.493456921 | E18: Wheat-Grain milling, Bran (as part-nature) | F18: 1.4 (0.2 - 3.5)
A19: Apples-Unspecified | B19: 1.343327619 | C19: 0.6645684779 | D19: 2.119883263 | E19: Apples-Unspecified | F19: 1.3 (0.7 - 2.1)
A20: Beans (with pods)-Unspecified | B20: 1.323978728 | C20: 0.5129702947 | D20: 2.018289831 | E20: Beans (with pods)-Unspecified | F20: 1.3 (0.5 - 2)
A21: Apples-Juicing | B21: 1.29349024 | C21: 0 | D21: 2.931032536 | E21: Apples-Juicing | F21: 1.3 (0 - 2.9)
A22: Cucumbers-Unspecified | B22: 1.008986694 | C22: 0.01390035519 | D22: 1.953244103 | E22: Cucumbers-Unspecified | F22: 1 (0 - 2)
A23: Potatoes-Flaking | B23: 0.917642173 | C23: 0 | D23: 2.787282335
A24: Carrots-Unspecified | B24: 0.891795052 | C24: 0.0867241819 | D24: 2.011238483
A25: Table grapes-Drying (dehydration) | B25: 0.8731533476 | C25: 0.06561521586 | D25: 2.130571654
A26: Drinking water-Unspecified | B26: 0.7672108603 | C26: 0.4418641453 | D26: 1.095057901
A27: Table grapes-Unspecified | B27: 0.7444488236 | C27: 0 | D27: 3.297385108
A28: Cauliflowers-Unspecified | B28: 0.7051155696 | C28: 0 | D28: 2.082564126
A29: Bananas-Unspecified | B29: 0.647204253 | C29: 0.1262850531 | D29: 1.268545642
A30: Courgettes-Unspecified | B30: 0.6471857212 | C30: 0 | D30: 2.339338136
A31: Leeks-Unspecified | B31: 0.4899153966 | C31: 0 | D31: 1.724739934
A32: Broccoli-Unspecified | B32: 0.447507601 | C32: 0 | D32: 1.608954766
A33: Wheat-Cooking in water | B33: 0.4207265223 | C33: 0 | D33: 1.237098694
A34: Potatoes-Deep frying, Slicing | B34: 0.3792215784 | C34: 0 | D34: 1.113289438
A35: Strawberries-Cooking and similar thermal preparation processes | B35: 0.3664261048 | C35: 0 | D35: 1.277485871
A36: Lettuces-Unspecified | B36: 0.2945252764 | C36: 0.01961795519 | D36: 0.9835309792
A37: Wine grapes-Bacteria fermentation | B37: 0.2895302487 | C37: 0.01777659715 | D37: 0.6932816008
A38: Potatoes-Frying | B38: 0.2766205892 | C38: 0 | D38: 0.8459088316
A39: Tomatoes-Canning / jarring | B39: 0.2607967174 | C39: 0 | D39: 1.183521415
A40: Wheat-Grain milling, Flour/meal or finely ground powder (as part-nature), Semi-refined | B40: 0.2114405597 | C40: 0 | D40: 0.7939027
A41: Olives for oil production-Oil production, Vegetable fats and oils (as part-nature) | B41: 0.1779146271 | C41: 0.0333830664 | D41: 0.3574286046
A42: Sweet peppers/bell peppers-Unspecified | B42: 0.147335913 | C42: 0 | D42: 0.3277170127
A43: Oranges-Unspecified | B43: 0.1221154067 | C43: 0 | D43: 0.3164736445
A44: Wine grapes-Winemaking, Red | B44: 0.1157267465 | C44: 0 | D44: 0.3343207972
A45: Strawberries-Unspecified | B45: 0.06662138785 | C45: 0.008763494473 | D45: 0.2117130939
A46: Peas (without pods)-Unspecified | B46: 0.04716559127 | C46: 0 | D46: 0.1059395048
A47: Sweet peppers/bell peppers-Drying (dehydration), Grinding / milling / crushing | B47: 0.0252604593 | C47: 0 | D47: 0.06221148128
A48: Sweet peppers/bell peppers-Cooking and similar thermal preparation processes | B48: 0.003632097465 | C48: 0 | D48: 0.009188408726
A49: Wheat-Starch production | B49: 2.776670971e-06 | C49: 0 | D49: 7.299827115e-06
E67: =IF(B67>1,A67,"") ->  | F67: =IF(B67>1,CONCATENATE(ROUND(B67,1)," ","(",ROUND(C67,1)," ","-"," ",ROUND(D67,1),")"),"") -> 

Sheet utFaE_IT (hidden)
A1: Food name | B1: Mean contribution | C1: Lower bound (%) (p2,5) | D1: Upper bound (%) (p97,5) | E1: Food As Eaten | F1: % contribution (95% CI)
A2: Wheat-Grain milling, Flour/meal or finely ground powder (as part-nature), White/refined | B2: 23.17658064 | C2: 18.3110303 | D2: 27.6116091 | E2: =IF(B2>1,A2,"") -> Wheat-Grain milling, Flour/meal or finely ground powder (as part-nature), White/refined | F2: =IF(B2>1,CONCATENATE(ROUND(B2,1)," ","(",ROUND(C2,1)," ","-"," ",ROUND(D2,1),")"),"") -> 23.2 (18.3 - 27.6)
A3: Wine grapes-Winemaking, Red | B3: 15.12972546 | C3: 4.144282688 | D3: 34.59954834 | E3: =IF(B3>1,A3,"") -> Wine grapes-Winemaking, Red | F3: =IF(B3>1,CONCATENATE(ROUND(B3,1)," ","(",ROUND(C3,1)," ","-"," ",ROUND(D3,1),")"),"") -> 15.1 (4.1 - 34.6)
A4: Wheat-Grain milling, Semolina or coarse ground powder (as part-nature) | B4: 7.475171885 | C4: 5.741147285 | D4: 9.484249076 | E4: Wheat-Grain milling, Semolina or coarse ground powder (as part-nature) | F4: 7.5 (5.7 - 9.5)
A5: Tomatoes-Unspecified | B5: 5.725877532 | C5: 3.68611963 | D5: 8.579511034 | E5: Tomatoes-Unspecified | F5: 5.7 (3.7 - 8.6)
A6: Potatoes-Unspecified | B6: 5.15934803 | C6: 3.207199181 | D6: 7.498710524 | E6: Potatoes-Unspecified | F6: 5.2 (3.2 - 7.5)
A7: Rice-Polishing | B7: 4.536413009 | C7: 1.989631469 | D7: 7.747373074 | E7: Rice-Polishing | F7: 4.5 (2 - 7.7)
A8: Wine grapes-Winemaking, White | B8: 4.165689705 | C8: 1.415781205 | D8: 6.979433117 | E8: Wine grapes-Winemaking, White | F8: 4.2 (1.4 - 7)
A9: Spinaches-Unspecified | B9: 4.063271648 | C9: 1.095522396 | D9: 9.350623736 | E9: Spinaches-Unspecified | F9: 4.1 (1.1 - 9.4)
A10: Oranges-Juicing | B10: 3.971416085 | C10: 0.6817419876 | D10: 8.384870792 | E10: Oranges-Juicing | F10: 4 (0.7 - 8.4)
A11: Courgettes-Unspecified | B11: 3.938893728 | C11: 1.319297266 | D11: 7.544942903 | E11: Courgettes-Unspecified | F11: 3.9 (1.3 - 7.5)
A12: Tomatoes-Canning / jarring | B12: 3.238803178 | C12: 2.183608523 | D12: 4.797263457 | E12: Tomatoes-Canning / jarring | F12: 3.2 (2.2 - 4.8)
A13: Melons-Unspecified | B13: 2.612495937 | C13: 0.6291870155 | D13: 4.668994603 | E13: Melons-Unspecified | F13: 2.6 (0.6 - 4.7)
A14: Apples-Unspecified | B14: 2.582844237 | C14: 1.245813268 | D14: 4.453515213 | E14: Apples-Unspecified | F14: 2.6 (1.2 - 4.5)
A15: Lettuces-Unspecified | B15: 2.568516975 | C15: 1.205972102 | D15: 4.434697077 | E15: Lettuces-Unspecified | F15: 2.6 (1.2 - 4.4)
A16: Wheat-Grain milling, Germ (as part-nature) | B16: 1.958218704 | C16: 0 | D16: 6.810678454 | E16: Wheat-Grain milling, Germ (as part-nature) | F16: 2 (0 - 6.8)
A17: Aubergines/eggplants-Unspecified | B17: 1.037450271 | C17: 0.2338961428 | D17: 2.488696706 | E17: Aubergines/eggplants-Unspecified | F17: 1 (0.2 - 2.5)
A18: Tomatoes-Pulping / mashing | B18: 1.005571935 | C18: 0.4296365772 | D18: 2.033144946 | E18: Tomatoes-Pulping / mashing | F18: 1 (0.4 - 2)
A19: Pears-Unspecified | B19: 0.9462002285 | C19: 0.2369118642 | D19: 1.893851494
A20: Drinking water-Unspecified | B20: 0.8158789187 | C20: 0.5279612662 | D20: 1.05124667
A21: Oranges-Unspecified | B21: 0.751181592 | C21: 0.2823888257 | D21: 1.60952467
A22: Olives for oil production-Oil production, Vegetable fats and oils (as part-nature) | B22: 0.717272338 | C22: 0.4393502743 | D22: 1.071925977
A23: Beans (with pods)-Unspecified | B23: 0.5417452341 | C23: 0.1521549746 | D23: 1.149413649
A24: Carrots-Unspecified | B24: 0.5177857706 | C24: 0.22986129 | D24: 0.8979692323
A25: Apples-Juicing | B25: 0.3864324347 | C25: 0 | D25: 0.7843474358
A26: Rice-Polishing, Cooking in water | B26: 0.3432502691 | C26: 0 | D26: 1.161766579
A27: Bananas-Unspecified | B27: 0.3388162324 | C27: 0.1130606565 | D27: 0.6027907281
A28: Wheat-Grain milling, Flour/meal or finely ground powder (as part-nature), Semi-refined | B28: 0.3338744021 | C28: 0 | D28: 1.636522114
A29: Carrots-Juicing | B29: 0.2830011126 | C29: 0 | D29: 1.58659246
A30: Sweet peppers/bell peppers-Unspecified | B30: 0.1747978917 | C30: 0.0155361175 | D30: 0.381611014
A31: Potatoes-Distillation | B31: 0.1490499773 | C31: 0 | D31: 0.5525543072
A32: Peaches-Unspecified | B32: 0.1447552033 | C32: 0 | D32: 0.434127896
A33: Mandarins-Unspecified | B33: 0.1044965878 | C33: 0 | D33: 0.4163201329
A34: Strawberries-Unspecified | B34: 0.09437468623 | C34: 0.01143340164 | D34: 0.257595442
A35: Peas (without pods)-Unspecified | B35: 0.08763717865 | C35: 0.01373425422 | D35: 0.1978818839
A36: Cauliflowers-Unspecified | B36: 0.08088673921 | C36: 0 | D36: 0.433089254
A37: Potatoes-Drying (dehydration), Grinding / milling / crushing | B37: 0.07885085131 | C37: 0 | D37: 0.5377320081
A38: Wine grapes-Bacteria fermentation | B38: 0.06983654621 | C38: 0.02264223714 | D38: 0.1834704753
A39: Broccoli-Unspecified | B39: 0.06508855296 | C39: 0 | D39: 0.2032967807
A40: Cucumbers-Unspecified | B40: 0.03931297683 | C40: 0 | D40: 0.1054371602
A41: Strawberries-Cooking and similar thermal preparation processes | B41: 0.03349402703 | C41: 0.005695688993 | D41: 0.07131000508
A42: Wheat-Grain milling, Flour/meal or finely ground powder (as part-nature), Integral /not refined | B42: 0.02981150018 | C42: 0 | D42: 0.2314899698
A43: Rice-Puffing / expanding | B43: 0.02499984239 | C43: 0 | D43: 0.1623856848
A44: Oat-Grain milling, Flour/meal or finely ground powder (as part-nature) | B44: 0.0248376403 | C44: 0 | D44: 0.08342267515
A45: Apples-Cooking and similar thermal preparation processes | B45: 0.01886795908 | C45: 0 | D45: 0.05567309896
A46: Sweet peppers/bell peppers-Drying (dehydration), Grinding / milling / crushing | B46: 0.005526817953 | C46: 8.646139001e-05 | D46: 0.01650567497
A47: Potatoes-Starch production | B47: 0.003276103607 | C47: 0.0001285852163 | D47: 0.03369897878
A48: Rice-Grain milling, Flour/meal or finely ground powder (as part-nature) | B48: 0.002566578909 | C48: 0 | D48: 0.008959358161
A49: Rye-Toasting / coffee roasting, Grinding / milling / crushing | B49: 0.001747609515 | C49: 0 | D49: 0.007580747832
A50: Carrots-Cooking in water | B50: 0.001383917735 | C50: 0 | D50: 0.004335550953
A51: Sweet peppers/bell peppers-Cooking and similar thermal preparation processes | B51: 7.277889533e-05 | C51: 0 | D51: 0.000319866462
E67: =IF(B67>1,A67,"") ->  | F67: =IF(B67>1,CONCATENATE(ROUND(B67,1)," ","(",ROUND(C67,1)," ","-"," ",ROUND(D67,1),")"),"") -> 

Sheet utFaE_NL2 (hidden)
A1: Food name | B1: Mean contribution | C1: Lower bound (%) (p2,5) | D1: Upper bound (%) (p97,5) | E1: Food As Eaten | F1: % contribution (95% CI)
A2: Oranges-Juicing | B2: 28.35571932 | C2: 2.242327167 | D2: 67.96274378 | E2: =IF(B2>1,A2,"") -> Oranges-Juicing | F2: =IF(B2>1,CONCATENATE(ROUND(B2,1)," ","(",ROUND(C2,1)," ","-"," ",ROUND(D2,1),")"),"") -> 28.4 (2.2 - 68)
A3: Wheat-Grain milling, Flour/meal or finely ground powder (as part-nature), White/refined | B3: 10.63824156 | C3: 4.275391006 | D3: 19.00630803 | E3: =IF(B3>1,A3,"") -> Wheat-Grain milling, Flour/meal or finely ground powder (as part-nature), White/refined | F3: =IF(B3>1,CONCATENATE(ROUND(B3,1)," ","(",ROUND(C3,1)," ","-"," ",ROUND(D3,1),")"),"") -> 10.6 (4.3 - 19)
A4: Apples-Juicing | B4: 6.814108937 | C4: 0 | D4: 20.23365769 | E4: Apples-Juicing | F4: 6.8 (0 - 20.2)
A5: Oranges-Juicing, Concentration / evaporation | B5: 5.677226761 | C5: 0 | D5: 11.4732567 | E5: Oranges-Juicing, Concentration / evaporation | F5: 5.7 (0 - 11.5)
A6: Potatoes-Cooking in water | B6: 5.211063531 | C6: 0.794739949 | D6: 11.6120579 | E6: Potatoes-Cooking in water | F6: 5.2 (0.8 - 11.6)
A7: Rice-Puffing / expanding | B7: 5.177221389 | C7: 0.2945663251 | D7: 12.83752987 | E7: Rice-Puffing / expanding | F7: 5.2 (0.3 - 12.8)
A8: Wheat-Grain milling, Flour/meal or finely ground powder (as part-nature), Semi-refined | B8: 5.131296762 | C8: 2.023334543 | D8: 7.223986453 | E8: Wheat-Grain milling, Flour/meal or finely ground powder (as part-nature), Semi-refined | F8: 5.1 (2 - 7.2)
A9: Pears-Juicing, Concentration / evaporation | B9: 5.063741304 | C9: 0 | D9: 10.43922529 | E9: Pears-Juicing, Concentration / evaporation | F9: 5.1 (0 - 10.4)
A10: Apples-Juicing, Concentration / evaporation | B10: 2.676890756 | C10: 0 | D10: 5.772091302 | E10: Apples-Juicing, Concentration / evaporation | F10: 2.7 (0 - 5.8)
A11: Spinaches-Freezing | B11: 2.39675184 | C11: 0 | D11: 8.427006183 | E11: Spinaches-Freezing | F11: 2.4 (0 - 8.4)
A12: Bananas-Unspecified | B12: 2.363636195 | C12: 0 | D12: 5.339789752 | E12: Bananas-Unspecified | F12: 2.4 (0 - 5.3)
A13: Apples-Unspecified | B13: 2.171630695 | C13: 0 | D13: 5.359101768 | E13: Apples-Unspecified | F13: 2.2 (0 - 5.4)
A14: Mandarins-Juicing | B14: 2.129076577 | C14: 0 | D14: 7.928267967 | E14: Mandarins-Juicing | F14: 2.1 (0 - 7.9)
A15: Rye-Grain milling, Flour/meal or finely ground powder (as part-nature), Integral /not refined | B15: 1.757645657 | C15: 0 | D15: 5.212866745 | E15: Rye-Grain milling, Flour/meal or finely ground powder (as part-nature), Integral /not refined | F15: 1.8 (0 - 5.2)
A16: Table grapes-Unspecified | B16: 1.683581435 | C16: 0 | D16: 4.881120118 | E16: Table grapes-Unspecified | F16: 1.7 (0 - 4.9)
A17: Melons-Unspecified | B17: 1.514500905 | C17: 0 | D17: 3.902275557 | E17: Melons-Unspecified | F17: 1.5 (0 - 3.9)
A18: Potatoes-Frying, Dicing and stripe-cutting | B18: 1.054583584 | C18: 0 | D18: 3.734981361 | E18: Potatoes-Frying, Dicing and stripe-cutting | F18: 1.1 (0 - 3.7)
A19: Pears-Unspecified | B19: 1.005562622 | C19: 0 | D19: 3.935317317 | E19: Pears-Unspecified | F19: 1 (0 - 3.9)
A20: Tomatoes-Unspecified | B20: 0.9042922001 | C20: 0 | D20: 2.453504867
A21: Mandarins-Juicing, Concentration / evaporation | B21: 0.8529009294 | C21: 0 | D21: 1.734740353
A22: Beans (with pods)-Unspecified | B22: 0.8073041105 | C22: 0 | D22: 2.043929864
A23: Drinking water-Unspecified | B23: 0.7816742911 | C23: 0.1249047967 | D23: 1.64627076
A24: Rice-Grain milling, Flour/meal or finely ground powder (as part-nature) | B24: 0.597611355 | C24: 0 | D24: 2.14779913
A25: Apples-Cooking and similar thermal preparation processes | B25: 0.5420073295 | C25: 0 | D25: 1.857050424
A26: Oat-Flattening / rolling | B26: 0.523876969 | C26: 0 | D26: 1.925682348
A27: Tomatoes-Pulping / mashing | B27: 0.4752301272 | C27: 0 | D27: 1.622048662
A28: Mandarins-Unspecified | B28: 0.3782567764 | C28: 0 | D28: 0.9227081205
A29: Table grapes-Drying (dehydration) | B29: 0.3307764405 | C29: 0 | D29: 1.607373364
A30: Oranges-Unspecified | B30: 0.3272472874 | C30: 0 | D30: 1.180190962
A31: Wheat-Grain milling, Semolina or coarse ground powder (as part-nature) | B31: 0.320746675 | C31: 0.0178398318 | D31: 0.8703982419
A32: Table grapes-Juicing | B32: 0.2333084907 | C32: 0 | D32: 0.8829851491
A33: Cucumbers-Unspecified | B33: 0.2300828964 | C33: 0 | D33: 0.9213161243
A34: Courgettes-Unspecified | B34: 0.2125320815 | C34: 0 | D34: 0.5794614815
A35: Strawberries-Cooking and similar thermal preparation processes | B35: 0.2036706831 | C35: 0 | D35: 0.7315748641
A36: Leeks-Unspecified | B36: 0.1593098065 | C36: 0 | D36: 0.6527247033
A37: Wine grapes-Bacteria fermentation | B37: 0.1482833389 | C37: 0 | D37: 0.5112487042
A38: Carrots-Unspecified | B38: 0.1202153598 | C38: 0.0005259767147 | D38: 0.6772956475
A39: Wheat-Flattening / rolling | B39: 0.1195468104 | C39: 0 | D39: 0.4074413071
A40: Olives for oil production-Oil production, Vegetable fats and oils (as part-nature) | B40: 0.0971677855 | C40: 0.02608567163 | D40: 0.1939626101
A41: Tomatoes-Canning / jarring | B41: 0.08565432609 | C41: 0 | D41: 0.1955036234
A42: Sweet peppers/bell peppers-Unspecified | B42: 0.08473987288 | C42: 0 | D42: 0.2534640195
A43: Potatoes-Deep frying, Slicing | B43: 0.07677128297 | C43: 0 | D43: 0.4773068506
A44: Tomatoes-Pulping / mashing, Concentration / evaporation | B44: 0.06123884311 | C44: 0 | D44: 0.1394825919
A45: Peaches-Juicing, Concentration / evaporation | B45: 0.05044096829 | C45: 0 | D45: 0.1045291144
A46: Aubergines/eggplants-Unspecified | B46: 0.04163442169 | C46: 0 | D46: 0.1789540981
A47: Wine grapes-Winemaking, White | B47: 0.03428988371 | C47: 0 | D47: 0.1588035592
A48: Sweet peppers/bell peppers-Cooking in water | B48: 0.01783045294 | C48: 0 | D48: 0.06690248008
A49: Sweet peppers/bell peppers-Drying (dehydration), Grinding / milling / crushing | B49: 0.0177306374 | C49: 0 | D49: 0.0565964316
A50: Carrots-Stewing | B50: 0.01750648215 | C50: 0 | D50: 0.06722510866
A51: Bananas-Pulping / mashing | B51: 0.01477670561 | C51: 0 | D51: 0.03166076759
A52: Strawberries-Juicing | B52: 0.0111082793 | C52: 0 | D52: 0.04095477467
A53: Beans (with pods)-Cooking and similar thermal preparation processes | B53: 0.008764356936 | C53: 0 | D53: 0.03357628422
A54: Carrots-Cooking in water | B54: 0.002484602514 | C54: 0 | D54: 0.006526343992
A55: Baby foods other than processed cereal-based foods-Processed | B55: 0.001159294209 | C55: 0 | D55: 0.006812952808
A56: Potatoes-Starch production | B56: 0.0009334049288 | C56: 0 | D56: 0.003537955654
A57: Sweet peppers/bell peppers-Cooking and similar thermal preparation processes | B57: 0.0004807865195 | C57: 0 | D57: 0.001803981685
A58: Oranges-Unspecified, Only peel | B58: 0.0002020372952 | C58: 0 | D58: 0.000744554786
E67: =IF(B67>1,A67,"") ->  | F67: =IF(B67>1,CONCATENATE(ROUND(B67,1)," ","(",ROUND(C67,1)," ","-"," ",ROUND(D67,1),")"),"") -> 

Sheet utFaE_NL3_6 (hidden)
A1: Food name | B1: Mean contribution | C1: Lower bound (%) (p2,5) | D1: Upper bound (%) (p97,5) | E1: Food As Eaten | F1: % contribution (95% CI)
A2: Apples-Juicing | B2: 19.5450902 | C2: 10.62914567 | D2: 31.63245118 | E2: =IF(B2>1,A2,"") -> Apples-Juicing | F2: =IF(B2>1,CONCATENATE(ROUND(B2,1)," ","(",ROUND(C2,1)," ","-"," ",ROUND(D2,1),")"),"") -> 19.5 (10.6 - 31.6)
A3: Wheat-Grain milling, Flour/meal or finely ground powder (as part-nature), White/refined | B3: 11.47107072 | C3: 7.148670195 | D3: 17.26045414 | E3: =IF(B3>1,A3,"") -> Wheat-Grain milling, Flour/meal or finely ground powder (as part-nature), White/refined | F3: =IF(B3>1,CONCATENATE(ROUND(B3,1)," ","(",ROUND(C3,1)," ","-"," ",ROUND(D3,1),")"),"") -> 11.5 (7.1 - 17.3)
A4: Oranges-Juicing | B4: 10.25911784 | C4: 4.449518085 | D4: 17.81986474 | E4: Oranges-Juicing | F4: 10.3 (4.4 - 17.8)
A5: Potatoes-Cooking in water | B5: 5.830532679 | C5: 2.536893349 | D5: 10.86439868 | E5: Potatoes-Cooking in water | F5: 5.8 (2.5 - 10.9)
A6: Spinaches-Freezing | B6: 5.550725149 | C6: 1.181979787 | D6: 12.07892521 | E6: Spinaches-Freezing | F6: 5.6 (1.2 - 12.1)
A7: Mandarins-Juicing | B7: 4.646912431 | C7: 1.185471522 | D7: 9.389665617 | E7: Mandarins-Juicing | F7: 4.6 (1.2 - 9.4)
A8: Rice-Puffing / expanding | B8: 3.762191765 | C8: 0.3097990066 | D8: 8.564754984 | E8: Rice-Puffing / expanding | F8: 3.8 (0.3 - 8.6)
A9: Wheat-Grain milling, Flour/meal or finely ground powder (as part-nature), Semi-refined | B9: 3.669491432 | C9: 0.7166569114 | D9: 7.633978154 | E9: Wheat-Grain milling, Flour/meal or finely ground powder (as part-nature), Semi-refined | F9: 3.7 (0.7 - 7.6)
A10: Apples-Unspecified | B10: 3.322556287 | C10: 1.326118626 | D10: 5.280951405 | E10: Apples-Unspecified | F10: 3.3 (1.3 - 5.3)
A11: Lettuces-Unspecified | B11: 2.608046573 | C11: 0 | D11: 6.360498317 | E11: Lettuces-Unspecified | F11: 2.6 (0 - 6.4)
A12: Oranges-Juicing, Concentration / evaporation | B12: 2.486044156 | C12: 0.400075059 | D12: 6.725368447 | E12: Oranges-Juicing, Concentration / evaporation | F12: 2.5 (0.4 - 6.7)
A13: Bananas-Unspecified | B13: 2.308237349 | C13: 1.038261169 | D13: 4.724672672 | E13: Bananas-Unspecified | F13: 2.3 (1 - 4.7)
A14: Pears-Juicing, Concentration / evaporation | B14: 2.224307539 | C14: 0.3521464823 | D14: 5.89055426 | E14: Pears-Juicing, Concentration / evaporation | F14: 2.2 (0.4 - 5.9)
A15: Pears-Unspecified | B15: 1.931630718 | C15: 0 | D15: 5.671091409 | E15: Pears-Unspecified | F15: 1.9 (0 - 5.7)
A16: Table grapes-Unspecified | B16: 1.699252817 | C16: 0 | D16: 4.944537367 | E16: Table grapes-Unspecified | F16: 1.7 (0 - 4.9)
A17: Tomatoes-Pulping / mashing, Concentration / evaporation | B17: 1.406208198 | C17: 0.2667899478 | D17: 3.930058902 | E17: Tomatoes-Pulping / mashing, Concentration / evaporation | F17: 1.4 (0.3 - 3.9)
A18: Apples-Juicing, Concentration / evaporation | B18: 1.365977634 | C18: 0.1950765767 | D18: 3.884210211 | E18: Apples-Juicing, Concentration / evaporation | F18: 1.4 (0.2 - 3.9)
A19: Table grapes-Drying (dehydration) | B19: 1.359005498 | C19: 0.3065666031 | D19: 3.634236382 | E19: Table grapes-Drying (dehydration) | F19: 1.4 (0.3 - 3.6)
A20: Apples-Cooking and similar thermal preparation processes | B20: 1.284324806 | C20: 0.3872578732 | D20: 2.54878391 | E20: Apples-Cooking and similar thermal preparation processes | F20: 1.3 (0.4 - 2.5)
A21: Tomatoes-Unspecified | B21: 1.242513435 | C21: 0.122092817 | D21: 3.406287166 | E21: Tomatoes-Unspecified | F21: 1.2 (0.1 - 3.4)
A22: Drinking water-Unspecified | B22: 1.137694029 | C22: 0.7768038665 | D22: 1.462543971 | E22: Drinking water-Unspecified | F22: 1.1 (0.8 - 1.5)
A23: Potatoes-Cooking in water, Pulping / mashing | B23: 1.093244289 | C23: 0 | D23: 2.880556054 | E23: Potatoes-Cooking in water, Pulping / mashing | F23: 1.1 (0 - 2.9)
A24: Tomatoes-Pulping / mashing | B24: 0.9318549561 | C24: 0.03705979493 | D24: 3.71813042
A25: Potatoes-Frying, Dicing and stripe-cutting | B25: 0.8281199219 | C25: 0.0691239163 | D25: 1.821409312
A26: Beans (with pods)-Unspecified | B26: 0.6967281289 | C26: 0 | D26: 1.870238099
A27: Rye-Grain milling, Flour/meal or finely ground powder (as part-nature), Integral /not refined | B27: 0.6479348568 | C27: 0 | D27: 1.355052845
A28: Cucumbers-Unspecified | B28: 0.5772771023 | C28: 0 | D28: 1.733139922
A29: Oat-Flattening / rolling | B29: 0.5771705183 | C29: 0.04887004126 | D29: 1.150428329
A30: Cauliflowers-Unspecified | B30: 0.5504658332 | C30: 0 | D30: 1.281640493
A31: Carrots-Unspecified | B31: 0.5336204428 | C31: 0.007700558675 | D31: 1.683012864
A32: Rice-Polishing, Cooking in water | B32: 0.5254074521 | C32: 0 | D32: 2.133192275
A33: Tomatoes-Canning / jarring | B33: 0.4925341094 | C33: 0 | D33: 1.381582829
A34: Potatoes-Deep frying, Slicing | B34: 0.3945643699 | C34: 0.02182527963 | D34: 0.7292731362
A35: Mandarins-Unspecified | B35: 0.3809197741 | C35: 0 | D35: 1.368637484
A36: Mandarins-Juicing, Concentration / evaporation | B36: 0.3722102633 | C36: 0.05765898588 | D36: 1.011826013
A37: Wheat-Flattening / rolling | B37: 0.3078584821 | C37: 0 | D37: 0.7025909858
A38: Potatoes-Unspecified | B38: 0.2605325148 | C38: 0 | D38: 0.8965769159
A39: Strawberries-Unspecified | B39: 0.2514363157 | C39: 0 | D39: 0.9106101599
A40: Processed cereal-based foods for infants and young children-Processed | B40: 0.2245616799 | C40: 0.01994990229 | D40: 0.6036108794
A41: Sweet peppers/bell peppers-Unspecified | B41: 0.1641597939 | C41: 0 | D41: 0.4202447194
A42: Wine grapes-Bacteria fermentation | B42: 0.1306384161 | C42: 0.03054344622 | D42: 0.3841496082
A43: Leeks-Unspecified | B43: 0.08340844617 | C43: 0 | D43: 0.242226005
A44: Wheat-Grain milling, Flour/meal or finely ground powder (as part-nature), Integral /not refined | B44: 0.06962171142 | C44: 0 | D44: 0.3218629339
A45: Olives for oil production-Oil production, Vegetable fats and oils (as part-nature) | B45: 0.06652062206 | C45: 0.03089757973 | D45: 0.1120316338
A46: Pears-Canning / jarring | B46: 0.05908214422 | C46: 0 | D46: 0.3495236873
A47: Oranges-Unspecified | B47: 0.0532189862 | C47: 0 | D47: 0.1991656706
A48: Spinaches-Cooking in water | B48: 0.05101420569 | C48: 0 | D48: 0.1911719398
A49: Sweet peppers/bell peppers-Drying (dehydration), Grinding / milling / crushing | B49: 0.02221308356 | C49: 0.002397114348 | D49: 0.05589469544
A50: Peaches-Juicing, Concentration / evaporation | B50: 0.02204845556 | C50: 0.003475237088 | D50: 0.06115652245
A51: Table grapes-Canning / jarring | B51: 0.0202820933 | C51: 0 | D51: 0.1259881563
A52: Peaches-Canning / jarring | B52: 0.01504961161 | C52: 0 | D52: 0.08608729017
A53: Bananas-Pulping / mashing | B53: 0.00640836651 | C53: 0.001044232478 | D53: 0.01677134664
A54: Potatoes-Starch production | B54: 0.006324918535 | C54: 0 | D54: 0.01514710435
A55: Sweet peppers/bell peppers-Cooking and similar thermal preparation processes | B55: 0.004251473163 | C55: 0 | D55: 0.01079388033
A56: Carrots-Cooking in water | B56: 0.001542429194 | C56: 0 | D56: 0.01296914533
E67: =IF(B67>1,A67,"") ->  | F67: =IF(B67>1,CONCATENATE(ROUND(B67,1)," ","(",ROUND(C67,1)," ","-"," ",ROUND(D67,1),")"),"") -> 

Sheet utFaE_UK (hidden)
A1: Food name | B1: Mean contribution | C1: Lower bound (%) (p2,5) | D1: Upper bound (%) (p97,5) | E1: Food As Eaten | F1: % contribution (95% CI)
A2: Wheat-Grain milling, Flour/meal or finely ground powder (as part-nature), White/refined | B2: 11.40535624 | C2: 7.192764588 | D2: 16.03489959 | E2: =IF(B2>1,A2,"") -> Wheat-Grain milling, Flour/meal or finely ground powder (as part-nature), White/refined | F2: =IF(B2>1,CONCATENATE(ROUND(B2,1)," ","(",ROUND(C2,1)," ","-"," ",ROUND(D2,1),")"),"") -> 11.4 (7.2 - 16)
A3: Oat-Flattening / rolling | B3: 10.90623648 | C3: 0.9529081208 | D3: 28.42523095 | E3: =IF(B3>1,A3,"") -> Oat-Flattening / rolling | F3: =IF(B3>1,CONCATENATE(ROUND(B3,1)," ","(",ROUND(C3,1)," ","-"," ",ROUND(D3,1),")"),"") -> 10.9 (1 - 28.4)
A4: Wheat-Grain milling, Semolina or coarse ground powder (as part-nature) | B4: 7.801540418 | C4: 3.190232717 | D4: 12.50786322 | E4: Wheat-Grain milling, Semolina or coarse ground powder (as part-nature) | F4: 7.8 (3.2 - 12.5)
A5: Potatoes-Cooking in water | B5: 5.801525158 | C5: 2.272940649 | D5: 9.30694528 | E5: Potatoes-Cooking in water | F5: 5.8 (2.3 - 9.3)
A6: Oranges-Juicing | B6: 5.741126669 | C6: 0.9330928781 | D6: 13.36143202 | E6: Oranges-Juicing | F6: 5.7 (0.9 - 13.4)
A7: Table grapes-Drying (dehydration) | B7: 4.928519405 | C7: 1.52255151 | D7: 9.49859328 | E7: Table grapes-Drying (dehydration) | F7: 4.9 (1.5 - 9.5)
A8: Rice-Puffing / expanding | B8: 4.277686493 | C8: 1.654074969 | D8: 6.875030135 | E8: Rice-Puffing / expanding | F8: 4.3 (1.7 - 6.9)
A9: Tomatoes-Pulping / mashing | B9: 3.956389987 | C9: 0.9791697834 | D9: 7.590811122 | E9: Tomatoes-Pulping / mashing | F9: 4 (1 - 7.6)
A10: Mandarins-Juicing | B10: 3.954970997 | C10: 0 | D10: 11.83392483 | E10: Mandarins-Juicing | F10: 4 (0 - 11.8)
A11: Tomatoes-Canning / jarring | B11: 3.903289111 | C11: 1.679069478 | D11: 7.324169371 | E11: Tomatoes-Canning / jarring | F11: 3.9 (1.7 - 7.3)
A12: Potatoes-Roasting | B12: 2.81577744 | C12: 0 | D12: 10.27653875 | E12: Potatoes-Roasting | F12: 2.8 (0 - 10.3)
A13: Apples-Juicing | B13: 2.381688724 | C13: 0.9420653124 | D13: 4.378119046 | E13: Apples-Juicing | F13: 2.4 (0.9 - 4.4)
A14: Rice-Grain milling, Flour/meal or finely ground powder (as part-nature) | B14: 2.137942509 | C14: 0.04059662678 | D14: 7.657582229 | E14: Rice-Grain milling, Flour/meal or finely ground powder (as part-nature) | F14: 2.1 (0 - 7.7)
A15: Pears-Unspecified | B15: 1.984408583 | C15: 0.4461050915 | D15: 3.99516058 | E15: Pears-Unspecified | F15: 2 (0.4 - 4)
A16: Bananas-Unspecified | B16: 1.934897996 | C16: 0.9333108849 | D16: 3.201107431 | E16: Bananas-Unspecified | F16: 1.9 (0.9 - 3.2)
A17: Rice-Polishing, Cooking in water | B17: 1.916367027 | C17: 0.1965837342 | D17: 4.886677196 | E17: Rice-Polishing, Cooking in water | F17: 1.9 (0.2 - 4.9)
A18: Table grapes-Unspecified | B18: 1.895870329 | C18: 0.8088010164 | D18: 3.887635923 | E18: Table grapes-Unspecified | F18: 1.9 (0.8 - 3.9)
A19: Potatoes-Cooking in water, Pulping / mashing | B19: 1.880621952 | C19: 0.3658838787 | D19: 3.596923778 | E19: Potatoes-Cooking in water, Pulping / mashing | F19: 1.9 (0.4 - 3.6)
A20: Potatoes-Frying, Dicing and stripe-cutting | B20: 1.840379705 | C20: 0.4617534554 | D20: 4.582932723 | E20: Potatoes-Frying, Dicing and stripe-cutting | F20: 1.8 (0.5 - 4.6)
A21: Tomatoes-Pulping / mashing, Concentration / evaporation | B21: 1.736121869 | C21: 0.5368612146 | D21: 2.840763081 | E21: Tomatoes-Pulping / mashing, Concentration / evaporation | F21: 1.7 (0.5 - 2.8)
A22: Wheat-Grain milling, Flour/meal or finely ground powder (as part-nature), Semi-refined | B22: 1.70198386 | C22: 0 | D22: 3.561450648 | E22: Wheat-Grain milling, Flour/meal or finely ground powder (as part-nature), Semi-refined | F22: 1.7 (0 - 3.6)
A23: Wheat-Flaking | B23: 1.389381524 | C23: 0.4394916144 | D23: 2.627339069 | E23: Wheat-Flaking | F23: 1.4 (0.4 - 2.6)
A24: Drinking water-Unspecified | B24: 1.158306867 | C24: 0.9827961666 | D24: 1.389947083 | E24: Drinking water-Unspecified | F24: 1.2 (1 - 1.4)
A25: Broccoli-Unspecified | B25: 1.090307886 | C25: 0.1319909414 | D25: 2.672597404 | E25: Broccoli-Unspecified | F25: 1.1 (0.1 - 2.7)
A26: Carrots-Unspecified | B26: 1.016637107 | C26: 0.6253427656 | D26: 1.522476759 | E26: Carrots-Unspecified | F26: 1 (0.6 - 1.5)
A27: Tomatoes-Unspecified | B27: 0.8014160372 | C27: 0.1140643823 | D27: 1.93360276
A28: Courgettes-Unspecified | B28: 0.7596410154 | C28: 0.07469308228 | D28: 1.545883374
A29: Apples-Unspecified | B29: 0.6342458962 | C29: 0.2447857961 | D29: 1.101354655
A30: Strawberries-Unspecified | B30: 0.6048795503 | C30: 0.1042175572 | D30: 1.172104091
A31: Oat-Grain milling, Flour/meal or finely ground powder (as part-nature) | B31: 0.5746372396 | C31: 0.1070688947 | D31: 1.268768266
A32: Head cabbages-Unspecified | B32: 0.5308191055 | C32: 0 | D32: 1.503334913
A33: Cauliflowers-Unspecified | B33: 0.5223110507 | C33: 0 | D33: 1.428530604
A34: Melons-Unspecified | B34: 0.4102600968 | C34: 0 | D34: 1.534909804
A35: Wheat-Grain milling, Flour/meal or finely ground powder (as part-nature), Integral /not refined | B35: 0.3572652159 | C35: 0.02214022717 | D35: 0.8748711467
A36: Mandarins-Unspecified | B36: 0.3477277562 | C36: 0.1001852851 | D36: 0.8130322687
A37: Potatoes-Drying (dehydration), Grinding / milling / crushing | B37: 0.3147396125 | C37: 0 | D37: 1.597623055
A38: Carrots-Cooking in water | B38: 0.2983346885 | C38: 0.006302975154 | D38: 0.8734717152
A39: Wheat-Puffing / expanding | B39: 0.2842545782 | C39: 0 | D39: 0.890133324
A40: Rice-Cooking in water | B40: 0.2550105193 | C40: 0 | D40: 0.8203640007
A41: Oranges-Unspecified | B41: 0.2310015477 | C41: 0 | D41: 0.9306229227
A42: Strawberries-Cooking and similar thermal preparation processes | B42: 0.2193788438 | C42: 0.1131388352 | D42: 0.4035640344
A43: Cucumbers-Unspecified | B43: 0.2031926593 | C43: 0 | D43: 0.6026081008
A44: Potatoes-Frying | B44: 0.1999611959 | C44: 0 | D44: 0.4067234297
A45: Potatoes-Deep frying, Slicing | B45: 0.1919194518 | C45: 0 | D45: 0.6367694344
A46: Apples-Pulping / mashing | B46: 0.175013771 | C46: 0 | D46: 0.5674949168
A47: Carrots-Stewing | B47: 0.1531712088 | C47: 0.01425767875 | D47: 0.3291272876
A48: Oranges-Juicing, Concentration / evaporation | B48: 0.143688615 | C48: 0.03908462891 | D48: 0.2956846655
A49: Wine grapes-Winemaking, White | B49: 0.1388097374 | C49: 0.007281662864 | D49: 0.3881347782
A50: Pears-Juicing, Concentration / evaporation | B50: 0.1281040246 | C50: 0.03910392548 | D50: 0.2754018294
A51: Tomatoes-Cooking and similar thermal preparation processes | B51: 0.1228668394 | C51: 0.01462437402 | D51: 0.3220100775
A52: Oat-Unspecified | B52: 0.1203997154 | C52: 0 | D52: 0.8708966588
A53: Apples-Cooking and similar thermal preparation processes | B53: 0.114838998 | C53: 0 | D53: 0.3947679835
A54: Olives for oil production-Oil production, Vegetable fats and oils (as part-nature) | B54: 0.1051464246 | C54: 0.05710701786 | D54: 0.152852619
A55: Processed cereal-based foods for infants and young children-Processed | B55: 0.08589267886 | C55: 0.01324614629 | D55: 0.3562674804
A56: Cauliflowers-Cooking and similar thermal preparation processes | B56: 0.08455813727 | C56: 0 | D56: 0.2599363214
A57: Peas (without pods)-Unspecified | B57: 0.08242192896 | C57: 0.02060040467 | D57: 0.1553056331
A58: Peas (without pods)-Cooking in water | B58: 0.08219727337 | C58: 0 | D58: 0.2656340274
A59: Sweet peppers/bell peppers-Unspecified | B59: 0.07738849035 | C59: 0 | D59: 0.2215550043
A60: Peaches-Canning / jarring | B60: 0.07563757945 | C60: 0 | D60: 0.2095235462
A61: Peaches-Pulping / mashing | B61: 0.06935345789 | C61: 0 | D61: 0.1759745468
A62: Apples-Juicing, Concentration / evaporation | B62: 0.06811725 | C62: 0.0177680882 | D62: 0.1405555789
A63: Aubergines/eggplants-Unspecified | B63: 0.0679949969 | C63: 0 | D63: 0.2307496756
A64: Apples-Drying (dehydration) | B64: 0.06191750895 | C64: 0.006973673261 | D64: 0.1251640404
A65: Beans (with pods)-Unspecified | B65: 0.0608289148 | C65: 0 | D65: 0.2032309108
A66: Courgettes-Cooking and similar thermal preparation processes | B66: 0.05969051755 | C66: 0 | D66: 0.1743773166
A67: Spinaches-Cooking in water | B67: 0.05904653617 | C67: 0 | D67: 0.1367706043 | E67: =IF(B67>1,A67,"") ->  | F67: =IF(B67>1,CONCATENATE(ROUND(B67,1)," ","(",ROUND(C67,1)," ","-"," ",ROUND(D67,1),")"),"") -> 
A68: Potatoes-Flaking | B68: 0.05557771803 | C68: 0 | D68: 0.2041092361
A69: Lettuces-Unspecified | B69: 0.05303098062 | C69: 0 | D69: 0.1953765754
A70: Beans (with pods)-Cooking and similar thermal preparation processes | B70: 0.05195001758 | C70: 0 | D70: 0.1458280887
A71: Sweet peppers/bell peppers-Drying (dehydration), Grinding / milling / crushing | B71: 0.05020791526 | C71: 0.01300055976 | D71: 0.1024283466
A72: Bananas-Drying (dehydration) | B72: 0.04835131822 | C72: 0.002935670131 | D72: 0.1295335145
A73: Carrots-Cooking and similar thermal preparation processes | B73: 0.04084112263 | C73: 0 | D73: 0.1134452801
A74: Spinaches-Unspecified | B74: 0.03707743108 | C74: 0 | D74: 0.1074545744
A75: Rye-Grain milling, Flour/meal or finely ground powder (as part-nature), Semi-refined | B75: 0.03356147224 | C75: 0 | D75: 0.1297778717
A76: Mandarins-Juicing, Concentration / evaporation | B76: 0.02148555374 | C76: 0.005853020304 | D76: 0.04188430995
A77: Sweet peppers/bell peppers-Cooking in water | B77: 0.02076881051 | C77: 0 | D77: 0.1035573794
A78: Wine grapes-Bacteria fermentation | B78: 0.01859601948 | C78: 0.003187343246 | D78: 0.03929770789
A79: Bananas-Pulping / mashing | B79: 0.0157121067 | C79: 0.0001024184931 | D79: 0.1375948113
A80: Rye-Grain milling, Flour/meal or finely ground powder (as part-nature), Integral /not refined | B80: 0.01462264012 | C80: 0 | D80: 0.05348350477
A81: Apples-Bacteria fermentation | B81: 0.009060211658 | C81: 0 | D81: 0.02264796285
A82: Strawberries-Juicing | B82: 0.00162430852 | C82: 0 | D82: 0.007369461395
A83: Baby foods other than processed cereal-based foods-Processed | B83: 0.001533996721 | C83: 0 | D83: 0.00652728503
A84: Peaches-Juicing, Concentration / evaporation | B84: 0.001276293702 | C84: 0.0003574112438 | D84: 0.002747243953
A85: Potatoes-Starch production | B85: 0.0009022496841 | C85: 0 | D85: 0.004086400454

Sheet utRD_BE (hidden)
A1: Substance name | B1: Food name | C1: Mean contribution | D1: Lower bound (%) (p2,5) | E1: Upper bound (%) (p97,5) | F1: Risk Drivers | G1: % contribution (95% CI)
A2: Bromide ion | B2: Wheat | C2: 19.48076399 | D2: 8.576160273 | E2: 33.45996546 | F2: =IF(C2>1,CONCATENATE(A2," ",B2),"") -> Bromide ion Wheat | G2: =IF(C2>1,CONCATENATE(ROUND(C2,1)," ","(",ROUND(D2,1)," ","-"," ",ROUND(E2,1),")"),"") -> 19.5 (8.6 - 33.5)
A3: Ziram | B3: Wine grapes | C3: 16.58290011 | D3: 4.041042895 | E3: 36.03829361 | F3: =IF(C3>1,CONCATENATE(A3," ",B3),"") -> Ziram Wine grapes | G3: =IF(C3>1,CONCATENATE(ROUND(C3,1)," ","(",ROUND(D3,1)," ","-"," ",ROUND(E3,1),")"),"") -> 16.6 (4 - 36)
A4: Propineb | B4: Wine grapes | C4: 13.21058879 | D4: 3.497486745 | E4: 29.11917487 | F4: Propineb Wine grapes | G4: 13.2 (3.5 - 29.1)
A5: Cyprodinil | B5: Wine grapes | C5: 5.280951307 | D5: 3.039219644 | E5: 7.67641265 | F5: Cyprodinil Wine grapes | G5: 5.3 (3 - 7.7)
A6: Chlorpropham | B6: Potatoes | C6: 3.341166105 | D6: 1.645604402 | E6: 5.622208095 | F6: Chlorpropham Potatoes | G6: 3.3 (1.6 - 5.6)
A7: Metiram | B7: Wine grapes | C7: 3.275921864 | D7: 1.157094959 | E7: 7.350993545 | F7: Metiram Wine grapes | G7: 3.3 (1.2 - 7.4)
A8: Bromide ion | B8: Tomatoes | C8: 3.149472546 | D8: 1.149055879 | E8: 7.306162124 | F8: Bromide ion Tomatoes | G8: 3.1 (1.1 - 7.3)
A9: Ziram | B9: Apples | C9: 2.491982576 | D9: 0.1007868826 | E9: 7.767587571 | F9: Ziram Apples | G9: 2.5 (0.1 - 7.8)
A10: Thiabendazole | B10: Oranges | C10: 2.10850139 | D10: 0.04057164179 | E10: 4.998571227 | F10: Thiabendazole Oranges | G10: 2.1 (0 - 5)
A11: Mancozeb | B11: Wine grapes | C11: 1.767465157 | D11: 0.5342556963 | E11: 3.903245354 | F11: Mancozeb Wine grapes | G11: 1.8 (0.5 - 3.9)
A12: Maleic hydrazide | B12: Potatoes | C12: 1.71875478 | D12: 0.9303049118 | E12: 2.706203909 | F12: Maleic hydrazide Potatoes | G12: 1.7 (0.9 - 2.7)
A13: Propineb | B13: Apples | C13: 1.715934493 | D13: 0.07531181505 | E13: 4.671994406 | F13: Propineb Apples | G13: 1.7 (0.1 - 4.7)
A14: Maneb | B14: Wine grapes | C14: 1.659623628 | D14: 0.6336183995 | E14: 3.256879957 | F14: Maneb Wine grapes | G14: 1.7 (0.6 - 3.3)
A15: Pyrimethanil | B15: Wine grapes | C15: 1.648382733 | D15: 0.9118751071 | E15: 2.482704956 | F15: Pyrimethanil Wine grapes | G15: 1.6 (0.9 - 2.5)
A16: Bromide ion | B16: Potatoes | C16: 1.543662123 | D16: 0.8089490422 | E16: 2.410420692 | F16: Bromide ion Potatoes | G16: 1.5 (0.8 - 2.4)
A17: Bromide ion | B17: Rice | C17: 1.282518892 | D17: 0.006893453675 | E17: 4.113402232 | F17: Bromide ion Rice | G17: 1.3 (0 - 4.1)
A18: Propineb | B18: Tomatoes | C18: 1.26491256 | D18: 0.3333573502 | E18: 4.433744988 | F18: Propineb Tomatoes | G18: 1.3 (0.3 - 4.4)
A19: Bromide ion | B19: Carrots | C19: 1.108376572 | D19: 0.2548245766 | E19: 2.411724616 | F19: Bromide ion Carrots | G19: 1.1 (0.3 - 2.4)
A20: Proquinazid | B20: Wine grapes | C20: 0.9424629112 | D20: 0.4533718667 | E20: 1.545536027
A21: Bromide ion | B21: Spinaches | C21: 0.9290016456 | D21: 0.03360689649 | E21: 2.526775522
A22: Pyrimethanil | B22: Oranges | C22: 0.810218858 | D22: 0.06548081395 | E22: 1.811880277
A23: Fluopyram | B23: Wine grapes | C23: 0.7805976004 | D23: 0.3753086848 | E23: 1.29294087
A24: Mancozeb | B24: Oranges | C24: 0.7597783543 | D24: 0.05443699588 | E24: 1.861504552
A25: Fipronil | B25: Drinking water-Unspecified | C25: 0.6274736849 | D25: 0.4000402065 | E25: 0.8856790536
A26: Bromide ion | B26: Leeks | C26: 0.5869201401 | D26: 0 | E26: 3.717972068
A27: Bromide ion | B27: Lettuces | C27: 0.5545045858 | D27: 0.2450244405 | E27: 0.8942017735
A28: Metiram | B28: Apples | C28: 0.4810840039 | D28: 0.02024169063 | E28: 1.290517141
A29: Folpet | B29: Wine grapes | C29: 0.4291982547 | D29: 0.2135404427 | E29: 0.6823679715
A30: Dithianon | B30: Apples | C30: 0.4237838316 | D30: 0.02020454557 | E30: 1.075515911
A31: Ziram | B31: Table grapes | C31: 0.3321223775 | D31: 0.00895068102 | E31: 1.027183201
A32: Mancozeb | B32: Wheat | C32: 0.331988056 | D32: 0.03780759365 | E32: 1.082150511
A33: Mancozeb | B33: Cauliflowers | C33: 0.3260247713 | D33: 0 | E33: 1.009488595
A34: 2,4-D | B34: Oranges | C34: 0.3213949259 | D34: 0.02396312253 | E34: 0.7481617953
A35: Maneb | B35: Wheat | C35: 0.2897087273 | D35: 0.02455484946 | E35: 1.020097917
A36: Fenpyrazamine | B36: Wine grapes | C36: 0.2861043126 | D36: 0.04850371013 | E36: 0.6715784329
A37: Bromide ion | B37: Sweet peppers/bell peppers | C37: 0.2815786742 | D37: 0.1001695589 | E37: 0.5895460607
A38: Mancozeb | B38: Apples | C38: 0.2649365454 | D38: 0.01059647752 | E38: 0.7026076997
A39: Maneb | B39: Apples | C39: 0.2609624723 | D39: 0.009729565729 | E39: 0.7681615765
A40: MCPA | B40: Wine grapes | C40: 0.239622966 | D40: 0.006820742571 | E40: 0.7353120176
A41: Thiacloprid | B41: Apples | C41: 0.2295766609 | D41: 0.01088913662 | E41: 0.5996315685
A42: Propineb | B42: Table grapes | C42: 0.2246913456 | D42: 0.006380859257 | E42: 0.6550431276
A43: Fluopyram | B43: Table grapes | C43: 0.2207934497 | D43: 0.00924406586 | E43: 0.6955947411
A44: Cyprodinil | B44: Apples | C44: 0.2155390565 | D44: 0.009858416413 | E44: 0.5869403246
A45: Metiram | B45: Lettuces | C45: 0.1923121985 | D45: 0.08415398076 | E45: 0.3379289434
A46: Mancozeb | B46: Tomatoes | C46: 0.1909304732 | D46: 0.04883582781 | E46: 0.5484815978
A47: Cyprodinil | B47: Table grapes | C47: 0.1793102955 | D47: 0.00740148323 | E47: 0.5011438629
A48: Thiabendazole | B48: Mandarins | C48: 0.1606857607 | D48: 0 | E48: 0.6509993017
A49: Ziram | B49: Pears | C49: 0.1489696942 | D49: 0 | E49: 1.140237515
A50: Boscalid | B50: Wine grapes | C50: 0.1412506804 | D50: 0.07779444098 | E50: 0.2194541668
A51: Spinosad | B51: Wine grapes | C51: 0.1371819438 | D51: 0.04354949526 | E51: 0.2938565831
A52: Fluopyram | B52: Tomatoes | C52: 0.128897774 | D52: 0.04409678242 | E52: 0.4180142907
A53: Pyrimethanil | B53: Apples | C53: 0.1282946441 | D53: 0.01257442626 | E53: 0.3106802723
A54: Pyrimethanil | B54: Mandarins | C54: 0.1276049314 | D54: 0 | E54: 0.32089069
A55: Fluopicolide | B55: Wine grapes | C55: 0.1266843492 | D55: 0.06725949178 | E55: 0.1847974901
A56: Amitrole | B56: Drinking water-Unspecified | C56: 0.125494737 | D56: 0.0800080413 | E56: 0.1771358107
A57: Fluopyram | B57: Apples | C57: 0.12485733 | D57: 0.005322822331 | E57: 0.3340836079
A58: Oxyfluorfen | B58: Olives for oil production | C58: 0.1240798845 | D58: 0.05793883135 | E58: 0.2385355712
A59: Cyprodinil | B59: Lettuces | C59: 0.1159826471 | D59: 0.0496938487 | E59: 0.1966945909
A60: Thiabendazole | B60: Apples | C60: 0.1140939901 | D60: 0.005302870654 | E60: 0.2990892098
A61: Bromide ion | B61: Cucumbers | C61: 0.1127447869 | D61: 0.006176322899 | E61: 0.455847756
A62: Propineb | B62: Potatoes | C62: 0.1120992891 | D62: 0.03364035921 | E62: 0.3352686186
A63: Propineb | B63: Pears | C63: 0.106597634 | D63: 0 | E63: 0.7556306109
A64: Mancozeb | B64: Lettuces | C64: 0.09732203286 | D64: 0.03570534325 | E64: 0.19087157
A65: Lufenuron | B65: Drinking water-Unspecified | C65: 0.09412105274 | D65: 0.06000603097 | E65: 0.132851858
A66: Topramezone | B66: Drinking water-Unspecified | C66: 0.09412105274 | D66: 0.06000603097 | E66: 0.132851858
A67: Tetraconazole | B67: Wine grapes | C67: 0.09346172249 | D67: 0.04051207391 | E67: 0.1446113954 | F67: =IF(C67>1,CONCATENATE(A67," ",B67),"") ->  | G67: =IF(C67>1,CONCATENATE(ROUND(C67,1)," ","(",ROUND(D67,1)," ","-"," ",ROUND(E67,1),")"),"") -> 
A68: Fluquinconazole | B68: Drinking water-Unspecified | C68: 0.0855645934 | D68: 0.05455093725 | E68: 0.1207744164
A69: Bromide ion | B69: Courgettes | C69: 0.08425252396 | D69: 0 | E69: 0.2902330461
A70: Bromide ion | B70: Aubergines/eggplants | C70: 0.0805109367 | D70: 0 | E70: 0.2174779316
A71: Lufenuron | B71: Potatoes | C71: 0.08045470596 | D71: 0.001122166536 | E71: 0.2379388504
A72: Dithianon | B72: Wine grapes | C72: 0.07797991752 | D72: 0.01411886165 | E72: 0.1865788033
A73: Lufenuron | B73: Wine grapes | C73: 0.06512945808 | D73: 0.01744149317 | E73: 0.179893448
A74: Fipronil | B74: Potatoes | C74: 0.06477161073 | D74: 0.03948901405 | E74: 0.09306394524
A75: Cyprodinil | B75: Tomatoes | C75: 0.06180822342 | D75: 0.02313329758 | E75: 0.1463081833
A76: Cyflufenamid | B76: Wine grapes | C76: 0.05777799423 | D76: 0.03477959859 | E76: 0.09963729308
A77: Meptyldinocap | B77: Wine grapes | C77: 0.056405548 | D77: 0.004010987927 | E77: 0.1441510596
A78: Spinosad | B78: Spinaches | C78: 0.05607425405 | D78: 0.00159308901 | E78: 0.1654938859
A79: Bromide ion | B79: Mandarins | C79: 0.05586065185 | D79: 0 | E79: 0.2239085775
A80: Metiram | B80: Table grapes | C80: 0.05544413155 | D80: 0.001774388757 | E80: 0.1795746979
A81: Thiabendazole | B81: Bananas | C81: 0.05308928035 | D81: 0 | E81: 0.2915756134
A82: Mancozeb | B82: Mandarins | C82: 0.05223930932 | D82: 0 | E82: 0.1323701733
A83: 2,4-D | B83: Mandarins | C83: 0.04760468583 | D83: 0 | E83: 0.1172536434
A84: Fluopyram | B84: Lettuces | C84: 0.04717557212 | D84: 0.02034167849 | E84: 0.08583508103
A85: Buprofezin | B85: Bananas | C85: 0.04472980544 | D85: 0 | E85: 0.2328107099
A86: Mancozeb | B86: Leeks | C86: 0.04423022097 | D86: 0 | E86: 0.2719838668
A87: Bromide ion | B87: Peas (without pods) | C87: 0.04147835297 | D87: 0.001288100492 | E87: 0.11816906
A88: Maneb | B88: Leeks | C88: 0.0408945315 | D88: 0 | E88: 0.2579368867
A89: Boscalid | B89: Lettuces | C89: 0.03997475891 | D89: 0.01700843551 | E89: 0.06990022245
A90: Thiacloprid | B90: Tomatoes | C90: 0.03580737453 | D90: 0.01272313791 | E90: 0.09372825647
A91: Thiophanate-methyl | B91: Wine grapes | C91: 0.03479302933 | D91: 0.01321755339 | E91: 0.06497983464
A92: Tetraconazole | B92: Table grapes | C92: 0.03460753483 | D92: 0.001640679065 | E92: 0.09213420661
A93: Buprofezin | B93: Oranges | C93: 0.03257579238 | D93: 0.002489828821 | E93: 0.07456265216
A94: Bromide ion | B94: Cauliflowers | C94: 0.03179290032 | D94: 0 | E94: 0.1087755982
A95: Propineb | B95: Sweet peppers/bell peppers | C95: 0.0314706957 | D95: 0.01037085693 | E95: 0.07418514255
A96: Bromide ion | B96: Bananas | C96: 0.03104629791 | D96: 0 | E96: 0.1724395109
A97: Mancozeb | B97: Table grapes | C97: 0.03029563991 | D97: 0.001116880336 | E97: 0.09745035314
A98: Pyrimethanil | B98: Table grapes | C98: 0.03014165286 | D98: 0.0011210567 | E98: 0.0893985355
A99: Maneb | B99: Table grapes | C99: 0.02993657249 | D99: 0.0009969784447 | E99: 0.09478409224
A100: Thiabendazole | B100: Potatoes | C100: 0.02968433978 | D100: 0.004817281777 | E100: 0.07599492461
A101: Metiram | B101: Pears | C101: 0.02794375549 | D101: 0 | E101: 0.2079736288
A102: Cyprodinil | B102: Strawberries | C102: 0.02723921997 | D102: 0 | E102: 0.08237212231
A103: Ziram | B103: Spinaches | C103: 0.0262101669 | D103: 0.0002039654061 | E103: 0.117880767
A104: Buprofezin | B104: Table grapes | C104: 0.02521267678 | D104: 0.0009209449712 | E104: 0.06821624413
A105: Boscalid | B105: Table grapes | C105: 0.02473300184 | D105: 0.0007712693418 | E105: 0.076200877
A106: Fenamidone | B106: Wine grapes | C106: 0.02237156496 | D106: 0.008704214752 | E106: 0.05242924394
A107: Propineb | B107: Cucumbers | C107: 0.02221635033 | D107: 0.0011509231 | E107: 0.06242224653
A108: Buprofezin | B108: Rice | C108: 0.02111232504 | D108: 0.0001136919246 | E108: 0.06359342082
A109: Buprofezin | B109: Apples | C109: 0.02101400277 | D109: 0.0004517389984 | E109: 0.08430220686
A110: Boscalid | B110: Spinaches | C110: 0.02024799257 | D110: 0.0006707591523 | E110: 0.06201524174
A111: Boscalid | B111: Apples | C111: 0.01914946056 | D111: 0.004458069656 | E111: 0.04435519121
A112: Buprofezin | B112: Tomatoes | C112: 0.01861840264 | D112: 0.00632258597 | E112: 0.05009883911
A113: Fenbuconazole | B113: Wine grapes | C113: 0.01771949819 | D113: 0.009639070473 | E113: 0.02973914512
A114: Spiromesifen | B114: Tomatoes | C114: 0.0176734914 | D114: 0.005113261026 | E114: 0.05361072242
A115: Propineb | B115: Spinaches | C115: 0.01745620311 | D115: 0.0001615938927 | E115: 0.07530141724
A116: Fluopyram | B116: Carrots | C116: 0.01715910828 | D116: 0.003568616024 | E116: 0.0407245341
A117: Spinosad | B117: Tomatoes | C117: 0.01696675301 | D117: 0.005450670155 | E117: 0.03997599171
A118: Benthiavalicarb | B118: Wine grapes | C118: 0.01693916556 | D118: 0.003999685745 | E118: 0.03665813204
A119: Metiram | B119: Potatoes | C119: 0.01634039755 | D119: 0.00183379771 | E119: 0.06602916361
A120: Fluopyram | B120: Strawberries | C120: 0.01576926128 | D120: 0 | E120: 0.04884810965
A121: Mancozeb | B121: Pears | C121: 0.01535544412 | D121: 0 | E121: 0.1120838443
A122: Fluopyram | B122: Sweet peppers/bell peppers | C122: 0.01490692309 | D122: 0.004595397366 | E122: 0.03227318959
A123: Dinocap | B123: Wine grapes | C123: 0.01416236533 | D123: 0.002986474276 | E123: 0.04017854303
A124: Maneb | B124: Pears | C124: 0.01409648324 | D124: 0 | E124: 0.1020317363
A125: Pyrethrins | B125: Wheat | C125: 0.0139935573 | D125: 0.005184381678 | E125: 0.0235777915
A126: Spinosad | B126: Table grapes | C126: 0.01345658134 | D126: 0.00054849789 | E126: 0.03853447608
A127: Spinosad | B127: Lettuces | C127: 0.01180145642 | D127: 0.004911506179 | E127: 0.0183762035
A128: Maneb | B128: Potatoes | C128: 0.01178171258 | D128: 0.002680458627 | E128: 0.0350646068
A129: Zoxamide | B129: Wine grapes | C129: 0.01151834463 | D129: 0.005307978961 | E129: 0.01797001173
A130: MCPA | B130: Wheat | C130: 0.01149708789 | D130: 0.003734101029 | E130: 0.02397744613
A131: Clofentezine | B131: Apples | C131: 0.01138678853 | D131: 1.58079602e-05 | E131: 0.05151171805 | F131: =IF(C131>1,CONCATENATE(A131," ",B131),"") ->  | G131: =IF(C131>1,CONCATENATE(ROUND(C131,1)," ","(",ROUND(D131,1)," ","-"," ",ROUND(E131,1),")"),"") -> 
A132: Cyprodinil | B132: Pears | C132: 0.01129798872 | D132: 0 | E132: 0.07330142724
A133: Propineb | B133: Courgettes | C133: 0.01126642141 | D133: 0 | E133: 0.04763123174
A134: Fipronil | B134: Sweet peppers/bell peppers | C134: 0.01125645851 | D134: 0.002117878719 | E134: 0.02728762124
A135: Thiacloprid | B135: Strawberries | C135: 0.01113427347 | D135: 0 | E135: 0.03057834388
A136: Mancozeb | B136: Potatoes | C136: 0.01081638993 | D136: 0.002592242393 | E136: 0.03871115131
A137: Fenpyrazamine | B137: Table grapes | C137: 0.009862682853 | D137: 0.0001565709225 | E137: 0.02681303702
A138: Thiacloprid | B138: Pears | C138: 0.009824982048 | D138: 0 | E138: 0.06723234171
A139: Etofenprox | B139: Oranges | C139: 0.0095970342 | D139: 0.0007117177365 | E139: 0.02326452292
A140: Lufenuron | B140: Tomatoes | C140: 0.009540685869 | D140: 0.00301172423 | E140: 0.02527737428
A141: Boscalid | B141: Carrots | C141: 0.009355128265 | D141: 0.001231002681 | E141: 0.02363541347
A142: Tetraconazole | B142: Tomatoes | C142: 0.008594194098 | D142: 0.002087426303 | E142: 0.02179016038
A143: Fipronil | B143: Oranges | C143: 0.008257511315 | D143: 0.0005360641337 | E143: 0.03138803813
A144: Fenpyrazamine | B144: Tomatoes | C144: 0.007937288311 | D144: 0.001937322846 | E144: 0.02591084357
A145: Myclobutanil | B145: Wine grapes | C145: 0.007929833731 | D145: 0.004282741168 | E145: 0.0118965051
A146: Boscalid | B146: Tomatoes | C146: 0.007449211814 | D146: 0.002590529651 | E146: 0.02080806697
A147: Etofenprox | B147: Apples | C147: 0.007415277008 | D147: 0.0003134871177 | E147: 0.01934643391
A148: Flubendiamide | B148: Apples | C148: 0.006983824271 | D148: 0.0001141511733 | E148: 0.02302378953
A149: Metiram | B149: Cucumbers | C149: 0.006964012707 | D149: 0.0003962251085 | E149: 0.02081478418
A150: Tetraconazole | B150: Wheat | C150: 0.006937819093 | D150: 0.002648498633 | E150: 0.01236481753
A151: Proquinazid | B151: Table grapes | C151: 0.006882223433 | D151: 0.000190648202 | E151: 0.01967185373
A152: Mancozeb | B152: Carrots | C152: 0.006777573278 | D152: 0.001254865763 | E152: 0.0171056234
A153: Fluquinconazole | B153: Apples | C153: 0.006722693789 | D153: 0.0003066588867 | E153: 0.01739729567
A154: Boscalid | B154: Pears | C154: 0.006663821512 | D154: 0 | E154: 0.0451835412
A155: Bixafen | B155: Wheat | C155: 0.00588051063 | D155: 0.002105220921 | E155: 0.01068900797
A156: Bromide ion | B156: Beans (with pods) | C156: 0.005810001948 | D156: 0 | E156: 0.02038892337
A157: Thiophanate-methyl | B157: Wheat | C157: 0.005768389349 | D157: 0.002631206264 | E157: 0.009794620565
A158: Mancozeb | B158: Sweet peppers/bell peppers | C158: 0.005733248464 | D158: 0.001565661431 | E158: 0.01267111617
A159: Pyrimethanil | B159: Pears | C159: 0.005147200297 | D159: 0 | E159: 0.03623666196
A160: Thiophanate-methyl | B160: Tomatoes | C160: 0.005127059565 | D160: 0.001553489939 | E160: 0.01582005183
A161: Bromide ion | B161: Strawberries | C161: 0.004971980831 | D161: 0 | E161: 0.02032954641
A162: Pymetrozine | B162: Tomatoes | C162: 0.004965857794 | D162: 0.001400881081 | E162: 0.01354400696
A163: Pyrimethanil | B163: Tomatoes | C163: 0.004914781682 | D163: 0.001681921787 | E163: 0.01191037822
A164: Fluopyram | B164: Cucumbers | C164: 0.004818885024 | D164: 0.0002822040495 | E164: 0.01514465163
A165: Tetraconazole | B165: Apples | C165: 0.004763032841 | D165: 0.0004071898594 | E165: 0.01141934774
A166: Myclobutanil | B166: Table grapes | C166: 0.004725965793 | D166: 0.0002417842179 | E166: 0.01383237989
A167: Buprofezin | B167: Sweet peppers/bell peppers | C167: 0.00471469086 | D167: 0.001689720079 | E167: 0.009870690801
A168: Metiram | B168: Spinaches | C168: 0.004698035905 | D168: 5.136198415e-05 | E168: 0.02114149554
A169: Thiacloprid | B169: Lettuces | C169: 0.004665802686 | D169: 0.001867103906 | E169: 0.00822966011
A170: Mancozeb | B170: Beans (with pods) | C170: 0.004574700934 | D170: 0 | E170: 0.01576018522
A171: Cyprodinil | B171: Carrots | C171: 0.004573633491 | D171: 0.00100165484 | E171: 0.01105647587
A172: Flubendiamide | B172: Tomatoes | C172: 0.004553029004 | D172: 0.001493853814 | E172: 0.01338175975
A173: Fluopyram | B173: Pears | C173: 0.004419964944 | D173: 0 | E173: 0.03034572753
A174: Mancozeb | B174: Courgettes | C174: 0.004102576171 | D174: 0 | E174: 0.01998823795
A175: Fluxapyroxad | B175: Wheat | C175: 0.00405322171 | D175: 0.001463346887 | E175: 0.007797144072
A176: Clofentezine | B176: Tomatoes | C176: 0.00402173947 | D176: 0.001283397548 | E176: 0.01085283882
A177: Metiram | B177: Bananas | C177: 0.003995474348 | D177: 0 | E177: 0.02207130217
A178: Fluopicolide | B178: Spinaches | C178: 0.003940177819 | D178: 0.0001087011311 | E178: 0.01276825356
A179: Fenamidone | B179: Lettuces | C179: 0.003852121187 | D179: 0.001307769057 | E179: 0.00735154092
A180: Clofentezine | B180: Strawberries | C180: 0.003841690342 | D180: 0 | E180: 0.01060761027
A181: Boscalid | B181: Strawberries | C181: 0.003710350232 | D181: 0 | E181: 0.0110026783
A182: Thiabendazole | B182: Pears | C182: 0.00370109068 | D182: 0 | E182: 0.02559761217
A183: Mancozeb | B183: Cucumbers | C183: 0.003584598631 | D183: 0.0001994502112 | E183: 0.01213683104
A184: Buprofezin | B184: Mandarins | C184: 0.003547894698 | D184: 0 | E184: 0.008955822928
A185: Myclobutanil | B185: Bananas | C185: 0.003439751288 | D185: 0 | E185: 0.01984664065
A186: Cyprodinil | B186: Cucumbers | C186: 0.003338411846 | D186: 0.0002037277724 | E186: 0.01162146478
A187: Fenbuconazole | B187: Apples | C187: 0.003337603549 | D187: 6.443728021e-05 | E187: 0.009813759206
A188: Fenoxycarb | B188: Apples | C188: 0.003310055553 | D188: 0.0001468797872 | E188: 0.008267188485
A189: Dithianon | B189: Pears | C189: 0.003262969038 | D189: 0 | E189: 0.02170495848
A190: Spinosad | B190: Strawberries | C190: 0.003197583582 | D190: 0 | E190: 0.009271299778
A191: Thiophanate-methyl | B191: Lettuces | C191: 0.003155862834 | D191: 0.0003961911057 | E191: 0.008686877644
A192: Boscalid | B192: Wheat | C192: 0.003155415914 | D192: 0.001131172425 | E192: 0.006377600692
A193: Spirodiclofen | B193: Apples | C193: 0.003153261509 | D193: 0.0004367227128 | E193: 0.007014462123
A194: Boscalid | B194: Sweet peppers/bell peppers | C194: 0.002949572521 | D194: 0.001034193593 | E194: 0.005875021335
A195: Metiram | B195: Courgettes | C195: 0.002930595981 | D195: 0 | E195: 0.01354967573 | F195: =IF(C195>1,CONCATENATE(A195," ",B195),"") ->  | G195: =IF(C195>1,CONCATENATE(ROUND(C195,1)," ","(",ROUND(D195,1)," ","-"," ",ROUND(E195,1),")"),"") -> 
A196: Flufenacet | B196: Potatoes | C196: 0.002918873303 | D196: 0.00179110297 | E196: 0.004249105304
A197: Pymetrozine | B197: Lettuces | C197: 0.002814448662 | D197: 0.000897366895 | E197: 0.006657412
A198: Mancozeb | B198: Bananas | C198: 0.00280740501 | D198: 0 | E198: 0.02001293212
A199: Maneb | B199: Spinaches | C199: 0.002682674079 | D199: 2.368228256e-05 | E199: 0.01224972445
A200: Mancozeb | B200: Spinaches | C200: 0.00264990936 | D200: 2.112589666e-05 | E200: 0.01437846944
... 577 more rows

Sheet utRD_BU (hidden)
A1: Substance name | B1: Food name | C1: Mean contribution | D1: Lower bound (%) (p2,5) | E1: Upper bound (%) (p97,5) | F1: Risk Drivers | G1: % contribution (95% CI)
A2: Bromide ion | B2: Wheat | C2: 18.80817528 | D2: 11.09680553 | E2: 29.03760175 | F2: =IF(C2>1,CONCATENATE(A2," ",B2),"") -> Bromide ion Wheat | G2: =IF(C2>1,CONCATENATE(ROUND(C2,1)," ","(",ROUND(D2,1)," ","-"," ",ROUND(E2,1),")"),"") -> 18.8 (11.1 - 29)
A3: Thiabendazole | B3: Oranges | C3: 15.03145506 | D3: 6.820762881 | E3: 23.17476357 | F3: =IF(C3>1,CONCATENATE(A3," ",B3),"") -> Thiabendazole Oranges | G3: =IF(C3>1,CONCATENATE(ROUND(C3,1)," ","(",ROUND(D3,1)," ","-"," ",ROUND(E3,1),")"),"") -> 15 (6.8 - 23.2)
A4: Pyrimethanil | B4: Oranges | C4: 5.458487087 | D4: 2.443114489 | E4: 8.429908935 | F4: Pyrimethanil Oranges | G4: 5.5 (2.4 - 8.4)
A5: Chlorpropham | B5: Potatoes | C5: 5.160059686 | D5: 1.8774424 | E5: 9.444663384 | F5: Chlorpropham Potatoes | G5: 5.2 (1.9 - 9.4)
A6: Mancozeb | B6: Oranges | C6: 5.060673612 | D6: 2.254096679 | E6: 7.743988297 | F6: Mancozeb Oranges | G6: 5.1 (2.3 - 7.7)
A7: Bromide ion | B7: Tomatoes | C7: 4.464272814 | D7: 3.281584774 | E7: 6.038312567 | F7: Bromide ion Tomatoes | G7: 4.5 (3.3 - 6)
A8: Bromide ion | B8: Rice | C8: 3.80946307 | D8: 0.8128685699 | E8: 7.235264251 | F8: Bromide ion Rice | G8: 3.8 (0.8 - 7.2)
A9: Thiabendazole | B9: Mandarins | C9: 3.071174905 | D9: 0 | E9: 7.70644141 | F9: Thiabendazole Mandarins | G9: 3.1 (0 - 7.7)
A10: Ziram | B10: Apples | C10: 2.929806814 | D10: 0.2479302535 | E10: 8.353866102 | F10: Ziram Apples | G10: 2.9 (0.2 - 8.4)
A11: Bromide ion | B11: Oat | C11: 2.854366451 | D11: 0 | E11: 10.72844129 | F11: Bromide ion Oat | G11: 2.9 (0 - 10.7)
A12: 2,4-D | B12: Oranges | C12: 2.176007104 | D12: 0.9261750098 | E12: 3.330753597 | F12: 2,4-D Oranges | G12: 2.2 (0.9 - 3.3)
A13: Maleic hydrazide | B13: Potatoes | C13: 2.083789969 | D13: 0.7615433335 | E13: 3.872435651 | F13: Maleic hydrazide Potatoes | G13: 2.1 (0.8 - 3.9)
A14: Propineb | B14: Apples | C14: 2.041431611 | D14: 0.1730394322 | E14: 4.679368127 | F14: Propineb Apples | G14: 2 (0.2 - 4.7)
A15: Bromide ion | B15: Potatoes | C15: 1.775385323 | D15: 0.6626982677 | E15: 3.541574509 | F15: Bromide ion Potatoes | G15: 1.8 (0.7 - 3.5)
A16: Propineb | B16: Tomatoes | C16: 1.658767303 | D16: 0.8829698588 | E16: 3.100723596 | F16: Propineb Tomatoes | G16: 1.7 (0.9 - 3.1)
A17: Ziram | B17: Table grapes | C17: 1.584692087 | D17: 0 | E17: 5.398360475 | F17: Ziram Table grapes | G17: 1.6 (0 - 5.4)
A18: Bromide ion | B18: Cucumbers | C18: 1.430293359 | D18: 0 | E18: 3.05900023 | F18: Bromide ion Cucumbers | G18: 1.4 (0 - 3.1)
A19: Pyrimethanil | B19: Mandarins | C19: 1.326657708 | D19: 0 | E19: 3.410895461 | F19: Pyrimethanil Mandarins | G19: 1.3 (0 - 3.4)
A20: Bromide ion | B20: Spinaches | C20: 1.147087709 | D20: 0 | E20: 4.859693499 | F20: Bromide ion Spinaches | G20: 1.1 (0 - 4.9)
A21: Propineb | B21: Table grapes | C21: 1.117295308 | D21: 0 | E21: 3.161877045 | F21: Propineb Table grapes | G21: 1.1 (0 - 3.2)
A22: Cyprodinil | B22: Table grapes | C22: 0.8970723446 | D22: 0 | E22: 2.673950745
A23: Mancozeb | B23: Head cabbages | C23: 0.7687050599 | D23: 0.04911021452 | E23: 2.497111197
A24: Bromide ion | B24: Head cabbages | C24: 0.6503682457 | D24: 0.03806362245 | E24: 2.318235055
A25: Bromide ion | B25: Carrots | C25: 0.633290283 | D25: 0.1849289466 | E25: 1.221205222
A26: Bromide ion | B26: Mandarins | C26: 0.5994420698 | D26: 0 | E26: 2.717149269
A27: Metiram | B27: Apples | C27: 0.5542272824 | D27: 0.04996839208 | E27: 1.434712647
A28: Mancozeb | B28: Mandarins | C28: 0.5374519917 | D28: 0 | E28: 1.409009739
A29: Dithianon | B29: Apples | C29: 0.5049901829 | D29: 0.05415352099 | E29: 1.186623843
A30: 2,4-D | B30: Mandarins | C30: 0.4903651859 | D30: 0 | E30: 1.418731433
A31: Bromide ion | B31: Sweet peppers/bell peppers | C31: 0.4521102797 | D31: 0.0814978096 | E31: 0.8842369328
A32: Fipronil | B32: Drinking water-Unspecified | C32: 0.4026736688 | D32: 0.09378909649 | E32: 0.7735867579
A33: Bromide ion | B33: Lettuces | C33: 0.3569671821 | D33: 0 | E33: 1.465696512
A34: Ziram | B34: Pears | C34: 0.3459182978 | D34: 0 | E34: 0.9896489631
A35: Mancozeb | B35: Wheat | C35: 0.3145627427 | D35: 0.05448793392 | E35: 0.9354778755
A36: Mancozeb | B36: Apples | C36: 0.3087352404 | D36: 0.03219097012 | E36: 0.686896501
A37: Cyprodinil | B37: Strawberries | C37: 0.3023433841 | D37: 0 | E37: 1.10749502
A38: Maneb | B38: Apples | C38: 0.291007828 | D38: 0.03723628014 | E38: 0.6135322336
A39: Propineb | B39: Cucumbers | C39: 0.2874698358 | D39: 0 | E39: 0.7302687783
A40: Maneb | B40: Wheat | C40: 0.2738859419 | D40: 0.02553146681 | E40: 0.8662573829
A41: Metiram | B41: Table grapes | C41: 0.273563395 | D41: 0 | E41: 0.7923991716
A42: Thiacloprid | B42: Apples | C42: 0.2706651495 | D42: 0.02750342918 | E42: 0.6137872781
A43: Mancozeb | B43: Tomatoes | C43: 0.2638330607 | D43: 0.1287122732 | E43: 0.4255583789
A44: Thiabendazole | B44: Bananas | C44: 0.2631551968 | D44: 0 | E44: 0.7334207045
A45: Cyprodinil | B45: Apples | C45: 0.2546535916 | D45: 0.02580559739 | E45: 0.6128963964
A46: Propineb | B46: Pears | C46: 0.2532349341 | D46: 0 | E46: 0.7965492811
A47: Buprofezin | B47: Bananas | C47: 0.223918261 | D47: 0 | E47: 0.689449715
A48: Buprofezin | B48: Oranges | C48: 0.2183788837 | D48: 0.09040077015 | E48: 0.3336289081
A49: Fluopyram | B49: Tomatoes | C49: 0.2157220588 | D49: 0.1612264222 | E49: 0.2996077488
A50: Fluopyram | B50: Strawberries | C50: 0.169031226 | D50: 0 | E50: 0.669735634
A51: Pyrimethanil | B51: Apples | C51: 0.1530221205 | D51: 0.0336470433 | E51: 0.3343271594
A52: Mancozeb | B52: Table grapes | C52: 0.1500415723 | D52: 0 | E52: 0.5108997981
A53: Pyrimethanil | B53: Table grapes | C53: 0.1489009033 | D53: 0 | E53: 0.4463623301
A54: Bromide ion | B54: Bananas | C54: 0.1488635213 | D54: 0 | E54: 0.5598841599
A55: Fluopyram | B55: Apples | C55: 0.1462950495 | D55: 0.01372980236 | E55: 0.3404242442
A56: Maneb | B56: Table grapes | C56: 0.1432833809 | D56: 0 | E56: 0.5058663362
A57: Thiacloprid | B57: Strawberries | C57: 0.13630618 | D57: 0 | E57: 0.5556895213
A58: Thiabendazole | B58: Apples | C58: 0.1336394999 | D58: 0.01503055628 | E58: 0.3305784049
A59: Propineb | B59: Potatoes | C59: 0.1333186506 | D59: 0.02953845339 | E59: 0.4611687443
A60: Buprofezin | B60: Table grapes | C60: 0.1260506407 | D60: 0 | E60: 0.4166735356
A61: Metiram | B61: Lettuces | C61: 0.1238703784 | D61: 0 | E61: 0.5453532983
A62: Bromide ion | B62: Processed cereal-based foods for infants and young children | C62: 0.1122683669 | D62: 0 | E62: 0.5418361207
A63: Tetraconazole | B63: Table grapes | C63: 0.1022900679 | D63: 0 | E63: 0.3020197659
A64: Lufenuron | B64: Potatoes | C64: 0.09240662003 | D64: 0.001581982226 | E64: 0.3526844768
A65: Metiram | B65: Cucumbers | C65: 0.09075573359 | D65: 0 | E65: 0.212988282
A66: Cyprodinil | B66: Tomatoes | C66: 0.08792750896 | D66: 0.06319193899 | E66: 0.1217921511
A67: Amitrole | B67: Drinking water-Unspecified | C67: 0.08053473377 | D67: 0.0187578193 | E67: 0.1547173516 | F67: =IF(C67>1,CONCATENATE(A67," ",B67),"") ->  | G67: =IF(C67>1,CONCATENATE(ROUND(C67,1)," ","(",ROUND(D67,1)," ","-"," ",ROUND(E67,1),")"),"") -> 
A68: Fluopyram | B68: Table grapes | C68: 0.07495045146 | D68: 0 | E68: 0.2136186843
A69: Fipronil | B69: Potatoes | C69: 0.07470437679 | D69: 0.0273297232 | E69: 0.1377104232
A70: Cyprodinil | B70: Lettuces | C70: 0.07414469787 | D70: 0 | E70: 0.2674044513
A71: Spinosad | B71: Table grapes | C71: 0.07323891223 | D71: 0 | E71: 0.2188287676
A72: Mancozeb | B72: Cauliflowers | C72: 0.07316231104 | D72: 0 | E72: 0.2299889391
A73: Bromide ion | B73: Strawberries | C73: 0.07143952657 | D73: 0 | E73: 0.337470384
A74: Metiram | B74: Pears | C74: 0.06467196623 | D74: 0 | E74: 0.1742186834
A75: Etofenprox | B75: Oranges | C75: 0.06447472961 | D75: 0.02660011841 | E75: 0.1050946872
A76: Buprofezin | B76: Rice | C76: 0.06331581483 | D76: 0.01476453618 | E76: 0.1138174659
A77: Fluopyram | B77: Cucumbers | C77: 0.06316200388 | D77: 0 | E77: 0.1460528097
A78: Spinosad | B78: Spinaches | C78: 0.06267024982 | D78: 0 | E78: 0.264662113
A79: Topramezone | B79: Drinking water-Unspecified | C79: 0.06040105032 | D79: 0.01406836447 | E79: 0.1160380137
A80: Lufenuron | B80: Drinking water-Unspecified | C80: 0.06040105032 | D80: 0.01406836447 | E80: 0.1160380137
A81: Mancozeb | B81: Lettuces | C81: 0.05949190835 | D81: 0 | E81: 0.2507040024
A82: Fipronil | B82: Oranges | C82: 0.05597429952 | D82: 0.01478709901 | E82: 0.1475792708
A83: Fluquinconazole | B83: Drinking water-Unspecified | C83: 0.05491004575 | D83: 0.01278942225 | E83: 0.1054891033
A84: Propineb | B84: Sweet peppers/bell peppers | C84: 0.05167964608 | D84: 0.008952089167 | E84: 0.1173634798
A85: Thiacloprid | B85: Tomatoes | C85: 0.05049140085 | D85: 0.03543776573 | E85: 0.0684626906
A86: Boscalid | B86: Table grapes | C86: 0.04867316833 | D86: 0 | E86: 0.1467530927
A87: Clofentezine | B87: Strawberries | C87: 0.04858395831 | D87: 0 | E87: 0.1986893147
A88: Fenpyrazamine | B88: Table grapes | C88: 0.04609664461 | D88: 0 | E88: 0.1618136965
A89: Ziram | B89: Wine grapes | C89: 0.04601415869 | D89: 0 | E89: 0.1281253792
A90: Mancozeb | B90: Cucumbers | C90: 0.04571656975 | D90: 0 | E90: 0.1093401143
A91: Cyprodinil | B91: Cucumbers | C91: 0.04293607674 | D91: 0 | E91: 0.0991740822
A92: Fluopyram | B92: Peaches | C92: 0.04163115439 | D92: 0 | E92: 0.1114989401
A93: Boscalid | B93: Strawberries | C93: 0.04004693362 | D93: 0 | E93: 0.142008262
A94: Spinosad | B94: Strawberries | C94: 0.03918208626 | D94: 0 | E94: 0.146116155
A95: Buprofezin | B95: Mandarins | C95: 0.03749031403 | D95: 0 | E95: 0.09732838283
A96: Propineb | B96: Wine grapes | C96: 0.03548846983 | D96: 0 | E96: 0.10911965
A97: Mancozeb | B97: Pears | C97: 0.03526134791 | D97: 0 | E97: 0.09008814286
A98: Mancozeb | B98: Peaches | C98: 0.0349591335 | D98: 0 | E98: 0.09730525088
A99: Thiabendazole | B99: Potatoes | C99: 0.03463314996 | D99: 0.00499396353 | E99: 0.1056339277
A100: Maneb | B100: Pears | C100: 0.03426165131 | D100: 0 | E100: 0.09697208778
A101: Thiacloprid | B101: Cucumbers | C101: 0.03397142576 | D101: 0 | E101: 0.07809635102
A102: Oxyfluorfen | B102: Olives for oil production | C102: 0.03227509247 | D102: 0.001176171017 | E102: 0.09471600145
A103: Fenpyrazamine | B103: Strawberries | C103: 0.0315220331 | D103: 0 | E103: 0.1324050471
A104: Fluopyram | B104: Lettuces | C104: 0.03127985985 | D104: 0 | E104: 0.1607459121
A105: Spiromesifen | B105: Tomatoes | C105: 0.02995951639 | D105: 0.02191876956 | E105: 0.04304691012
A106: Cyprodinil | B106: Peaches | C106: 0.02967213283 | D106: 0 | E106: 0.0857406119
A107: Ziram | B107: Spinaches | C107: 0.02814865378 | D107: 0 | E107: 0.1418292394
A108: Cyprodinil | B108: Pears | C108: 0.02725662508 | D108: 0 | E108: 0.07531961298
A109: Buprofezin | B109: Tomatoes | C109: 0.02649928823 | D109: 0.01631180816 | E109: 0.03772310895
A110: Boscalid | B110: Lettuces | C110: 0.02558499869 | D110: 0 | E110: 0.1075571342
A111: Spinosad | B111: Tomatoes | C111: 0.02484395156 | D111: 0.01704072916 | E111: 0.03698029414
A112: Etofenprox | B112: Mandarins | C112: 0.02479030398 | D112: 0 | E112: 0.06556478087
A113: Boscalid | B113: Apples | C113: 0.02414549085 | D113: 0.005626973293 | E113: 0.06157465125
A114: Thiacloprid | B114: Pears | C114: 0.02397990572 | D114: 0 | E114: 0.06865647739
A115: Fluopyram | B115: Sweet peppers/bell peppers | C115: 0.02388307242 | D115: 0.004295151556 | E115: 0.04978989114
A116: Buprofezin | B116: Apples | C116: 0.02354936636 | D116: 0.002525394389 | E116: 0.0859089277
A117: Boscalid | B117: Spinaches | C117: 0.0235473088 | D117: 0 | E117: 0.09601020063
A118: Pyrimethanil | B118: Strawberries | C118: 0.02093073427 | D118: 0 | E118: 0.08249662668
A119: Spinosad | B119: Peaches | C119: 0.02077100192 | D119: 0 | E119: 0.07271518754
A120: Lufenuron | B120: Strawberries | C120: 0.02063712993 | D120: 0 | E120: 0.08326462226
A121: Metiram | B121: Potatoes | C121: 0.01962281829 | D121: 0.001699472829 | E121: 0.08649836886
A122: Metiram | B122: Bananas | C122: 0.0192744894 | D122: 0 | E122: 0.06800627402
A123: Pymetrozine | B123: Cucumbers | C123: 0.01799602808 | D123: 0 | E123: 0.04231197823
A124: Propineb | B124: Spinaches | C124: 0.01794307546 | D124: 0 | E124: 0.1077358205
A125: Fipronil | B125: Sweet peppers/bell peppers | C125: 0.0177505431 | D125: 0.002217053661 | E125: 0.04620444654
A126: Boscalid | B126: Tomatoes | C126: 0.01721100823 | D126: 0.01253741727 | E126: 0.02378154581
A127: Myclobutanil | B127: Bananas | C127: 0.01712418038 | D127: 0 | E127: 0.05276312864
A128: Meptyldinocap | B128: Strawberries | C128: 0.01630289095 | D128: 0 | E128: 0.07217808605
A129: Boscalid | B129: Pears | C129: 0.01591491592 | D129: 0 | E129: 0.04533497533
A130: Maneb | B130: Potatoes | C130: 0.01496981176 | D130: 0.001896253978 | E130: 0.07135898317
A131: Bromide ion | B131: Beans (with pods) | C131: 0.01493477344 | D131: 0 | E131: 0.05913427125 | F131: =IF(C131>1,CONCATENATE(A131," ",B131),"") ->  | G131: =IF(C131>1,CONCATENATE(ROUND(C131,1)," ","(",ROUND(D131,1)," ","-"," ",ROUND(E131,1),")"),"") -> 
A132: Cyprodinil | B132: Wine grapes | C132: 0.01445733797 | D132: 0 | E132: 0.03622661064
A133: MCPA | B133: Oranges | C133: 0.01433902548 | D133: 0.004206022308 | E133: 0.04638365098
A134: Lufenuron | B134: Tomatoes | C134: 0.01396107459 | D134: 0.005664307297 | E134: 0.02573121394
A135: Pyrethrins | B135: Wheat | C135: 0.01349577985 | D135: 0.006455873748 | E135: 0.02260379354
A136: Mancozeb | B136: Potatoes | C136: 0.01343022628 | D136: 0.001866737253 | E136: 0.06301431367
A137: Mancozeb | B137: Bananas | C137: 0.01333836342 | D137: 0 | E137: 0.04865449055
A138: Clofentezine | B138: Apples | C138: 0.01330952257 | D138: 5.912002371e-05 | E138: 0.05032543515
A139: Mancozeb | B139: Beans (with pods) | C139: 0.01221853352 | D139: 0 | E139: 0.05271515312
A140: Pyrimethanil | B140: Pears | C140: 0.01208192729 | D140: 0 | E140: 0.03462250694
A141: Tetraconazole | B141: Tomatoes | C141: 0.01186144191 | D141: 0.005931614634 | E141: 0.02128518679
A142: Spinosad | B142: Cucumbers | C142: 0.01146900983 | D142: 0 | E142: 0.02481302513
A143: Fenpyrazamine | B143: Tomatoes | C143: 0.01138974525 | D143: 0.003599116452 | E143: 0.02385225901
A144: Thiacloprid | B144: Peaches | C144: 0.01128781353 | D144: 0 | E144: 0.03308123247
A145: MCPA | B145: Wheat | C145: 0.01118353873 | D145: 0.004062122385 | E145: 0.02349830814
A146: Fluopicolide | B146: Table grapes | C146: 0.01090675849 | D146: 0 | E146: 0.03413875241
A147: Boscalid | B147: Oranges | C147: 0.01070136614 | D147: 0.001755875315 | E147: 0.02767998186
A148: Fluopyram | B148: Pears | C148: 0.01039984655 | D148: 0 | E148: 0.02976634909
A149: Myclobutanil | B149: Strawberries | C149: 0.01038519082 | D149: 0 | E149: 0.0405264887
A150: Fenamidone | B150: Table grapes | C150: 0.009623926756 | D150: 0 | E150: 0.03219847847
A151: Fluopyram | B151: Wine grapes | C151: 0.00961601624 | D151: 0 | E151: 0.02243498154
A152: Fluopyram | B152: Carrots | C152: 0.009589867906 | D152: 0.002928501589 | E152: 0.01836159323
A153: Mancozeb | B153: Sweet peppers/bell peppers | C153: 0.009220505124 | D153: 0.001217330515 | E153: 0.0198024783
A154: MCPA | B154: Mandarins | C154: 0.008892171524 | D154: 0 | E154: 0.03395029838
A155: Thiabendazole | B155: Pears | C155: 0.00886319383 | D155: 0 | E155: 0.02379977947
A156: Metiram | B156: Wine grapes | C156: 0.008847346519 | D156: 0 | E156: 0.02497743187
A157: Etofenprox | B157: Apples | C157: 0.008635978842 | D157: 0.0007544237603 | E157: 0.02072575943
A158: Proquinazid | B158: Table grapes | C158: 0.008526211096 | D158: 0 | E158: 0.02787985526
A159: Flubendiamide | B159: Apples | C159: 0.008481441219 | D159: 0.0006419693273 | E159: 0.02347130578
A160: Fluquinconazole | B160: Apples | C160: 0.008241005761 | D160: 0.0008219824636 | E160: 0.02042570359
A161: Fipronil | B161: Cucumbers | C161: 0.008161369046 | D161: 0 | E161: 0.02995714322
A162: Fenbuconazole | B162: Peaches | C162: 0.008076750177 | D162: 0 | E162: 0.02116945986
A163: Pymetrozine | B163: Tomatoes | C163: 0.007884046561 | D163: 0.004427327464 | E163: 0.01235592918
A164: Dithianon | B164: Pears | C164: 0.007800593691 | D164: 0 | E164: 0.02125143478
A165: Buprofezin | B165: Sweet peppers/bell peppers | C165: 0.007622698064 | D165: 0.001132597965 | E165: 0.01573764008
A166: Spinosad | B166: Lettuces | C166: 0.007619986912 | D166: 0 | E166: 0.03220242585
A167: Bromide ion | B167: Cauliflowers | C167: 0.007236394952 | D167: 0 | E167: 0.02701290228
A168: Thiophanate-methyl | B168: Tomatoes | C168: 0.007038534858 | D168: 0.004272264454 | E168: 0.01304005006
A169: Boscalid | B169: Peaches | C169: 0.007000957921 | D169: 0 | E169: 0.01804621642
A170: Pyrimethanil | B170: Tomatoes | C170: 0.00696763455 | D170: 0.004980424038 | E170: 0.0100061435
A171: Tetraconazole | B171: Wheat | C171: 0.006688204035 | D171: 0.003406258722 | E171: 0.01450942109
A172: Bromide ion | B172: Peas (without pods) | C172: 0.006573577053 | D172: 0 | E172: 0.0224588933
A173: Tetraconazole | B173: Strawberries | C173: 0.006449086598 | D173: 0 | E173: 0.02615096445
A174: Flubendiamide | B174: Tomatoes | C174: 0.006389531093 | D174: 0.004371517809 | E174: 0.009670652371
A175: Boscalid | B175: Carrots | C175: 0.006340407426 | D175: 0.001563856467 | E175: 0.01220592374
A176: Bupirimate | B176: Strawberries | C176: 0.00620371865 | D176: 0 | E176: 0.02458337194
A177: Thiacloprid | B177: Head cabbages | C177: 0.006129135405 | D177: 0.0003235782351 | E177: 0.02201393828
A178: Thiacloprid | B178: Oranges | C178: 0.006108586133 | D178: 0.001042248715 | E178: 0.01569172946
A179: Tetraconazole | B179: Apples | C179: 0.005713459834 | D179: 0.0009498719653 | E179: 0.01258233516
A180: Bixafen | B180: Wheat | C180: 0.005662066689 | D180: 0.003121508331 | E180: 0.01076988063
A181: Clofentezine | B181: Tomatoes | C181: 0.005631140019 | D181: 0.00336107036 | E181: 0.008659341456
A182: Thiophanate-methyl | B182: Wheat | C182: 0.005608100687 | D182: 0.003207693088 | E182: 0.008570136481
A183: Metiram | B183: Spinaches | C183: 0.005390812604 | D183: 0 | E183: 0.02387750789
A184: Clofentezine | B184: Mandarins | C184: 0.005231920616 | D184: 0 | E184: 0.01504547976
A185: Pyrimethanil | B185: Peaches | C185: 0.005067708482 | D185: 0 | E185: 0.01436791104
A186: Pyrethrins | B186: Oranges | C186: 0.005036171641 | D186: 0.00206361826 | E186: 0.009592561013
A187: Mancozeb | B187: Wine grapes | C187: 0.005002222742 | D187: 0 | E187: 0.01918124676
A188: Myclobutanil | B188: Table grapes | C188: 0.004953754393 | D188: 0 | E188: 0.01442733572
A189: Lufenuron | B189: Table grapes | C189: 0.004943264542 | D189: 0 | E189: 0.01908539006
A190: Carbosulfan | B190: Oranges | C190: 0.004852599435 | D190: 0.0002284207946 | E190: 0.01604058451
A191: Fluopyram | B191: Head cabbages | C191: 0.004751356565 | D191: 0.0002486216133 | E191: 0.01754098432
A192: Boscalid | B192: Sweet peppers/bell peppers | C192: 0.00473834072 | D192: 0.0008155205193 | E192: 0.009659164728
A193: Myclobutanil | B193: Oranges | C193: 0.004571750344 | D193: 0.0009923990026 | E193: 0.01164098941
A194: Maneb | B194: Wine grapes | C194: 0.004564732743 | D194: 0 | E194: 0.01268991559
A195: Etofenprox | B195: Peaches | C195: 0.004543731911 | D195: 0 | E195: 0.0123019471 | F195: =IF(C195>1,CONCATENATE(A195," ",B195),"") ->  | G195: =IF(C195>1,CONCATENATE(ROUND(C195,1)," ","(",ROUND(D195,1)," ","-"," ",ROUND(E195,1),")"),"") -> 
A196: Fluopicolide | B196: Spinaches | C196: 0.004485021969 | D196: 0 | E196: 0.0190322845
A197: Meptyldinocap | B197: Table grapes | C197: 0.004463455452 | D197: 0 | E197: 0.01470670797
A198: Pyrimethanil | B198: Wine grapes | C198: 0.004428322612 | D198: 0 | E198: 0.01055545135
A199: Clofentezine | B199: Oranges | C199: 0.004234424313 | D199: 0.001249053977 | E199: 0.009628046878
A200: Spinosad | B200: Mandarins | C200: 0.004206205279 | D200: 0 | E200: 0.01511871956
... 546 more rows

Sheet utRd_CZ (hidden)
A1: Substance name | B1: Food name | C1: Mean contribution | D1: Lower bound (%) (p2,5) | E1: Upper bound (%) (p97,5) | F1: Risk Drivers | G1: % contribution (95% CI)
A2: Bromide ion | B2: Wheat | C2: 18.62445062 | D2: 9.631818093 | E2: 30.68858061 | F2: =IF(C2>1,CONCATENATE(A2," ",B2),"") -> Bromide ion Wheat | G2: =IF(C2>1,CONCATENATE(ROUND(C2,1)," ","(",ROUND(D2,1)," ","-"," ",ROUND(E2,1),")"),"") -> 18.6 (9.6 - 30.7)
A3: Ziram | B3: Wine grapes | C3: 15.64161916 | D3: 4.962769617 | E3: 29.96482859 | F3: =IF(C3>1,CONCATENATE(A3," ",B3),"") -> Ziram Wine grapes | G3: =IF(C3>1,CONCATENATE(ROUND(C3,1)," ","(",ROUND(D3,1)," ","-"," ",ROUND(E3,1),")"),"") -> 15.6 (5 - 30)
A4: Propineb | B4: Wine grapes | C4: 12.22458677 | D4: 4.342777732 | E4: 24.12743927 | F4: Propineb Wine grapes | G4: 12.2 (4.3 - 24.1)
A5: Cyprodinil | B5: Wine grapes | C5: 5.066920821 | D5: 3.292870265 | E5: 6.952184126 | F5: Cyprodinil Wine grapes | G5: 5.1 (3.3 - 7)
A6: Chlorpropham | B6: Potatoes | C6: 4.534461824 | D6: 1.989235397 | E6: 7.464348323 | F6: Chlorpropham Potatoes | G6: 4.5 (2 - 7.5)
A7: Bromide ion | B7: Rye | C7: 3.999285595 | D7: 2.005549547 | E7: 7.172262115 | F7: Bromide ion Rye | G7: 4 (2 - 7.2)
A8: Bromide ion | B8: Rice | C8: 3.83176129 | D8: 1.043104307 | E8: 7.94486035 | F8: Bromide ion Rice | G8: 3.8 (1 - 7.9)
A9: Metiram | B9: Wine grapes | C9: 3.124133006 | D9: 1.22209634 | E9: 6.180699995 | F9: Metiram Wine grapes | G9: 3.1 (1.2 - 6.2)
A10: Bromide ion | B10: Tomatoes | C10: 2.777659369 | D10: 1.319359335 | E10: 4.800330428 | F10: Bromide ion Tomatoes | G10: 2.8 (1.3 - 4.8)
A11: Maleic hydrazide | B11: Potatoes | C11: 2.214672194 | D11: 1.205135491 | E11: 3.392097069 | F11: Maleic hydrazide Potatoes | G11: 2.2 (1.2 - 3.4)
A12: Bromide ion | B12: Potatoes | C12: 1.88125829 | D12: 1.003769175 | E12: 3.325704249 | F12: Bromide ion Potatoes | G12: 1.9 (1 - 3.3)
A13: Mancozeb | B13: Wine grapes | C13: 1.697535356 | D13: 0.5799270411 | E13: 3.696975689 | F13: Mancozeb Wine grapes | G13: 1.7 (0.6 - 3.7)
A14: Maneb | B14: Wine grapes | C14: 1.596078384 | D14: 0.6355649223 | E14: 2.862267639 | F14: Maneb Wine grapes | G14: 1.6 (0.6 - 2.9)
A15: Pyrimethanil | B15: Wine grapes | C15: 1.585411956 | D15: 1.00351561 | E15: 2.248703741 | F15: Pyrimethanil Wine grapes | G15: 1.6 (1 - 2.2)
A16: Ziram | B16: Apples | C16: 1.474094246 | D16: 0.4410305761 | E16: 3.148745034 | F16: Ziram Apples | G16: 1.5 (0.4 - 3.1)
A17: Fluopyram | B17: Wine grapes | C17: 1.426583058 | D17: 0.7793745479 | E17: 2.184096622 | F17: Fluopyram Wine grapes | G17: 1.4 (0.8 - 2.2)
A18: Propineb | B18: Tomatoes | C18: 1.047691743 | D18: 0.3802502216 | E18: 2.301219424 | F18: Propineb Tomatoes | G18: 1 (0.4 - 2.3)
A19: Propineb | B19: Apples | C19: 1.020329222 | D19: 0.3463814138 | E19: 1.969813043 | F19: Propineb Apples | G19: 1 (0.3 - 2)
A20: Bromide ion | B20: Sweet peppers/bell peppers | C20: 1.006947543 | D20: 0.5903019354 | E20: 1.46768146 | F20: Bromide ion Sweet peppers/bell peppers | G20: 1 (0.6 - 1.5)
A21: Fipronil | B21: Drinking water-Unspecified | C21: 0.9498237022 | D21: 0.6613268321 | E21: 1.181717283
A22: Bromide ion | B22: Cucumbers | C22: 0.9174128777 | D22: 0.2959118816 | E22: 1.723540401
A23: Proquinazid | B23: Wine grapes | C23: 0.9002975989 | D23: 0.5293975182 | E23: 1.439350639
A24: Bromide ion | B24: Lettuces | C24: 0.6566727146 | D24: 0.04365531303 | E24: 1.401739751
A25: Mancozeb | B25: Head cabbages | C25: 0.5268425254 | D25: 0.1275050309 | E25: 1.153730222
A26: Thiabendazole | B26: Oranges | C26: 0.5203772966 | D26: 0.01157206862 | E26: 1.23694068
A27: Bromide ion | B27: Head cabbages | C27: 0.4420425476 | D27: 0.1016180594 | E27: 1.041802651
A28: Folpet | B28: Wine grapes | C28: 0.4101519668 | D28: 0.2479712873 | E28: 0.5943327008
A29: Mancozeb | B29: Cauliflowers | C29: 0.3762166776 | D29: 0 | E29: 0.9440704531
A30: Mancozeb | B30: Wheat | C30: 0.3218482934 | D30: 0.04545809267 | E30: 1.125493534
A31: Metiram | B31: Apples | C31: 0.2785990739 | D31: 0.07979751603 | E31: 0.5325128407
A32: Maneb | B32: Wheat | C32: 0.2739330196 | D32: 0.02206770935 | E32: 0.9286749008
A33: Fenpyrazamine | B33: Wine grapes | C33: 0.2654218459 | D33: 0.08132546084 | E33: 0.565617981
A34: Mancozeb | B34: Broccoli | C34: 0.258129714 | D34: 0 | E34: 0.8599871703
A35: Dithianon | B35: Apples | C35: 0.2528872986 | D35: 0.08101660822 | E35: 0.4267938248
A36: Pyrimethanil | B36: Oranges | C36: 0.2341150726 | D36: 0.02292757427 | E36: 0.5045151141
A37: Oxyfluorfen | B37: Olives for oil production | C37: 0.2332394491 | D37: 0.137994171 | E37: 0.3510971353
A38: Metiram | B38: Lettuces | C38: 0.2328062613 | D38: 0.009164735616 | E38: 0.5723397619
A39: MCPA | B39: Wine grapes | C39: 0.2286903388 | D39: 0.00742632991 | E39: 0.7337640503
A40: Mancozeb | B40: Oranges | C40: 0.2173847893 | D40: 0.02270822004 | E40: 0.458472005
A41: Boscalid | B41: Wine grapes | C41: 0.1987774118 | D41: 0.1213006548 | E41: 0.3195081377
A42: Amitrole | B42: Drinking water-Unspecified | C42: 0.1899647404 | D42: 0.1322653664 | E42: 0.2363434566
A43: Propineb | B43: Cucumbers | C43: 0.1849749982 | D43: 0.07256730567 | E43: 0.3332858872
A44: Fluopyram | B44: Tomatoes | C44: 0.167953339 | D44: 0.07421504623 | E44: 0.3461284239
A45: Mancozeb | B45: Tomatoes | C45: 0.1635132644 | D45: 0.05620843458 | E45: 0.3302553866
A46: Thiabendazole | B46: Bananas | C46: 0.1608476381 | D46: 0.03877304623 | E46: 0.3114137343
A47: Mancozeb | B47: Apples | C47: 0.1564368356 | D47: 0.05417027612 | E47: 0.3113374305
A48: Maneb | B48: Apples | C48: 0.1499549987 | D48: 0.04611510092 | E48: 0.2765875211
A49: Topramezone | B49: Drinking water-Unspecified | C49: 0.1424735553 | D49: 0.09919902481 | E49: 0.1772575924
A50: Lufenuron | B50: Drinking water-Unspecified | C50: 0.1424735553 | D50: 0.09919902481 | E50: 0.1772575924
A51: Cyprodinil | B51: Lettuces | C51: 0.1389251022 | D51: 0.009813412305 | E51: 0.3203262456
A52: Buprofezin | B52: Bananas | C52: 0.1364606082 | D52: 0.03197969395 | E52: 0.2654569194
A53: Thiacloprid | B53: Apples | C53: 0.1359627533 | D53: 0.04423059509 | E53: 0.22906181
A54: Propineb | B54: Potatoes | C54: 0.1328079002 | D54: 0.04935332007 | E54: 0.4220115518
A55: Fluquinconazole | B55: Drinking water-Unspecified | C55: 0.1295214139 | D55: 0.09018093165 | E55: 0.1611432658
A56: Ziram | B56: Table grapes | C56: 0.1285926129 | D56: 0.001052739477 | E56: 0.4493832949
A57: Cyprodinil | B57: Apples | C57: 0.1276576629 | D57: 0.04085689512 | E57: 0.21866604
A58: Fluopicolide | B58: Wine grapes | C58: 0.1213849925 | D58: 0.08012583848 | E58: 0.1671788045
A59: Mancozeb | B59: Lettuces | C59: 0.1176345684 | D59: 0.006765314492 | E59: 0.2967357329
A60: Propineb | B60: Sweet peppers/bell peppers | C60: 0.1146302217 | D60: 0.0590642325 | E60: 0.1879422178
A61: Spinosad | B61: Wine grapes | C61: 0.1108486936 | D61: 0.03556123724 | E61: 0.2514721664
A62: Bromide ion | B62: Courgettes | C62: 0.1107206253 | D62: 0 | E62: 0.4068264374
A63: Pyrimethanil | B63: Apples | C63: 0.1077947876 | D63: 0.04657881517 | E63: 0.1876619839
A64: Bromide ion | B64: Carrots | C64: 0.1053727414 | D64: 0.03517317464 | E64: 0.2475403824
A65: Lufenuron | B65: Potatoes | C65: 0.09635767591 | D65: 0.001945559649 | E65: 0.2856176286
A66: Tetraconazole | B66: Wine grapes | C66: 0.09465472546 | D66: 0.05577794609 | E66: 0.1602086846
A67: 2,4-D | B67: Oranges | C67: 0.09376393435 | D67: 0.009325538346 | E67: 0.2068055375 | F67: =IF(C67>1,CONCATENATE(A67," ",B67),"") ->  | G67: =IF(C67>1,CONCATENATE(ROUND(C67,1)," ","(",ROUND(D67,1)," ","-"," ",ROUND(E67,1),")"),"") -> 
A68: Bromide ion | B68: Bananas | C68: 0.08915095784 | D68: 0.02012650027 | E68: 0.2049431164
A69: Fluopyram | B69: Table grapes | C69: 0.0874086976 | D69: 0.0009704743597 | E69: 0.2565761169
A70: Propineb | B70: Table grapes | C70: 0.08572541949 | D70: 0.0004790832532 | E70: 0.2440680803
A71: Fluopyram | B71: Peaches | C71: 0.08412101931 | D71: 0 | E71: 0.1696012598
A72: Fipronil | B72: Potatoes | C72: 0.0795909186 | D72: 0.04326858396 | E72: 0.1258514454
A73: Dithianon | B73: Wine grapes | C73: 0.07592431763 | D73: 0.0124166659 | E73: 0.1823651814
A74: Fluopyram | B74: Apples | C74: 0.07322864996 | D74: 0.02264813688 | E74: 0.1287734212
A75: Mancozeb | B75: Peaches | C75: 0.07011903006 | D75: 0 | E75: 0.1508189244
A76: Cyprodinil | B76: Table grapes | C76: 0.06938990358 | D76: 0.0008002091196 | E76: 0.1934748968
A77: Thiabendazole | B77: Apples | C77: 0.06753847151 | D77: 0.02104052006 | E77: 0.1207878984
A78: Buprofezin | B78: Rice | C78: 0.06450097458 | D78: 0.01630295635 | E78: 0.1219553159
A79: Lufenuron | B79: Wine grapes | C79: 0.06304035073 | D79: 0.01641428567 | E79: 0.1722527497
A80: Cyprodinil | B80: Peaches | C80: 0.05951737548 | D80: 0 | E80: 0.1126748994
A81: Metiram | B81: Cucumbers | C81: 0.05794864055 | D81: 0.02277254075 | E81: 0.09859835531
A82: Cyflufenamid | B82: Wine grapes | C82: 0.05586392799 | D82: 0.03375872616 | E82: 0.08464536254
A83: Fluopyram | B83: Lettuces | C83: 0.05568632963 | D83: 0.004857891909 | E83: 0.120549054
A84: Cyprodinil | B84: Tomatoes | C84: 0.05479272798 | D84: 0.02507259199 | E84: 0.09834630962
A85: Fluopyram | B85: Sweet peppers/bell peppers | C85: 0.05333067552 | D85: 0.02989351388 | E85: 0.08236788003
A86: Meptyldinocap | B86: Wine grapes | C86: 0.05311001443 | D86: 0.004801664885 | E86: 0.1185364102
A87: Boscalid | B87: Lettuces | C87: 0.04746637474 | D87: 0.003240118608 | E87: 0.09640278957
A88: Thiophanate-methyl | B88: Wine grapes | C88: 0.04658017848 | D88: 0.01557948635 | E88: 0.09240850967
A89: Pyrimethanil | B89: Mandarins | C89: 0.04542150267 | D89: 0 | E89: 0.1292080833
A90: Spinosad | B90: Peaches | C90: 0.04160650186 | D90: 0 | E90: 0.1076287121
A91: Fluopyram | B91: Cucumbers | C91: 0.04065225343 | D91: 0.01455167815 | E91: 0.07366723378
A92: Fipronil | B92: Sweet peppers/bell peppers | C92: 0.04050870795 | D92: 0.009705801259 | E92: 0.08579286013
A93: Bromide ion | B93: Broccoli | C93: 0.038256029 | D93: 0 | E93: 0.1471856446
A94: Bromide ion | B94: Cauliflowers | C94: 0.03766488898 | D94: 0 | E94: 0.1132369393
A95: Thiabendazole | B95: Potatoes | C95: 0.03666028035 | D95: 0.005001147139 | E95: 0.09035458213
A96: Maneb | B96: Rye | C96: 0.03264088827 | D96: 0.01401587305 | E96: 0.06687867319
A97: Thiacloprid | B97: Tomatoes | C97: 0.03154060804 | D97: 0.01472479194 | E97: 0.06017576662
A98: Cyprodinil | B98: Strawberries | C98: 0.03063944203 | D98: 0 | E98: 0.1792034553
A99: Mancozeb | B99: Cucumbers | C99: 0.02947120985 | D99: 0.01133279082 | E99: 0.05510800175
A100: Boscalid | B100: Apples | C100: 0.02916555422 | D100: 0.01280220539 | E100: 0.05879376815
A101: Cyprodinil | B101: Cucumbers | C101: 0.02754567605 | D101: 0.01023375376 | E101: 0.04465637799
A102: Spiromesifen | B102: Tomatoes | C102: 0.02454780636 | D102: 0.01108311421 | E102: 0.05007406009
A103: Thiacloprid | B103: Peaches | C103: 0.02259269611 | D103: 0 | E103: 0.04504310676
A104: Metiram | B104: Table grapes | C104: 0.0225667944 | D104: 0.0002138618971 | E104: 0.06600624061
A105: Fenamidone | B105: Wine grapes | C105: 0.02149754319 | D105: 0.008876045342 | E105: 0.04320920281
A106: Thiacloprid | B106: Cucumbers | C106: 0.02145955685 | D106: 0.008075684602 | E106: 0.03717324888
A107: Metiram | B107: Potatoes | C107: 0.02082254927 | D107: 0.002598072906 | E107: 0.09855405244
A108: Bromide ion | B108: Mandarins | C108: 0.02071209949 | D108: 0 | E108: 0.1169440284
A109: Mancozeb | B109: Sweet peppers/bell peppers | C109: 0.02061108946 | D109: 0.009540755114 | E109: 0.03123064199
A110: Fluopyram | B110: Strawberries | C110: 0.01900828739 | D110: 0 | E110: 0.1107341881
A111: Mancozeb | B111: Mandarins | C111: 0.01888845747 | D111: 0 | E111: 0.0543397558
A112: Buprofezin | B112: Sweet peppers/bell peppers | C112: 0.01716536597 | D112: 0.009155420919 | E112: 0.02826078168
A113: Fenbuconazole | B113: Wine grapes | C113: 0.01707179372 | D113: 0.0101791412 | E113: 0.02650594594
A114: 2,4-D | B114: Mandarins | C114: 0.01667581595 | D114: 0 | E114: 0.04565827546
A115: Buprofezin | B115: Tomatoes | C115: 0.01652133571 | D115: 0.007326828788 | E115: 0.03330757426
A116: Fenbuconazole | B116: Peaches | C116: 0.01644384192 | D116: 0 | E116: 0.03114309641
A117: Benthiavalicarb | B117: Wine grapes | C117: 0.01584474208 | D117: 0.003678819545 | E117: 0.03381229296
A118: Propineb | B118: Courgettes | C118: 0.0156188056 | D118: 0 | E118: 0.07157711339
A119: Tetraconazole | B119: Table grapes | C119: 0.01556935227 | D119: 0.0001630124349 | E119: 0.04334359772
A120: Spinosad | B120: Tomatoes | C120: 0.01545276859 | D120: 0.006525154739 | E120: 0.02903500126
A121: Fipronil | B121: Broccoli | C121: 0.01526335998 | D121: 0 | E121: 0.0628075223
A122: Maneb | B122: Potatoes | C122: 0.01498032742 | D122: 0.002759302832 | E122: 0.05423603177
A123: Boscalid | B123: Peaches | C123: 0.01419230027 | D123: 0 | E123: 0.02909929715
A124: Spinosad | B124: Lettuces | C124: 0.01381731306 | D124: 0.001012285319 | E124: 0.02826280335
A125: Mancozeb | B125: Potatoes | C125: 0.01374782863 | D125: 0.002908606244 | E125: 0.05578308735
A126: Dinocap | B126: Wine grapes | C126: 0.01355407301 | D126: 0.003062005503 | E126: 0.03468909481
A127: Pyrethrins | B127: Wheat | C127: 0.01345973375 | D127: 0.005117927009 | E127: 0.02544251037
A128: Boscalid | B128: Tomatoes | C128: 0.01308156232 | D128: 0.004964916039 | E128: 0.02539356865
A129: Metiram | B129: Bananas | C129: 0.01233948341 | D129: 0.001904059193 | E129: 0.03536415032
A130: Buprofezin | B130: Apples | C130: 0.01233873258 | D130: 0.002110330057 | E130: 0.03843783381
A131: Mancozeb | B131: Table grapes | C131: 0.01211428865 | D131: 0.0001076962333 | E131: 0.03827523725 | F131: =IF(C131>1,CONCATENATE(A131," ",B131),"") ->  | G131: =IF(C131>1,CONCATENATE(ROUND(C131,1)," ","(",ROUND(D131,1)," ","-"," ",ROUND(E131,1),")"),"") -> 
A132: Pyrimethanil | B132: Table grapes | C132: 0.01160089911 | D132: 0.000135202433 | E132: 0.03257445032
A133: Maneb | B133: Table grapes | C133: 0.01154088989 | D133: 8.896097541e-05 | E133: 0.03513299838
A134: Pymetrozine | B134: Cucumbers | C134: 0.01143699792 | D134: 0.003682937519 | E134: 0.01998131105
A135: MCPA | B135: Wheat | C135: 0.01102848934 | D135: 0.004601855959 | E135: 0.02265426326
A136: Zoxamide | B136: Wine grapes | C136: 0.01102406551 | D136: 0.006515416731 | E136: 0.016838675
A137: Boscalid | B137: Sweet peppers/bell peppers | C137: 0.0105512851 | D137: 0.006245067037 | E137: 0.01469919974
A138: Thiacloprid | B138: Strawberries | C138: 0.01052179266 | D138: 0 | E138: 0.06198712643
A139: Myclobutanil | B139: Bananas | C139: 0.01047762703 | D139: 0.002502758452 | E139: 0.02064331969
A140: Pyrimethanil | B140: Peaches | C140: 0.01038957727 | D140: 0 | E140: 0.02337050866
A141: Buprofezin | B141: Table grapes | C141: 0.009918610809 | D141: 0.0001194825977 | E141: 0.02779433958
A142: Buprofezin | B142: Oranges | C142: 0.009339111661 | D142: 0.0008452566997 | E142: 0.02051975868
A143: Etofenprox | B143: Peaches | C143: 0.009239151056 | D143: 0 | E143: 0.01886338051
A144: Lufenuron | B144: Tomatoes | C144: 0.008672983738 | D144: 0.002993124982 | E144: 0.01941629697
A145: Myclobutanil | B145: Wine grapes | C145: 0.008646216628 | D145: 0.005295406139 | E145: 0.01270133843
A146: Thiabendazole | B146: Mandarins | C146: 0.007934758257 | D146: 0 | E146: 0.02256792545
A147: Mancozeb | B147: Bananas | C147: 0.007683346281 | D147: 0.001594814781 | E147: 0.01773725721
A148: Cyprodinil | B148: Sweet peppers/bell peppers | C148: 0.007639860741 | D148: 0.004540206211 | E148: 0.01113152534
A149: Spinosad | B149: Sweet peppers/bell peppers | C149: 0.007487597255 | D149: 0.003957903568 | E149: 0.01207901069
A150: Pymetrozine | B150: Sweet peppers/bell peppers | C150: 0.007483249761 | D150: 0.004773341189 | E150: 0.01094377647
A151: Boscalid | B151: Table grapes | C151: 0.007438307682 | D151: 8.115461417e-05 | E151: 0.02122693855
A152: Tetraconazole | B152: Tomatoes | C152: 0.007407579993 | D152: 0.002640874224 | E152: 0.01694444453
A153: Spinosad | B153: Cucumbers | C153: 0.007377582851 | D153: 0.002494903272 | E153: 0.01303955747
A154: Spiromesifen | B154: Sweet peppers/bell peppers | C154: 0.007033029811 | D154: 0.004070972177 | E154: 0.01058605207
A155: Fenpyrazamine | B155: Tomatoes | C155: 0.006972156973 | D155: 0.001802472263 | E155: 0.01549592002
A156: Clofentezine | B156: Apples | C156: 0.006818427467 | D156: 5.818558029e-05 | E156: 0.02428373262
A157: Tetraconazole | B157: Wheat | C157: 0.006622576837 | D157: 0.002551953196 | E157: 0.0121687835
A158: Flubendiamide | B158: Sweet peppers/bell peppers | C158: 0.005976852476 | D158: 0.003416067677 | E158: 0.008725224213
A159: Pyrethrins | B159: Rye | C159: 0.005883063618 | D159: 0.001100262032 | E159: 0.01694771457
A160: Thiophanate-methyl | B160: Peaches | C160: 0.005687500955 | D160: 0 | E160: 0.0128564527
A161: Fipronil | B161: Cucumbers | C161: 0.005668987885 | D161: 0.0003255229495 | E161: 0.01766814879
A162: Bixafen | B162: Wheat | C162: 0.005638503201 | D162: 0.002495571027 | E162: 0.01144733293
A163: Lufenuron | B163: Sweet peppers/bell peppers | C163: 0.00561963804 | D163: 0.002036022209 | E163: 0.01099121922
A164: Thiacloprid | B164: Lettuces | C164: 0.005527766126 | D164: 0.0005398749906 | E164: 0.0119370666
A165: Thiophanate-methyl | B165: Wheat | C165: 0.005517129795 | D165: 0.002881425825 | E165: 0.009061331743
A166: Thiacloprid | B166: Sweet peppers/bell peppers | C166: 0.005296724865 | D166: 0.002239220556 | E166: 0.00885112982
A167: Flubendiamide | B167: Tomatoes | C167: 0.005286663763 | D167: 0.002467186473 | E167: 0.01090578873
A168: Mancozeb | B168: Courgettes | C168: 0.005281487305 | D168: 0 | E168: 0.02629115697
A169: Tetraconazole | B169: Peaches | C169: 0.005197650857 | D169: 0 | E169: 0.01057533225
A170: Bromide ion | B170: Strawberries | C170: 0.005168830456 | D170: 0 | E170: 0.03359225172
A171: Spinosad | B171: Table grapes | C171: 0.005073460234 | D171: 6.057729429e-05 | E171: 0.01470863612
A172: Thiophanate-methyl | B172: Tomatoes | C172: 0.004936629449 | D172: 0.002093450254 | E172: 0.01025158231
A173: Fenamidone | B173: Lettuces | C173: 0.004625172705 | D173: 0.0003069692598 | E173: 0.01140279189
A174: Boscalid | B174: Strawberries | C174: 0.004420608776 | D174: 0 | E174: 0.02538816248
A175: Etofenprox | B175: Apples | C175: 0.004393066292 | D175: 0.001305480106 | E175: 0.007883933909
A176: Pymetrozine | B176: Tomatoes | C176: 0.004381436093 | D176: 0.001961552634 | E176: 0.009292381749
A177: Thiacloprid | B177: Head cabbages | C177: 0.004346249373 | D177: 0.0008177646603 | E177: 0.01047743583
A178: Pyrimethanil | B178: Tomatoes | C178: 0.004330662136 | D178: 0.00200375771 | E178: 0.007784318039
A179: Fenpyrazamine | B179: Sweet peppers/bell peppers | C179: 0.004257591773 | D179: 0.001181578391 | E179: 0.009443537526
A180: Flubendiamide | B180: Apples | C180: 0.004162724597 | D180: 0.0007508435628 | E180: 0.0094187054
A181: Fluquinconazole | B181: Apples | C181: 0.004061179733 | D181: 0.001447560719 | E181: 0.007832999763
A182: Bromide ion | B182: Peas (without pods) | C182: 0.003937714036 | D182: 0 | E182: 0.01039642682
A183: Fenpyrazamine | B183: Table grapes | C183: 0.003899481723 | D183: 3.086724306e-05 | E183: 0.01456875348
A184: Fluxapyroxad | B184: Wheat | C184: 0.00385763397 | D184: 0.001569878231 | E184: 0.007602039692
A185: Metiram | B185: Courgettes | C185: 0.003813568126 | D185: 0 | E185: 0.01739579433
A186: Clofentezine | B186: Strawberries | C186: 0.003753933808 | D186: 0 | E186: 0.0217698521
A187: Thiophanate-methyl | B187: Lettuces | C187: 0.003695942726 | D187: 0.0001395372579 | E187: 0.01142148417
A188: Tetraconazole | B188: Apples | C188: 0.003639972385 | D188: 0.001519930335 | E188: 0.006310804178
A189: Flufenacet | B189: Potatoes | C189: 0.003582710937 | D189: 0.001958627056 | E189: 0.005600712882
A190: Pyrimethanil | B190: Sweet peppers/bell peppers | C190: 0.003511109152 | D190: 0.002060585162 | E190: 0.005000567039
A191: Clofentezine | B191: Tomatoes | C191: 0.003485527629 | D191: 0.001553654271 | E191: 0.006597378009
A192: Pymetrozine | B192: Lettuces | C192: 0.003302318486 | D192: 0.0002665439154 | E192: 0.008716669158
A193: Fluopyram | B193: Head cabbages | C193: 0.003228638674 | D193: 0.0005452369478 | E193: 0.007630710876
A194: MCPA | B194: Potatoes | C194: 0.003168578547 | D194: 0.00126959646 | E194: 0.005641773682
A195: Spirodiclofen | B195: Apples | C195: 0.003154322951 | D195: 0.001517267771 | E195: 0.006437306235 | F195: =IF(C195>1,CONCATENATE(A195," ",B195),"") ->  | G195: =IF(C195>1,CONCATENATE(ROUND(C195,1)," ","(",ROUND(D195,1)," ","-"," ",ROUND(E195,1),")"),"") -> 
A196: Spinosad | B196: Strawberries | C196: 0.003048617256 | D196: 0 | E196: 0.01889206283
A197: Thiophanate-methyl | B197: Potatoes | C197: 0.003042672991 | D197: 2.288448193e-05 | E197: 0.008750120032
A198: Dithianon | B198: Peaches | C198: 0.003025811054 | D198: 0 | E198: 0.007870761873
A199: Amisulbrom | B199: Wine grapes | C199: 0.002793696104 | D199: 0.0002190627792 | E199: 0.008154796509
A200: Thiophanate-methyl | B200: Apples | C200: 0.002783504386 | D200: 0.001067287218 | E200: 0.005703967261
... 496 more rows

Sheet utRD_DE (hidden)
A1: Substance name | B1: Food name | C1: Mean contribution | D1: Lower bound (%) (p2,5) | E1: Upper bound (%) (p97,5) | F1: Risk Drivers | G1: % contribution (95% CI)
A2: Bromide ion | B2: Wheat | C2: 18.61661022 | D2: 11.39140102 | E2: 29.25988657 | F2: =IF(C2>1,CONCATENATE(A2," ",B2),"") -> Bromide ion Wheat | G2: =IF(C2>1,CONCATENATE(ROUND(C2,1)," ","(",ROUND(D2,1)," ","-"," ",ROUND(E2,1),")"),"") -> 18.6 (11.4 - 29.3)
A3: Ziram | B3: Wine grapes | C3: 9.758425429 | D3: 2.541457792 | E3: 23.86753043 | F3: =IF(C3>1,CONCATENATE(A3," ",B3),"") -> Ziram Wine grapes | G3: =IF(C3>1,CONCATENATE(ROUND(C3,1)," ","(",ROUND(D3,1)," ","-"," ",ROUND(E3,1),")"),"") -> 9.8 (2.5 - 23.9)
A4: Propineb | B4: Wine grapes | C4: 7.728798907 | D4: 1.960911706 | E4: 19.867003 | F4: Propineb Wine grapes | G4: 7.7 (2 - 19.9)
A5: Bromide ion | B5: Tomatoes | C5: 5.902178799 | D5: 3.79732818 | E5: 8.579301795 | F5: Bromide ion Tomatoes | G5: 5.9 (3.8 - 8.6)
A6: Ziram | B6: Apples | C6: 4.719102948 | D6: 2.034303003 | E6: 10.02438004 | F6: Ziram Apples | G6: 4.7 (2 - 10)
A7: Thiabendazole | B7: Oranges | C7: 3.867437531 | D7: 1.960192679 | E7: 6.607540717 | F7: Thiabendazole Oranges | G7: 3.9 (2 - 6.6)
A8: Propineb | B8: Apples | C8: 3.269974098 | D8: 1.369751894 | E8: 6.026496382 | F8: Propineb Apples | G8: 3.3 (1.4 - 6)
A9: Bromide ion | B9: Rye | C9: 3.060320685 | D9: 1.998301047 | E9: 4.806098842 | F9: Bromide ion Rye | G9: 3.1 (2 - 4.8)
A10: Cyprodinil | B10: Wine grapes | C10: 2.999449055 | D10: 1.677778378 | E10: 4.208873919 | F10: Cyprodinil Wine grapes | G10: 3 (1.7 - 4.2)
A11: Propineb | B11: Tomatoes | C11: 2.250969917 | D11: 0.8949927761 | E11: 5.558634363 | F11: Propineb Tomatoes | G11: 2.3 (0.9 - 5.6)
A12: Metiram | B12: Wine grapes | C12: 1.863189407 | D12: 0.6890853804 | E12: 3.750450104 | F12: Metiram Wine grapes | G12: 1.9 (0.7 - 3.8)
A13: Chlorpropham | B13: Potatoes | C13: 1.663686213 | D13: 1.148301994 | E13: 2.149388767 | F13: Chlorpropham Potatoes | G13: 1.7 (1.1 - 2.1)
A14: Bromide ion | B14: Lettuces | C14: 1.623776904 | D14: 1.056482373 | E14: 2.332349531 | F14: Bromide ion Lettuces | G14: 1.6 (1.1 - 2.3)
A15: Pyrimethanil | B15: Oranges | C15: 1.442086487 | D15: 0.7431686116 | E15: 2.467455215 | F15: Pyrimethanil Oranges | G15: 1.4 (0.7 - 2.5)
A16: Mancozeb | B16: Oranges | C16: 1.34379318 | D16: 0.7075233938 | E16: 2.397506348 | F16: Mancozeb Oranges | G16: 1.3 (0.7 - 2.4)
A17: Bromide ion | B17: Rice | C17: 1.133959788 | D17: 0.6511768928 | E17: 1.853517084 | F17: Bromide ion Rice | G17: 1.1 (0.7 - 1.9)
A18: Ziram | B18: Table grapes | C18: 1.060847994 | D18: 0.3950416906 | E18: 2.201975936 | F18: Ziram Table grapes | G18: 1.1 (0.4 - 2.2)
A19: Mancozeb | B19: Wine grapes | C19: 0.9933133602 | D19: 0.2741465413 | E19: 2.04024828
A20: Maneb | B20: Wine grapes | C20: 0.937637769 | D20: 0.3637958665 | E20: 1.855264222
A21: Pyrimethanil | B21: Wine grapes | C21: 0.9337921044 | D21: 0.5040647496 | E21: 1.408620591
A22: Maleic hydrazide | B22: Potatoes | C22: 0.889219604 | D22: 0.5351471679 | E22: 1.239282271
A23: Metiram | B23: Apples | C23: 0.8890270398 | D23: 0.375267664 | E23: 1.607811729
A24: Bromide ion | B24: Potatoes | C24: 0.8104908005 | D24: 0.4744477111 | E24: 1.299432387
A25: Dithianon | B25: Apples | C25: 0.8010774422 | D25: 0.4149139318 | E25: 1.295755239
A26: Fipronil | B26: Drinking water-Unspecified | C26: 0.7787676617 | D26: 0.6651294234 | E26: 0.9065351757
A27: Propineb | B27: Table grapes | C27: 0.7492049242 | D27: 0.2353378213 | E27: 1.55416831
A28: Fluopyram | B28: Wine grapes | C28: 0.7373950616 | D28: 0.4000970085 | E28: 1.202322785
A29: Bromide ion | B29: Carrots | C29: 0.6532653732 | D29: 0.2945922236 | E29: 1.35405756
A30: Bromide ion | B30: Spinaches | C30: 0.6296469692 | D30: 0.08063099577 | E30: 1.952702088
A31: Bromide ion | B31: Oat | C31: 0.6050552762 | D31: 0.2171905509 | E31: 1.29318492
A32: Bromide ion | B32: Melons | C32: 0.6023273611 | D32: 0.08441546103 | E32: 1.426107231
A33: Cyprodinil | B33: Table grapes | C33: 0.5955882992 | D33: 0.2155797179 | E33: 1.138322532
A34: Metiram | B34: Lettuces | C34: 0.5794608106 | D34: 0.2902314198 | E34: 1.050774668
A35: 2,4-D | B35: Oranges | C35: 0.5754507344 | D35: 0.2896015598 | E35: 0.9186920341
A36: Proquinazid | B36: Wine grapes | C36: 0.5369656174 | D36: 0.2764856202 | E36: 0.8897041447
A37: Thiabendazole | B37: Mandarins | C37: 0.5030921361 | D37: 0.04561009147 | E37: 1.097603041
A38: Mancozeb | B38: Apples | C38: 0.4966914554 | D38: 0.2095208558 | E38: 0.8708788377
A39: Maneb | B39: Apples | C39: 0.4789126856 | D39: 0.2254263956 | E39: 0.7987260721
A40: Thiacloprid | B40: Apples | C40: 0.4302382592 | D40: 0.2201108341 | E40: 0.6449611397
A41: Cyprodinil | B41: Apples | C41: 0.4056816816 | D41: 0.204167325 | E41: 0.6426301502
A42: Bromide ion | B42: Sweet peppers/bell peppers | C42: 0.3844791348 | D42: 0.1759927052 | E42: 0.7315126919
A43: Bromide ion | B43: Cucumbers | C43: 0.3758901657 | D43: 0.1524177401 | E43: 0.6852775317
A44: Mancozeb | B44: Tomatoes | C44: 0.3465297332 | D44: 0.1856805522 | E44: 0.6043003225
A45: Ziram | B45: Pears | C45: 0.3451692658 | D45: 0.1507536894 | E45: 0.6670850091
A46: Cyprodinil | B46: Lettuces | C46: 0.3405106629 | D46: 0.2077837403 | E46: 0.5028716907
A47: Mancozeb | B47: Head cabbages | C47: 0.3343241861 | D47: 0.1608351871 | E47: 0.5602781997
A48: Fluopyram | B48: Table grapes | C48: 0.3329793917 | D48: 0.1217147097 | E48: 0.6463074357
A49: Mancozeb | B49: Wheat | C49: 0.3267150686 | D49: 0.05039165799 | E49: 1.090868336
A50: Mancozeb | B50: Lettuces | C50: 0.2912352334 | D50: 0.1499884335 | E50: 0.5319231027
A51: Pyrimethanil | B51: Apples | C51: 0.2844639095 | D51: 0.1425695835 | E51: 0.4177091485
A52: Bromide ion | B52: Head cabbages | C52: 0.2776485662 | D52: 0.1439662634 | E52: 0.4381745937
A53: Mancozeb | B53: Cauliflowers | C53: 0.2760700402 | D53: 0.08924418541 | E53: 0.5025221036
A54: Maneb | B54: Wheat | C54: 0.2721653295 | D54: 0.02555778798 | E54: 0.9477031522
A55: Fluopyram | B55: Tomatoes | C55: 0.2575847368 | D55: 0.1540987697 | E55: 0.3880107567
A56: Propineb | B56: Pears | C56: 0.253526916 | D56: 0.1051977957 | E56: 0.489549553
A57: Pyrimethanil | B57: Mandarins | C57: 0.2450882163 | D57: 0.05016967695 | E57: 0.5078130385
A58: Folpet | B58: Wine grapes | C58: 0.2436236548 | D58: 0.1139281108 | E58: 0.3654532713
A59: Fluopyram | B59: Apples | C59: 0.2335393134 | D59: 0.1110036239 | E59: 0.4125063987
A60: Thiabendazole | B60: Apples | C60: 0.2140403373 | D60: 0.1030559023 | E60: 0.3721769148
A61: Bromide ion | B61: Courgettes | C61: 0.1922424649 | D61: 0.08012120905 | E61: 0.3517198447
A62: Metiram | B62: Table grapes | C62: 0.1905106279 | D62: 0.05842270596 | E62: 0.4000763563
A63: Thiabendazole | B63: Bananas | C63: 0.1880634164 | D63: 0.1148642405 | E63: 0.268238613
A64: Mancozeb | B64: Broccoli | C64: 0.1729700684 | D64: 0.06047611349 | E64: 0.3109209168
A65: Fenpyrazamine | B65: Wine grapes | C65: 0.1624179949 | D65: 0.03140666562 | E65: 0.4288363193
A66: Buprofezin | B66: Bananas | C66: 0.1599432197 | D66: 0.09955689895 | E66: 0.2306467675
A67: Amitrole | B67: Drinking water-Unspecified | C67: 0.1557535323 | D67: 0.1330258847 | E67: 0.1813070351 | F67: =IF(C67>1,CONCATENATE(A67," ",B67),"") ->  | G67: =IF(C67>1,CONCATENATE(ROUND(C67,1)," ","(",ROUND(D67,1)," ","-"," ",ROUND(E67,1),")"),"") -> 
A68: MCPA | B68: Wine grapes | C68: 0.1415756803 | D68: 0.003454157769 | E68: 0.4905251575
A69: Fluopyram | B69: Lettuces | C69: 0.1413782725 | D69: 0.07254602232 | E69: 0.2490372179
A70: Boscalid | B70: Wine grapes | C70: 0.1367734376 | D70: 0.07218795428 | E70: 0.2168899154
A71: Boscalid | B71: Lettuces | C71: 0.1171278181 | D71: 0.07516153709 | E71: 0.165396927
A72: Lufenuron | B72: Drinking water-Unspecified | C72: 0.1168151493 | D72: 0.09976941351 | E72: 0.1359802763
A73: Topramezone | B73: Drinking water-Unspecified | C73: 0.1168151493 | D73: 0.09976941351 | E73: 0.1359802763
A74: Cyprodinil | B74: Tomatoes | C74: 0.1159525015 | D74: 0.07232691636 | E74: 0.1680818307
A75: Bromide ion | B75: Mandarins | C75: 0.1143324825 | D75: 0.007690135175 | E75: 0.400804462
A76: Cyprodinil | B76: Strawberries | C76: 0.1143297575 | D76: 0.04796171389 | E76: 0.1905721243
A77: Bromide ion | B77: Bananas | C77: 0.1066219775 | D77: 0.03534114784 | E77: 0.2383211372
A78: Fluquinconazole | B78: Drinking water-Unspecified | C78: 0.1061955902 | D78: 0.09069946683 | E78: 0.123618433
A79: Mancozeb | B79: Table grapes | C79: 0.1028071196 | D79: 0.03074824412 | E79: 0.230352926
A80: Mancozeb | B80: Mandarins | C80: 0.1020447403 | D80: 0.0192659472 | E80: 0.2262523721
A81: Pyrimethanil | B81: Table grapes | C81: 0.09919945131 | D81: 0.03649288207 | E81: 0.1848048921
A82: Maneb | B82: Table grapes | C82: 0.0968945913 | D82: 0.02783672508 | E82: 0.197941317
A83: Tetraconazole | B83: Table grapes | C83: 0.09466359156 | D83: 0.04063775289 | E83: 0.1627206239
A84: Bromide ion | B84: Aubergines/eggplants | C84: 0.09431425584 | D84: 0 | E84: 0.6359868012
A85: 2,4-D | B85: Mandarins | C85: 0.09131923504 | D85: 0.01701384248 | E85: 0.2080917615
A86: Buprofezin | B86: Table grapes | C86: 0.08414908386 | D86: 0.03016708455 | E86: 0.1528253169
A87: Spinosad | B87: Wine grapes | C87: 0.07686375347 | D87: 0.01696383665 | E87: 0.1711331134
A88: Propineb | B88: Cucumbers | C88: 0.07608618806 | D88: 0.03283765139 | E88: 0.1367749316
A89: Fluopicolide | B89: Wine grapes | C89: 0.07214354038 | D89: 0.03854855841 | E89: 0.1087329157
A90: Fluopyram | B90: Strawberries | C90: 0.06853641628 | D90: 0.03020324974 | E90: 0.116727346
A91: Tetraconazole | B91: Wine grapes | C91: 0.0677733537 | D91: 0.03310903381 | E91: 0.107165022
A92: Thiacloprid | B92: Tomatoes | C92: 0.06677811417 | D92: 0.03844276933 | E92: 0.1027772119
A93: Oxyfluorfen | B93: Olives for oil production | C93: 0.06476452316 | D93: 0.03760970861 | E93: 0.1074947716
A94: Metiram | B94: Pears | C94: 0.06414364426 | D94: 0.02655106644 | E94: 0.1194942943
A95: Boscalid | B95: Apples | C95: 0.060661443 | D95: 0.03231172626 | E95: 0.08702222871
A96: Propineb | B96: Potatoes | C96: 0.05903168217 | D96: 0.02151542081 | E96: 0.166653624
A97: Buprofezin | B97: Oranges | C97: 0.05769742722 | D97: 0.02759472732 | E97: 0.09854228851
A98: Metiram | B98: Melons | C98: 0.04813400806 | D98: 0.006145241433 | E98: 0.1213442115
A99: Spinosad | B99: Table grapes | C99: 0.04668608939 | D99: 0.01672809925 | E99: 0.08719707872
A100: Bromide ion | B100: Beans (with pods) | C100: 0.04610390727 | D100: 0.01808610012 | E100: 0.09842013271
A101: Boscalid | B101: Table grapes | C101: 0.0456961021 | D101: 0.01968227369 | E101: 0.0839951048
A102: Dithianon | B102: Wine grapes | C102: 0.04455752154 | D102: 0.00836562516 | E102: 0.1099200032
A103: Bromide ion | B103: Leeks | C103: 0.04412505527 | D103: 0.004606940563 | E103: 0.1235840061
A104: Thiacloprid | B104: Strawberries | C104: 0.04388538582 | D104: 0.01916228251 | E104: 0.07304133377
A105: Propineb | B105: Sweet peppers/bell peppers | C105: 0.04369977621 | D105: 0.01880405785 | E105: 0.09427224973
A106: Lufenuron | B106: Potatoes | C106: 0.04140100545 | D106: 0.0007847317436 | E106: 0.1212775863
A107: Buprofezin | B107: Apples | C107: 0.03961701353 | D107: 0.00780009248 | E107: 0.1070364402
A108: Bromide ion | B108: Peas (without pods) | C108: 0.03842967679 | D108: 0.01807589115 | E108: 0.06225543363
A109: Spiromesifen | B109: Tomatoes | C109: 0.03768189693 | D109: 0.02261844732 | E109: 0.05449805337
A110: Lufenuron | B110: Wine grapes | C110: 0.03732225163 | D110: 0.008673555801 | E110: 0.108883429
A111: Mancozeb | B111: Beans (with pods) | C111: 0.03641394299 | D111: 0.01533278296 | E111: 0.07646271052
A112: Spinosad | B112: Spinaches | C112: 0.03518900624 | D112: 0.003680758691 | E112: 0.1036140419
A113: Mancozeb | B113: Pears | C113: 0.03512494131 | D113: 0.01643704915 | E113: 0.06739231801
A114: Buprofezin | B114: Tomatoes | C114: 0.03505740967 | D114: 0.01916471595 | E114: 0.05922866087
A115: Spinosad | B115: Lettuces | C115: 0.03482874675 | D115: 0.02008143472 | E115: 0.05597699244
A116: Fipronil | B116: Potatoes | C116: 0.03403871267 | D116: 0.02400611814 | E116: 0.04563499641
A117: Maneb | B117: Pears | C117: 0.03398640593 | D117: 0.01330447293 | E117: 0.06919383144
